Workbook

Sheet Transition Matrices
A1: Model Inputs | H1: Transition Matrix: Treatment A | BB1: txA_cost | BC1: txA_QALY | BD1: txB_cost | BE1: txB_QALY | BF1: txB_cumNHB | DT1: txA_cost | DU1: txA_QALY | DV1: txB_cost | DW1: txB_QALY | DY1: txA_NB | DZ1: txB_NB | EG1: CEAC/CEF | EH1: txA_% | EI1: txB_% | EJ1: txA_NB | EK1: txB_NB
AA2: Transition Matrix: Treatment B | BB2: =$R$92 -> 15953.91883 | BC2: =$V$92 -> 0.5050228065 | BD2: =$AK$92 -> 31197.82121 | BE2: =$AO$92 -> 0.8439548079 | BF2: =$AP$22 -> -0.01441666667 | BG2: =$AP$23 -> -0.03666034751 | BH2: =$AP$24 -> -0.05458233073 | BI2: =$AP$25 -> -0.06956558485 | BJ2: =$AP$26 -> -0.08246091369 | BK2: =$AP$27 -> -0.09379867267 | BL2: =$AP$28 -> -0.1039158445 | BM2: =$AP$29 -> -0.1130323389 | BN2: =$AP$30 -> -0.1212968292 | BO2: =$AP$31 -> -0.1288143078 | BP2: =$AP$32 -> -0.1356626729 | BQ2: =$AP$33 -> -0.1419027281 | BR2: =$AP$34 -> -0.1473921007 | BS2: =$AP$35 -> -0.1523827513 | BT2: =$AP$36 -> -0.156910663 | BU2: =$AP$37 -> -0.1610081942 | BV2: =$AP$38 -> -0.1647049152 | BW2: =$AP$39 -> -0.1680281433 | BX2: =$AP$40 -> -0.1710032945 | BY2: =$AP$41 -> -0.1736541238 | BZ2: =$AP$42 -> -0.176002897 | CA2: =$AP$43 -> -0.1780705207 | CB2: =$AP$44 -> -0.1798766443 | CC2: =$AP$45 -> -0.1814397459 | CD2: =$AP$46 -> -0.1827319774 | CE2: =$AP$47 -> -0.1838219919 | CF2: =$AP$48 -> -0.1847246441 | CG2: =$AP$49 -> -0.1854539012 | CH2: =$AP$50 -> -0.186022893 | CI2: =$AP$51 -> -0.1864439574 | CJ2: =$AP$52 -> -0.1867286846 | CK2: =$AP$53 -> -0.186887958 | CL2: =$AP$54 -> -0.186931993 | CM2: =$AP$55 -> -0.1868703737 | CN2: =$AP$56 -> -0.1867120883 | CO2: =$AP$57 -> -0.1864655614 | CP2: =$AP$58 -> -0.1861497395 | CQ2: =$AP$59 -> -0.1857634266 | CR2: =$AP$60 -> -0.1853133048 | CS2: =$AP$61 -> -0.1848056242 | CT2: =$AP$62 -> -0.1842462265 | CU2: =$AP$63 -> -0.1836405684 | CV2: =$AP$64 -> -0.1829937436 | CW2: =$AP$65 -> -0.1823105034 | CX2: =$AP$66 -> -0.1815952763 | CY2: =$AP$67 -> -0.1808521866 | CZ2: =$AP$68 -> -0.180085072 | DA2: =$AP$69 -> -0.1792975003 | DB2: =$AP$70 -> -0.1785199978 | DC2: =$AP$71 -> -0.1777289019 | DD2: =$AP$72 -> -0.1769269657 | DE2: =$AP$73 -> -0.1761167375 | DF2: =$AP$74 -> -0.1753005731 | DG2: =$AP$75 -> -0.1744806479 | DH2: =$AP$76 -> -0.173658967 | DI2: =$AP$77 -> -0.172837376 | DJ2: =$AP$78 -> -0.1720175709 | DK2: =$AP$79 -> -0.1712011068 | DL2: =$AP$80 -> -0.1703894073 | DM2: =$AP$81 -> -0.1695837721 | DN2: =$AP$82 -> -0.1691980779 | DT2: =AVERAGE(DT9:DT10008) -> 16782.96321 | DU2: =AVERAGE(DU9:DU10008) -> 0.5083291678 | DV2: =AVERAGE(DV9:DV10008) -> 30618.39142 | DW2: =AVERAGE(DW9:DW10008) -> 0.8407960936 | DY2: =lambda*DU2-DT2 -> -1533.088179 | DZ2: =lambda*DW2-DV2 -> -5394.508615 | EH2: =DY3 -> 0.8042 | EI2: =DZ3 -> 0.1958 | EJ2: =DY2 -> -1533.088179 | EK2: =DZ2 -> -5394.508615
J3: SILENT | K3: ACTIVE | L3: COMPL | M3: DEAD | AC3: SILENT | AD3: ACTIVE | AE3: COMPL | AF3: DEAD | DY3: =COUNTIF($EA9:$EA10008,"tx A")/10000 -> 0.8042 | DZ3: =COUNTIF($EA9:$EA10008,"tx B")/10000 -> 0.1958
I4: SILENT | J4: =1-K4-L4-M4 -> 0.8924444444 | K4: =p_active_A -> 0.09422222222 | L4: =p_compl_sil_A -> 0.01155555556 | M4: =p_dead_sil_A -> 0.001777777778 | AB4: SILENT | AC4: =1-AD4-AE4-AF4 -> 0.8914386584 | AD4: =p_active_B -> 0.09267431598 | AE4: =p_compl_sil_B -> 0.01412180053 | AF4: =p_dead_sil_B -> 0.001765225066 | EG4: lambda (display only)
I5: ACTIVE | J5: =p_success_A -> 0.1944764097 | K5: =1-J5-L5-M5 -> 0.6605293441 | L5: =p_compl_act_A -> 0.1438434983 | M5: =p_dead_act_A -> 0.001150747986 | AB5: ACTIVE | AC5: =p_success_B -> 0.2119047619 | AD5: =1-AC5-AE5-AF5 -> 0.6892857143 | AE5: =p_compl_act_B -> 0.09761904762 | AF5: =p_dead_act_B -> 0.00119047619 | DY5: incr_cost | DZ5: incr_QALY | EA5: ICER | EG5: =lambda -> 30000
I6: COMPL | J6: 0 | K6: 0 | L6: =1-M6 -> 0.9965059399 | M6: =p_dead_cmp_A -> 0.003494060098 | AB6: COMPL | AC6: 0 | AD6: 0 | AE6: =1-AF6 -> 0.9965059399 | AF6: =p_dead_cmp_B -> 0.003494060098 | AS6: Incremental analysis | BF6: txB_cumNHB | DY6: =DV2-DT2 -> 13835.42821 | DZ6: =DW2-DU2 -> 0.3324669258 | EA6: =DY6/DZ6 -> 41614.44985
I7: DEAD | J7: 0 | K7: 0 | L7: 0 | M7: 1 | AB7: DEAD | AC7: 0 | AD7: 0 | AE7: 0 | AF7: 1 | BF7: Period
BB8: txA_cost | BC8: txA_QALY | BD8: txB_cost | BE8: txB_QALY | BF8: 1 | BG8: 2 | BH8: 3 | BI8: 4 | BJ8: 5 | BK8: 6 | BL8: 7 | BM8: 8 | BN8: 9 | BO8: 10 | BP8: 11 | BQ8: 12 | BR8: 13 | BS8: 14 | BT8: 15 | BU8: 16 | BV8: 17 | BW8: 18 | BX8: 19 | BY8: 20 | BZ8: 21 | CA8: 22 | CB8: 23 | CC8: 24 | CD8: 25 | CE8: 26 | CF8: 27 | CG8: 28 | CH8: 29 | CI8: 30 | CJ8: 31 | CK8: 32 | CL8: 33 | CM8: 34 | CN8: 35 | CO8: 36 | CP8: 37 | CQ8: 38 | CR8: 39 | CS8: 40 | CT8: 41 | CU8: 42 | CV8: 43 | CW8: 44 | CX8: 45 | CY8: 46 | CZ8: 47 | DA8: 48 | DB8: 49 | DC8: 50 | DD8: 51 | DE8: 52 | DF8: 53 | DG8: 54 | DH8: 55 | DI8: 56 | DJ8: 57 | DK8: 58 | DL8: 59 | DM8: 60 | DN8: 61 | DT8: txA_cost | DU8: txA_QALY | DV8: txB_cost | DW8: txB_QALY | DY8: txA_NB | DZ8: txB_NB | EA8: Optimal | EG8: lambda or WTP | EH8: txA_% | EI8: txB_% | EJ8: txA_NB | EK8: txB_NB | EL8: CEF
AV9: COSTS | AW9: OUTCOMES | AX9: NET BENEFIT | BA9: 1 | BB9: 15260.49319 | BC9: -0.2107587145 | BD9: 30102.50455 | BE9: -0.1167388295 | BF9: -0.01441666667 | BG9: -0.03665597046 | BH9: -0.05481032677 | BI9: -0.07038686308 | BJ9: -0.08429236816 | BK9: -0.09707380104 | BL9: -0.1090623617 | BM9: -0.1204598175 | BN9: -0.1313902447 | BO9: -0.1419310495 | BP9: -0.1521315716 | BQ9: -0.1620242452 | BR9: -0.1711738166 | BS9: -0.1800666382 | BT9: -0.1887143871 | BU9: -0.1971265264 | BV9: -0.2053111349 | BW9: -0.213275406 | BX9: -0.2210259487 | BY9: -0.2285689684 | BZ9: -0.2359103763 | CA9: -0.2430558563 | CB9: -0.2500109048 | CC9: -0.2567808565 | CD9: -0.263057088 | CE9: -0.2691667896 | CF9: -0.2751146497 | CG9: -0.280905238 | CH9: -0.2865430094 | CI9: -0.2920323063 | CJ9: -0.2973773614 | CK9: -0.3025822996 | CL9: -0.3076511403 | CM9: -0.3125877995 | CN9: -0.3173960914 | CO9: -0.3220797306 | CP9: -0.3264250672 | CQ9: -0.3306584852 | CR9: -0.3347832485 | CS9: -0.3388025337 | CT9: -0.3427194316 | CU9: -0.346536949 | CV9: -0.3502580107 | CW9: -0.353885461 | CX9: -0.3574220658 | CY9: -0.3608705143 | CZ9: -0.3642334204 | DA9: -0.367513325 | DB9: -0.3705603461 | DC9: -0.3735329547 | DD9: -0.376433371 | DE9: -0.3792637515 | DF9: -0.382026191 | DG9: -0.3847227241 | DH9: -0.3873553265 | DI9: -0.3899259164 | DJ9: -0.3924363562 | DK9: -0.3948884539 | DL9: -0.3972839645 | DM9: -0.399624591 | DN9: -0.4007138269 | DS9: 1 | DT9: 15260.49319 | DU9: -0.2107587145 | DV9: 30102.50455 | DW9: -0.1167388295 | DY9: =lambda*DU9-DT9 -> -21583.25463 | DZ9: =lambda*DW9-DV9 -> -33604.66943 | EA9: =IF(DY9>DZ9, "tx A", IF(DZ9>DY9, "tx B", "either")) -> tx A | EG9: 0 | EH9: 1 | EI9: 0 | EJ9: -16771.57724 | EK9: -30626.62803 | EL9: =IF(EJ9>EK9,EH9,EI9) -> 1
AT10: Treatment A | AV10: =$R$92 -> 15953.91883 | AW10: =$V$92 -> 0.5050228065 | AX10: =AW10*lambda-AV10 -> -803.2346382 | BA10: =1+BA9 -> 2 | BB10: 17518.42847 | BC10: 0.07314735388 | BD10: 31373.56155 | BE10: 0.2375523284 | BF10: -0.01441666667 | BG10: -0.037302021 | BH10: -0.05631605813 | BI10: -0.07273982035 | BJ10: -0.08736638041 | BK10: -0.1006894654 | BL10: -0.1130190913 | BM10: -0.124552445 | BN10: -0.1354173308 | BO10: -0.1456987999 | BP10: -0.155455473 | BQ10: -0.1647295471 | BR10: -0.1731327711 | BS10: -0.181130948 | BT10: -0.1887442511 | BU10: -0.1959902034 | BV10: -0.2028845147 | BW10: -0.2094416008 | BX10: -0.215674908 | BY10: -0.2215971185 | BZ10: -0.2272202815 | CA10: -0.2325559004 | CB10: -0.2376149912 | CC10: -0.2424081244 | CD10: -0.2467293924 | CE10: -0.2508163398 | CF10: -0.2546779139 | CG10: -0.258322725 | CH10: -0.2617590607 | CI10: -0.2649948995 | CJ10: -0.2680379225 | CK10: -0.2708955251 | CL10: -0.2735748275 | CM10: -0.2760826855 | CN10: -0.2784257 | CO10: -0.2806102267 | CP10: -0.2825456158 | CQ10: -0.284341504 | CR10: -0.2860032943 | CS10: -0.287536189 | CT10: -0.2889451971 | CU10: -0.2902351412 | CV10: -0.2914106649 | CW10: -0.2924762389 | CX10: -0.2934361678 | CY10: -0.2942945958 | CZ10: -0.2950555131 | DA10: -0.2957227616 | DB10: -0.2962725505 | DC10: -0.2967400449 | DD10: -0.2971285101 | DE10: -0.2974410897 | DF10: -0.2976808102 | DG10: -0.2978505852 | DH10: -0.29795322 | DI10: -0.297991415 | DJ10: -0.2979677702 | DK10: -0.2978847885 | DL10: -0.2977448794 | DM10: -0.2975503625 | DN10: -0.297432795 | DS10: =1+DS9 -> 2 | DT10: 17518.42847 | DU10: 0.07314735388 | DV10: 31373.56155 | DW10: 0.2375523284 | DY10: -15324.00785 | DZ10: -24246.9917 | EA10: tx A | EG10: =EG9+400 -> 400 | EH10: 1 | EI10: 0 | EJ10: -16564.93446 | EK10: -30286.20867 | EL10: =IF(EJ10>EK10,EH10,EI10) -> 1
AT11: Treatment B | AV11: =$AK$92 -> 31197.82121 | AW11: =$AO$92 -> 0.8439548079 | AX11: =AW11*lambda-AV11 -> -5879.176975 | BA11: =1+BA10 -> 3 | BB11: 16843.59123 | BC11: 0.4323438602 | BD11: 30398.54985 | BE11: 0.6616666143 | BF11: -0.01441666667 | BG11: -0.03613787689 | BH11: -0.05324399603 | BI11: -0.06730035797 | BJ11: -0.07929064516 | BK11: -0.08983533033 | BL11: -0.099327992 | BM11: -0.108020382 | BN11: -0.1160755138 | BO11: -0.123600796 | BP11: -0.130668715 | BQ11: -0.1373297475 | BR11: -0.14332087 | BS11: -0.1489855872 | BT11: -0.1543447343 | BU11: -0.1594155493 | BV11: -0.1642128534 | BW11: -0.1687497948 | BX11: -0.1730383187 | BY11: -0.1770894672 | BZ11: -0.1809135725 | CA11: -0.1845203836 | CB11: -0.1879191508 | CC11: -0.1911186839 | CD11: -0.1939841215 | CE11: -0.1966754824 | CF11: -0.1992000988 | CG11: -0.2015649945 | CH11: -0.2037769004 | CI11: -0.2058422688 | CJ11: -0.2077672859 | CK11: -0.2095578836 | CL11: -0.2112197501 | CM11: -0.2127583403 | CN11: -0.2141788857 | CO11: -0.215486403 | CP11: -0.2166285939 | CQ11: -0.2176721157 | CR11: -0.2186211825 | CS11: -0.2194798356 | CT11: -0.2202519509 | CU11: -0.2209412449 | CV11: -0.2215512819 | CW11: -0.2220854798 | CX11: -0.222547116 | CY11: -0.2229393335 | CZ11: -0.2232651461 | DA11: -0.2235274438 | DB11: -0.2237193997 | DC11: -0.2238560349 | DD11: -0.2239397758 | DE11: -0.2239729491 | DF11: -0.2239577855 | DG11: -0.223896424 | DH11: -0.2237909153 | DI11: -0.2236432256 | DJ11: -0.2234552401 | DK11: -0.2232287661 | DL11: -0.2229655364 | DM11: -0.2226672122 | DN11: -0.2225091997 | DS11: =1+DS10 -> 3 | DT11: 16843.59123 | DU11: 0.4323438602 | DV11: 30398.54985 | DW11: 0.6616666143 | DY11: -3873.275425 | DZ11: -10548.55142 | EA11: tx A | EG11: =EG10+400 -> 800 | EH11: 1 | EI11: 0 | EJ11: -16358.29167 | EK11: -29945.7893 | EL11: 1
BA12: 4 | BB12: 16459.29349 | BC12: 1.178894819 | BD12: 29915.55408 | BE12: 1.211630735 | BF12: -0.01441666667 | BG12: -0.03934795075 | BH12: -0.06155146027 | BI12: -0.08176695718 | BJ12: -0.1004650306 | BK12: -0.1179492207 | BL12: -0.1344191512 | BM12: -0.1500095951 | BN12: -0.1648146698 | BO12: -0.1789028406 | BP12: -0.1923262356 | BQ12: -0.205126439 | BR12: -0.2167565939 | BS12: -0.2278547817 | BT12: -0.2384464463 | BU12: -0.248554781 | BV12: -0.2582012711 | BW12: -0.2674060453 | BX12: -0.2761881055 | BY12: -0.2845654823 | BZ12: -0.2925553429 | CA12: -0.300174069 | CB12: -0.3074373152 | CC12: -0.3143600564 | CD12: -0.3206425032 | CE12: -0.3266273809 | CF12: -0.3323272084 | CG12: -0.3377539787 | CH12: -0.3429191814 | CI12: -0.3478338252 | CJ12: -0.352508458 | CK12: -0.3569531869 | CL12: -0.3611776968 | CM12: -0.3651912676 | CN12: -0.3690027917 | CO12: -0.37262079 | CP12: -0.3758899684 | CQ12: -0.3789900639 | CR12: -0.3819282164 | CS12: -0.3847112675 | CT12: -0.3873457729 | CU12: -0.3898380144 | CV12: -0.3921940112 | CW12: -0.394419531 | CX12: -0.3965201003 | CY12: -0.3985010146 | CZ12: -0.400367348 | DA12: -0.4021239624 | DB12: -0.4036968711 | DC12: -0.4051739736 | DD12: -0.4065593432 | DE12: -0.407856883 | DF12: -0.4090703327 | DG12: -0.4102032755 | DH12: -0.4112591448 | DI12: -0.4122412301 | DJ12: -0.4131526834 | DK12: -0.4139965247 | DL12: -0.4147756475 | DM12: -0.4154928242 | DN12: -0.4158061038 | DS12: 4 | DT12: 16459.29349 | DU12: 1.178894819 | DV12: 29915.55408 | DW12: 1.211630735 | DY12: 18907.55109 | DZ12: 6433.367977 | EA12: tx A | EG12: 1200 | EH12: 1 | EI12: 0 | EJ12: -16151.64889 | EK12: -29605.36994 | EL12: 1
BA13: 5 | BB13: 14562.76145 | BC13: 0.8082391902 | BD13: 30624.11793 | BE13: 1.148723628 | BF13: -0.01441666667 | BG13: -0.03683291529 | BH13: -0.0549709746 | BI13: -0.07017040499 | BJ13: -0.0832757794 | BK13: -0.094824897 | BL13: -0.1051651723 | BM13: -0.1145256107 | BN13: -0.123061325 | BO13: -0.1308810767 | BP13: -0.1380643251 | BQ13: -0.1446717911 | BR13: -0.1504624785 | BS13: -0.1557895369 | BT13: -0.1606861817 | BU13: -0.1651818582 | BV13: -0.1693032074 | BW13: -0.1730746847 | BX13: -0.1765189653 | BY13: -0.1796572148 | BZ13: -0.1825092771 | CA13: -0.1850938104 | CB13: -0.1874283883 | CC13: -0.1895295815 | CD13: -0.1913233357 | CE13: -0.1929237592 | CF13: -0.1943441137 | CG13: -0.1955969147 | CH13: -0.1966939717 | CI13: -0.1976464253 | CJ13: -0.198464782 | CK13: -0.1991589475 | CL13: -0.1997382575 | CM13: -0.2002115073 | CN13: -0.2005869799 | CO13: -0.2008724724 | CP13: -0.2010656618 | CQ13: -0.2011867144 | CR13: -0.2012418078 | CS13: -0.2012367459 | CT13: -0.2011769794 | CU13: -0.2010676238 | CV13: -0.2009134773 | CW13: -0.2007190381 | CX13: -0.20048852 | CY13: -0.2002258679 | CZ13: -0.1999347722 | DA13: -0.1996186828 | DB13: -0.1992969106 | DC13: -0.1989572676 | DD13: -0.1986024242 | DE13: -0.1982348679 | DF13: -0.1978569134 | DG13: -0.1974707123 | DH13: -0.1970782623 | DI13: -0.1966814158 | DJ13: -0.1962818883 | DK13: -0.1958812659 | DL13: -0.1954810131 | DM13: -0.1950824796 | DN13: -0.1948941119 | DS13: 5 | DT13: 14562.76145 | DU13: 0.8082391902 | DV13: 30624.11793 | DW13: 1.148723628 | DY13: 9684.414255 | DZ13: 3837.590899 | EA13: tx A | EG13: 1600 | EH13: 1 | EI13: 0 | EJ13: -15945.0061 | EK13: -29264.95058 | EL13: 1
AT14: Incremental | AV14: =AV11-AV10 -> 15243.90238 | BA14: 6 | BB14: 15795.90859 | BC14: 0.8308583147 | BD14: 29957.28724 | BE14: 0.9702821166 | BF14: -0.01441666667 | BG14: -0.03882612142 | BH14: -0.06001217815 | BI14: -0.07880187508 | BJ14: -0.09576163887 | BK14: -0.1112793047 | BL14: -0.1256219187 | BM14: -0.138975583 | BN14: -0.1514724779 | BO14: -0.1632089587 | BP14: -0.174257561 | BQ14: -0.184674905 | BR14: -0.1940386846 | BS14: -0.2028816534 | BT14: -0.2112355896 | BU14: -0.2191287275 | BV14: -0.2265866519 | BW14: -0.2336328884 | BX14: -0.2402892965 | BY14: -0.2465763368 | BZ14: -0.2525132568 | CA14: -0.2581182242 | CB14: -0.2634084264 | CC14: -0.2684001481 | CD14: -0.27288461 | CE14: -0.2771134712 | CF14: -0.2810999826 | CG14: -0.284856727 | CH14: -0.2883956543 | CI14: -0.291728114 | CJ14: -0.2948648857 | CK14: -0.2978162074 | CL14: -0.3005918024 | CM14: -0.303200905 | CN14: -0.3056522844 | CO14: -0.3079542674 | CP14: -0.31001188 | CQ14: -0.3119418898 | CR14: -0.3137510841 | CS14: -0.3154459061 | CT14: -0.3170324718 | CU14: -0.3185165862 | CV14: -0.3199037585 | CW14: -0.321199217 | CX14: -0.3224079227 | CY14: -0.3235345825 | CZ14: -0.3245836622 | DA14: -0.3255593983 | DB14: -0.3264226464 | DC14: -0.3272235002 | DD14: -0.3279654018 | DE14: -0.3286516155 | DF14: -0.3292852362 | DG14: -0.3298691982 | DH14: -0.3304062832 | DI14: -0.3308991275 | DJ14: -0.3313502301 | DK14: -0.3317619588 | DL14: -0.3321365573 | DM14: -0.3324761514 | DN14: -0.332622153 | DS14: 6 | DT14: 15795.90859 | DU14: 0.8308583147 | DV14: 29957.28724 | DW14: 0.9702821166 | DY14: 9129.840852 | DZ14: -848.823738 | EA14: tx A | EG14: 2000 | EH14: 1 | EI14: 0 | EJ14: -15738.36332 | EK14: -28924.53121 | EL14: 1
AV15: for | AW15: =AW11-AW10 -> 0.3389320014 | AX15: QALYs | BA15: 7 | BB15: 17567.84108 | BC15: -0.4678475421 | BD15: 31360.70293 | BE15: 0.1134889748 | BF15: -0.01441666667 | BG15: -0.03290206351 | BH15: -0.0447422648 | BI15: -0.05224073333 | BJ15: -0.05683722828 | BK15: -0.05943793684 | BL15: -0.06061899988 | BM15: -0.06075201212 | BN15: -0.06008143375 | BO15: -0.05877236245 | BP15: -0.0569400348 | BQ15: -0.05466806443 | BR15: -0.05214584594 | BS15: -0.04931277438 | BT15: -0.04620790675 | BU15: -0.04286437808 | BV15: -0.03931104646 | BW15: -0.03557354428 | BX15: -0.03167496122 | BY15: -0.02763629845 | BZ15: -0.02347677987 | CA15: -0.01921407354 | CB15: -0.01486445606 | CC15: -0.01044294032 | CD15: -0.006176691546 | CE15: -0.001867332803 | CF15: 0.002473913714 | CG15: 0.006836710496 | CH15: 0.0112115461 | CI15: 0.01558968127 | CJ15: 0.019963099 | CK15: 0.02432445794 | CL15: 0.0286670488 | CM15: 0.03298475349 | CN15: 0.03727200662 | CO15: 0.0415237594 | CP15: 0.04553488911 | CQ15: 0.04950394047 | CR15: 0.05342739414 | CS15: 0.05730210413 | CT15: 0.06112527238 | CU15: 0.06489442478 | CV15: 0.06860738868 | CW15: 0.07226227168 | CX15: 0.07585744173 | CY15: 0.07939150839 | CZ15: 0.0828633052 | DA15: 0.08627187321 | DB15: 0.08945718001 | DC15: 0.09258097678 | DD15: 0.09564285776 | DE15: 0.09864256086 | DF15: 0.1015799562 | DG15: 0.1044550351 | DH15: 0.1072679007 | DI15: 0.1100187575 | DJ15: 0.1127079035 | DK15: 0.1153357214 | DL15: 0.1179026708 | DM15: 0.1204092815 | DN15: 0.1215744552 | DS15: 7 | DT15: 17567.84108 | DU15: -0.4678475421 | DV15: 31360.70293 | DW15: 0.1134889748 | DY15: -31603.26734 | DZ15: -27956.03369 | EA15: tx B | EG15: 2400 | EH15: 1 | EI15: 0 | EJ15: -15531.72054 | EK15: -28584.11185 | EL15: 1
BA16: 8 | BB16: 16097.67015 | BC16: 0.2271501462 | BD16: 31975.223 | BE16: 0.7174048005 | BF16: -0.01441666667 | BG16: -0.03646579037 | BH16: -0.0539526675 | BI16: -0.06824314634 | BJ16: -0.08018747716 | BK16: -0.09032476934 | BL16: -0.09900578224 | BM16: -0.1064666983 | BN16: -0.1128734746 | BO16: -0.1183485336 | BP16: -0.1229868526 | BQ16: -0.1268656875 | BR16: -0.1298988174 | BS16: -0.1323254427 | BT16: -0.1341943485 | BU16: -0.1355499348 | BV16: -0.136433063 | BW16: -0.136881612 | BX16: -0.1369308589 | BY16: -0.1366137514 | BZ16: -0.1359611133 | CA16: -0.1350018071 | CB16: -0.1337628697 | CC16: -0.1322696292 | CD16: -0.1306278962 | CE16: -0.1287877198 | CF16: -0.1267689014 | CG16: -0.1245899643 | CH16: -0.1222682273 | CI16: -0.119819872 | CJ16: -0.1172600079 | CK16: -0.1146027325 | CL16: -0.1118611893 | CM16: -0.1090476221 | CN16: -0.1061734264 | CO16: -0.1032491983 | CP16: -0.1004259433 | CQ16: -0.09757311064 | CR16: -0.09469876223 | CS16: -0.09181036085 | CT16: -0.08891480553 | CU16: -0.08601846493 | CV16: -0.08312720901 | CW16: -0.0802464389 | CX16: -0.0773811152 | CY16: -0.07453578479 | CZ16: -0.07171460611 | DA16: -0.06892137308 | DB16: -0.0662910537 | DC16: -0.06369361928 | DD16: -0.06113176624 | DE16: -0.05860792313 | DF16: -0.05612426788 | DG16: -0.05368274394 | DH16: -0.05128507563 | DI16: -0.04893278258 | DJ16: -0.04662719334 | DK16: -0.04436945827 | DL16: -0.04216056168 | DM16: -0.04000133323 | DN16: -0.03899710728 | DS16: 8 | DT16: 16097.67015 | DU16: 0.2271501462 | DV16: 31975.223 | DW16: 0.7174048005 | DY16: -9283.165769 | DZ16: -10453.07899 | EA16: tx A | EG16: 2800 | EH16: 1 | EI16: 0 | EJ16: -15325.07775 | EK16: -28243.69249 | EL16: 1
AT17: ICER | AV17: =AV14/AW15 -> 44976.28526 | AW17: per QALY | BA17: 9 | BB17: 16493.04206 | BC17: 0.956984784 | BD17: 30167.36556 | BE17: 1.079152228 | BF17: -0.01441666667 | BG17: -0.03968149747 | BH17: -0.06217778881 | BI17: -0.08248561804 | BJ17: -0.1010245111 | BK17: -0.1180984865 | BL17: -0.1339293479 | BM17: -0.1486808185 | BN17: -0.1624757815 | BO17: -0.1754084594 | BP17: -0.1875529421 | BQ17: -0.1989691188 | BR17: -0.2091954658 | BS17: -0.2188161147 | BT17: -0.2278665075 | BU17: -0.236378302 | BV17: -0.2443802531 | BW17: -0.2518988235 | BX17: -0.2589586098 | BY17: -0.2655826439 | BZ17: -0.2717926085 | CA17: -0.2776089955 | CB17: -0.2830512239 | CC17: -0.2881377322 | CD17: -0.2926599402 | CE17: -0.296875951 | CF17: -0.3008008936 | CG17: -0.3044491807 | CH17: -0.3078345457 | CI17: -0.3109700776 | CJ17: -0.3138682516 | CK17: -0.3165409593 | CL17: -0.3189995354 | CM17: -0.321254784 | CN17: -0.3233170032 | CO17: -0.3251960078 | CP17: -0.3268199549 | CQ17: -0.3282868107 | CR17: -0.3296046657 | CS17: -0.3307812288 | CT17: -0.3318238449 | CU17: -0.3327395118 | CV17: -0.3335348955 | CW17: -0.3342163459 | CX17: -0.3347899112 | CY17: -0.3352613513 | CZ17: -0.3356361516 | DA17: -0.3359195351 | DB17: -0.3361070969 | DC17: -0.3362168403 | DD17: -0.3362530576 | DE17: -0.3362198341 | DF17: -0.336121058 | DG17: -0.3359604295 | DH17: -0.3357414691 | DI17: -0.3354675264 | DJ17: -0.3351417878 | DK17: -0.3347672841 | DL17: -0.3343468977 | DM17: -0.3338833695 | DN17: -0.3336433392 | DS17: 9 | DT17: 16493.04206 | DU17: 0.956984784 | DV17: 30167.36556 | DW17: 1.079152228 | DY17: 12216.50146 | DZ17: 2207.201281 | EA17: tx A | EG17: 3200 | EH17: 1 | EI17: 0 | EJ17: -15118.43497 | EK17: -27903.27313 | EL17: 1
BA18: 10 | BB18: 16710.77424 | BC18: 0.4101933723 | BD18: 30893.98361 | BE18: 0.8847156402 | BF18: -0.01441666667 | BG18: -0.03603730987 | BH18: -0.0527772033 | BI18: -0.06609931428 | BJ18: -0.07693162527 | BK18: -0.08587190277 | BL18: -0.09331337987 | BM18: -0.09952199224 | BN18: -0.10468391 | BO18: -0.1089348398 | BP18: -0.1123781292 | BQ18: -0.1150959843 | BR18: -0.1170583311 | BS18: -0.1184500643 | BT18: -0.1193199485 | BU18: -0.1197117116 | BV18: -0.1196651275 | BW18: -0.1192167324 | BX18: -0.1184003129 | BY18: -0.1172472496 | BZ18: -0.1157867693 | CA18: -0.1140461396 | CB18: -0.112050824 | CC18: -0.1098246122 | CD18: -0.1075056792 | CE18: -0.1050077922 | CF18: -0.1023494222 | CG18: -0.09954781254 | CH18: -0.09661905193 | CI18: -0.09357814266 | CJ18: -0.0904390645 | CK18: -0.08721483467 | CL18: -0.08391756455 | CM18: -0.08055851294 | CN18: -0.07714813651 | CO18: -0.07369613733 | CP18: -0.07037744256 | CQ18: -0.06703560006 | CR18: -0.0636779414 | CS18: -0.06031123699 | CT18: -0.0569417302 | CU18: -0.05357516954 | CV18: -0.05021683909 | CW18: -0.0468715872 | CX18: -0.04354385362 | CY18: -0.04023769507 | CZ18: -0.03695680944 | DA18: -0.03370455854 | DB18: -0.03063735009 | DC18: -0.02760293691 | DD18: -0.02460367892 | DE18: -0.02164169119 | DF18: -0.01871886017 | DG18: -0.01583685896 | DH18: -0.01299716167 | DI18: -0.01020105699 | DJ18: -0.007449660975 | DK18: -0.004743929041 | DL18: -0.002084667287 | DM18: 0.0005274568531 | DN18: 0.001748622445 | DS18: 10 | DT18: 16710.77424 | DU18: 0.4101933723 | DV18: 30893.98361 | DW18: 0.8847156402 | DY18: -4404.973075 | DZ18: -4352.514402 | EA18: tx B | EG18: 3600 | EH18: 1 | EI18: 0 | EJ18: -14911.79218 | EK18: -27562.85376 | EL18: 1
H19: TREATMENT A | AA19: TREATMENT B | BA19: 11 | BB19: 17532.83323 | BC19: 0.3811479799 | BD19: 31994.75052 | BE19: 0.7194040022 | BF19: -0.01441666667 | BG19: -0.03849672355 | BH19: -0.05898629254 | BI19: -0.07669533102 | BJ19: -0.09219062931 | BK19: -0.1058728816 | BL19: -0.1180299611 | BM19: -0.1288732873 | BN19: -0.138562413 | BO19: -0.1472215272 | BP19: -0.1549504749 | BQ19: -0.1618320903 | BR19: -0.1676463599 | BS19: -0.1727798471 | BT19: -0.1772850204 | BU19: -0.1812093413 | BV19: -0.1845962148 | BW19: -0.1874856495 | BX19: -0.1899147262 | BY19: -0.1919179429 | BZ19: -0.1935274748 | CA19: -0.1947733795 | CB19: -0.1956837648 | CC19: -0.1962849291 | CD19: -0.1965864105 | CE19: -0.1966387736 | CF19: -0.1964625473 | CG19: -0.1960769377 | CH19: -0.1954999078 | CI19: -0.1947482513 | CJ19: -0.1938376622 | CK19: -0.1927827993 | CL19: -0.191597348 | CM19: -0.1902940775 | CN19: -0.1888848952 | CO19: -0.1873808981 | CP19: -0.1858680625 | CQ19: -0.1842839294 | CR19: -0.1826370174 | CS19: -0.1809352419 | CT19: -0.1791859523 | CU19: -0.1773959657 | CV19: -0.1755716002 | CW19: -0.1737187048 | CX19: -0.171842689 | CY19: -0.1699485494 | CZ19: -0.1680408959 | DA19: -0.1661239761 | DB19: -0.1642932346 | DC19: -0.1624608082 | DD19: -0.1606298317 | DE19: -0.1588031747 | DF19: -0.1569834584 | DG19: -0.1551730719 | DH19: -0.1533741876 | DI19: -0.1515887752 | DJ19: -0.1498186154 | DK19: -0.1480653125 | DL19: -0.1463303066 | DM19: -0.1446148845 | DN19: -0.1438078874 | DS19: 11 | DT19: 17532.83323 | DU19: 0.3811479799 | DV19: 31994.75052 | DW19: 0.7194040022 | DY19: -6098.393831 | DZ19: -10412.63045 | EA19: tx A | EG19: 4000 | EH19: 1 | EI19: 0 | EJ19: -14705.1494 | EK19: -27222.4344 | EL19: 1
J20: PROBABILITIES | O20: COSTS | S20: OUTCOMES | AC20: PROBABILITIES | AH20: COSTS | AL20: OUTCOMES | BA20: 12 | BB20: 18180.6982 | BC20: 1.142267548 | BD20: 31540.2426 | BE20: 1.431999862 | BF20: -0.01441666667 | BG20: -0.03748518512 | BH20: -0.05646916558 | BI20: -0.07249915059 | BJ20: -0.08633473544 | BK20: -0.09848757916 | BL20: -0.1093048031 | BM20: -0.119024884 | BN20: -0.1278147704 | BO20: -0.1357943476 | BP20: -0.1430524684 | BQ20: -0.1496574089 | BR20: -0.1553776531 | BS20: -0.1605706983 | BT20: -0.1652733184 | BU20: -0.1695178526 | BV20: -0.1733333578 | BW20: -0.1767463652 | BX20: -0.1797813823 | BY20: -0.1824612331 | BZ20: -0.1848072924 | CA20: -0.1868396537 | CB20: -0.1885772531 | CC20: -0.1900379645 | CD20: -0.1911814999 | CE20: -0.1920926245 | CF20: -0.192785721 | CG20: -0.1932743946 | CH20: -0.1935715156 | CI20: -0.1936892577 | CJ20: -0.1936391355 | CK20: -0.1934320376 | CL20: -0.1930782592 | CM20: -0.1925875325 | CN20: -0.1919690553 | CO20: -0.1912315183 | CP20: -0.1904235304 | CQ20: -0.1895173545 | CR20: -0.1885199618 | CS20: -0.187437932 | CT20: -0.1862774738 | CU20: -0.1850444435 | CV20: -0.1837443636 | CW20: -0.1823824399 | CX20: -0.1809635782 | CY20: -0.1794923995 | CZ20: -0.1779732554 | DA20: -0.1764102418 | DB20: -0.1748835471 | DC20: -0.1733221939 | DD20: -0.1717294273 | DE20: -0.1701082962 | DF20: -0.1684616641 | DG20: -0.166792219 | DH20: -0.1651024826 | DI20: -0.1633948194 | DJ20: -0.1616714452 | DK20: -0.159934435 | DL20: -0.1581857308 | DM20: -0.1564271488 | DN20: -0.1555858333 | DS20: 12 | DT20: 18180.6982 | DU20: 1.142267548 | DV20: 31540.2426 | DW20: 1.431999862 | DY20: 16087.32825 | DZ20: 11419.75325 | EA20: tx A | EG20: 4400 | EH20: 1 | EI20: 0 | EJ20: -14498.50662 | EK20: -26882.01504 | EL20: 1
A21: PROBABILITIES | B21: Treatment A | C21: Treatment B | H21: YEARS | I21: PERIOD | J21: SILENT | K21: ACTIVE | L21: COMPL | M21: DEAD | N21: discount | O21: SILENT | P21: ACTIVE | Q21: COMPL | R21: DEAD | S21: SILENT | T21: ACTIVE | U21: COMPL | V21: DEAD | AA21: YEARS | AB21: PERIOD | AC21: SILENT | AD21: ACTIVE | AE21: COMPL | AF21: DEAD | AG21: discount | AH21: SILENT | AI21: ACTIVE | AJ21: COMPL | AK21: DEAD | AL21: SILENT | AM21: ACTIVE | AN21: COMPL | AO21: DEAD | AP21: Cumulative_NHB_txB | AQ21: Copy of Cumulative_NHB_txB | BA21: 13 | BB21: 15262.8756 | BC21: 0.7199005094 | BD21: 28788.20209 | BE21: 1.00392443 | BF21: -0.01441666667 | BG21: -0.03652426604 | BH21: -0.05426189458 | BI21: -0.0690497683 | BJ21: -0.08175223647 | BK21: -0.09290292728 | BL21: -0.1028382661 | BM21: -0.1117766706 | BN21: -0.1198655422 | BO21: -0.1272091675 | BP21: -0.1338853043 | BQ21: -0.1399550597 | BR21: -0.1452062334 | BS21: -0.1499689591 | BT21: -0.154279515 | BU21: -0.1581706104 | BV21: -0.1616721663 | BW21: -0.1648118148 | BX21: -0.1676152309 | BY21: -0.1701063622 | BZ21: -0.1723075976 | CA21: -0.1742398973 | CB21: -0.175922898 | CC21: -0.1773750033 | CD21: -0.1785544879 | CE21: -0.1795458955 | CF21: -0.1803636523 | CG21: -0.1810212717 | CH21: -0.1815314086 | CI21: -0.1819059092 | CJ21: -0.1821558584 | CK21: -0.1822916244 | CL21: -0.1823229004 | CM21: -0.1822587445 | CN21: -0.1821076169 | CO21: -0.1818774153 | CP21: -0.1815898847 | CQ21: -0.1812406067 | CR21: -0.1808356789 | CS21: -0.1803807802 | CT21: -0.1798811953 | CU21: -0.1793418392 | CV21: -0.178767279 | CW21: -0.1781617555 | CX21: -0.1775292031 | CY21: -0.1768732687 | CZ21: -0.1761973291 | DA21: -0.1755045083 | DB21: -0.1748313509 | DC21: -0.1741474031 | DD21: -0.1734550038 | DE21: -0.1727563066 | DF21: -0.1720532908 | DG21: -0.1713477733 | DH21: -0.1706414187 | DI21: -0.1699357492 | DJ21: -0.1692321543 | DK21: -0.1685318992 | DL21: -0.1678361333 | DM21: -0.167145898 | DN21: -0.1668202959 | DS21: 13 | DT21: 15262.8756 | DU21: 0.7199005094 | DV21: 28788.20209 | DW21: 1.00392443 | DY21: 6334.139678 | DZ21: 1329.5308 | EA21: tx A | EG21: 4800 | EH21: 1 | EI21: 0 | EJ21: -14291.86383 | EK21: -26541.59568 | EL21: 1
A22: p_active | B22: =Parameters!D8 -> 0.09422222222 | C22: =Parameters!D9 -> 0.09267431598 | H22: =TEXT((I22-MOD(I22-1,12))/12,"0")&"."&TEXT(MOD(I22-1,12), "00") -> 0.00 | I22: 1 | J22: 0 | K22: 1 | L22: 0 | M22: 0 | N22: 1 | O22: =c_sil_A*J22*N22 -> 0 | P22: =c_act_A*K22*N22 -> 122.4295517 | Q22: =c_compl_A*L22*N22 -> 0 | R22: =c_dead_A*M22*N22 -> 0 | S22: =u_sil*J22*N22 -> 0 | T22: =u_act*K22*N22 -> 0.05441666667 | U22: =u_compl*L22*N22 -> 0 | V22: =u_dead*M22*N22 -> 0 | AA22: =TEXT((AB22-MOD(AB22-1,12))/12,"0")&"."&TEXT(MOD(AB22-1,12), "00") -> 0.00 | AB22: 1 | AC22: 0 | AD22: 1 | AE22: 0 | AF22: 0 | AG22: 1 | AH22: =c_sil_B*AC22*AG22 -> 0 | AI22: =c_act_B*AD22*AG22 -> 987.4295517 | AJ22: =c_compl_B*AE22*AG22 -> 0 | AK22: =c_dead_B*AF22*AG22 -> 0 | AL22: =u_sil*AC22*AG22 -> 0 | AM22: =u_act*AD22*AG22 -> 0.05441666667 | AN22: =u_compl*AE22*AG22 -> 0 | AO22: =u_dead*AF22*AG22 -> 0 | AP22: =(SUM(AL22:AO22)-SUM(S22:V22)-((SUM(AH22:AK22)-SUM(O22:R22))/lambda))*0.5 -> -0.01441666667 | AQ22: =$AP$22 -> -0.01441666667 | BA22: 14 | BB22: 15004.18616 | BC22: 0.5275363181 | BD22: 30918.68386 | BE22: 0.9233895033 | BF22: -0.01441666667 | BG22: -0.03739176435 | BH22: -0.05629250768 | BI22: -0.07226208668 | BJ22: -0.08604050349 | BK22: -0.09811359441 | BL22: -0.1088065668 | BM22: -0.1183427371 | BN22: -0.1268804397 | BO22: -0.1345362401 | BP22: -0.1413995526 | BQ22: -0.1475418637 | BR22: -0.1527615796 | BS22: -0.1573997664 | BT22: -0.1614992642 | BU22: -0.1650986305 | BV22: -0.168233087 | BW22: -0.170935147 | BX22: -0.1732350408 | BY22: -0.1751610128 | BZ22: -0.1767395364 | CA22: -0.1779954758 | CB22: -0.1789522131 | CC22: -0.1796317527 | CD22: -0.1800346643 | CE22: -0.1802118816 | CF22: -0.1801808919 | CG22: -0.1799581555 | CH22: -0.1795591615 | CI22: -0.1789984806 | CJ22: -0.1782898137 | CK22: -0.1774460386 | CL22: -0.1764792536 | CM22: -0.175400819 | CN22: -0.1742213962 | CO22: -0.1729509857 | CP22: -0.1716633436 | CQ22: -0.170306338 | CR22: -0.1688877991 | CS22: -0.167415052 | CT22: -0.1658949447 | CU22: -0.164333874 | CV22: -0.1627378099 | CW22: -0.1611123197 | CX22: -0.1594625898 | CY22: -0.1577934471 | CZ22: -0.1561093793 | DA22: -0.1544145536 | DB22: -0.1527938693 | DC22: -0.1511700301 | DD22: -0.1495461895 | DE22: -0.1479252601 | DF22: -0.1463099274 | DG22: -0.1447026625 | DH22: -0.1431057356 | DI22: -0.141521227 | DJ22: -0.139951039 | DK22: -0.1383969064 | DL22: -0.1368604065 | DM22: -0.1353429687 | DN22: -0.1346300712 | DS22: 14 | DT22: 15004.18616 | DU22: 0.5275363181 | DV22: 30918.68386 | DW22: 0.9233895033 | DY22: 821.9033779 | DZ22: -3216.998759 | EA22: tx A | EG22: 5200 | EH22: 1 | EI22: 0 | EJ22: -14085.22105 | EK22: -26201.17631 | EL22: 1
A23: p_success | B23: =Parameters!D10 -> 0.1944764097 | C23: =Parameters!D11 -> 0.2119047619 | H23: =TEXT((I23-MOD(I23-1,12))/12,"0")&"."&TEXT(MOD(I23-1,12), "00") -> 0.01 | I23: =1+I22 -> 2 | J23: =MMULT(J22:M22,J$4:M$7) -> 0.1944764097 | K23: 0.6605293441 | L23: 0.1438434983 | M23: 0.001150747986 | N23: =N22 -> 1 | O23: 11.96411131 | P23: 80.86831148 | Q23: 57.10538496 | R23: 0 | S23: 0.01327301496 | T23: 0.03594380514 | U23: -0.001642213272 | V23: 0 | AA23: =TEXT((AB23-MOD(AB23-1,12))/12,"0")&"."&TEXT(MOD(AB23-1,12), "00") -> 0.01 | AB23: =1+AB22 -> 2 | AC23: =MMULT(AC22:AF22,AC$4:AF$7) -> 0.2119047619 | AD23: 0.6892857143 | AE23: 0.09761904762 | AF23: 0.00119047619 | AG23: =AG22 -> 1 | AH23: 196.3339157 | AI23: =c_act_B*AD23*AG23 -> 680.6210839 | AJ23: 38.75443354 | AK23: 0 | AL23: 0.0144625 | AM23: 0.03750863095 | AN23: -0.001114484127 | AO23: 0 | AP23: =(SUM(AL23:AO23)-SUM(S23:V23)-((SUM(AH23:AK23)-SUM(O23:R23))/lambda))+AP22 -> -0.03666034751 | AQ23: =$AP$23 -> -0.03666034751 | BA23: 15 | BB23: 16626.43619 | BC23: 0.9117600343 | BD23: 29244.49739 | BE23: 0.8195287465 | BF23: -0.01441666667 | BG23: -0.03900044982 | BH23: -0.06086524365 | BI23: -0.08092260812 | BJ23: -0.09971653008 | BK23: -0.1175727431 | BL23: -0.1346874099 | BM23: -0.1511797923 | BN23: -0.1671235311 | BO23: -0.182565222 | BP23: -0.1975354429 | BQ23: -0.2120552996 | BR23: -0.2254695921 | BS23: -0.2384813837 | BT23: -0.2511004759 | BU23: -0.2633355947 | BV23: -0.275194838 | BW23: -0.2866859372 | BX23: -0.2978164069 | BY23: -0.3085936303 | BZ23: -0.3190249045 | CA23: -0.3291174647 | CB23: -0.3388784942 | CC23: -0.3483151274 | CD23: -0.3570001949 | CE23: -0.3653897556 | CF23: -0.3734904494 | CG23: -0.3813088554 | CH23: -0.3888514876 | CI23: -0.39612479 | CJ23: -0.4031351326 | CK23: -0.409888807 | CL23: -0.4163920229 | CM23: -0.4226509051 | CN23: -0.4286714904 | CO23: -0.434459725 | CP23: -0.439756618 | CQ23: -0.4448432844 | CR23: -0.4497251175 | CS23: -0.4544074174 | CT23: -0.4588953908 | CU23: -0.4631941492 | CV23: -0.4673087092 | CW23: -0.4712439913 | CX23: -0.4750048205 | CY23: -0.4785959255 | CZ23: -0.4820219392 | DA23: -0.4852873989 | DB23: -0.4882486823 | DC23: -0.4910654277 | DD23: -0.4937416854 | DE23: -0.4962814169 | DF23: -0.4986884951 | DG23: -0.5009667057 | DH23: -0.5031197475 | DI23: -0.5051512339 | DJ23: -0.5070646936 | DK23: -0.5088635718 | DL23: -0.5105512312 | DM23: -0.5121309534 | DN23: -0.5128333279 | DS23: 15 | DT23: 16626.43619 | DU23: 0.9117600343 | DV23: 29244.49739 | DW23: 0.8195287465 | DY23: 10726.36484 | DZ23: -4658.634999 | EA23: tx A | EG23: 5600 | EH23: 1 | EI23: 0 | EJ23: -13878.57826 | EK23: -25860.75695 | EL23: 1
A24: p_compl_sil | B24: =Parameters!D12 -> 0.01155555556 | C24: =Parameters!D13 -> 0.01412180053 | H24: 0.02 | I24: =1+I23 -> 3 | J24: =MMULT(J23:M23,J$4:M$7) -> 0.3020167667 | K24: 0.4546230139 | L24: 0.240601035 | M24: 0.002759184466 | N24: =N23 -> 1 | O24: 18.57995127 | P24: 55.65929178 | Q24: 95.51780156 | R24: 0 | S24: 0.02061264433 | T24: 0.024739069 | U24: -0.002746861816 | V24: 0 | AA24: 0.02 | AB24: =1+AB23 -> 3 | AC24: =MMULT(AC23:AF23,AC$4:AF$7) -> 0.3349630218 | AD24: 0.4947529248 | AE24: 0.1675578525 | AF24: 0.002726200838 | AG24: =AG23 -> 1 | AH24: 310.3498057 | AI24: 488.5336587 | AJ24: 66.51990383 | AK24: 0 | AL24: 0.02286122624 | AM24: 0.02692280499 | AN24: -0.00191295215 | AO24: 0 | AP24: -0.05458233073 | AQ24: =$AP$24 -> -0.05458233073 | BA24: 16 | BB24: 17830.71424 | BC24: 1.297783548 | BD24: 30489.22955 | BE24: 1.327298176 | BF24: -0.01441666667 | BG24: -0.03954115338 | BH24: -0.06200829729 | BI24: -0.0824960986 | BJ24: -0.1014453703 | BK24: -0.1191462939 | BL24: -0.1357933196 | BM24: -0.1515199564 | BN24: -0.1664208025 | BO24: -0.1805654878 | BP24: -0.1940074972 | BQ24: -0.2067897545 | BR24: -0.218369187 | BS24: -0.2293841101 | BT24: -0.2398609668 | BU24: -0.2498238753 | BV24: -0.2592951888 | BW24: -0.2682958589 | BX24: -0.2768456767 | BY24: -0.284963435 | BZ24: -0.2926670414 | CA24: -0.2999735994 | CB24: -0.3068994697 | CC24: -0.3134603183 | CD24: -0.3193754017 | CE24: -0.3249708448 | CF24: -0.3302597875 | CG24: -0.3352548309 | CH24: -0.3399680616 | CI24: -0.344411073 | CJ24: -0.3485949863 | CK24: -0.3525304698 | CL24: -0.3562277579 | CM24: -0.3596966686 | CN24: -0.3629466206 | CO24: -0.3659866495 | CP24: -0.3686902439 | CQ24: -0.3712100868 | CR24: -0.3735537758 | CS24: -0.3757285998 | CT24: -0.377741551 | CU24: -0.3795993374 | CV24: -0.3813083941 | CW24: -0.3828748944 | CX24: -0.3843047606 | CY24: -0.3856036742 | CZ24: -0.3867770853 | DA24: -0.3878302225 | DB24: -0.3887234407 | DC24: -0.3895114717 | DD24: -0.3901987119 | DE24: -0.3907893783 | DF24: -0.3912875166 | DG24: -0.3916970077 | DH24: -0.3920215746 | DI24: -0.3922647887 | DJ24: -0.3924300761 | DK24: -0.3925207234 | DL24: -0.3925398833 | DM24: -0.3924905802 | DN24: -0.3924358826 | DS24: 16 | DT24: 17830.71424 | DU24: 1.297783548 | DV24: 30489.22955 | DW24: 1.327298176 | DY24: 21102.7922 | DZ24: 9329.715719 | EA24: tx A | EG24: 6000 | EH24: 1 | EI24: 0 | EJ24: -13671.93548 | EK24: -25520.33759 | EL24: 1
A25: p_compl_act | B25: =Parameters!D14 -> 0.1438434983 | C25: =Parameters!D15 -> 0.09761904762 | H25: 0.03 | I25: 4 | J25: =MMULT(J24:M24,J$4:M$7) -> 0.3579466371 | K25: 0.3287485321 | L25: 0.3086448967 | M25: 0.004659934156 | N25: 1 | O25: 22.02073464 | P25: 40.2485354 | Q25: 122.5309858 | R25: 0 | S25: 0.02442985798 | T25: 0.01788939929 | U25: -0.003523695904 | V25: 0 | AA25: 0.03 | AB25: 4 | AC25: =MMULT(AC24:AF24,AC$4:AF$7) -> 0.4034394875 | AD25: 0.3720685921 | AE25: 0.2199999856 | AF25: 0.004491934744 | AG25: 1 | AH25: 373.7945934 | AI25: 367.3915231 | AJ25: 87.33925427 | AK25: 0 | AL25: 0.02753474502 | AM25: 0.02024673255 | AN25: -0.002511666503 | AO25: 0 | AP25: -0.06956558485 | AQ25: =$AP$25 -> -0.06956558485 | BA25: 17 | BB25: 17207.5314 | BC25: 0.8934432802 | BD25: 30418.26211 | BE25: 1.19098713 | BF25: -0.01441666667 | BG25: -0.03736339598 | BH25: -0.05632948453 | BI25: -0.07247866714 | BJ25: -0.08653181428 | BK25: -0.09894491398 | BL25: -0.1100149213 | BM25: -0.1199427421 | BN25: -0.1288707415 | BO25: -0.1369051128 | BP25: -0.1441292461 | BQ25: -0.1506117449 | BR25: -0.1561350936 | BS25: -0.1610571623 | BT25: -0.1654221752 | BU25: -0.1692704823 | BV25: -0.1726392556 | BW25: -0.1755629541 | BX25: -0.1780736486 | BY25: -0.1802012594 | BZ25: -0.1819737414 | CA25: -0.1834172343 | CB25: -0.1845561903 | CC25: -0.1854134857 | CD25: -0.1859820917 | CE25: -0.1863218968 | CF25: -0.1864507295 | CG25: -0.1863852575 | CH25: -0.1861410573 | CI25: -0.1857326812 | CJ25: -0.1851737186 | CK25: -0.1844768544 | CL25: -0.1836539244 | CM25: -0.1827159667 | CN25: -0.1816732701 | CO25: -0.1805354208 | CP25: -0.179369634 | CQ25: -0.1781296377 | CR25: -0.1768227899 | CS25: -0.17545593 | CT25: -0.1740354105 | CU25: -0.1725671283 | CV25: -0.1710565526 | CW25: -0.1695087526 | CX25: -0.1679284224 | CY25: -0.166319905 | CZ25: -0.1646872148 | DA25: -0.163034059 | DB25: -0.1614433905 | DC25: -0.1598394883 | DD25: -0.1582251138 | DE25: -0.1566028049 | DF25: -0.1549748905 | DG25: -0.1533435049 | DH25: -0.1517106005 | DI25: -0.1500779601 | DJ25: -0.1484472086 | DK25: -0.1468198233 | DL25: -0.1451971447 | DM25: -0.1435803858 | DN25: -0.1428138404 | DS25: 17 | DT25: 17207.5314 | DU25: 0.8934432802 | DV25: 30418.26211 | DW25: 1.19098713 | DY25: 9595.767012 | DZ25: 5311.351799 | EA25: tx A | EG25: 6400 | EH25: 1 | EI25: 0 | EJ25: -13465.2927 | EK25: -25179.91823 | EL25: 1
A26: p_dead_sil | B26: =Parameters!D16 -> 0.001777777778 | C26: =Parameters!D17 -> 0.001765225066 | H26: 0.04 | I26: 5 | J26: =MMULT(J25:M25,J$4:M$7) -> 0.3833813218 | K26: 0.2508745798 | L26: 0.3589910841 | M26: 0.006753014262 | N26: 1 | O26: 23.58546632 | P26: 30.71446234 | Q26: 142.5182528 | R26: 0 | S26: 0.02616577522 | T26: 0.01365175839 | U26: -0.004098481543 | V26: 0 | AA26: 0.04 | AB26: 5 | AC26: =MMULT(AC25:AF25,AC$4:AF$7) -> 0.4384846619 | AD26: 0.2938500438 | AE26: 0.261249566 | AF26: 0.006415728212 | AG26: 1 | AH26: 406.2646345 | AI26: 290.156217 | AJ26: 103.7151989 | AK26: 0 | AL26: 0.02992657818 | AM26: 0.01599033988 | AN26: -0.002982599212 | AO26: 0 | AP26: -0.08246091369 | AQ26: =$AP$26 -> -0.08246091369 | BA26: 18 | BB26: 17244.438 | BC26: 1.312016111 | BD26: 32694.51895 | BE26: 1.572122662 | BF26: -0.01441666667 | BG26: -0.03775758572 | BH26: -0.05746033328 | BI26: -0.0746504092 | BJ26: -0.09001818832 | BK26: -0.1039934176 | BL26: -0.1168491279 | BM26: -0.1287636497 | BN26: -0.1398577184 | BO26: -0.150216736 | BP26: -0.159904172 | BQ26: -0.1689696601 | BR26: -0.1770499004 | BS26: -0.1846097166 | BT26: -0.1916783593 | BU26: -0.1982822854 | BV26: -0.2044458434 | BW26: -0.2101917103 | BX26: -0.2155411778 | BY26: -0.2205143442 | BZ26: -0.2251302482 | CA26: -0.2294069662 | CB26: -0.2333616862 | CC26: -0.237010767 | CD26: -0.2402098337 | CE26: -0.2431467861 | CF26: -0.245835091 | CG26: -0.2482875813 | CH26: -0.2505164855 | CI26: -0.2525334558 | CJ26: -0.254349595 | CK26: -0.255975481 | CL26: -0.257421191 | CM26: -0.2586963236 | CN26: -0.259810021 | CO26: -0.2607709891 | CP26: -0.261548635 | CQ26: -0.2621962353 | CR26: -0.2627209441 | CS26: -0.2631295707 | CT26: -0.2634285944 | CU26: -0.2636241802 | CV26: -0.2637221925 | CW26: -0.263728209 | CX26: -0.2636475339 | CY26: -0.2634852102 | CZ26: -0.2632460319 | DA26: -0.262934555 | DB26: -0.2625731779 | DC26: -0.2621509855 | DD26: -0.2616716986 | DE26: -0.2611388502 | DF26: -0.2605557951 | DG26: -0.2599257172 | DH26: -0.2592516382 | DI26: -0.2585364247 | DJ26: -0.2577827959 | DK26: -0.25699333 | DL26: -0.2561704712 | DM26: -0.2553165361 | DN26: -0.2548961472 | DS26: 18 | DT26: 17244.438 | DU26: 1.312016111 | DV26: 32694.51895 | DW26: 1.572122662 | DY26: 22116.04534 | DZ26: 14469.16093 | EA26: tx A | EG26: 6800 | EH26: 1 | EI26: 0 | EJ26: -13258.64991 | EK26: -24839.49886 | EL26: 1
A27: p_dead_act | B27: =Parameters!D18 -> 0.001150747986 | C27: =Parameters!D19 -> 0.00119047619 | H27: 0.05 | I27: 6 | J27: =MMULT(J26:M26,J$4:M$7) -> 0.3909357183 | K27: 0.2018330618 | L27: 0.398253609 | M27: 0.008977610896 | N27: 1 | O27: 24.05020979 | P27: 24.71033127 | Q27: 158.1053431 | R27: 0 | S27: 0.02668136278 | T27: 0.01098308244 | U27: -0.004546728703 | V27: 0 | AA27: 0.05 | AB27: 6 | AC27: =MMULT(AC26:AF26,AC$4:AF$7) -> 0.4531504024 | AD27: 0.2431829034 | AE27: 0.2952142987 | AF27: 0.008452395493 | AG27: 1 | AH27: 419.8527304 | AI27: 240.1259853 | AJ27: 117.1990836 | AK27: 0 | AL27: 0.03092751496 | AM27: 0.013233203 | AN27: -0.003370363244 | AO27: 0 | AP27: -0.09379867267 | AQ27: =$AP$27 -> -0.09379867267 | BA27: 19 | BB27: 16575.15246 | BC27: 0.2517704085 | BD27: 30496.01103 | BE27: 0.6088862658 | BF27: -0.01441666667 | BG27: -0.0357140157 | BH27: -0.0522045573 | BI27: -0.06553390395 | BJ27: -0.07670024111 | BK27: -0.08631457871 | BL27: -0.09475607919 | BM27: -0.1022647873 | BN27: -0.1089970083 | BO27: -0.1150583964 | BP27: -0.1205237383 | BQ27: -0.1254487955 | BR27: -0.1296665172 | BS27: -0.1334458837 | BT27: -0.1368165056 | BU27: -0.1398046386 | BV27: -0.1424340947 | BW27: -0.1447268075 | BX27: -0.1467031908 | BY27: -0.1483823713 | BZ27: -0.1497823473 | CA27: -0.1509200995 | CB27: -0.1518116753 | CC27: -0.1524722541 | CD27: -0.1528950617 | CE27: -0.1531245061 | CF27: -0.1531728495 | CG27: -0.1530516999 | CH27: -0.1527720454 | CI27: -0.1523442851 | CJ27: -0.1517782591 | CK27: -0.1510832758 | CL27: -0.1502681392 | CM27: -0.1493411736 | CN27: -0.1483102476 | CO27: -0.147182797 | CP27: -0.1460237964 | CQ27: -0.1447858759 | CR27: -0.1434750005 | CS27: -0.1420967998 | CT27: -0.1406565852 | CU27: -0.1391593656 | CV27: -0.1376098632 | CW27: -0.1360125281 | CX27: -0.134371552 | CY27: -0.1326908818 | CZ27: -0.1309742321 | DA27: -0.129225097 | DB27: -0.1275314446 | DC27: -0.1258129231 | DD27: -0.1240722942 | DE27: -0.1223121503 | DF27: -0.1205349234 | DG27: -0.1187428938 | DH27: -0.1169381979 | DI27: -0.1151228357 | DJ27: -0.1132986787 | DK27: -0.1114674764 | DL27: -0.109630863 | DM27: -0.1077903636 | DN27: -0.1069127619 | DS27: 19 | DT27: 16575.15246 | DU27: 0.2517704085 | DV27: 30496.01103 | DW27: 0.6088862658 | DY27: -9022.040204 | DZ27: -12229.42306 | EA27: tx A | EG27: 7200 | EH27: 1 | EI27: 0 | EJ27: -13052.00713 | EK27: -24499.0795 | EL27: 1
A28: p_dead_cmp | B28: =Parameters!D20 -> 0.003494060098 | C28: =Parameters!D20 -> 0.003494060098 | H28: 0.06 | I28: 7 | J28: =MMULT(J27:M27,J$4:M$7) -> 0.3881401792 | K28: 0.170151492 | L28: 0.43041194 | M28: 0.01129638876 | N28: 1 | O28: 23.87822933 | P28: 20.83157089 | Q28: 170.8720924 | R28: 0 | S28: 0.02649056723 | T28: 0.009259077024 | U28: -0.004913869649 | V28: 0 | AA28: 0.06 | AB28: 7 | AC28: =MMULT(AC27:AF27,AC$4:AF$7) -> 0.455487402 | AD28: 0.2096179049 | AE28: 0.3243213852 | AF28: 0.0105733079 | AG28: 1 | AH28: 422.0180064 | AI28: 206.9829138 | AJ28: 128.754499 | AK28: 0 | AL28: 0.03108701519 | AM28: 0.01140670766 | AN28: -0.003702669148 | AO28: 0 | AP28: -0.1039158445 | AQ28: =$AP$28 -> -0.1039158445 | BA28: 20 | BB28: 16012.84806 | BC28: 0.5616214893 | BD28: 29132.03701 | BE28: 0.606611947 | BF28: -0.01441666667 | BG28: -0.03753805545 | BH28: -0.05707341138 | BI28: -0.07428683104 | BJ28: -0.08993237733 | BK28: -0.104462145 | BL28: -0.1181493523 | BM28: -0.1311611808 | BN28: -0.1436018885 | BO28: -0.1555383364 | BP28: -0.1670151067 | BQ28: -0.1780634586 | BR28: -0.1881998193 | BS28: -0.1979678037 | BT28: -0.207382058 | BU28: -0.2164554276 | BV28: -0.2251995847 | BW28: -0.2336254022 | BX28: -0.2417431767 | BY28: -0.2495627628 | BZ28: -0.2570936538 | CA28: -0.2643450315 | CB28: -0.2713257971 | CC28: -0.2780445917 | CD28: -0.2842019416 | CE28: -0.2901255579 | CF28: -0.2958229901 | CG28: -0.3013015749 | CH28: -0.3065684412 | CI28: -0.3116305147 | CJ28: -0.3164945227 | CK28: -0.3211669979 | CL28: -0.3256542831 | CM28: -0.3299625355 | CN28: -0.3340977301 | CO28: -0.3380656649 | CP28: -0.3416907118 | CQ28: -0.3451670154 | CR28: -0.3484996135 | CS28: -0.3516933905 | CT28: -0.354753081 | CU28: -0.3576832735 | CV28: -0.3604884142 | CW28: -0.363172811 | CX28: -0.3657406364 | CY28: -0.3681959317 | CZ28: -0.3705426103 | DA28: -0.372784461 | DB28: -0.3748232142 | DC28: -0.3767690056 | DD28: -0.3786251074 | DE28: -0.3803946859 | DF28: -0.3820808042 | DG28: -0.3836864257 | DH28: -0.3852144168 | DI28: -0.3866675493 | DJ28: -0.3880485038 | DK28: -0.389359872 | DL28: -0.3906041594 | DM28: -0.3917837881 | DN28: -0.3923158408 | DS28: 20 | DT28: 16012.84806 | DU28: 0.5616214893 | DV28: 29132.03701 | DW28: 0.606611947 | DY28: 835.7966197 | DZ28: -10933.6786 | EA28: tx A | EG28: 7600 | EH28: 1 | EI28: 0 | EJ28: -12845.36434 | EK28: -24158.66014 | EL28: 1
H29: 0.07 | I29: 8 | J29: =MMULT(J28:M28,J$4:M$7) -> 0.3794839978 | K29: 0.1489614836 | L29: 0.4578684161 | M29: 0.01368610242 | N29: 1 | O29: 23.3457045 | P29: 18.23728766 | Q29: 181.772221 | R29: 0 | S29: 0.02589978285 | T29: 0.008105987401 | U29: -0.005227331084 | V29: 0 | AA29: 0.07 | AB29: 8 | AC29: =MMULT(AC28:AF28,AC$4:AF$7) -> 0.4504581108 | AD29: 0.1866986107 | AE29: 0.3500831893 | AF29: 0.01276008922 | AG29: 1 | AH29: 417.3582695 | AI29: 184.3517255 | AJ29: 138.9818486 | AK29: 0 | AL29: 0.03074376606 | AM29: 0.01015951607 | AN29: -0.003996783078 | AO29: 0 | AP29: -0.1130323389 | AQ29: =$AP$29 -> -0.1130323389 | BA29: 21 | BB29: 16396.40682 | BC29: 0.9686380307 | BD29: 29056.12534 | BE29: 1.182914272 | BF29: -0.01441666667 | BG29: -0.0372707682 | BH29: -0.05608161195 | BI29: -0.0720688812 | BJ29: -0.0860068751 | BK29: -0.09839277525 | BL29: -0.1095511036 | BM29: -0.1196985435 | BN29: -0.1289841557 | BO29: -0.1375143319 | BP29: -0.1453682843 | BQ29: -0.152607671 | BR29: -0.1589647359 | BS29: -0.164824476 | BT29: -0.1702219464 | BU29: -0.1751884068 | BV29: -0.1797522265 | BW29: -0.1839394725 | BX29: -0.1877743009 | BY29: -0.1912792246 | BZ29: -0.1944753043 | CA29: -0.1973822896 | CB29: -0.2000187299 | CC29: -0.2024020631 | CD29: -0.204446471 | CE29: -0.2062801437 | CF29: -0.2079169114 | CG29: -0.2093697883 | CH29: -0.2106510198 | CI29: -0.2117721259 | CJ29: -0.2127439425 | CK29: -0.2135766601 | CL29: -0.21427986 | CM29: -0.2148625486 | CN29: -0.2153331896 | CO29: -0.2156997349 | CP29: -0.2159568 | CQ29: -0.2161285184 | CR29: -0.2162211596 | CS29: -0.2162406069 | CT29: -0.2161923796 | CU29: -0.2160816533 | CV29: -0.2159132799 | CW29: -0.2156918064 | CX29: -0.2154214919 | CY29: -0.2151063248 | CZ29: -0.2147500381 | DA29: -0.2143561243 | DB29: -0.2139482437 | DC29: -0.2135105461 | DD29: -0.213045748 | DE29: -0.2125563862 | DF29: -0.2120448282 | DG29: -0.2115132822 | DH29: -0.2109638071 | DI29: -0.2103983206 | DJ29: -0.2098186084 | DK29: -0.2092263319 | DL29: -0.2086230356 | DM29: -0.2080101544 | DN29: -0.2077143763 | DS29: 21 | DT29: 16396.40682 | DU29: 0.9686380307 | DV29: 29056.12534 | DW29: 1.182914272 | DY29: 12662.7341 | DZ29: 6431.30281 | EA29: tx A | EG29: 8000 | EH29: 1 | EI29: 0 | EJ29: -12638.72156 | EK29: -23818.24078 | EL29: 1
A30: COSTS | B30: Treatment A | C30: Treatment B | H30: 0.08 | I30: 9 | J30: =MMULT(J29:M29,J$4:M$7) -> 0.3676378801 | K30: 0.1341492567 | L30: 0.4820808857 | M30: 0.01613197753 | N30: 1 | O30: 22.61693605 | P30: 16.42383335 | Q30: 191.38449 | R30: 0 | S30: 0.02509128532 | T30: 0.007299955383 | U30: -0.005503756778 | V30: 0 | AA30: 0.08 | AB30: 9 | AC30: =MMULT(AC29:AF29,AC$4:AF$7) -> 0.4411180986 | AD30: 0.1704345825 | AE30: 0.3734465977 | AF30: 0.01500072112 | AG30: 1 | AH30: 408.7045651 | AI30: 168.2921434 | AJ30: 148.2570431 | AK30: 0 | AL30: 0.03010631023 | AM30: 0.009274481866 | AN30: -0.004263515324 | AO30: 0 | AP30: -0.1212968292 | AQ30: =$AP$30 -> -0.1212968292 | BA30: 22 | BB30: 16470.65644 | BC30: 0.9821242896 | BD30: 28404.65625 | BE30: 1.093693079 | BF30: -0.01441666667 | BG30: -0.0372346326 | BH30: -0.05612659809 | BI30: -0.07238104114 | BJ30: -0.08679633911 | BK30: -0.09987072046 | BL30: -0.1119183984 | BM30: -0.123140598 | BN30: -0.1336690143 | BO30: -0.1435924142 | BP30: -0.1529729315 | BQ30: -0.161856055 | BR30: -0.169875773 | BS30: -0.1774819742 | BT30: -0.1846973262 | BU30: -0.1915416481 | BV30: -0.1980327588 | BW30: -0.2041870085 | BX30: -0.2100196148 | BY30: -0.2155448787 | BZ30: -0.2207763266 | CA30: -0.2257268067 | CB30: -0.2304085566 | CC30: -0.234833253 | CD30: -0.2388130601 | CE30: -0.2425688337 | CF30: -0.2461102871 | CG30: -0.2494467137 | CH30: -0.2525870062 | CI30: -0.2555396754 | CJ30: -0.2583128671 | CK30: -0.260914378 | CL30: -0.2633516711 | CM30: -0.2656318898 | CN30: -0.267761872 | CO30: -0.2697481629 | CP30: -0.2715089866 | CQ30: -0.2731446399 | CR30: -0.27466059 | CS30: -0.27606207 | CT30: -0.2773540892 | CU30: -0.2785414422 | CV30: -0.2796287187 | CW30: -0.2806203116 | CX30: -0.2815204259 | CY30: -0.2823330864 | CZ30: -0.2830621456 | DA30: -0.2837112909 | DB30: -0.2842567773 | DC30: -0.284732734 | DD30: -0.2851422404 | DE30: -0.285488244 | DF30: -0.2857735659 | DG30: -0.2860009063 | DH30: -0.2861728495 | DI30: -0.2862918692 | DJ30: -0.2863603327 | DK30: -0.286380506 | DL30: -0.2863545578 | DM30: -0.2862845636 | DN30: -0.2862312047 | DS30: 22 | DT30: 16470.65644 | DU30: 0.9821242896 | DV30: 28404.65625 | DW30: 1.093693079 | DY30: 12993.07225 | DZ30: 4406.136107 | EA30: tx A | EG30: 8400 | EH30: 1 | EI30: 0 | EJ30: -12432.07878 | EK30: -23477.82141 | EL30: 1
A31: SILENT | B31: =Parameters!D24+Parameters!D27 -> 61.51960197 | C31: =Parameters!D24+Parameters!D28 -> 926.519602 | H31: 0.09 | I31: 10 | J31: =MMULT(J30:M30,J$4:M$7) -> 0.3541852495 | K31: 0.1232491785 | L31: 0.5039412244 | M31: 0.01862434755 | N31: 1 | O31: 21.78933557 | P31: 15.08934168 | Q31: 200.0629709 | R31: 0 | S31: 0.02417314328 | T31: 0.006706809466 | U31: -0.005753328979 | V31: 0 | AA31: 0.09 | AB31: 10 | AC31: =MMULT(AC30:AF30,AC$4:AF$7) -> 0.4293456257 | AD31: 0.158358441 | AE31: 0.3950087963 | AF31: 0.01728713701 | AG31: 1 | AH31: 397.7971382 | AI31: 156.3678044 | AJ31: 156.8171634 | AK31: 0 | AL31: 0.02930283895 | AM31: 0.008617338498 | AN31: -0.004509683758 | AO31: 0 | AP31: -0.1288143078 | AQ31: =$AP$31 -> -0.1288143078 | BA31: 23 | BB31: 16267.88855 | BC31: 0.6781825677 | BD31: 29888.17664 | BE31: 1.066350609 | BF31: -0.01441666667 | BG31: -0.03676132007 | BH31: -0.05475440623 | BI31: -0.06968765107 | BJ31: -0.08235437374 | BK31: -0.0932532565 | BL31: -0.1027080534 | BM31: -0.1109379566 | BN31: -0.1180989983 | BO31: -0.1243084492 | BP31: -0.1296592333 | BQ31: -0.1342284778 | BR31: -0.137899088 | BS31: -0.1409446672 | BT31: -0.1434157787 | BU31: -0.1453586514 | BV31: -0.1468159051 | BW31: -0.147827039 | BX31: -0.148428777 | BY31: -0.1486553265 | BZ31: -0.1485385831 | CA31: -0.1481082999 | CB31: -0.1473922342 | CC31: -0.1464162778 | CD31: -0.1452622755 | CE31: -0.1439051873 | CF31: -0.1423649831 | CG31: -0.1406602581 | CH31: -0.1388083172 | CI31: -0.1368252538 | CJ31: -0.1347260241 | CK31: -0.1325245173 | CL31: -0.1302336212 | CM31: -0.1278652845 | CN31: -0.125430575 | CO31: -0.1229397349 | CP31: -0.1205230658 | CQ31: -0.1180702831 | CR31: -0.1155890669 | CS31: -0.1130864917 | CT31: -0.1105690654 | CU31: -0.1080427658 | CV31: -0.1055130747 | CW31: -0.1029850107 | CX31: -0.1004631593 | CY31: -0.09795170178 | CZ31: -0.09545444177 | DA31: -0.09297483093 | DB31: -0.09063308007 | DC31: -0.08831379565 | DD31: -0.08601938943 | DE31: -0.08375202057 | DF31: -0.08151361328 | DG31: -0.0793058734 | DH31: -0.07713030394 | DI31: -0.07498821971 | DJ31: -0.07288076097 | DK31: -0.0708089063 | DL31: -0.06877348465 | DM31: -0.06677518659 | DN31: -0.06584156199 | DS31: 23 | DT31: 16267.88855 | DU31: 0.6781825677 | DV31: 29888.17664 | DW31: 1.066350609 | DY31: 4077.588486 | DZ31: 2102.341627 | EA31: tx A | EG31: 8800 | EH31: 1 | EI31: 0 | EJ31: -12225.43599 | EK31: -23137.40205 | EL31: 1
A32: ACTIVE | B32: =Parameters!D25+Parameters!D27 -> 122.4295517 | C32: =Parameters!D25+Parameters!D28 -> 987.4295517 | H32: 0.10 | I32: 11 | J32: =MMULT(J31:M31,J$4:M$7) -> 0.340059716 | K32: 0.1147818203 | L32: 0.5240018238 | M32: 0.02115663989 | N32: 1 | O32: 20.92033837 | P32: 14.05268681 | Q32: 208.0269614 | R32: 0 | S32: 0.02320907561 | T32: 0.006246044057 | U32: -0.005982354155 | V32: 0 | AA32: 0.10 | AB32: 11 | AC32: =MMULT(AC31:AF31,AC$4:AF$7) -> 0.4162921963 | AD32: 0.1489435233 | AE32: 0.4151505453 | AF32: 0.0196137351 | AG32: 1 | AH32: 385.70288 | AI32: 147.0712364 | AJ32: 164.81337 | AK32: 0 | AL32: 0.0284119424 | AM32: 0.00810501006 | AN32: -0.004739635392 | AO32: 0 | AP32: -0.1356626729 | AQ32: =$AP$32 -> -0.1356626729 | BA32: 24 | BB32: 16683.58638 | BC32: 1.175262722 | BD32: 32924.51812 | BE32: 1.541211431 | BF32: -0.01441666667 | BG32: -0.03714431436 | BH32: -0.05583975321 | BI32: -0.07176701673 | BJ32: -0.08570213676 | BK32: -0.09812727404 | BL32: -0.1093476598 | BM32: -0.1195618842 | BN32: -0.1289040654 | BO32: -0.1374691134 | BP32: -0.1453278513 | BQ32: -0.1525360655 | BR32: -0.1588254563 | BS32: -0.164577184 | BT32: -0.1698249716 | BU32: -0.1745994897 | BV32: -0.1789290575 | BW32: -0.1828400838 | BX32: -0.1863573522 | BY32: -0.1895042139 | BZ32: -0.192302724 | CA32: -0.1947737439 | CB32: -0.1969370222 | CC32: -0.1988112626 | CD32: -0.2003378527 | CE32: -0.2016220265 | CF32: -0.2026789249 | CG32: -0.2035228883 | CH32: -0.2041674967 | CI32: -0.2046256069 | CJ32: -0.2049093891 | CK32: -0.2050303601 | CL32: -0.204999416 | CM32: -0.204826863 | CN32: -0.2045224465 | CO32: -0.2040953788 | CP32: -0.2035801286 | CQ32: -0.2029641925 | CR32: -0.2022549685 | CS32: -0.2014594413 | CT32: -0.2005842028 | CU32: -0.199635472 | CV32: -0.1986191142 | CW32: -0.1975406584 | CX32: -0.196405315 | CY32: -0.1952179914 | CZ32: -0.1939833084 | DA32: -0.1927056139 | DB32: -0.1914516939 | DC32: -0.1901643674 | DD32: -0.1888470751 | DE32: -0.1875030479 | DF32: -0.1861353182 | DG32: -0.1847467298 | DH32: -0.1833399486 | DI32: -0.1819174712 | DJ32: -0.1804816347 | DK32: -0.1790346245 | DL32: -0.1775784829 | DM32: -0.1761151167 | DN32: -0.1754156823 | DS32: 24 | DT32: 16683.58638 | DU32: 1.175262722 | DV32: 32924.51812 | DW32: 1.541211431 | DY32: 18574.29527 | DZ32: 13311.8248 | EA32: tx A | EG32: 9200 | EH32: 1 | EI32: 0 | EJ32: -12018.79321 | EK32: -22796.98269 | EL32: 1
A33: COMPL | B33: =Parameters!D26 -> 396.9966362 | C33: =Parameters!E26 -> 396.9966362 | H33: 0.11 | I33: 12 | J33: =MMULT(J32:M32,J$4:M$7) -> 0.3258067606 | K33: 0.1078579426 | L33: 0.5426111275 | M33: 0.02372416931 | N33: 1 | O33: 20.04350223 | P33: 13.20499956 | Q33: 215.4147924 | R33: 0 | S33: 0.02223631141 | T33: 0.005869269712 | U33: -0.006194810372 | V33: 0 | AA33: 0.11 | AB33: 12 | AC33: =MMULT(AC32:AF32,AC$4:AF$7) -> 0.4026607988 | AD33: 0.1412442374 | AE33: 0.4341185046 | AF33: 0.02197645919 | AG33: 1 | AH33: 373.073123 | AI33: 139.468734 | AJ33: 172.3435861 | AK33: 0 | AL33: 0.02748159952 | AM33: 0.007686040584 | AN33: -0.004956186261 | AO33: 0 | AP33: -0.1419027281 | AQ33: =$AP$33 -> -0.1419027281 | BA33: 25 | BB33: 17798.97219 | BC33: -0.01207976448 | BD33: 30474.21761 | BE33: 0.1300107099 | BF33: -0.01441666667 | BG33: -0.03586177072 | BH33: -0.05272430674 | BI33: -0.06670227794 | BJ33: -0.07882377991 | BK33: -0.08971181837 | BL33: -0.09974449201 | BM33: -0.1091518714 | BN33: -0.1180745835 | BO33: -0.1265992321 | BP33: -0.1347798101 | BQ33: -0.1426506383 | BR33: -0.1498730619 | BS33: -0.1568364836 | BT33: -0.163551422 | BU33: -0.170025947 | BV33: -0.1762666639 | BW33: -0.1822793038 | BX33: -0.188069076 | BY33: -0.1936408785 | BZ33: -0.1989994214 | CA33: -0.2041492984 | CB33: -0.2090950277 | CC33: -0.2138410742 | CD33: -0.2181751561 | CE33: -0.2223274515 | CF33: -0.2263021012 | CG33: -0.2301032098 | CH33: -0.2337348435 | CI33: -0.2372010278 | CJ33: -0.2405057443 | CK33: -0.2436529284 | CL33: -0.2466464663 | CM33: -0.2494901928 | CN33: -0.2521878892 | CO33: -0.2547432814 | CP33: -0.257044954 | CQ33: -0.2592180303 | CR33: -0.2612658909 | CS33: -0.2631918581 | CT33: -0.2649991952 | CU33: -0.2666911057 | CV33: -0.2682707326 | CW33: -0.2697411583 | CX33: -0.2711054041 | CY33: -0.2723664301 | CZ33: -0.2735271354 | DA33: -0.2745903576 | DB33: -0.2755127538 | DC33: -0.2763475404 | DD33: -0.2770972468 | DE33: -0.277764345 | DF33: -0.2783512506 | DG33: -0.278860323 | DH33: -0.279293866 | DI33: -0.2796541283 | DJ33: -0.2799433045 | DK33: -0.2801635354 | DL33: -0.2803169089 | DM33: -0.280405461 | DN33: -0.2804177062 | DS33: 25 | DT33: 17798.97219 | DU33: -0.01207976448 | DV33: 30474.21761 | DW33: 0.1300107099 | DY33: -18161.36512 | DZ33: -26573.89631 | EA33: tx A | EG33: 9600 | EH33: 1 | EI33: 0 | EJ33: -11812.15042 | EK33: -22456.56333 | EL33: 1
A34: DEAD | B34: 0 | C34: 0 | H34: 1.00 | I34: 13 | J34: =MMULT(J33:M33,J$4:M$7) -> 0.3117402589 | K34: 0.1019415731 | L34: 0.5599947535 | M34: 0.02632341453 | N34: =N22/(1+disc) -> 0.9661835749 | O34: 18.52960062 | P34: 12.05860975 | Q34: 214.7980999 | R34: 0 | S34: 0.02055678519 | T34: 0.005359730051 | U34: -0.006177075783 | V34: 0 | AA34: 1.00 | AB34: 13 | AC34: =MMULT(AC33:AF33,AC$4:AF$7) -> 0.3888777288 | AD34: 0.1346739492 | AE34: 0.4520760919 | AF34: 0.02437223017 | AG34: =AG22/(1+disc) -> 0.9661835749 | AH34: 348.1186845 | AI34: 128.4840939 | AJ34: 173.4035631 | AK34: 0 | AL34: 0.02564338646 | AM34: 0.007080683478 | AN34: -0.004986668646 | AO34: 0 | AP34: -0.1473921007 | AQ34: =$AP$34 -> -0.1473921007 | BA34: 26 | BB34: 17538.78731 | BC34: 0.3686328093 | BD34: 30772.03701 | BE34: 0.7681165452 | BF34: -0.01441666667 | BG34: -0.03516870166 | BH34: -0.05084496851 | BI34: -0.0632155763 | BJ34: -0.07333136684 | BK34: -0.08182395221 | BL34: -0.08908014961 | BM34: -0.09534341674 | BN34: -0.1007728596 | BO34: -0.1054775795 | BP34: -0.1095366861 | BQ34: -0.1130109762 | BR34: -0.1158098254 | BS34: -0.1181385373 | BT34: -0.1200321274 | BU34: -0.1215221172 | BV34: -0.1226373561 | BW34: -0.1234045329 | BX34: -0.1238485053 | BY34: -0.1239925217 | BZ34: -0.1238583794 | CA34: -0.1234665442 | CB34: -0.1228362459 | CC34: -0.1219855586 | CD34: -0.1209816658 | CE34: -0.119799265 | CF34: -0.1184526445 | CG34: -0.1169552255 | CH34: -0.1153196105 | CI34: -0.113557628 | CJ34: -0.1116803754 | CK34: -0.1096982595 | CL34: -0.107621034 | CM34: -0.1054578362 | CN34: -0.1032172211 | CO34: -0.1009071937 | CP34: -0.09864819012 | CQ34: -0.09633687168 | CR34: -0.09397946078 | CS34: -0.09158176432 | CT34: -0.08914919736 | CU34: -0.0866868055 | CV34: -0.08419928606 | CW34: -0.08169100819 | CX34: -0.07916603182 | CY34: -0.07662812571 | CZ34: -0.07408078447 | DA34: -0.0715272447 | DB34: -0.06909224997 | DC34: -0.066656837 | DD34: -0.06422343522 | DE34: -0.06179428194 | DF34: -0.05937143405 | DG34: -0.05695677897 | DH34: -0.05455204508 | DI34: -0.05215881159 | DJ34: -0.04977851779 | DK34: -0.04741247191 | DL34: -0.04506185933 | DM34: -0.0427277505 | DN34: -0.04162458754 | DS34: 26 | DT34: 17538.78731 | DU34: 0.3686328093 | DV34: 30772.03701 | DW34: 0.7681165452 | DY34: -6479.803028 | DZ34: -7728.540654 | EA34: tx A | EG34: 10000 | EH34: 1 | EI34: 0 | EJ34: -11605.50764 | EK34: -22116.14396 | EL34: 1
H35: 1.01 | I35: 14 | J35: =MMULT(J34:M34,J$4:M$7) -> 0.2980360933 | K35: 0.09670826036 | L35: 0.5763040625 | M35: 0.02895158381 | N35: 0.9661835749 | O35: 17.71503559 | P35: 11.43956421 | Q35: 221.0538882 | R35: 0 | S35: 0.0196531047 | T35: 0.005084580839 | U35: -0.006356977179 | V35: 0 | AA35: 1.01 | AB35: 14 | AC35: =MMULT(AC34:AF34,AC$4:AF$7) -> 0.375198692 | AD35: 0.1288678068 | AE35: 0.4691349072 | AF35: 0.02679859405 | AG35: 0.9661835749 | AH35: 335.8733746 | AI35: 122.9448122 | AJ35: 179.9468407 | AK35: 0 | AL35: 0.02474136302 | AM35: 0.006775416893 | AN35: -0.005174837544 | AO35: 0 | AP35: -0.1523827513 | AQ35: =$AP$35 -> -0.1523827513 | BA35: 27 | BB35: 16759.99735 | BC35: 0.3695961449 | BD35: 29312.48592 | BE35: 0.4001327217 | BF35: -0.01441666667 | BG35: -0.0386918791 | BH35: -0.05993757742 | BI35: -0.07907641528 | BJ35: -0.09667002954 | BK35: -0.1130647984 | BL35: -0.1284785735 | BM35: -0.1430522887 | BN35: -0.1568806712 | BO35: -0.170030522 | BP35: -0.1825516018 | BQ35: -0.19448312 | BR35: -0.2053159663 | BS35: -0.21564514 | BT35: -0.2254946491 | BU35: -0.2348864821 | BV35: -0.2438410987 | BW35: -0.2523777366 | BX35: -0.2605146059 | BY35: -0.2682690176 | BZ35: -0.2756574725 | CA35: -0.282695725 | CB35: -0.2893988329 | CC35: -0.2957811974 | CD35: -0.3015672924 | CE35: -0.3070735986 | CF35: -0.3123121364 | CG35: -0.3172944125 | CH35: -0.3220314423 | CI35: -0.3265337711 | CJ35: -0.3308114946 | CK35: -0.3348742783 | CL35: -0.3387313755 | CM35: -0.3423916451 | CN35: -0.3458635686 | CO35: -0.3491552659 | CP35: -0.3521259754 | CQ35: -0.3549395327 | CR35: -0.3576027237 | CS35: -0.3601220453 | CT35: -0.3625037173 | CU35: -0.3647536942 | CV35: -0.3668776768 | CW35: -0.368881123 | CX35: -0.3707692577 | CY35: -0.3725470831 | CZ35: -0.3742193883 | DA35: -0.375790758 | DB35: -0.3771953515 | DC35: -0.378511998 | DD35: -0.3797445287 | DE35: -0.3808966112 | DF35: -0.381971757 | DG35: -0.3829733274 | DH35: -0.3839045405 | DI35: -0.3847684771 | DJ35: -0.3855680865 | DK35: -0.3863061921 | DL35: -0.3869854967 | DM35: -0.3876085878 | DN35: -0.3878797091 | DS35: 27 | DT35: 16759.99735 | DU35: 0.3695961449 | DV35: 29312.48592 | DW35: 0.4001327217 | DY35: -5672.112999 | DZ35: -17308.50427 | EA35: tx A | EG35: 10400 | EH35: 1 | EI35: 0 | EJ35: -11398.86486 | EK35: -21775.7246 | EL35: 1
A36: UTILITIES | B36: Value per month (converted) | C36: Value per year (reference) | H36: 1.02 | I36: 15 | J36: =MMULT(J35:M35,J$4:M$7) -> 0.284788131 | K36: 0.0919602668 | L36: 0.5916452486 | M36: 0.03160635362 | N36: 0.9661835749 | O36: 16.92758692 | P36: 10.8779268 | Q36: 226.9383319 | R36: 0 | S36: 0.01877950719 | T36: 0.004834948005 | U36: -0.006526199602 | V36: 0 | AA36: 1.02 | AB36: 15 | AC36: =MMULT(AC35:AF35,AC$4:AF$7) -> 0.3617743205 | AD36: 0.1235980204 | AE36: 0.4853741553 | AF36: 0.0292535038 | AG36: 0.9661835749 | AH36: 323.8560381 | AI36: 117.9172346 | AJ36: 186.1757555 | AK36: 0 | AL36: 0.02385613273 | AM36: 0.006498350024 | AN36: -0.005353966126 | AO36: 0 | AP36: -0.156910663 | AQ36: =$AP$36 -> -0.156910663 | BA36: 28 | BB36: 17175.20744 | BC36: 0.3905955739 | BD36: 31367.51548 | BE36: 0.7848152763 | BF36: -0.01441666667 | BG36: -0.03583451297 | BH36: -0.05246906589 | BI36: -0.06591045756 | BJ36: -0.07712649233 | BK36: -0.08671300402 | BL36: -0.09504317225 | BM36: -0.1023565748 | BN36: -0.1088123038 | BO36: -0.1145206562 | BP36: -0.1195620529 | BQ36: -0.1239983458 | BR36: -0.1276947667 | BS36: -0.1309028728 | BT36: -0.1336579439 | BU36: -0.1359916565 | BV36: -0.1379329617 | BW36: -0.1395086353 | BX36: -0.1407436332 | BY36: -0.1416613289 | BZ36: -0.1422836799 | CA36: -0.1426313511 | CB36: -0.1427238102 | CC36: -0.1425794072 | CD36: -0.1422327731 | CE36: -0.1416925642 | CF36: -0.1409734217 | CG36: -0.1400891432 | CH36: -0.1390527277 | CI36: -0.1378764176 | CJ36: -0.1365717378 | CK36: -0.1351495342 | CL36: -0.1336200081 | CM36: -0.1319927513 | CN36: -0.1302767769 | CO36: -0.1284805509 | CP36: -0.1267009982 | CQ36: -0.1248596851 | CR36: -0.1229632701 | CS36: -0.1210179924 | CT36: -0.1190296948 | CU36: -0.1170038447 | CV36: -0.114945555 | CW36: -0.1128596028 | CX36: -0.1107504481 | CY36: -0.108622251 | CZ36: -0.1064788885 | DA36: -0.1043239701 | DB36: -0.1022638581 | DC36: -0.100198907 | DD36: -0.09813187252 | DE36: -0.09606530776 | DF36: -0.09400157535 | DG36: -0.09194285814 | DH36: -0.08989116959 | DI36: -0.08784836358 | DJ36: -0.08581614379 | DK36: -0.08379607248 | DL36: -0.08178957888 | DM36: -0.07979796716 | DN36: -0.07885723226 | DS36: 28 | DT36: 17175.20744 | DU36: 0.3905955739 | DV36: 31367.51548 | DW36: 0.7848152763 | DY36: -5457.340227 | DZ36: -7823.057195 | EA36: tx A | EG36: 10800 | EH36: 1 | EI36: 0 | EJ36: -11192.22207 | EK36: -21435.30524 | EL36: 1
A37: SILENT | B37: =C37/12 -> 0.06825 | C37: =Parameters!D32 -> 0.819 | H37: 1.03 | I37: 16 | J37: =MMULT(J36:M36,J$4:M$7) -> 0.2720416878 | K37: 0.08757582527 | L37: 0.6060967761 | M37: 0.03428571078 | N37: 0.9661835749 | O37: 16.16994817 | P37: 10.35929375 | Q37: 232.4815279 | R37: 0 | S37: 0.01793898086 | T37: 0.004604429461 | U37: -0.006685608561 | V37: 0 | AA37: 1.03 | AB37: 16 | AC37: =MMULT(AC36:AF36,AC$4:AF$7) -> 0.348690624 | AD37: 0.1187215374 | AE37: 0.5008526547 | AF37: 0.03173518387 | AG37: 0.9661835749 | AH37: 312.1436697 | AI37: 113.2648836 | AJ37: 192.1128687 | AK37: 0 | AL37: 0.02299336724 | AM37: 0.00624196167 | AN37: -0.005524703196 | AO37: 0 | AP37: -0.1610081942 | AQ37: =$AP$37 -> -0.1610081942 | BA37: 29 | BB37: 16445.62303 | BC37: 0.4945951963 | BD37: 30279.7112 | BE37: 0.7192118738 | BF37: -0.01441666667 | BG37: -0.0370965296 | BH37: -0.05582468323 | BI37: -0.07190695791 | BJ37: -0.08612413958 | BK37: -0.09894919076 | BL37: -0.1106744047 | BM37: -0.1214858 | BN37: -0.1315066288 | BO37: -0.140822816 | BP37: -0.1494978336 | BQ37: -0.1575814045 | BR37: -0.1647558788 | BS37: -0.1714399245 | BT37: -0.1776635838 | BU37: -0.1834542129 | BV37: -0.1888370922 | BW37: -0.1938358062 | BX37: -0.198472487 | BY37: -0.2027679788 | BZ37: -0.2067419555 | CA37: -0.2104130095 | CB37: -0.2137987236 | CC37: -0.2169157321 | CD37: -0.2196433912 | CE37: -0.2221443137 | CF37: -0.2244319198 | CG37: -0.2265189064 | CH37: -0.2284172843 | CI37: -0.2301384136 | CJ37: -0.2316930376 | CK37: -0.233091314 | CL37: -0.2343428454 | CM37: -0.2354567082 | CN37: -0.2364414791 | CO37: -0.2373052619 | CP37: -0.2380199756 | CQ37: -0.2386336375 | CR37: -0.2391527486 | CS37: -0.2395834456 | CT37: -0.2399315204 | CU37: -0.2402024379 | CV37: -0.2404013531 | CW37: -0.2405331277 | CX37: -0.2406023458 | CY37: -0.2406133278 | CZ37: -0.2405701452 | DA37: -0.2404766335 | DB37: -0.2403430823 | DC37: -0.2401682775 | DD37: -0.2399552672 | DE37: -0.2397069193 | DF37: -0.2394259312 | DG37: -0.2391148389 | DH37: -0.2387760258 | DI37: -0.238411731 | DJ37: -0.2380240573 | DK37: -0.2376149784 | DL37: -0.2371863464 | DM37: -0.236739898 | DN37: -0.2365195949 | DS37: 29 | DT37: 16445.62303 | DU37: 0.4945951963 | DV37: 30279.7112 | DW37: 0.7192118738 | DY37: -1607.767142 | DZ37: -8703.354988 | EA37: tx A | EG37: 11200 | EH37: 1 | EI37: 0 | EJ37: -10985.57929 | EK37: -21094.88588 | EL37: 1
A38: ACTIVE | B38: =C38/12 -> 0.05441666667 | C38: =Parameters!D33 -> 0.653 | H38: 1.04 | I38: 17 | J38: =MMULT(J37:M37,J$4:M$7) -> 0.259813525 | K38: 0.08347877479 | L38: 0.6197198435 | M38: 0.03698785671 | N38: 0.9661835749 | O38: 15.4431156 | P38: 9.874656013 | Q38: 237.70695 | R38: 0 | S38: 0.017132631 | T38: 0.004389020929 | U38: -0.006835879111 | V38: 0 | AA38: 1.04 | AB38: 17 | AC38: =MMULT(AC37:AF37,AC$4:AF$7) -> 0.3359939612 | AD38: 0.1141477248 | AE38: 0.5156162683 | AF38: 0.03424204574 | AG38: 0.9661835749 | AH38: 300.7777693 | AI38: 108.9012915 | AJ38: 197.7757721 | AK38: 0 | AL38: 0.02215612353 | AM38: 0.006001486658 | AN38: -0.00568755465 | AO38: 0 | AP38: -0.1647049152 | AQ38: =$AP$38 -> -0.1647049152 | BA38: 30 | BB38: 15513.46918 | BC38: 0.3286832607 | BD38: 30384.78736 | BE38: 0.878060546 | BF38: -0.01441666667 | BG38: -0.03409881802 | BH38: -0.04795684807 | BI38: -0.05799188181 | BJ38: -0.0654180928 | BK38: -0.07098176647 | BL38: -0.07515028686 | BM38: -0.07822415504 | BN38: -0.08040344444 | BO38: -0.08182727207 | BP38: -0.08259728065 | BQ38: -0.08279164154 | BR38: -0.08248858684 | BS38: -0.08174787463 | BT38: -0.08061334546 | BU38: -0.07912396323 | BV38: -0.07731492979 | BW38: -0.07521839801 | BX38: -0.07286394366 | BY38: -0.0702788911 | BZ38: -0.06748854972 | CA38: -0.06451639487 | CB38: -0.06138421355 | CC38: -0.05811222696 | CD38: -0.05488077026 | CE38: -0.051550605 | CF38: -0.04813708619 | CG38: -0.04465442985 | CH38: -0.04111578421 | CI38: -0.03753329621 | CJ38: -0.03391817391 | CK38: -0.0302807451 | CL38: -0.02663051252 | CM38: -0.02297620583 | CN38: -0.01932583054 | CO38: -0.01568671421 | CP38: -0.01223798627 | CQ38: -0.008812164517 | CR38: -0.00541452951 | CS38: -0.002049867923 | CT38: 0.001277494813 | CU38: 0.004563663805 | CV38: 0.00780514577 | CW38: 0.01099882181 | CX38: 0.01414192181 | CY38: 0.0172320003 | CZ38: 0.02026691384 | DA38: 0.02324479965 | DB38: 0.02602504342 | DC38: 0.02874815369 | DD38: 0.03141304838 | DE38: 0.03401884302 | DF38: 0.0365648359 | DG38: 0.03905049417 | DH38: 0.04147544067 | DI38: 0.04383944173 | DJ38: 0.04614239566 | DK38: 0.04838432193 | DL38: 0.05056535112 | DM38: 0.05268571542 | DN38: 0.05366667943 | DS38: 30 | DT38: 15513.46918 | DU38: 0.3286832607 | DV38: 30384.78736 | DW38: 0.878060546 | DY38: -5652.971361 | DZ38: -4042.970979 | EA38: tx B | EG38: 11600 | EH38: 1 | EI38: 0 | EJ38: -10778.9365 | EK38: -20754.46651 | EL38: 1
A39: COMPL | B39: -0.01141666667 | C39: =Parameters!D34 -> -0.137 | H39: 1.05 | I39: 18 | J39: =MMULT(J38:M38,J$4:M$7) -> 0.2481037894 | K39: 0.07962038805 | L39: 0.6325646737 | M39: 0.03971114883 | N39: 0.9661835749 | O39: 14.74709794 | P39: 9.418249676 | Q39: 242.6338625 | R39: 0 | S39: 0.01636046727 | T39: 0.004186160499 | U39: -0.006977565241 | V39: 0 | AA39: 1.05 | AB39: 18 | AC39: =MMULT(AC38:AF38,AC$4:AF$7) -> 0.3237064525 | AD39: 0.1098184066 | AE39: 0.5297025059 | AF39: 0.03677263508 | AG39: 0.9661835749 | AH39: 289.7781386 | AI39: 104.7709565 | AJ39: 203.1788532 | AK39: 0 | AL39: 0.02134586027 | AM39: 0.005773866303 | AN39: -0.005842934244 | AO39: 0 | AP39: -0.1680281433 | AQ39: =$AP$39 -> -0.1680281433 | BA39: 31 | BB39: 16330.7104 | BC39: 0.3962633171 | BD39: 29061.53632 | BE39: 0.6624957534 | BF39: -0.01441666667 | BG39: -0.03572644555 | BH39: -0.0524077565 | BI39: -0.06612000717 | BJ39: -0.07782205265 | BK39: -0.08807558175 | BL39: -0.09721695108 | BM39: -0.1054544091 | BN39: -0.1129230493 | BO39: -0.1197158433 | BP39: -0.1259011547 | BQ39: -0.1315326254 | BR39: -0.1364108526 | BS39: -0.1408407123 | BT39: -0.1448549645 | BU39: -0.1484834215 | BV39: -0.1517535453 | BW39: -0.1546908175 | BX39: -0.1573189813 | BY39: -0.1596602116 | BZ39: -0.1617352433 | CA39: -0.1635634755 | CB39: -0.1651630599 | CC39: -0.1665509806 | CD39: -0.1676863566 | CE39: -0.1686494304 | CF39: -0.1694534323 | CG39: -0.1701107271 | CH39: -0.1706328668 | CI39: -0.1710306398 | CJ39: -0.1713141174 | CK39: -0.1714926974 | CL39: -0.1715751456 | CM39: -0.1715696343 | CN39: -0.1714837792 | CO39: -0.171324674 | CP39: -0.1711096723 | CQ39: -0.1708370495 | CR39: -0.1705122475 | CS39: -0.170140324 | CT39: -0.1697259763 | CU39: -0.1692735649 | CV39: -0.1687871344 | CW39: -0.1682704338 | CX39: -0.1677269353 | CY39: -0.1671598525 | CZ39: -0.1665721568 | DA39: -0.1659665933 | DB39: -0.1653752621 | DC39: -0.1647715517 | DD39: -0.164157511 | DE39: -0.1635350247 | DF39: -0.1629058245 | DG39: -0.1622714992 | DH39: -0.1616335045 | DI39: -0.1609931716 | DJ39: -0.1603517165 | DK39: -0.1597102472 | DL39: -0.1590697716 | DM39: -0.1584312044 | DN39: -0.1581284279 | DS39: 31 | DT39: 16330.7104 | DU39: 0.3962633171 | DV39: 29061.53632 | DW39: 0.6624957534 | DY39: -4442.810886 | DZ39: -9186.663723 | EA39: tx A | EG39: 12000 | EH39: 0.9999 | EI39: 0.0001 | EJ39: -10572.29372 | EK39: -20414.04715 | EL39: 0.9999
A40: DEAD | B40: 0 | C40: 0 | H40: 1.06 | I40: 19 | J40: =MMULT(J39:M39,J$4:M$7) -> 0.2369031357 | K40: 0.07596849307 | L40: 0.644674307 | M40: 0.04245406422 | N40: 0.9661835749 | O40: 14.08133972 | P40: 8.986269131 | Q40: 247.2787742 | R40: 0 | S40: 0.01562187344 | T40: 0.003994156681 | U40: -0.007111141712 | V40: 0 | AA40: 1.06 | AB40: 19 | AC40: =MMULT(AC39:AF39,AC$4:AF$7) -> 0.311835489 | AD40: 0.1056955329 | AE40: 0.5431433797 | AF40: 0.03932559841 | AG40: 0.9661835749 | AH40: 279.1513943 | AI40: 100.8375774 | AJ40: 208.3343911 | AK40: 0 | AL40: 0.02056306485 | AM40: 0.005557100077 | AN40: -0.00599119509 | AO40: 0 | AP40: -0.1710032945 | AQ40: =$AP$40 -> -0.1710032945 | BA40: 32 | BB40: 17729.84936 | BC40: 0.3837211729 | BD40: 31406.48751 | BE40: 0.7267414856 | BF40: -0.01441666667 | BG40: -0.03700066335 | BH40: -0.05537895042 | BI40: -0.07081588939 | BJ40: -0.08410168682 | BK40: -0.09573761064 | BL40: -0.1060484432 | BM40: -0.1152507757 | BN40: -0.1234945031 | BO40: -0.1308880545 | BP40: -0.1375137524 | BQ40: -0.1434371793 | BR40: -0.1484616816 | BS40: -0.1529141653 | BT40: -0.156834407 | BU40: -0.160258417 | BV40: -0.1632192615 | BW40: -0.1657475948 | BX40: -0.1678720153 | BY40: -0.1696193122 | BZ40: -0.1710146436 | CA40: -0.1720816738 | CB40: -0.1728426819 | CC40: -0.1733186534 | CD40: -0.1735193258 | CE40: -0.1734851049 | CF40: -0.1732327036 | CG40: -0.1727778638 | CH40: -0.1721354093 | CI40: -0.1713192956 | CJ40: -0.1703426566 | CK40: -0.1692178487 | CL40: -0.1679564929 | CM40: -0.1665695142 | CN40: -0.1650671794 | CO40: -0.1634591324 | CP40: -0.1618356048 | CQ40: -0.1601281164 | CR40: -0.1583442594 | CS40: -0.1564911521 | CT40: -0.154575465 | CU40: -0.1526034453 | CV40: -0.1505809407 | CW40: -0.1485134212 | CX40: -0.1464060004 | CY40: -0.1442634557 | CZ40: -0.1420902466 | DA40: -0.1398905333 | DB40: -0.1377740191 | DC40: -0.1356393948 | DD40: -0.1334898604 | DE40: -0.1313283903 | DF40: -0.1291577465 | DG40: -0.126980491 | DH40: -0.1247989975 | DI40: -0.1226154622 | DJ40: -0.1204319147 | DK40: -0.1182502277 | DL40: -0.1160721264 | DM40: -0.1138991972 | DN40: -0.1128676255 | DS40: 32 | DT40: 17729.84936 | DU40: 0.3837211729 | DV40: 31406.48751 | DW40: 0.7267414856 | DY40: -6218.214175 | DZ40: -9604.242939 | EA40: tx A | EG40: 12400 | EH40: 0.9999 | EI40: 0.0001 | EJ40: -10365.65094 | EK40: -20073.62779 | EL40: 0.9999
H41: 1.07 | I41: 20 | J41: =MMULT(J40:M40,J$4:M$7) -> 0.2261969671 | K41: 0.0725009588 | L41: 0.6560868974 | M41: 0.04521517672 | N41: 0.9661835749 | O41: 13.44497332 | P41: 8.576096506 | Q41: 251.6563201 | R41: 0 | S41: 0.01491588696 | T41: 0.003811845901 | U41: -0.007237029383 | V41: 0 | AA41: 1.07 | AB41: 20 | AC41: =MMULT(AC40:AF40,AC$4:AF$7) -> 0.3003795967 | AD41: 0.1017535615 | AE41: 0.5559671799 | AF41: 0.04189966186 | AG41: 0.9661835749 | AH41: 268.8962168 | AI41: 97.07678611 | AJ41: 213.253237 | AK41: 0 | AL41: 0.01980764007 | AM41: 0.005349845061 | AN41: -0.006132649247 | AO41: 0 | AP41: -0.1736541238 | AQ41: =$AP$41 -> -0.1736541238 | BA41: 33 | BB41: 17074.68433 | BC41: 0.5493992664 | BD41: 31086.94987 | BE41: 1.032890098 | BF41: -0.01441666667 | BG41: -0.03516186357 | BH41: -0.05051742019 | BI41: -0.06219109574 | BJ41: -0.07127042105 | BK41: -0.0784544009 | BL41: -0.08419836179 | BM41: -0.08880448131 | BN41: -0.09247836337 | BO41: -0.09536439826 | BP41: -0.09756787242 | BQ41: -0.09916880513 | BR41: -0.1001800585 | BS41: -0.1007276577 | BT41: -0.1008540534 | BU41: -0.1005964349 | BV41: -0.09998806157 | BW41: -0.09905912694 | BX41: -0.09783733058 | BY41: -0.09634826559 | BZ41: -0.09461569038 | CA41: -0.09266172649 | CB41: -0.09050700916 | CC41: -0.08817080693 | CD41: -0.08579015345 | CE41: -0.08326981855 | CF41: -0.08062476501 | CG41: -0.07786896538 | CH41: -0.07501546105 | CI41: -0.07207641698 | CJ41: -0.06906317277 | CK41: -0.06598629058 | CL41: -0.06285560017 | CM41: -0.05968024144 | CN41: -0.05646870454 | CO41: -0.05322886779 | CP41: -0.05012331138 | CQ41: -0.04700419575 | CR41: -0.04387747363 | CS41: -0.04074864096 | CT41: -0.03762276424 | CU41: -0.0345045064 | CV41: -0.03139815123 | CW41: -0.02830762652 | CX41: -0.02523652593 | CY41: -0.02218812962 | CZ41: -0.01916542382 | DA41: -0.01617111924 | DB41: -0.01334878524 | DC41: -0.01055794167 | DD41: -0.00780047901 | DE41: -0.00507808645 | DF41: -0.00239226507 | DG41: 0.0002556597037 | DH41: 0.00286452635 | DI41: 0.005433326169 | DJ41: 0.007961192837 | DK41: 0.01044739255 | DL41: 0.01289131477 | DM41: 0.01529246341 | DN41: 0.01641531354 | DS41: 33 | DT41: 17074.68433 | DU41: 0.5493992664 | DV41: 31086.94987 | DW41: 1.032890098 | DY41: -592.7063356 | DZ41: -100.2469293 | EA41: tx B | EG41: 12800 | EH41: 0.9999 | EI41: 0.0001 | EJ41: -10159.00815 | EK41: -19733.20843 | EL41: 0.9999
A42: Other parameters | B42: Values | H42: 1.08 | I42: 21 | J42: =MMULT(J41:M41,J$4:M$7) -> 0.2159679528 | K42: 0.06920179166 | L42: 0.6668371135 | M42: 0.04799314204 | N42: 0.9661835749 | O42: 12.83696859 | P42: 8.185839933 | Q42: 255.779798 | R42: 0 | S42: 0.01424136501 | T42: 0.003638387275 | U42: -0.007355610672 | V42: 0 | AA42: 1.08 | AB42: 21 | AC42: =MMULT(AC41:AF41,AC$4:AF$7) -> 0.2893320489 | AD42: 0.09797474998 | AE42: 0.5681995837 | AF42: 0.04449361738 | AG42: 0.9661835749 | AH42: 259.0065843 | AI42: 93.47165551 | AJ42: 217.94524 | AK42: 0 | AL42: 0.01907914236 | AM42: 0.005151168417 | AN42: -0.006267579949 | AO42: 0 | AP42: -0.176002897 | AQ42: =$AP$42 -> -0.176002897 | BA42: 34 | BB42: 16751.16179 | BC42: -0.2229351692 | BD42: 30276.37644 | BE42: 0.1763324611 | BF42: -0.01441666667 | BG42: -0.03656569041 | BH42: -0.05409479903 | BI42: -0.06833987796 | BJ42: -0.08017165065 | BK42: -0.09016379879 | BL42: -0.09870015045 | BM42: -0.1060429463 | BN42: -0.1123762818 | BO42: -0.117833739 | BP42: -0.1225159609 | BQ42: -0.1265018353 | BR42: -0.1296959177 | BS42: -0.1323396161 | BT42: -0.1344777222 | BU42: -0.136150012 | BV42: -0.1373924183 | BW42: -0.1382378068 | BX42: -0.1387164996 | BY42: -0.1388566383 | BZ42: -0.1386844446 | CA42: -0.138224413 | CB42: -0.1374994617 | CC42: -0.1365310536 | CD42: -0.1353960484 | CE42: -0.1340662787 | CF42: -0.1325585614 | CG42: -0.1308886516 | CH42: -0.129071304 | CI42: -0.1271203315 | CJ42: -0.1250486584 | CK42: -0.1228683719 | CL42: -0.1205907693 | CM42: -0.1182264033 | CN42: -0.1157851245 | CO42: -0.1132761213 | CP42: -0.110830252 | CQ42: -0.1083356372 | CR42: -0.1057993465 | CS42: -0.1032279524 | CT42: -0.1006275602 | CU42: -0.0980038345 | CV42: -0.09536202596 | CW42: -0.09270699549 | CX42: -0.09004323766 | CY42: -0.08737490265 | CZ42: -0.08470581711 | DA42: -0.08203950377 | DB42: -0.07950588123 | DC42: -0.07698081048 | DD42: -0.07446688067 | DE42: -0.0719664567 | DF42: -0.06948169336 | DG42: -0.06701454866 | DH42: -0.06456679636 | DI42: -0.0621400379 | DJ42: -0.05973571355 | DK42: -0.05735511304 | DL42: -0.05499938547 | DM42: -0.05266954876 | DN42: -0.05157285815 | DS42: 34 | DT42: 16751.16179 | DU42: -0.2229351692 | DV42: 30276.37644 | DW42: 0.1763324611 | DY42: -23439.21686 | DZ42: -24986.40261 | EA42: tx A | EG42: 13200 | EH42: 0.9999 | EI42: 0.0001 | EJ42: -9952.365369 | EK42: -19392.78906 | EL42: 0.9999
A43: discount rate | B43: 0.035 | H43: 1.09 | I43: 22 | J43: =MMULT(J42:M42,J$4:M$7) -> 0.2061975157 | K43: 0.0660587945 | L43: 0.676957002 | M43: 0.05078668784 | N43: 0.9661835749 | O43: 12.25622134 | P43: 7.814056615 | Q43: 259.6615002 | R43: 0 | S43: 0.01359708255 | T43: 0.003473139518 | U43: -0.007467239072 | V43: 0 | AA43: 1.09 | AB43: 22 | AC43: =MMULT(AC42:AF42,AC$4:AF$7) -> 0.2786830896 | AD43: 0.09434624524 | AE43: 0.5798643515 | AF43: 0.04710631367 | AG43: 0.9661835749 | AH43: 249.4737635 | AI43: 90.00992333 | AJ43: 222.419514 | AK43: 0 | AL43: 0.01837692837 | AM43: 0.004960394376 | AN43: -0.006396249288 | AO43: 0 | AP43: -0.1780705207 | AQ43: =$AP$43 -> -0.1780705207 | BA43: 35 | BB43: 16637.15714 | BC43: 0.5336592476 | BD43: 30859.03298 | BE43: 0.7652038932 | BF43: -0.01441666667 | BG43: -0.03799275349 | BH43: -0.05790832402 | BI43: -0.07519851783 | BJ43: -0.09053755466 | BK43: -0.1043682304 | BL43: -0.1169851559 | BM43: -0.1285880817 | BN43: -0.1393159629 | BO43: -0.1492686675 | BP43: -0.1585207865 | BQ43: -0.1671304084 | BR43: -0.1747630583 | BS43: -0.1818665924 | BT43: -0.1884739934 | BU43: -0.194614725 | BV43: -0.2003156142 | BW43: -0.2056014254 | BX43: -0.2104952386 | BY43: -0.2150187055 | BZ43: -0.2191922265 | CA43: -0.2230350786 | CB43: -0.2265655112 | CC43: -0.2298008215 | CD43: -0.2326166258 | CE43: -0.2351818136 | CF43: -0.2375104579 | CG43: -0.2396159171 | CH43: -0.2415108714 | CI43: -0.243207357 | CJ43: -0.2447167971 | CK43: -0.2460500323 | CL43: -0.2472173486 | CM43: -0.2482285045 | CN43: -0.2490927563 | CO43: -0.2498188824 | CP43: -0.2503868102 | CQ43: -0.2508386325 | CR43: -0.2511814725 | CS43: -0.2514220805 | CT43: -0.2515668518 | CU43: -0.2516218445 | CV43: -0.2515927955 | CW43: -0.2514851363 | CX43: -0.2513040084 | CY43: -0.2510542772 | CZ43: -0.2507405458 | DA43: -0.2503671678 | DB43: -0.2499586843 | DC43: -0.2495010214 | DD43: -0.2489976816 | DE43: -0.2484519737 | DF43: -0.2478670227 | DG43: -0.2472457787 | DH43: -0.2465910263 | DI43: -0.2459053923 | DJ43: -0.2451913543 | DK43: -0.244451248 | DL43: -0.2436872742 | DM43: -0.2429015062 | DN43: -0.2425178824 | DS43: 35 | DT43: 16637.15714 | DU43: 0.5336592476 | DV43: 30859.03298 | DW43: 0.7652038932 | DY43: -627.3797091 | DZ43: -7902.91618 | EA43: tx A | EG43: 13600 | EH43: 0.9998 | EI43: 0.0002 | EJ43: -9745.722585 | EK43: -19052.3697 | EL43: 0.9998
A44: value per QALY | B44: 30000 | H44: 1.10 | I44: 23 | J44: =MMULT(J43:M43,J$4:M$7) -> 0.1968667045 | K44: 0.06306216034 | L44: 0.6864765285 | M44: 0.05359460667 | N44: 0.9661835749 | O44: 11.70160512 | P44: 7.459586493 | Q44: 263.3129204 | R44: 0 | S44: 0.01298178993 | T44: 0.003315587013 | U44: -0.007572245121 | V44: 0 | AA44: 1.10 | AB44: 23 | AC44: =MMULT(AC43:AF43,AC$4:AF$7) -> 0.2684212981 | AD44: 0.09085828374 | AE44: 0.5909837682 | AF44: 0.0497366499 | AG44: 0.9661835749 | AH44: 240.2875307 | AI44: 86.68227477 | AJ44: 226.6846068 | AK44: 0 | AL44: 0.01770024502 | AM44: 0.004777009604 | AN44: -0.006518903079 | AO44: 0 | AP44: -0.1798766443 | AQ44: =$AP$44 -> -0.1798766443 | BA44: 36 | BB44: 16349.5872 | BC44: 0.7898710248 | BD44: 29182.89556 | BE44: 0.8790428063 | BF44: -0.01441666667 | BG44: -0.03839276375 | BH44: -0.05903873388 | BI44: -0.07732508147 | BJ44: -0.09387243061 | BK44: -0.1090814226 | BL44: -0.1232142881 | BM44: -0.1364460444 | BN44: -0.1488966173 | BO44: -0.1606509879 | BP44: -0.1717718306 | BQ44: -0.1823074421 | BR44: -0.1918210412 | BS44: -0.2008454019 | BT44: -0.2094075151 | BU44: -0.2175314759 | BV44: -0.2252392421 | BW44: -0.2325511238 | BX44: -0.2394861016 | BY44: -0.2460620399 | BZ44: -0.2522958324 | CA44: -0.2582035049 | CB44: -0.2638002916 | CC44: -0.2691006943 | CD44: -0.2738795846 | CE44: -0.2784019066 | CF44: -0.2826796226 | CG44: -0.2867241429 | CH44: -0.2905463534 | CI44: -0.2941566397 | CJ44: -0.2975649115 | CK44: -0.3007806239 | CL44: -0.3038127991 | CM44: -0.3066700454 | CN44: -0.3093605768 | CO44: -0.3118922307 | CP44: -0.3141591393 | CQ44: -0.3162886527 | CR44: -0.3182872542 | CS44: -0.320161129 | CT44: -0.3219161785 | CU44: -0.3235580329 | CV44: -0.3250920633 | CW44: -0.3265233939 | CX44: -0.327856913 | CY44: -0.3290972838 | CZ44: -0.3302489548 | DA44: -0.3313161691 | DB44: -0.3322559839 | DC44: -0.3331228959 | DD44: -0.3339204123 | DE44: -0.3346518785 | DF44: -0.3353204853 | DG44: -0.3359292756 | DH44: -0.3364811521 | DI44: -0.3369788825 | DJ44: -0.3374251068 | DK44: -0.3378223423 | DL44: -0.3381729898 | DM44: -0.3384793385 | DN44: -0.3386051637 | DS44: 36 | DT44: 16349.5872 | DU44: 0.7898710248 | DV44: 29182.89556 | DW44: 0.8790428063 | DY44: 7346.543542 | DZ44: -2811.611368 | EA44: tx A | EG44: 14000 | EH44: 0.9997 | EI44: 0.0003 | EJ44: -9539.079801 | EK44: -18711.95034 | EL44: 0.9997
A45: default value per QALY | B45: 30000 | H45: 1.11 | I45: 24 | J45: =MMULT(J44:M44,J$4:M$7) -> 0.1879566992 | K45: 0.06020362579 | L45: 0.6954239241 | M45: 0.05641575082 | N45: 0.9661835749 | O45: 11.17200128 | P45: 7.121452093 | Q45: 266.7448876 | R45: 0 | S45: 0.01239424611 | T45: 0.003165295301 | U45: -0.007670940226 | V45: 0 | AA45: 1.11 | AB45: 24 | AC45: =MMULT(AC44:AF44,AC$4:AF$7) -> 0.2585344249 | AD45: 0.08750307721 | AE45: 0.6015789266 | AF45: 0.05238357133 | AG45: 0.9661835749 | AH45: 231.4369202 | AI45: 83.48127952 | AJ45: 230.748609 | AK45: 0 | AL45: 0.01704828454 | AM45: 0.004600604623 | AN45: -0.006635773989 | AO45: 0 | AP45: -0.1814397459 | AQ45: =$AP$45 -> -0.1814397459 | BA45: 37 | BB45: 17978.95742 | BC45: 0.7937536479 | BD45: 28756.89501 | BE45: 0.8323830856 | BF45: -0.01441666667 | BG45: -0.03682748153 | BH45: -0.05530410317 | BI45: -0.07129805277 | BJ45: -0.08565687902 | BK45: -0.09887674673 | BL45: -0.1112496737 | BM45: -0.1229492484 | BN45: -0.1340804629 | BO45: -0.1447086362 | BP45: -0.1548761713 | BQ45: -0.1646122434 | BR45: -0.1734942835 | BS45: -0.1820022023 | BT45: -0.1901498201 | BU45: -0.1979494876 | BV45: -0.2054126512 | BW45: -0.2125501705 | BX45: -0.2193724945 | BY45: -0.2258897577 | BZ45: -0.2321118317 | CA45: -0.2380483512 | CB45: -0.2437087269 | CC45: -0.2491021509 | CD45: -0.2539930539 | CE45: -0.2586466083 | CF45: -0.2630709507 | CG45: -0.2672740113 | CH45: -0.2712635146 | CI45: -0.275046979 | CJ45: -0.2786317184 | CK45: -0.2820248429 | CL45: -0.285233261 | CM45: -0.288263681 | CN45: -0.2911226139 | CO45: -0.2938163758 | CP45: -0.2962303901 | CQ45: -0.2984985837 | CR45: -0.3006264323 | CS45: -0.3026192381 | CT45: -0.3044821334 | CU45: -0.3062200836 | CV45: -0.3078378914 | CW45: -0.3093402001 | CX45: -0.3107314974 | CY45: -0.3120161192 | CZ45: -0.3131982533 | DA45: -0.3142819435 | DB45: -0.3152239904 | DC45: -0.3160795856 | DD45: -0.3168521895 | DE45: -0.3175451399 | DF45: -0.3181616547 | DG45: -0.3187048359 | DH45: -0.3191776732 | DI45: -0.3195830469 | DJ45: -0.3199237314 | DK45: -0.3202023988 | DL45: -0.3204216218 | DM45: -0.3205838769 | DN45: -0.3206351486 | DS45: 37 | DT45: 17978.95742 | DU45: 0.7937536479 | DV45: 28756.89501 | DW45: 0.8323830856 | DY45: 5833.652019 | DZ45: -3785.40244 | EA45: tx A | EG45: 14400 | EH45: 0.9995 | EI45: 0.0005 | EJ45: -9332.437017 | EK45: -18371.53097 | EL45: 0.9995
H46: 2.00 | I46: 25 | J46: =MMULT(J45:M45,J$4:M$7) -> 0.179449097 | K46: 0.05747595934 | L46: 0.7038259154 | M46: 0.05924902825 | N46: 0.9335107004 | O46: 10.30561929 | P46: 6.568886961 | Q46: 260.8383121 | R46: 0 | S46: 0.01143307977 | T46: 0.002919694855 | U46: -0.007501081348 | V46: 0 | AA46: 2.00 | AB46: 25 | AC46: =MMULT(AC45:AF45,AC$4:AF$7) -> 0.2490098996 | AD46: 0.08427412206 | AE46: 0.6116699123 | AF46: 0.05504606603 | AG46: 0.9335107004 | AH46: 215.372637 | AI46: 77.68186755 | AJ46: 226.6852413 | AK46: 0 | AL46: 0.01586494495 | AM46: 0.004281002412 | AN46: -0.006518921327 | AO46: 0 | AP46: -0.1827319774 | AQ46: =$AP$46 -> -0.1827319774 | BA46: 38 | BB46: 15895.5532 | BC46: 0.7808369451 | BD46: 32412.71192 | BE46: 1.141321028 | BF46: -0.01441666667 | BG46: -0.03679435256 | BH46: -0.05494077727 | BI46: -0.0702247876 | BJ46: -0.08349374152 | BK46: -0.09527693208 | BL46: -0.1059094589 | BM46: -0.1156076575 | BN46: -0.124515034 | BO46: -0.1327302433 | BP46: -0.1403241359 | BQ46: -0.1473501525 | BR46: -0.1535411191 | BS46: -0.1592651199 | BT46: -0.1645510882 | BU46: -0.1694247741 | BV46: -0.1739096108 | BW46: -0.1780272577 | BX46: -0.1817979467 | BY46: -0.1852407076 | BZ46: -0.1883735205 | CA46: -0.1912134221 | CB46: -0.1937765836 | CC46: -0.1960783715 | CD46: -0.1980355385 | CE46: -0.1997709288 | CF46: -0.201297133 | CG46: -0.2026261283 | CH46: -0.2037693082 | CI46: -0.2047375093 | CJ46: -0.205541037 | CK46: -0.2061896902 | CL46: -0.2066927839 | CM46: -0.2070591715 | CN46: -0.2072972659 | CO46: -0.2074150595 | CP46: -0.2074199012 | CQ46: -0.207324265 | CR46: -0.2071346676 | CS46: -0.2068572938 | CT46: -0.2064980116 | CU46: -0.2060623869 | CV46: -0.2055556973 | CW46: -0.2049829459 | CX46: -0.2043488736 | CY46: -0.2036579716 | CZ46: -0.2029144931 | DA46: -0.2021224644 | DB46: -0.2013255417 | DC46: -0.2004894418 | DD46: -0.1996174102 | DE46: -0.1987125147 | DF46: -0.1977776532 | DG46: -0.1968155624 | DH46: -0.1958288256 | DI46: -0.1948198794 | DJ46: -0.1937910216 | DK46: -0.1927444175 | DL46: -0.1916821065 | DM46: -0.1906060082 | DN46: -0.1900878748 | DS46: 38 | DT46: 15895.5532 | DU46: 0.7808369451 | DV46: 32412.71192 | DW46: 1.141321028 | DY46: 7529.555154 | DZ46: 1826.918908 | EA46: tx A | EG46: 14800 | EH46: 0.9992 | EI46: 0.0008 | EJ46: -9125.794233 | EK46: -18031.11161 | EL46: 0.9992
H47: 2.01 | I47: 26 | J47: =MMULT(J46:M46,J$4:M$7) -> 0.1713260679 | K47: 0.05487265042 | L47: 0.7117078824 | M47: 0.06209339926 | N47: 0.9335107004 | O47: 9.839120171 | P47: 6.271356616 | Q47: 263.7593739 | R47: 0 | S47: 0.01091554448 | T47: 0.002787450561 | U47: -0.007585084046 | V47: 0 | AA47: 2.01 | AB47: 26 | AC47: =MMULT(AC46:AF46,AC$4:AF$7) -> 0.2398351386 | AD47: 0.08116577054 | AE47: 0.6212759285 | AF47: 0.05772316231 | AG47: 0.9335107004 | AH47: 207.4372398 | AI47: 74.81666356 | AJ47: 230.2452368 | AK47: 0 | AL47: 0.01528040161 | AM47: 0.004123102691 | AN47: -0.006621298218 | AO47: 0 | AP47: -0.1838219919 | AQ47: =$AP$47 -> -0.1838219919 | BA47: 39 | BB47: 16799.37302 | BC47: 0.6349127588 | BD47: 29523.18448 | BE47: 0.8821644419 | BF47: -0.01441666667 | BG47: -0.03779046539 | BH47: -0.05744447806 | BI47: -0.07444492259 | BJ47: -0.08945422879 | BK47: -0.1028922819 | BL47: -0.1150328128 | BM47: -0.1260610317 | BN47: -0.1361081045 | BO47: -0.1452717947 | BP47: -0.1536288424 | BQ47: -0.1612424071 | BR47: -0.1678368408 | BS47: -0.1738201422 | BT47: -0.1792333085 | BU47: -0.1841138846 | BV47: -0.188496602 | BW47: -0.1924138001 | BX47: -0.1958957168 | BY47: -0.1989706985 | BZ47: -0.2016653601 | CA47: -0.2040047144 | CB47: -0.2060122799 | CC47: -0.2077101753 | CD47: -0.2090521081 | CE47: -0.2101375647 | CF47: -0.2109840688 | CG47: -0.2116080967 | CH47: -0.2120251368 | CI47: -0.2122497452 | CJ47: -0.212295599 | CK47: -0.2121755455 | CL47: -0.2119016495 | CM47: -0.2114852375 | CN47: -0.2109369396 | CO47: -0.2102667295 | CP47: -0.2095212361 | CQ47: -0.2086768978 | CR47: -0.2077415437 | CS47: -0.2067225089 | CT47: -0.2056266633 | CU47: -0.2044604383 | CV47: -0.2032298524 | CW47: -0.2019405353 | CX47: -0.2005977503 | CY47: -0.1992064161 | CZ47: -0.1977711271 | DA47: -0.1962961722 | DB47: -0.1948574875 | DC47: -0.1933883909 | DD47: -0.1918921946 | DE47: -0.1903719832 | DF47: -0.1888306276 | DG47: -0.1872707979 | DH47: -0.1856949756 | DI47: -0.1841054649 | DJ47: -0.1825044038 | DK47: -0.1808937743 | DL47: -0.1792754119 | DM47: -0.1776510145 | DN47: -0.1768753656 | DS47: 39 | DT47: 16799.37302 | DU47: 0.6349127588 | DV47: 29523.18448 | DW47: 0.8821644419 | DY47: 2248.009741 | DZ47: -3058.251226 | EA47: tx A | EG47: 15200 | EH47: 0.9991 | EI47: 0.0009 | EJ47: -8919.151449 | EK47: -17690.69225 | EL47: 0.9991
H48: 2.02 | I48: 27 | J48: =MMULT(J47:M47,J$4:M$7) -> 0.1635704335 | K48: 0.05238771863 | L48: 0.7190939742 | M48: 0.06494787364 | N48: 0.9335107004 | O48: 9.393720241 | P48: 5.987355511 | Q48: 266.496664 | R48: 0 | S48: 0.01042141669 | T48: 0.002661219652 | U48: -0.007663801914 | V48: 0 | AA48: 2.02 | AB48: 27 | AC48: =MMULT(AC47:AF47,AC$4:AF$7) -> 0.2309977275 | AD48: 0.07817296354 | AE48: 0.6304153823 | AF48: 0.06041392666 | AG48: 0.9335107004 | AH48: 199.7936218 | AI48: 72.05796574 | AJ48: 233.6323239 | AK48: 0 | AL48: 0.01471735154 | AM48: 0.003971072463 | AN48: -0.006718702683 | AO48: 0 | AP48: -0.1847246441 | AQ48: =$AP$48 -> -0.1847246441 | BA48: 40 | BB48: 15489.37758 | BC48: 1.097570109 | BD48: 29057.70384 | BE48: 1.260764301 | BF48: -0.01441666667 | BG48: -0.03835919682 | BH48: -0.05889145531 | BI48: -0.07696372077 | BJ48: -0.09319073097 | BK48: -0.1079748177 | BL48: -0.1215837108 | BM48: -0.1341996656 | BN48: -0.1459504674 | BO48: -0.1569289939 | BP48: -0.1672055591 | BQ48: -0.1768357079 | BR48: -0.1854351702 | BS48: -0.1934996521 | BT48: -0.2010617747 | BU48: -0.2081508632 | BV48: -0.2147937299 | BW48: -0.2210151858 | BX48: -0.2268383832 | BY48: -0.232285049 | BZ48: -0.2373756506 | CA48: -0.242129517 | CB48: -0.2465649327 | CC48: -0.2506992118 | CD48: -0.2543654493 | CE48: -0.2577753277 | CF48: -0.2609428916 | CG48: -0.2638814594 | CH48: -0.2666036614 | CI48: -0.2691214751 | CJ48: -0.2714462583 | CK48: -0.2735887808 | CL48: -0.2755592536 | CM48: -0.2773673572 | CN48: -0.279022268 | CO48: -0.2805326837 | CP48: -0.2818414108 | CQ48: -0.283027813 | CR48: -0.2840989384 | CS48: -0.2850614645 | CT48: -0.2859217159 | CU48: -0.286685683 | CV48: -0.2873590382 | CW48: -0.2879471522 | CX48: -0.2884551095 | CY48: -0.2888877227 | CZ48: -0.2892495462 | DA48: -0.2895448896 | DB48: -0.2897667376 | DC48: -0.2899328271 | DD48: -0.2900466316 | DE48: -0.2901114358 | DF48: -0.2901303446 | DG48: -0.290106293 | DH48: -0.2900420545 | DI48: -0.2899402497 | DJ48: -0.2898033538 | DK48: -0.2896337047 | DL48: -0.2894335095 | DM48: -0.2892048518 | DN48: -0.2890833501 | DS48: 40 | DT48: 15489.37758 | DU48: 1.097570109 | DV48: 29057.70384 | DW48: 1.260764301 | DY48: 17437.72569 | DZ48: 8765.225192 | EA48: tx A | EG48: 15600 | EH48: 0.9987 | EI48: 0.0013 | EJ48: -8712.508665 | EK48: -17350.27289 | EL48: 0.9987
H49: 2.03 | I49: 28 | J49: =MMULT(J48:M48,J$4:M$7) -> 0.1561657001 | K49: 0.05001559516 | L49: 0.7260071966 | M49: 0.06781150815 | N49: 0.9335107004 | O49: 8.968472275 | P49: 5.716247188 | Q49: 269.0587084 | R49: 0 | S49: 0.009949645531 | T49: 0.002540719242 | U49: -0.007737480138 | V49: 0 | AA49: 2.03 | AB49: 28 | AC49: =MMULT(AC48:AF48,AC$4:AF$7) -> 0.2224855275 | AD49: 0.0752910634 | AE49: 0.6391059471 | AF49: 0.06311746192 | AG49: 0.9335107004 | AH49: 192.4312842 | AI49: 69.4014992 | AJ49: 236.8530525 | AK49: 0 | AL49: 0.01417502136 | AM49: 0.003824676142 | AN49: -0.006811323077 | AO49: 0 | AP49: -0.1854539012 | AQ49: =$AP$49 -> -0.1854539012 | BA49: 41 | BB49: 14920.2731 | BC49: 1.053962969 | BD49: 30623.16767 | BE49: 1.41378899 | BF49: -0.01441666667 | BG49: -0.03723294851 | BH49: -0.05596813857 | BI49: -0.07183138477 | BJ49: -0.08558579341 | BK49: -0.09772020007 | BL49: -0.1085543202 | BM49: -0.118303164 | BN49: -0.1271165314 | BO49: -0.1351032563 | BP49: -0.142346112 | BQ49: -0.1489109962 | BR49: -0.1545696746 | BS49: -0.159679549 | BT49: -0.1642802015 | BU49: -0.1684073346 | BV49: -0.1720936215 | BW49: -0.1753692625 | BX49: -0.1782623585 | BY49: -0.1807991722 | BZ49: -0.1830043166 | CA49: -0.1849008992 | CB49: -0.1865106365 | CC49: -0.1878539497 | CD49: -0.1888978516 | CE49: -0.1897235167 | CF49: -0.1903471291 | CG49: -0.1907839082 | CH49: -0.1910481617 | CI49: -0.1911533369 | CJ49: -0.1911120672 | CK49: -0.1909362177 | CL49: -0.1906369265 | CM49: -0.1902246452 | CN49: -0.1897091766 | CO49: -0.1890997104 | CP49: -0.1884379456 | CQ49: -0.1877025398 | CR49: -0.1869006807 | CS49: -0.1860390921 | CT49: -0.1851240591 | CU49: -0.1841614533 | CV49: -0.1831567564 | CW49: -0.1821150817 | CX49: -0.1810411956 | CY49: -0.1799395375 | CZ49: -0.1788142383 | DA49: -0.1776691385 | DB49: -0.1765631066 | DC49: -0.1754447659 | DD49: -0.174317037 | DE49: -0.1731826236 | DF49: -0.1720440247 | DG49: -0.1709035474 | DH49: -0.1697633178 | DI49: -0.1686252926 | DJ49: -0.1674912689 | DK49: -0.1663628944 | DL49: -0.1652416762 | DM49: -0.1641289898 | DN49: -0.1636037981 | DS49: 41 | DT49: 14920.2731 | DU49: 1.053962969 | DV49: 30623.16767 | DW49: 1.41378899 | DY49: 16698.61597 | DZ49: 11790.50203 | EA49: tx A | EG49: 16000 | EH49: 0.9979 | EI49: 0.0021 | EJ49: -8505.865881 | EK49: -17009.85352 | EL49: 0.9979
H50: 2.04 | I50: 29 | J50: =MMULT(J49:M49,J$4:M$7) -> 0.1490960649 | K50: 0.04775104757 | L50: 0.7324694834 | M50: 0.07068340418 | N50: 0.9335107004 | O50: 8.56246873 | P50: 5.457433636 | Q50: 271.4536358 | R50: 0 | S50: 0.009499224184 | T50: 0.002425683529 | U50: -0.00780635248 | V50: 0 | AA50: 2.04 | AB50: 29 | AC50: =MMULT(AC49:AF49,AC$4:AF$7) -> 0.2142867351 | AD50: 0.07251574849 | AE50: 0.6473646107 | AF50: 0.06583290576 | AG50: 0.9335107004 | AH50: 185.3400177 | AI50: 66.84328038 | AJ50: 239.9137183 | AK50: 0 | AL50: 0.01365265903 | AM50: 0.003683694195 | AN50: -0.006899340449 | AO50: 0 | AP50: -0.186022893 | AQ50: =$AP$50 -> -0.186022893 | BA50: 42 | BB50: 16306.18746 | BC50: 1.315539703 | BD50: 31697.90517 | BE50: 1.672420912 | BF50: -0.01441666667 | BG50: -0.03680966491 | BH50: -0.05508427442 | BI50: -0.07059106453 | BJ50: -0.08412389251 | BK50: -0.09615756058 | BL50: -0.1069838684 | BM50: -0.1167894025 | BN50: -0.1256999559 | BO50: -0.1338058608 | BP50: -0.1411764211 | BQ50: -0.1478681326 | BR50: -0.1536407379 | BS50: -0.1588537753 | BT50: -0.1635444162 | BU50: -0.1677469777 | BV50: -0.1714934382 | BW50: -0.1748137593 | BX50: -0.177736099 | BY50: -0.1802869629 | BZ50: -0.1824913209 | CA50: -0.1843727026 | CB50: -0.1859532809 | CC50: -0.1872539472 | CD50: -0.1882448359 | CE50: -0.1890055329 | CF50: -0.1895526536 | CG50: -0.1899018345 | CH50: -0.1900677863 | CI50: -0.1900643432 | CJ50: -0.1899045108 | CK50: -0.1896005109 | CL50: -0.1891638242 | CM50: -0.1886052309 | CN50: -0.1879348493 | CO50: -0.1871621719 | CP50: -0.186337342 | CQ50: -0.1854315115 | CR50: -0.1844521246 | CS50: -0.1834061515 | CT50: -0.1823001151 | CU50: -0.1811401159 | CV50: -0.1799318564 | CW50: -0.178680663 | CX50: -0.177391508 | CY50: -0.1760690296 | CZ50: -0.174717551 | DA50: -0.1733410985 | DB50: -0.1720099754 | DC50: -0.1706619541 | DD50: -0.1693001161 | DE50: -0.1679273209 | DF50: -0.1665462189 | DG50: -0.1651592637 | DH50: -0.163768724 | DI50: -0.1623766946 | DJ50: -0.1609851072 | DK50: -0.1595957396 | DL50: -0.1582102261 | DM50: -0.1568300653 | DN50: -0.1561760481 | DS50: 42 | DT50: 16306.18746 | DU50: 1.315539703 | DV50: 31697.90517 | DW50: 1.672420912 | DY50: 23160.00364 | DZ50: 18474.7222 | EA50: tx A | EG50: 16400 | EH50: 0.9972 | EI50: 0.0028 | EJ50: -8299.223097 | EK50: -16669.43416 | EL50: 0.9972
H51: 2.05 | I51: 30 | J51: =MMULT(J50:M50,J$4:M$7) -> 0.1423464071 | K51: 0.04558913068 | L51: 0.7385017566 | M51: 0.07356270567 | N51: 0.9335107004 | O51: 8.174841237 | P51: 5.210349677 | Q51: 273.6891999 | R51: 0 | S51: 0.009069189276 | T51: 0.002315861307 | U51: -0.007870641917 | V51: 0 | AA51: 2.05 | AB51: 30 | AC51: =MMULT(AC50:AF50,AC$4:AF$7) -> 0.206389912 | AD51: 0.06984294609 | AE51: 0.6552077127 | AF51: 0.0685594292 | AG51: 0.9335107004 | AH51: 178.5099294 | AI51: 64.37955513 | AJ51: 242.8203766 | AK51: 0 | AL51: 0.01314953581 | AM51: 0.003547919733 | AN51: -0.006982928939 | AO51: 0 | AP51: -0.1864439574 | AQ51: =$AP$51 -> -0.1864439574 | BA51: 43 | BB51: 17036.58152 | BC51: 0.7791471898 | BD51: 31499.366 | BE51: 1.067366018 | BF51: -0.01441666667 | BG51: -0.03772103373 | BH51: -0.05722849882 | BI51: -0.07403102139 | BJ51: -0.08882349121 | BK51: -0.1020542278 | BL51: -0.1140181555 | BM51: -0.1249144819 | BN51: -0.1348824053 | BO51: -0.1440232272 | BP51: -0.1524140551 | BQ51: -0.1601163059 | BR51: -0.1668445791 | BS51: -0.1730074666 | BT51: -0.1786419917 | BU51: -0.1837816299 | BV51: -0.1884571073 | BW51: -0.1926969206 | BX51: -0.1965276848 | BY51: -0.1999743725 | BZ51: -0.2030604853 | CA51: -0.2058081832 | CB51: -0.2082383854 | CC51: -0.2103708536 | CD51: -0.2121360057 | CE51: -0.2136521988 | CF51: -0.2149353232 | CG51: -0.2160003974 | CH51: -0.2168616144 | CI51: -0.2175323845 | CJ51: -0.2180253762 | CK51: -0.2183525542 | CL51: -0.2185252156 | CM51: -0.2185540246 | CN51: -0.2184490451 | CO51: -0.2182197714 | CP51: -0.2178915683 | CQ51: -0.2174615585 | CR51: -0.2169373205 | CS51: -0.2163259948 | CT51: -0.2156343065 | CU51: -0.2148685876 | CV51: -0.2140347973 | CW51: -0.2131385416 | CX51: -0.2121850923 | CY51: -0.2111794047 | CZ51: -0.2101261342 | DA51: -0.2090296525 | DB51: -0.2079481384 | DC51: -0.2068330444 | DD51: -0.2056878074 | DE51: -0.2045156479 | DF51: -0.2033195816 | DG51: -0.2021024307 | DH51: -0.2008668347 | DI51: -0.1996152599 | DJ51: -0.1983500097 | DK51: -0.1970732331 | DL51: -0.1957869335 | DM51: -0.1944929772 | DN51: -0.1938739883 | DS51: 43 | DT51: 17036.58152 | DU51: 0.7791471898 | DV51: 31499.366 | DW51: 1.067366018 | DY51: 6337.834176 | DZ51: 521.6145279 | EA51: tx A | EG51: 16800 | EH51: 0.9962 | EI51: 0.0038 | EJ51: -8092.580313 | EK51: -16329.0148 | EL51: 0.9962
H52: 2.06 | I52: 31 | J52: =MMULT(J51:M51,J$4:M$7) -> 0.1359022706 | K52: 0.04352515339 | L52: 0.7441239789 | M52: 0.07644859707 | N52: 0.9335107004 | O52: 7.804759593 | P52: 4.974459163 | Q52: 275.772799 | R52: 0 | S52: 0.008658619777 | T52: 0.002211014272 | U52: -0.007930561204 | V52: 0 | AA52: 2.06 | AB52: 31 | AC52: =MMULT(AC51:AF51,AC$4:AF$7) -> 0.1987839992 | AD52: 0.06726878891 | AE52: 0.6626509766 | AF52: 0.07129623534 | AG52: 0.9335107004 | AH52: 171.931454 | AI52: 62.00675869 | AJ52: 245.5788548 | AK52: 0 | AL52: 0.01266494709 | AM52: 0.003417156305 | AN52: -0.007062256124 | AO52: 0 | AP52: -0.1867286846 | AQ52: =$AP$52 -> -0.1867286846 | BA52: 44 | BB52: 17663.19376 | BC52: 0.4180772986 | BD52: 32878.70241 | BE52: 1.125634333 | BF52: -0.01441666667 | BG52: -0.03424210886 | BH52: -0.04831262913 | BI52: -0.05854214475 | BJ52: -0.06606926465 | BK52: -0.07158350509 | BL52: -0.07551385855 | BM52: -0.07813768415 | BN52: -0.07964353 | BO52: -0.08016735418 | BP52: -0.07981340608 | BQ52: -0.07866627486 | BR52: -0.07688683138 | BS52: -0.07448069988 | BT52: -0.07150217277 | BU52: -0.06800094124 | BV52: -0.06402292842 | BW52: -0.05961082261 | BX52: -0.05480443769 | BY52: -0.0496409731 | BZ52: -0.04415521452 | CA52: -0.03837969852 | CB52: -0.03234485455 | CC52: -0.02607913171 | CD52: -0.01991721067 | CE52: -0.0135843691 | CF52: -0.007102674994 | CG52: -0.0004927091108 | CH52: 0.006226349896 | CI52: 0.01303664505 | CJ52: 0.01992156495 | CK52: 0.02686567176 | CL52: 0.0338546331 | CM52: 0.0408751575 | CN52: 0.04791493339 | CO52: 0.05496257139 | CP52: 0.06167207447 | CQ52: 0.06836980062 | CR52: 0.07504723645 | CS52: 0.08169655503 | CT52: 0.08831057423 | CU52: 0.09488271738 | CV52: 0.1014069761 | CW52: 0.1078778751 | CX52: 0.1142904392 | CY52: 0.1206401614 | CZ52: 0.1269229741 | DA52: 0.1331352204 | DB52: 0.1389813228 | DC52: 0.1447543284 | DD52: 0.1504517835 | DE52: 0.1560715328 | DF52: 0.1616117004 | DG52: 0.1670706702 | DH52: 0.1724470688 | DI52: 0.1777397482 | DJ52: 0.1829477706 | DK52: 0.1880703932 | DL52: 0.193107054 | DM52: 0.1980573594 | DN52: 0.2003734126 | DS52: 44 | DT52: 17663.19376 | DU52: 0.4180772986 | DV52: 32878.70241 | DW52: 1.125634333 | DY52: -5120.874803 | DZ52: 890.3275738 | EA52: tx B | EG52: 17200 | EH52: 0.9951 | EI52: 0.0049 | EJ52: -7885.937529 | EK52: -15988.59544 | EL52: 0.9951
H53: 2.07 | I53: 32 | J53: =MMULT(J52:M52,J$4:M$7) -> 0.129749842 | K53: 0.04155465496 | L53: 0.7493552016 | M53: 0.07934030149 | N53: 0.9335107004 | O53: 7.451430496 | P53: 4.749252284 | Q53: 277.7114933 | R53: 0 | S53: 0.008266635594 | T53: 0.002110915828 | U53: -0.007986313381 | V53: 0 | AA53: 2.07 | AB53: 32 | AC53: =MMULT(AC52:AF52,AC$4:AF$7) -> 0.1914583182 | AD53: 0.06478958636 | AE53: 0.6697095374 | AF53: 0.07404255806 | AG53: 0.9335107004 | AH53: 165.5953556 | AI53: 59.72148915 | AJ53: 248.1947617 | AK53: 0 | AL53: 0.01219821253 | AM53: 0.003291216434 | AN53: -0.007137483303 | AO53: 0 | AP53: -0.186887958 | AQ53: =$AP$53 -> -0.186887958 | BA53: 45 | BB53: 17067.89701 | BC53: 0.6657000956 | BD53: 29946.94026 | BE53: 0.8343477048 | BF53: -0.01441666667 | BG53: -0.03677360184 | BH53: -0.05508522361 | BI53: -0.07076971546 | BJ53: -0.0846603113 | BK53: -0.09725197352 | BL53: -0.1088436733 | BM53: -0.1196205161 | BN53: -0.1297011849 | BO53: -0.1391653772 | BP53: -0.1480696918 | BQ53: -0.156456845 | BR53: -0.1639846394 | BS53: -0.1710798875 | BT53: -0.1777666211 | BU53: -0.1840665128 | BV53: -0.1899994938 | BW53: -0.1955841314 | BX53: -0.2008378648 | BY53: -0.2057771578 | BZ53: -0.2104176036 | CA53: -0.2147739997 | CB53: -0.2188604055 | CC53: -0.2226901884 | CD53: -0.2261053079 | CE53: -0.2292996569 | CF53: -0.2322841994 | CG53: -0.2350693699 | CH53: -0.2376650983 | CI53: -0.2400808351 | CJ53: -0.2423255739 | CK53: -0.2444078736 | CL53: -0.246335879 | CM53: -0.2481173405 | CN53: -0.2497596331 | CO53: -0.2512697742 | CP53: -0.2525885041 | CQ53: -0.2537937845 | CR53: -0.2548913712 | CS53: -0.2558867402 | CT53: -0.2567851007 | CU53: -0.2575914082 | CV53: -0.2583103761 | CW53: -0.2589464879 | CX53: -0.2595040079 | CY53: -0.2599869916 | CZ53: -0.260399296 | DA53: -0.260744589 | DB53: -0.261012941 | DC53: -0.261223953 | DD53: -0.2613806282 | DE53: -0.2614858222 | DF53: -0.2615422495 | DG53: -0.2615524909 | DH53: -0.2615189996 | DI53: -0.2614441076 | DJ53: -0.2613300314 | DK53: -0.2611788775 | DL53: -0.260992648 | DM53: -0.2607732455 | DN53: -0.2606538324 | DS53: 45 | DT53: 17067.89701 | DU53: 0.6657000956 | DV53: 29946.94026 | DW53: 0.8343477048 | DY53: 2903.105855 | DZ53: -4916.509116 | EA53: tx A | EG53: 17600 | EH53: 0.9937 | EI53: 0.0063 | EJ53: -7679.294745 | EK53: -15648.17607 | EL53: 0.9937
H54: 2.08 | I54: 33 | J54: =MMULT(J53:M53,J$4:M$7) -> 0.1238759257 | K54: 0.03967338743 | L54: 0.7542136079 | M54: 0.08223707892 | N54: 0.9335107004 | O54: =c_sil_A*J54*N54 -> 7.114096146 | P54: =c_act_A*K54*N54 -> 4.534243541 | Q54: =c_compl_A*L54*N54 -> 279.5120216 | R54: =c_dead_A*M54*N54 -> 0 | S54: =u_sil*J54*N54 -> 0.007892396025 | T54: =u_act*K54*N54 -> 0.002015350182 | U54: =u_compl*L54*N54 -> -0.008038092237 | V54: =u_dead*M54*N54 -> 0 | AA54: 2.08 | AB54: 33 | AC54: =MMULT(AC53:AF53,AC$4:AF$7) -> 0.1844025682 | AD54: 0.06240180499 | AE54: 0.6763979659 | AF54: 0.07679766092 | AG54: 0.9335107004 | AH54: =c_sil_B*AC54*AG54 -> 159.4927248 | AI54: =c_act_B*AD54*AG54 -> 57.52048947 | AJ54: =c_compl_B*AE54*AG54 -> 250.6734974 | AK54: =c_dead_B*AF54*AG54 -> 0 | AL54: =u_sil*AC54*AG54 -> 0.01174867584 | AM54: =u_act*AD54*AG54 -> 0.003169920625 | AN54: =u_compl*AE54*AG54 -> -0.007208765769 | AO54: =u_dead*AF54*AG54 -> 0 | AP54: -0.186931993 | AQ54: =$AP$54 -> -0.186931993 | BA54: 46 | BB54: 15995.63747 | BC54: 0.6434844866 | BD54: 30045.03252 | BE54: 0.6817631823 | BF54: -0.01441666667 | BG54: -0.0382742103 | BH54: -0.0589378647 | BI54: -0.07747598466 | BJ54: -0.09453189404 | BK54: -0.1104956002 | BL54: -0.1256060218 | BM54: -0.1400118677 | BN54: -0.153807902 | BO54: -0.1670565551 | BP54: -0.179800807 | BQ54: -0.1920718714 | BR54: -0.2033308331 | BS54: -0.214180687 | BT54: -0.2246374212 | BU54: -0.2347152884 | BV54: -0.2444273668 | BW54: -0.2537858993 | BX54: -0.262802499 | BY54: -0.2714882754 | BZ54: -0.2798539134 | CA54: -0.2879097235 | CB54: -0.2956656752 | CC54: -0.30313142 | CD54: -0.3099741707 | CE54: -0.3165580695 | CF54: -0.3228914832 | CG54: -0.3289825229 | CH54: -0.3348390527 | CI54: -0.340468697 | CJ54: -0.3458788468 | CK54: -0.3510766674 | CL54: -0.3560691041 | CM54: -0.3608628885 | CN54: -0.3654645451 | CO54: -0.3698803966 | CP54: -0.3739148471 | CQ54: -0.3777838294 | CR54: -0.3814928214 | CS54: -0.38504713 | CT54: -0.3884518964 | CU54: -0.3917121005 | CV54: -0.3948325657 | CW54: -0.3978179636 | CX54: -0.4006728183 | CY54: -0.4034015111 | CZ54: -0.406008284 | DA54: -0.4084972447 | DB54: -0.4107592688 | DC54: -0.4129165449 | DD54: -0.4149726225 | DE54: -0.4169309375 | DF54: -0.4187948158 | DG54: -0.4205674761 | DH54: -0.4222520337 | DI54: -0.4238515033 | DJ54: -0.4253688024 | DK54: -0.4268067539 | DL54: -0.4281680893 | DM54: -0.4294554512 | DN54: -0.4300344727 | DS54: 46 | DT54: 15995.63747 | DU54: 0.6434844866 | DV54: 30045.03252 | DW54: 0.6817631823 | DY54: 3308.897128 | DZ54: -9592.137053 | EA54: tx A | EG54: 18000 | EH54: 0.9925 | EI54: 0.0075 | EJ54: -7472.651961 | EK54: -15307.75671 | EL54: 0.9925
H55: 2.09 | I55: 34 | J55: =MMULT(J54:M54,J$4:M$7) -> 0.1182679197 | K55: 0.03787730158 | L55: 0.7587165542 | M55: 0.08513822453 | N55: 0.9335107004 | O55: 6.792032807 | P55: 4.328970153 | Q55: 281.1808162 | R55: 0 | S55: 0.007535098152 | T55: 0.001924111642 | U55: -0.00808608275 | V55: 0 | AA55: 2.09 | AB55: 34 | AC55: =MMULT(AC54:AF54,AC$4:AF$7) -> 0.1776068176 | AD55: 0.0601020546 | AE55: 0.6827302918 | AF55: 0.07956083596 | AG55: 0.9335107004 | AH55: 153.6149716 | AI55: 55.40063463 | AJ55: 253.0202612 | AK55: 0 | AL55: 0.01131570427 | AM55: 0.003053096661 | AN55: -0.007276253042 | AO55: 0 | AP55: =(SUM(AL55:AO55)-SUM(S55:V55)-((SUM(AH55:AK55)-SUM(O55:R55))/lambda))+AP54 -> -0.1868703737 | AQ55: =$AP$55 -> -0.1868703737 | BA55: 47 | BB55: 16055.51208 | BC55: 0.7575101317 | BD55: 30401.51158 | BE55: 1.163431792 | BF55: -0.01441666667 | BG55: -0.03584835781 | BH55: -0.05255493053 | BI55: -0.0661116061 | BJ55: -0.07745545698 | BK55: -0.08715338426 | BL55: -0.09555710903 | BM55: -0.1028927914 | BN55: -0.1093128464 | BO55: -0.1149259111 | BP55: -0.1198141912 | BQ55: -0.1240435203 | BR55: -0.1274965618 | BS55: -0.1304206407 | BT55: -0.1328568633 | BU55: -0.1348426738 | BV55: -0.1364125704 | BW55: -0.1375985618 | BX55: -0.1384304743 | BY55: -0.138936169 | BZ55: -0.1391417071 | CA55: -0.1390714818 | CB55: -0.1387483309 | CC55: -0.1381936339 | CD55: -0.1374638885 | CE55: -0.1365505117 | CF55: -0.1354701796 | CG55: -0.1342384808 | CH55: -0.1328699797 | CI55: -0.1313782761 | CJ55: -0.1297760609 | CK55: -0.1280751698 | CL55: -0.1262866328 | CM55: -0.1244207222 | CN55: -0.1224869966 | CO55: -0.120494344 | CP55: -0.1185483221 | CQ55: -0.1165613413 | CR55: -0.114540169 | CS55: -0.1124910737 | CT55: -0.1104198553 | CU55: -0.1083318734 | CV55: -0.1062320748 | CW55: -0.1041250186 | CX55: -0.1020149005 | CY55: -0.09990557542 | CZ55: -0.09780057905 | DA55: -0.09570314791 | DB55: -0.09371561514 | DC55: -0.09174066921 | DD55: -0.08978064287 | DE55: -0.08783765064 | DF55: -0.08591360318 | DG55: -0.0840102208 | DH55: -0.08212904616 | DI55: -0.08027145631 | DJ55: -0.07843867391 | DK55: -0.07663177788 | DL55: -0.07485171337 | DM55: -0.07309930122 | DN55: -0.07227832288 | DS55: 47 | DT55: 16055.51208 | DU55: 0.7575101317 | DV55: 30401.51158 | DW55: 1.163431792 | DY55: 6669.79187 | DZ55: 4501.442184 | EA55: tx A | EG55: 18400 | EH55: 0.9907 | EI55: 0.0093 | EJ55: -7266.009177 | EK55: -14967.33735 | EL55: 0.9907
H56: 2.10 | I56: 35 | J56: =MMULT(J55:M55,J$4:M$7) -> 0.1129137895 | K56: 0.03616253537 | L56: 0.7628806081 | M56: 0.08804306708 | N56: 0.9335107004 | O56: 6.484549357 | P56: 4.13299073 | Q56: 282.7240171 | R56: 0 | S56: 0.007193975245 | T56: 0.001837004022 | U56: -0.008130461489 | V56: 0 | AA56: 2.10 | AB56: 35 | AC56: =MMULT(AC55:AF55,AC$4:AF$7) -> 0.1710614948 | AD56: 0.05788707797 | AE56: 0.6887200245 | AF56: 0.0823314027 | AG56: 0.9335107004 | AH56: 147.9538174 | AI56: 53.35892222 | AJ56: 255.2400598 | AK56: 0 | AL56: 0.01089868797 | AM56: 0.002940579081 | AN56: -0.0073400891 | AO56: 0 | AP56: -0.1867120883 | AQ56: =$AP$56 -> -0.1867120883 | BA56: 48 | BB56: 17255.17853 | BC56: 0.05701474754 | BD56: 29262.39431 | BE56: 0.1830529128 | BF56: -0.01441666667 | BG56: -0.03788689753 | BH56: -0.05772268943 | BI56: -0.0750076005 | BJ56: -0.09042642914 | BK56: -0.1044171432 | BL56: -0.1172646154 | BM56: -0.1291584822 | BN56: -0.1402288797 | BO56: -0.1505685323 | BP56: -0.1602464227 | BQ56: -0.1693162639 | BR56: -0.1774167382 | BS56: -0.1850149615 | BT56: -0.1921417032 | BU56: -0.1988245171 | BV56: -0.2050885287 | BW56: -0.2109569435 | BX56: -0.2164513834 | BY56: -0.2215921146 | BZ56: -0.226398208 | CA56: -0.2308876562 | CB56: -0.2350774637 | CC56: -0.238983719 | CD56: -0.2424484193 | CE56: -0.245671318 | CF56: -0.2486654345 | CG56: -0.2514431061 | CH56: -0.2540160253 | CI56: -0.2563952733 | CJ56: -0.2585913523 | CK56: -0.2606142155 | CL56: -0.2624732955 | CM56: -0.2641775315 | CN56: -0.265735394 | CO56: -0.2671549096 | CP56: -0.2683823133 | CQ56: -0.2694920636 | CR56: -0.2704906621 | CS56: -0.2713842678 | CT56: -0.272178715 | CU56: -0.2728795303 | CV56: -0.2734919479 | CW56: -0.2740209252 | CX56: -0.2744711569 | CY56: -0.2748470886 | CZ56: -0.2751529297 | DA56: -0.2753926659 | DB56: -0.2755616226 | DC56: -0.2756746177 | DD56: -0.2757348714 | DE56: -0.2757454318 | DF56: -0.2757091836 | DG56: -0.2756288566 | DH56: -0.2755070342 | DI56: -0.2753461606 | DJ56: -0.2751485483 | DK56: -0.2749163851 | DL56: -0.2746517403 | DM56: -0.2743565711 | DN56: -0.2742023605 | DS56: 48 | DT56: 17255.17853 | DU56: 0.05701474754 | DV56: 29262.39431 | DW56: 0.1830529128 | DY56: -15544.73611 | DZ56: -23770.80692 | EA56: tx A | EG56: 18800 | EH56: 0.9888 | EI56: 0.0112 | EJ56: -7059.366393 | EK56: -14626.91799 | EL56: 0.9888
H57: 2.11 | I57: 36 | J57: =MMULT(J56:M56,J$4:M$7) -> 0.1078020442 | K57: 0.03452540394 | L57: 0.7667215845 | M57: 0.09095096736 | N57: 0.9335107004 | O57: 6.190985879 | P57: 3.945884129 | Q57: 284.1474853 | R57: 0 | S57: 0.00686829519 | T57: 0.001753840134 | U57: -0.008171397005 | V57: 0 | AA57: 2.11 | AB57: 36 | AC57: =MMULT(AC56:AF56,AC$4:AF$7) -> 0.1647573769 | AD57: 0.05575374291 | AE57: 0.6943801731 | AF57: 0.08510870708 | AG57: 0.9335107004 | AH57: 142.5012852 | AI57: 51.39246504 | AJ57: 257.3377143 | AK57: 0 | AL57: 0.01049703935 | AM57: 0.002832208773 | AN57: -0.007400412589 | AO57: 0 | AP57: -0.1864655614 | AQ57: =$AP$57 -> -0.1864655614 | BA57: 49 | BB57: 15910.12354 | BC57: 0.9122802008 | BD57: 30594.0328 | BE57: 1.030666501 | BF57: -0.01441666667 | BG57: -0.03889684164 | BH57: -0.06042139611 | BI57: -0.07984132291 | BJ57: -0.09768049514 | BK57: -0.1142667383 | BL57: -0.1298101344 | BM57: -0.1444498119 | BN57: -0.1582819137 | BO57: -0.1713763251 | BP57: -0.1837866884 | BQ57: -0.1955564072 | BR57: -0.2061905483 | BS57: -0.2162803577 | BT57: -0.2258536378 | BU57: -0.2349359826 | BV57: -0.2435512569 | BW57: -0.2517219021 | BX57: -0.2594691349 | BY57: -0.2668130839 | BZ57: -0.2737728859 | CA57: -0.2803667601 | CB57: -0.2866120659 | CC57: -0.2925253521 | CD57: -0.2978558729 | CE57: -0.3028995474 | CF57: -0.3076700475 | CG57: -0.3121804142 | CH57: -0.3164430869 | CI57: -0.3204699309 | CJ57: -0.3242722634 | CK57: -0.3278608787 | CL57: -0.3312460715 | CM57: -0.3344376601 | CN57: -0.3374450073 | CO57: -0.3402770418 | CP57: -0.3428153614 | CQ57: -0.3452025559 | CR57: -0.3474459967 | CS57: -0.3495527113 | CT57: -0.3515293993 | CU57: -0.3533824473 | CV57: -0.3551179429 | CW57: -0.3567416885 | CX57: -0.3582592146 | CY57: -0.3596757915 | CZ57: -0.3609964421 | DA57: -0.3622259523 | DB57: -0.3633144574 | DC57: -0.3643246434 | DD57: -0.3652604529 | DE57: -0.3661256415 | DF57: -0.3669237867 | DG57: -0.3676582962 | DH57: -0.3683324154 | DI57: -0.3689492352 | DJ57: -0.369511699 | DK57: -0.3700226092 | DL57: -0.3704846345 | DM57: -0.3709003154 | DN57: -0.3710773414 | DS57: 49 | DT57: 15910.12354 | DU57: 0.9122802008 | DV57: 30594.0328 | DW57: 1.030666501 | DY57: 11458.28248 | DZ57: 325.9622389 | EA57: tx A | EG57: 19200 | EH57: 0.9858 | EI57: 0.0142 | EJ57: -6852.723609 | EK57: -14286.49862 | EL57: 0.9858
H58: 3.00 | I58: 37 | J58: =MMULT(J57:M57,J$4:M$7) -> 0.102921712 | K58: 0.03296239058 | L58: 0.7702545806 | M58: 0.09386131677 | N58: 0.9019427057 | O58: 5.710833116 | P58: 3.639853557 | Q58: 275.8036868 | R58: 0 | S58: 0.006335612516 | T58: 0.001617817716 | U58: -0.007931449464 | V58: 0 | AA58: 3.00 | AB58: 37 | AC58: =MMULT(AC57:AF57,AC$4:AF$7) -> 0.1586855787 | AD58: 0.05369903571 | AE58: 0.6997232651 | AF58: 0.08789212049 | AG58: 0.9019427057 | AH58: 132.6083962 | AI58: 47.82462334 | AJ58: 250.5486642 | AK58: 0 | AL58: 0.009768301737 | AM58: 0.002635587098 | AN58: -0.007205175867 | AO58: 0 | AP58: -0.1861497395 | AQ58: =$AP$58 -> -0.1861497395 | BA58: 50 | BB58: 15875.74652 | BC58: 1.163353218 | BD58: 30726.0255 | BE58: 1.495921733 | BF58: -0.01441666667 | BG58: -0.03606293257 | BH58: -0.05325270062 | BI58: -0.06756177555 | BJ58: -0.07990616017 | BK58: -0.09082486377 | BL58: -0.100641366 | BM58: -0.1095557272 | BN58: -0.1176970927 | BO58: -0.1251535997 | BP58: -0.1319894044 | BQ58: -0.138254376 | BR58: -0.143716513 | BS58: -0.1487079536 | BT58: -0.1532588877 | BU58: -0.1573968886 | BV58: -0.1611475031 | BW58: -0.1645346086 | BX58: -0.1675806388 | BY58: -0.1703067346 | BZ58: -0.1727328521 | CA58: -0.1748778456 | CB58: -0.1767595353 | CC58: -0.1783947668 | CD58: -0.1797325729 | CE58: -0.1808651549 | CF58: -0.1818060565 | CG58: -0.1825680733 | CH58: -0.1831632906 | CI58: -0.1836031199 | CJ58: -0.1838983332 | CK58: -0.1840590965 | CL58: -0.1840950001 | CM58: -0.184015089 | CN58: -0.1838278907 | CO58: -0.1835414422 | CP58: -0.1831813216 | CQ58: -0.1827406801 | CR58: -0.1822259118 | CS58: -0.1816430337 | CT58: -0.1809977057 | CU58: -0.1802952496 | CV58: -0.1795406672 | CW58: -0.1787386566 | CX58: -0.1778936293 | CY58: -0.1770097248 | CZ58: -0.176090826 | DA58: -0.1751405721 | DB58: -0.1742089536 | DC58: -0.1732537602 | DD58: -0.1722778361 | DE58: -0.1712838403 | DF58: -0.170274257 | DG58: -0.169251405 | DH58: -0.1682174473 | DI58: -0.1671743994 | DJ58: -0.1661241379 | DK58: -0.1650684079 | DL58: -0.164008831 | DM58: -0.1629469119 | DN58: -0.162440785 | DS58: 50 | DT58: 15875.74652 | DU58: 1.163353218 | DV58: 30726.0255 | DW58: 1.495921733 | DY58: 19024.85004 | DZ58: 14151.62649 | EA58: tx A | EG58: 19600 | EH58: 0.9828 | EI58: 0.0172 | EJ58: -6646.080825 | EK58: -13946.07926 | EL58: 0.9828
H59: 3.01 | I59: 38 | J59: =MMULT(J58:M58,J$4:M$7) -> 0.09826231748 | K59: 0.03147013865 | L59: 0.773494008 | M59: 0.0967735359 | N59: 0.9019427057 | O59: 5.452296563 | P59: 3.475072472 | Q59: 276.9636228 | R59: 0 | S59: 0.006048791418 | T59: 0.001544576924 | U59: -0.007964806428 | V59: 0 | AA59: 3.01 | AB59: 38 | AC59: =MMULT(AC58:AF58,AC$4:AF$7) -> 0.1528375407 | AD59: 0.05172005565 | AE59: 0.7047613648 | AF59: 0.09068103882 | AG59: 0.9019427057 | AH59: 127.7213803 | AI59: 46.06213403 | AJ59: 252.3526476 | AK59: 0 | AL59: 0.009408310618 | AM59: 0.00253845734 | AN59: -0.007257054083 | AO59: 0 | AP59: -0.1857634266 | AQ59: =$AP$59 -> -0.1857634266 | BA59: 51 | BB59: 16488.75791 | BC59: 1.106253277 | BD59: 32172.20833 | BE59: 1.234144064 | BF59: -0.01441666667 | BG59: -0.03961547312 | BH59: -0.06205337831 | BI59: -0.08236253991 | BJ59: -0.1009948308 | BK59: -0.1182714532 | BL59: -0.134420839 | BM59: -0.1496065209 | BN59: -0.1639470979 | BO59: -0.1775302663 | BP59: -0.1904225413 | BQ59: -0.2026759181 | BR59: -0.2137773282 | BS59: -0.2243436614 | BT59: -0.2344036633 | BU59: -0.2439827418 | BV59: -0.2531038465 | BW59: -0.2617880579 | BX59: -0.2700549864 | BY59: -0.2779230422 | BZ59: -0.2854096224 | CA59: -0.2925312416 | CB59: -0.2993036264 | CC59: -0.3057417848 | CD59: -0.3115687139 | CE59: -0.3171040611 | CF59: -0.3223603363 | CG59: -0.3273495202 | CH59: -0.3320830893 | CI59: -0.3365720395 | CJ59: -0.3408269072 | CK59: -0.3448577886 | CL59: -0.348674359 | CM59: -0.3522858898 | CN59: -0.3557012654 | CO59: -0.3589289993 | CP59: -0.3618320942 | CQ59: -0.364571696 | CR59: -0.3671549372 | CS59: -0.3695886512 | CT59: -0.3718793852 | CU59: -0.3740334109 | CV59: -0.3760567368 | CW59: -0.3779551182 | CX59: -0.3797340681 | CY59: -0.3813988668 | CZ59: -0.3829545716 | DA59: -0.3844060262 | DB59: -0.3856934954 | DC59: -0.3868903266 | DD59: -0.3880005705 | DE59: -0.3890281059 | DF59: -0.3899766465 | DG59: -0.3908497477 | DH59: -0.3916508133 | DI59: -0.3923831018 | DJ59: -0.3930497322 | DK59: -0.39365369 | DL59: -0.3941978326 | DM59: -0.3946848947 | DN59: -0.3948908941 | DS59: 51 | DT59: 16488.75791 | DU59: 1.106253277 | DV59: 32172.20833 | DW59: 1.234144064 | DY59: 16698.8404 | DZ59: 4852.113579 | EA59: tx A | EG59: 20000 | EH59: 0.9795 | EI59: 0.0205 | EJ59: -6439.438041 | EK59: -13605.6599 | EL59: 0.9795
H60: 3.02 | I60: 39 | J60: =MMULT(J59:M59,J$4:M$7) -> 0.09381385891 | K60: 0.03004544395 | L60: 0.7764536239 | M60: 0.09968707322 | N60: 0.9019427057 | O60: 5.205464247 | P60: 3.317751357 | Q60: 278.0233672 | R60: 0 | S60: 0.005774955031 | T60: 0.001474651889 | U60: -0.007995282124 | V60: 0 | AA60: 3.02 | AB60: 39 | AC60: =MMULT(AC59:AF59,AC$4:AF$7) -> 0.1472050184 | AD60: 0.04981401004 | AE60: 0.7095060901 | AF60: 0.09347488153 | AG60: 0.9019427057 | AH60: 123.0144639 | AI60: 44.36460051 | AJ60: 254.0515829 | AK60: 0 | AL60: 0.009061586116 | AM60: 0.002444907258 | AN60: -0.007305911369 | AO60: 0 | AP60: -0.1853133048 | AQ60: =$AP$60 -> -0.1853133048 | BA60: 52 | BB60: 18059.63164 | BC60: -1.191417633 | BD60: 30696.00629 | BE60: -0.5813134891 | BF60: -0.01441666667 | BG60: -0.03176908568 | BH60: -0.04230969125 | BI60: -0.04868876145 | BJ60: -0.05241378253 | BK60: -0.05434792837 | BL60: -0.05499259044 | BM60: -0.05464678344 | BN60: -0.05349661044 | BO60: -0.05166517023 | BP60: -0.04924020493 | BQ60: -0.04628929717 | BR60: -0.04303106522 | BS60: -0.0393709977 | BT60: -0.03535034725 | BU60: -0.03100684027 | BV60: -0.02637534485 | BW60: -0.02148824772 | BX60: -0.01637568414 | BY60: -0.01106569565 | BZ60: -0.005584353852 | CA60: 4.413168272e-05 | CB60: 0.005797312634 | CC60: 0.01165440513 | CD60: 0.01731325334 | CE60: 0.02303587669 | CF60: 0.02880671019 | CG60: 0.03461143281 | CH60: 0.04043689012 | CI60: 0.04627102058 | CJ60: 0.0521027855 | CK60: 0.05792210266 | CL60: 0.06371978357 | CM60: 0.06948747422 | CN60: 0.07521759924 | CO60: 0.08090330927 | CP60: 0.08627009231 | CQ60: 0.09158341748 | CR60: 0.09683856401 | CS60: 0.1020313302 | CT60: 0.1071579965 | CU60: 0.1122152912 | CV60: 0.1172003576 | CW60: 0.122110724 | CX60: 0.1269442749 | CY60: 0.1316992243 | CZ60: 0.1363740905 | DA60: 0.140967673 | DB60: 0.1452642035 | DC60: 0.1494817541 | DD60: 0.1536198635 | DE60: 0.1576782618 | DF60: 0.1616568547 | DG60: 0.1655557081 | DH60: 0.1693750342 | DI60: 0.1731151788 | DJ60: 0.1767766085 | DK60: 0.1803598996 | DL60: 0.1838657278 | DM60: 0.1872948576 | DN60: 0.1888916558 | DS60: 52 | DT60: 18059.63164 | DU60: -1.191417633 | DV60: 30696.00629 | DW60: -0.5813134891 | DY60: -53802.16064 | DZ60: -48135.41097 | EA60: tx B | EG60: 20400 | EH60: 0.977 | EI60: 0.023 | EJ60: -6232.795257 | EK60: -13265.24054 | EL60: 0.977
H61: 3.03 | I61: 40 | J61: =MMULT(J60:M60,J$4:M$7) -> 0.08956678726 | K61: 0.02868524765 | L61: 0.7791465613 | M61: 0.1026014038 | N61: 0.9019427057 | O61: 4.969806319 | P61: 3.16755244 | Q61: 278.9876225 | R61: 0 | S61: 0.005513515537 | T61: 0.001407892481 | U61: -0.008023011783 | V61: 0 | AA61: 3.03 | AB61: 40 | AC61: =MMULT(AC60:AF60,AC$4:AF$7) -> 0.14178007 | AD61: 0.04797820988 | AE61: 0.7139686293 | AF61: 0.09627309083 | AG61: 0.9019427057 | AH61: 118.4810104 | AI61: 42.72962792 | AJ61: 255.6494764 | AK61: 0 | AL61: 0.008727639372 | AM61: 0.002354804872 | AN61: -0.007351862935 | AO61: 0 | AP61: -0.1848056242 | AQ61: =$AP$61 -> -0.1848056242 | BA61: 53 | BB61: 18162.0461 | BC61: 0.630438657 | BD61: 32501.74117 | BE61: 1.128531442 | BF61: -0.01441666667 | BG61: -0.03627433177 | BH61: -0.05331099522 | BI61: -0.06691218102 | BJ61: -0.07797723007 | BK61: -0.08709769395 | BL61: -0.09466981381 | BM61: -0.1009654547 | BN61: -0.1061768582 | BO61: -0.1104448969 | BP61: -0.1138769328 | BQ61: -0.1165581245 | BR61: -0.1184633457 | BS61: -0.1197771166 | BT61: -0.1205491269 | BU61: -0.1208237194 | BV61: -0.1206410749 | BW61: -0.1200380025 | BX61: -0.1190484783 | BY61: -0.1177040244 | BZ61: -0.1160339848 | CA61: -0.1140657355 | CB61: -0.1118248492 | CC61: -0.1093352322 | CD61: -0.1067485729 | CE61: -0.1039662288 | CF61: -0.1010068172 | CG61: -0.09788774104 | CH61: -0.09462526137 | CI61: -0.09123456534 | CJ61: -0.08772982924 | CK61: -0.08412427788 | CL61: -0.08043024033 | CM61: -0.07665920247 | CN61: -0.07282185663 | CO61: -0.06892814829 | CP61: -0.06517497876 | CQ61: -0.06138510662 | CR61: -0.05756611317 | CS61: -0.05372502323 | CT61: -0.04986833859 | CU61: -0.04600206964 | CV61: -0.04213176522 | CW61: -0.03826254079 | CX61: -0.03439910508 | CY61: -0.0305457852 | CZ61: -0.02670655035 | DA61: -0.02288503421 | DB61: -0.0192655312 | DC61: -0.01566894511 | DD61: -0.0120978941 | DE61: -0.008554750672 | DF61: -0.00504165753 | DG61: -0.001560542606 | DH61: 0.001886866802 | DI61: 0.005299030714 | DJ61: 0.00867458391 | DK61: 0.01201232411 | DL61: 0.01531120084 | DM61: 0.01857030496 | DN61: 0.02010294964 | DS61: 53 | DT61: 18162.0461 | DU61: 0.630438657 | DV61: 32501.74117 | DW61: 1.128531442 | DY61: 751.1136083 | DZ61: 1354.202097 | EA61: tx B | EG61: 20800 | EH61: 0.9731 | EI61: 0.0269 | EJ61: -6026.152473 | EK61: -12924.82117 | EL61: 0.9731
H62: 3.04 | I62: 41 | J62: =MMULT(J61:M61,J$4:M$7) -> 0.08551198567 | K62: 0.02738662955 | L62: 0.7815853568 | M62: 0.105516028 | N62: 0.9019427057 | O62: 4.74481691 | P62: 3.024153262 | Q62: 279.8608777 | R62: 0 | S62: 0.005263911725 | T62: 0.001344155375 | U62: -0.008048124497 | V62: 0 | AA62: 3.04 | AB62: 41 | AC62: =MMULT(AC61:AF61,AC$4:AF$7) -> 0.1365550465 | AD62: 0.04621006567 | AE62: 0.718159757 | AF62: 0.09907513078 | AG62: 0.9019427057 | AH62: 114.1146276 | AI62: 41.15491006 | AJ62: 257.150186 | AK62: 0 | AL62: 0.008405999521 | AM62: 0.00226802309 | AN62: -0.007395019729 | AO62: 0 | AP62: -0.1842462265 | AQ62: =$AP$62 -> -0.1842462265 | BA62: 54 | BB62: 17519.1196 | BC62: 0.4938477916 | BD62: 30240.86353 | BE62: 0.7048643055 | BF62: -0.01441666667 | BG62: -0.03758026996 | BH62: -0.05695238269 | BI62: -0.07367810768 | BJ62: -0.08846326353 | BK62: -0.1017501123 | BL62: -0.1138224302 | BM62: -0.1248683276 | BN62: -0.135017815 | BO62: -0.1443652768 | BP62: -0.1529829298 | BQ62: -0.1609288977 | BR62: -0.1679033479 | BS62: -0.1743252266 | BT62: -0.1802308136 | BU62: -0.1856531551 | BV62: -0.1906227286 | BW62: -0.1951678715 | BX62: -0.1993150696 | BY62: -0.2030891596 | BZ62: -0.2065134788 | CA62: -0.2096099826 | CB62: -0.2123993406 | CC62: -0.2149010188 | CD62: -0.2170270517 | CE62: -0.2189130158 | CF62: -0.2205744046 | CG62: -0.2220258096 | CH62: -0.2232809707 | CI62: -0.2243528235 | CJ62: -0.2252535442 | CK62: -0.2259945912 | CL62: -0.2265867454 | CM62: -0.2270401476 | CN62: -0.2273643343 | CO62: -0.2275682711 | CP62: -0.2276559987 | CQ62: -0.2276447694 | CR62: -0.2275416673 | CS62: -0.227353345 | CT62: -0.2270860478 | CU62: -0.2267456371 | CV62: -0.2263376119 | CW62: -0.2258671295 | CX62: -0.2253390252 | CY62: -0.2247578304 | CZ62: -0.2241277901 | DA62: -0.2234528797 | DB62: -0.2227709183 | DC62: -0.2220530831 | DD62: -0.221302475 | DE62: -0.2205219925 | DF62: -0.2197143438 | DG62: -0.2188820578 | DH62: -0.2180274946 | DI62: -0.2171528558 | DJ62: -0.2162601934 | DK62: -0.2153514192 | DL62: -0.2144283131 | DM62: -0.2134925308 | DN62: -0.2130416169 | DS62: 54 | DT62: 17519.1196 | DU62: 0.4938477916 | DV62: 30240.86353 | DW62: 0.7048643055 | DY62: -2703.685853 | DZ62: -9094.934361 | EA62: tx A | EG62: 21200 | EH62: 0.9697 | EI62: 0.0303 | EJ62: -5819.509689 | EK62: -12584.40181 | EL62: 0.9697
H63: 3.05 | I63: 42 | J63: =MMULT(J62:M62,J$4:M$7) -> 0.08164074993 | K63: 0.02614680177 | L63: 0.7837819777 | M63: 0.1084304706 | N63: 0.9019427057 | O63: 4.530013048 | P63: 2.887245972 | Q63: 280.6474178 | R63: 0 | S63: 0.005025607784 | T63: 0.001283303741 | U63: -0.008070743496 | V63: 0 | AA63: 3.05 | AB63: 42 | AC63: =MMULT(AC62:AF62,AC$4:AF$7) -> 0.1315225805 | AD63: 0.04450708366 | AE63: 0.7220898494 | AF63: 0.1018804865 | AG63: 0.9019427057 | AH63: 109.9091587 | AI63: 39.63822597 | AJ63: 258.5574272 | AK63: 0 | AL63: 0.008096213039 | AM63: 0.002184439514 | AN63: -0.007435488594 | AO63: 0 | AP63: -0.1836405684 | AQ63: =$AP$63 -> -0.1836405684 | BA63: 55 | BB63: 17119.95199 | BC63: 0.3700705726 | BD63: 29570.38116 | BE63: 0.7566016645 | BF63: -0.01441666667 | BG63: -0.03488975886 | BH63: -0.0504051401 | BI63: -0.06281634166 | BJ63: -0.07313686173 | BK63: -0.08192779658 | BL63: -0.08950841509 | BM63: -0.0960696656 | BN63: -0.1017347883 | BO63: -0.1065913142 | BP63: -0.1107077245 | BQ63: -0.1141419771 | BR63: -0.1168122677 | BS63: -0.118927425 | BT63: -0.1205297422 | BU63: -0.1216589653 | BV63: -0.1223525142 | BW63: -0.1226456064 | BX63: -0.1225713452 | BY63: -0.1221607993 | BZ63: -0.1214430845 | CA63: -0.1204454482 | CB63: -0.1191933589 | CC63: -0.1177105956 | CD63: -0.1160998749 | CE63: -0.1143102748 | CF63: -0.1123601253 | CG63: -0.1102664798 | CH63: -0.108045191 | CI63: -0.1057109833 | CJ63: -0.1032775216 | CK63: -0.1007574764 | CL63: -0.09816258562 | CM63: -0.09550371263 | CN63: -0.09279090121 | CO63: -0.0900334274 | CP63: -0.08737287589 | CQ63: -0.08468544711 | CR63: -0.08197805011 | CS63: -0.07925703309 | CT63: -0.07652821995 | CU63: -0.07379694465 | CV63: -0.07106808357 | CW63: -0.06834608588 | CX63: -0.06563500217 | CY63: -0.06293851131 | CZ63: -0.06025994568 | DA63: -0.05760231494 | DB63: -0.05509375621 | DC63: -0.05261002964 | DD63: -0.05015320168 | DE63: -0.04772510887 | DF63: -0.04532737428 | DG63: -0.04296142295 | DH63: -0.04062849645 | DI63: -0.03832966641 | DJ63: -0.03606584726 | DK63: -0.03383780817 | DL63: -0.03164618425 | DM63: -0.02949148696 | DN63: -0.02848321407 | DS63: 55 | DT63: 17119.95199 | DU63: 0.3700705726 | DV63: 29570.38116 | DW63: 0.7566016645 | DY63: -6017.834806 | DZ63: -6872.331228 | EA63: tx A | EG63: 21600 | EH63: 0.9654 | EI63: 0.0346 | EJ63: -5612.866905 | EK63: -12243.98245 | EL63: 0.9654
H64: 3.06 | I64: 43 | J64: =MMULT(J63:M63,J$4:M$7) -> 0.07794476985 | K64: 0.0249631027 | L64: 0.785747848 | M64: 0.1113442795 | N64: 0.9019427057 | O64: 4.324933623 | P64: 2.756536665 | Q64: 281.3513335 | R64: 0 | S64: 0.004798092159 | T64: 0.001225206943 | U64: -0.008090986415 | V64: 0 | AA64: 3.06 | AB64: 43 | AC64: =MMULT(AC63:AF63,AC$4:AF$7) -> 0.1266755756 | AD64: 0.04286686213 | AE64: 0.7257688988 | AF64: 0.1046886634 | AG64: 0.9019427057 | AH64: 105.8586739 | AI64: 38.17743667 | AJ64: 259.8747779 | AK64: 0 | AL64: 0.007797843105 | AM64: 0.002103936267 | AN64: -0.007473372426 | AO64: 0 | AP64: -0.1829937436 | AQ64: =$AP$64 -> -0.1829937436 | BA64: 56 | BB64: 15892.08917 | BC64: 0.4062100753 | BD64: 30290.09441 | BE64: 0.8434549267 | BF64: -0.01441666667 | BG64: -0.03587090508 | BH64: -0.052738213 | BI64: -0.06658452059 | BJ64: -0.07829863393 | BK64: -0.08839592049 | BL64: -0.09718582367 | BM64: -0.1048640055 | BN64: -0.1115628821 | BO64: -0.1173792596 | BP64: -0.1223894081 | BQ64: -0.1266572719 | BR64: -0.1300683875 | BS64: -0.1328742629 | BT64: -0.135119324 | BU64: -0.1368448829 | BV64: -0.1380895769 | BW64: -0.1388896487 | BX64: -0.1392791422 | BY64: -0.1392900518 | BZ64: -0.1389524473 | CA64: -0.1382945833 | CB64: -0.1373429992 | CC64: -0.1361226126 | CD64: -0.1347266075 | CE64: -0.1331177588 | CF64: -0.1313156488 | CG64: -0.1293386251 | CH64: -0.1272038686 | CI64: -0.1249274578 | CJ64: -0.1225244302 | CK64: -0.1200088401 | CL64: -0.1173938143 | CM64: -0.1146916036 | CN64: -0.1119136328 | CO64: -0.1090705476 | CP64: -0.1063102726 | CQ64: -0.1035062023 | CR64: -0.1006664944 | CS64: -0.09779872128 | CT64: -0.09490990372 | CU64: -0.09200654339 | CV64: -0.08909465336 | CW64: -0.08617978701 | CX64: -0.08326706544 | CY64: -0.08036120334 | CZ64: -0.07746653355 | DA64: -0.07458703019 | DB64: -0.07186255443 | DC64: -0.06915915022 | DD64: -0.06647969841 | DE64: -0.06382681515 | DF64: -0.06120286861 | DG64: -0.05860999467 | DH64: -0.05605011186 | DI64: -0.05352493536 | DJ64: -0.0510359903 | DK64: -0.04858462428 | DL64: -0.04617201917 | DM64: -0.04379920227 | DN64: -0.04268865682 | DS64: 56 | DT64: 15892.08917 | DU64: 0.4062100753 | DV64: 30290.09441 | DW64: 0.8434549267 | DY64: -3705.786906 | DZ64: -4986.446611 | EA64: tx A | EG64: 22000 | EH64: 0.9603 | EI64: 0.0397 | EJ64: -5406.224121 | EK64: -11903.56309 | EL64: 0.9603
H65: 3.07 | I65: 44 | J65: =MMULT(J64:M64,J$4:M$7) -> 0.07441611141 | K65: 0.02383299128 | L65: 0.7874938729 | M65: 0.1142570244 | N65: 0.9019427057 | O65: 4.129138401 | P65: 2.631744742 | Q65: 281.9765295 | R65: 0 | S65: 0.004580876451 | T65: 0.001169740266 | U65: -0.008108965547 | V65: 0 | AA65: 3.07 | AB65: 44 | AC65: =MMULT(AC64:AF64,AC$4:AF$7) -> 0.1220071974 | AD65: 0.041287088 | AE65: 0.7292065281 | AF65: 0.1074991864 | AG65: 0.9019427057 | AH65: 101.9574614 | AI65: 36.77048212 | AJ65: 261.1056837 | AK65: 0 | AL65: 0.007510468994 | AM65: 0.002026399823 | AN65: -0.007508770311 | AO65: 0 | AP65: -0.1823105034 | AQ65: =$AP$65 -> -0.1823105034 | BA65: 57 | BB65: 15292.11653 | BC65: 0.5059208891 | BD65: 29377.79591 | BE65: 0.6388848215 | BF65: -0.01441666667 | BG65: -0.03836665431 | BH65: -0.05889626596 | BI65: -0.07697107245 | BJ65: -0.09323033202 | BK65: -0.1080995615 | BL65: -0.1218644189 | BM65: -0.1347190855 | BN65: -0.1467978883 | BO65: -0.1581959322 | BP65: -0.1689825451 | BQ65: -0.1792100284 | BR65: -0.1884570012 | BS65: -0.197242235 | BT65: -0.2055925044 | BU65: -0.2135311057 | BV65: -0.2210788335 | BW65: -0.2282546224 | BX65: -0.2350759711 | BY65: -0.2415592255 | BZ65: -0.2477197707 | CA65: -0.2535721641 | CB65: -0.2591302296 | CC65: -0.264407127 | CD65: -0.2691769151 | CE65: -0.2737022828 | CF65: -0.2779941282 | CG65: -0.2820628675 | CH65: -0.2859184593 | CI65: -0.2895704269 | CJ65: -0.2930278783 | CK65: -0.2962995253 | CL65: -0.2993937009 | CM65: -0.3023183759 | CN65: -0.3050811748 | CO65: -0.307689391 | CP65: -0.3100328288 | CQ65: -0.3122420443 | CR65: -0.3143231161 | CS65: -0.3162818586 | CT65: -0.3181238329 | CU65: -0.3198543577 | CV65: -0.32147852 | CW65: -0.323001185 | CX65: -0.3244270053 | CY65: -0.3257604304 | CZ65: -0.3270057155 | DA65: -0.3281669296 | DB65: -0.3291964857 | DC65: -0.3301532232 | DD65: -0.3310405301 | DE65: -0.3318616459 | DF65: -0.3326196679 | DG65: -0.3333175573 | DH65: -0.3339581453 | DI65: -0.3345441383 | DJ65: -0.3350781237 | DK65: -0.3355625749 | DL65: -0.335999856 | DM65: -0.3363922271 | DN65: -0.3365587132 | DS65: 57 | DT65: 15292.11653 | DU65: 0.5059208891 | DV65: 29377.79591 | DW65: 0.6388848215 | DY65: -114.4898626 | DZ65: -10211.25126 | EA65: tx A | EG65: 22400 | EH65: 0.9546 | EI65: 0.0454 | EJ65: -5199.581337 | EK65: -11563.14372 | EL65: 0.9546
H66: 3.08 | I66: 45 | J66: =MMULT(J65:M65,J$4:M$7) -> 0.07104719978 | K66: 0.02275404148 | L66: 0.7890304624 | M66: 0.1171682964 | N66: =N54/(1+disc) -> 0.9019427057 | O66: 3.942207075 | P66: 2.512602314 | Q66: 282.5267334 | R66: 0 | S66: 0.004373494371 | T66: 0.001116784638 | U66: -0.008124788083 | V66: 0 | AA66: 3.08 | AB66: 45 | AC66: =MMULT(AC65:AF65,AC$4:AF$7) -> 0.1175108629 | AD66: 0.03976553351 | AE66: 0.7324120042 | AF66: 0.1103115993 | AG66: =AG54/(1+disc) -> 0.9019427057 | AH66: 98.20002041 | AI66: 35.41537826 | AJ66: 262.2534628 | AK66: 0 | AL66: 0.007233685482 | AM66: 0.00195172084 | AN66: -0.007541777672 | AO66: 0 | AP66: -0.1815952763 | AQ66: =$AP$66 -> -0.1815952763 | BA66: 58 | BB66: 16092.72594 | BC66: 0.6285132297 | BD66: 30805.44491 | BE66: 0.9198581068 | BF66: -0.01441666667 | BG66: -0.03713625303 | BH66: -0.05577979397 | BI66: -0.07160747651 | BJ66: -0.08540536649 | BK66: -0.09767004224 | BL66: -0.1087209785 | BM66: -0.1187689732 | BN66: -0.1279578278 | BO66: -0.1363897536 | BP66: -0.1441408716 | BQ66: -0.1512706856 | BR66: -0.1575156353 | BS66: -0.1632546994 | BT66: -0.1685225358 | BU66: -0.1733503041 | BV66: -0.1777664909 | BW66: -0.1817974394 | BX66: -0.1854676976 | BY66: -0.1888002558 | BZ66: -0.1918167143 | CA66: -0.1945374081 | CB66: -0.1969815043 | CC66: -0.1991670817 | CD66: -0.2010186214 | CE66: -0.2026555295 | CF66: -0.2040922729 | CG66: -0.2053425018 | CH66: -0.2064190936 | CI66: -0.2073341931 | CJ66: -0.208099252 | CK66: -0.2087250646 | CL66: -0.2092218023 | CM66: -0.209599047 | CN66: -0.209865821 | CO66: -0.2100306175 | CP66: -0.210098056 | CQ66: -0.2100831422 | CR66: -0.2099926063 | CS66: -0.2098327726 | CT66: -0.2096095815 | CU66: -0.2093286103 | CV66: -0.2089950921 | CW66: -0.2086139352 | CX66: -0.20818974 | CY66: -0.2077268162 | CZ66: -0.2072291983 | DA66: -0.2067006612 | DB66: -0.2061712068 | DC66: -0.2056188067 | DD66: -0.2050463924 | DE66: -0.2044566984 | DF66: -0.2038522732 | DG66: -0.2032354897 | DH66: -0.2026085552 | DI66: -0.2019735212 | DJ66: -0.2013322915 | DK66: -0.2006866314 | DL66: -0.2000381756 | DM66: -0.1993884355 | DN66: -0.1990790885 | DS66: 58 | DT66: 16092.72594 | DU66: 0.6285132297 | DV66: 30805.44491 | DW66: 0.9198581068 | DY66: 2762.670952 | DZ66: -3209.701703 | EA66: tx A | EG66: 22800 | EH66: 0.948 | EI66: 0.052 | EJ66: -4992.938553 | EK66: -11222.72436 | EL66: 0.948
H67: 3.09 | I67: 46 | J67: =MMULT(J66:M66,J$4:M$7) -> 0.06783080303 | K67: 0.02172393714 | L67: 0.7903675533 | M67: 0.1200777065 | N67: 0.9019427057 | O67: 3.763738366 | P67: 2.398853618 | Q67: 283.0055031 | R67: 0 | S67: 0.00417550074 | T67: 0.00106622638 | U67: -0.008138556348 | V67: 0 | AA67: 3.09 | AB67: 46 | AC67: =MMULT(AC66:AF66,AC$4:AF$7) -> 0.1131802319 | AD67: 0.03830005301 | AE67: 0.7353942511 | AF67: 0.1131254639 | AG67: 0.9019427057 | AH67: 94.5810524 | AI67: 34.11021418 | AJ67: 263.3213107 | AK67: 0 | AL67: 0.006967102274 | AM67: 0.001879794008 | AN67: -0.007572486403 | AO67: 0 | AP67: -0.1808521866 | AQ67: =$AP$67 -> -0.1808521866 | BA67: 59 | BB67: 17268.15192 | BC67: 0.7964903071 | BD67: 30006.38081 | BE67: 0.9868220787 | BF67: -0.01441666667 | BG67: -0.03697990637 | BH67: -0.05548705636 | BI67: -0.07128157174 | BJ67: -0.08518281014 | BK67: -0.09769467532 | BL67: -0.1091311723 | BM67: -0.1196919024 | BN67: -0.1295074223 | BO67: -0.1386664748 | BP67: -0.1472323273 | BQ67: -0.1552525699 | BR67: -0.1624072573 | BS67: -0.1691083197 | BT67: -0.175381815 | BU67: -0.1812510642 | BV67: -0.1867373934 | BW67: -0.1918605897 | BX67: -0.1966391876 | BY67: -0.2010906537 | BZ67: -0.2052315104 | CA67: -0.209077424 | CB67: -0.2126432698 | CC67: -0.2159431835 | CD67: -0.2188454902 | CE67: -0.2215195016 | CF67: -0.2239767963 | CG67: -0.2262283882 | CH67: -0.2282847534 | CI67: -0.2301558569 | CJ67: -0.231851177 | CK67: -0.2333797285 | CL67: -0.234750085 | CM67: -0.2359703997 | CN67: -0.237048426 | CO67: -0.2379915362 | CP67: -0.2387679208 | CQ67: -0.2394288369 | CR67: -0.2399803184 | CS67: -0.2404281013 | CT67: -0.2407776377 | CU67: -0.2410341099 | CV67: -0.241202443 | CW67: -0.2412873175 | CX67: -0.241293181 | CY67: -0.2412242596 | CZ67: -0.2410845685 | DA67: -0.2408779222 | DB67: -0.2406208004 | DC67: -0.2403066408 | DD67: -0.2399385568 | DE67: -0.2395195053 | DF67: -0.2390522941 | DG67: -0.2385395893 | DH67: -0.2379839221 | DI67: -0.2373876958 | DJ67: -0.2367531914 | DK67: -0.2360825741 | DL67: -0.2353778988 | DM67: -0.2346411155 | DN67: -0.2342758579 | DS67: 59 | DT67: 17268.15192 | DU67: 0.7964903071 | DV67: 30006.38081 | DW67: 0.9868220787 | DY67: 6626.557293 | DZ67: -401.7184441 | EA67: tx A | EG67: 23200 | EH67: 0.9426 | EI67: 0.0574 | EJ67: -4786.295769 | EK67: -10882.305 | EL67: 0.9426
H68: 3.10 | I68: 47 | J68: =MMULT(J67:M67,J$4:M$7) -> 0.06476001663 | K68: 0.02074046695 | L68: 0.7915146313 | M68: 0.1229848851 | N68: 0.9019427057 | O68: 3.593349161 | P68: 2.290254471 | Q68: 283.4162353 | R68: 0 | S68: 0.00398647053 | T68: 0.001017956959 | U68: -0.008150368016 | V68: 0 | AA68: 3.10 | AB68: 47 | AC68: =MMULT(AC67:AF67,AC$4:AF$7) -> 0.1090091977 | AD68: 0.03688857997 | AE68: 0.7381618628 | AF68: 0.1159403595 | AG68: 0.9019427057 | AH68: 91.09545427 | AI68: 32.8531494 | AJ68: 264.3123044 | AK68: 0 | AL68: 0.006710343462 | AM68: 0.001810517901 | AN68: -0.007600984997 | AO68: 0 | AP68: -0.180085072 | AQ68: =$AP$68 -> -0.180085072 | BA68: 60 | BB68: 17376.9556 | BC68: 0.8259264722 | BD68: 29766.63463 | BE68: 0.9718242784 | BF68: -0.01441666667 | BG68: -0.03866763795 | BH68: -0.05958685124 | BI68: -0.07802483618 | BJ68: -0.09455780192 | BK68: -0.1095770708 | BL68: -0.1233508545 | BM68: -0.1360660471 | BN68: -0.1478560687 | BO68: -0.1588192004 | BP68: -0.1690305527 | BQ68: -0.1785498273 | BR68: -0.187003639 | BS68: -0.1948854186 | BT68: -0.2022304538 | BU68: -0.2090704699 | BV68: -0.215434463 | BW68: -0.2213492498 | BX68: -0.226839835 | BY68: -0.2319296651 | BZ68: -0.2366408072 | CA68: -0.2409940825 | CB68: -0.2450091676 | CC68: -0.2487046775 | CD68: -0.2519366359 | CE68: -0.254896913 | CF68: -0.2576005643 | CG68: -0.2600618525 | CH68: -0.2622942903 | CI68: -0.2643106801 | CJ68: -0.2661231503 | CK68: -0.2677431906 | CL68: -0.2691816849 | CM68: -0.270448942 | CN68: -0.2715547255 | CO68: -0.2725082818 | CP68: -0.2732797908 | CQ68: -0.2739225552 | CR68: -0.2744440494 | CS68: -0.2748513488 | CT68: -0.2751511505 | CU68: -0.2753497926 | CV68: -0.2754532727 | CW68: -0.2754672657 | CX68: -0.2753971404 | CY68: -0.2752479752 | CZ68: -0.2750245735 | DA68: -0.2747314778 | DB68: -0.2743900543 | DC68: -0.2739902136 | DD68: -0.2735356114 | DE68: -0.273029703 | DF68: -0.2724757537 | DG68: -0.2718768486 | DH68: -0.2712359023 | DI68: -0.2705556679 | DJ68: -0.2698387452 | DK68: -0.269087589 | DL68: -0.2683045169 | DM68: -0.2674917162 | DN68: -0.2670914949 | DS68: 60 | DT68: 17376.9556 | DU68: 0.8259264722 | DV68: 29766.63463 | DW68: 0.9718242784 | DY68: 7400.838565 | DZ68: -611.9062813 | EA68: tx A | EG68: 23600 | EH68: 0.9351 | EI68: 0.0649 | EJ68: -4579.652985 | EK68: -10541.88564 | EL68: 0.9351
H69: 3.11 | I69: 48 | J69: =MMULT(J68:M68,J$4:M$7) -> 0.06182824861 | K69: 0.01980151971 | L69: 0.7924807509 | M69: 0.1258894808 | N69: 0.9019427057 | O69: 3.430673691 | P69: 2.186571747 | Q69: 283.762172 | R69: 0 | S69: 0.003805997957 | T69: 0.0009718727565 | U69: -0.008160316323 | V69: 0 | AA69: 3.11 | AB69: 48 | AC69: =MMULT(AC68:AF68,AC$4:AF$7) -> 0.1049918787 | AD69: 0.03552912403 | AE69: 0.7407231151 | AF69: 0.1187558822 | AG69: 0.9019427057 | AH69: 87.73831096 | AI69: 31.6424113 | AJ69: 265.2294075 | AK69: 0 | AL69: 0.006463046988 | AM69: 0.001743794831 | AN69: -0.00762735867 | AO69: 0 | AP69: -0.1792975003 | AQ69: =$AP$69 -> -0.1792975003 | BA69: 61 | BB69: 16340.40344 | BC69: 0.6844947115 | BD69: 29458.56218 | BE69: 0.9271006889 | BF69: -0.01441666667 | BG69: -0.03660264324 | BH69: -0.05447016453 | BI69: -0.06943802254 | BJ69: -0.08237673551 | BK69: -0.09382616431 | BL69: -0.1041264201 | BM69: -0.1134966357 | BN69: -0.1220823844 | BO69: -0.1299842432 | BP69: -0.1372750132 | BQ69: -0.1440101171 | BR69: -0.1499375185 | BS69: -0.1554132353 | BT69: -0.1604678595 | BU69: -0.1651286402 | BV69: -0.1694203303 | BW69: -0.1733657223 | BX69: -0.1769859949 | BY69: -0.1803009436 | BZ69: -0.1833291426 | CA69: -0.1860880617 | CB69: -0.1885941565 | CC69: -0.1908629417 | CD69: -0.1928116182 | CE69: -0.1945613741 | CF69: -0.1961246192 | CG69: -0.1975130637 | CH69: -0.1987377572 | CI69: -0.1998091247 | CJ69: -0.2007370003 | CK69: -0.2015306594 | CL69: -0.2021988487 | CM69: -0.2027498147 | CN69: -0.2031913309 | CO69: -0.203530723 | CP69: -0.2037632663 | CQ69: -0.2039113145 | CR69: -0.2039806995 | CS69: -0.2039769117 | CT69: -0.2039051195 | CU69: -0.2037701861 | CV69: -0.203576687 | CW69: -0.2033289249 | CX69: -0.2030309458 | CY69: -0.2026865521 | CZ69: -0.2022993168 | DA69: -0.2018725961 | DB69: -0.2014315915 | DC69: -0.2009587999 | DD69: -0.2004568644 | DE69: -0.1999282643 | DF69: -0.1993753235 | DG69: -0.1988002202 | DH69: -0.1982049946 | DI69: -0.1975915568 | DJ69: -0.1969616945 | DK69: -0.1963170797 | DL69: -0.1956592754 | DM69: -0.194989742 | DN69: -0.1946659808 | DS69: 61 | DT69: 16340.40344 | DU69: 0.6844947115 | DV69: 29458.56218 | DW69: 0.9271006889 | DY69: 4194.43791 | DZ69: -1645.541513 | EA69: tx A | EG69: 24000 | EH69: 0.9288 | EI69: 0.0712 | EJ69: -4373.010201 | EK69: -10201.46627 | EL69: 0.9288
H70: 4.00 | I70: 49 | J70: =MMULT(J69:M69,J$4:M$7) -> 0.05902920544 | K70: 0.0189050798 | L70: 0.7932745551 | M70: 0.1287911596 | N70: 0.8714422277 | O70: 3.164601686 | P70: 2.016988282 | Q70: 274.440974 | R70: 0 | S70: 0.003510817011 | T70: 0.0008964974344 | U70: -0.007892261128 | V70: 0 | AA70: 4.00 | AB70: 49 | AC70: =MMULT(AC69:AF69,AC$4:AF$7) -> 0.1011226101 | AD70: 0.03421976818 | AE70: 0.7430859776 | AF70: 0.1215716441 | AG70: 0.8714422277 | AH70: 81.6472353 | AI70: 29.44569332 | AJ70: 257.0777521 | AK70: 0 | AL70: 0.006014361485 | AM70: 0.001622734984 | AN70: -0.007392936705 | AO70: 0 | AP70: -0.1785199978 | AQ70: =$AP$70 -> -0.1785199978 | BA70: 62 | BB70: 15779.13453 | BC70: 0.5931832088 | BD70: 31735.78473 | BE70: 1.23302158 | BF70: -0.01441666667 | BG70: -0.03550764046 | BH70: -0.05118048855 | BI70: -0.06295718731 | BJ70: -0.07184478406 | BK70: -0.07851911062 | BL70: -0.0834422865 | BM70: -0.08693791232 | BN70: -0.08923922516 | BO70: -0.09051997342 | BP70: -0.09091424597 | BQ70: -0.09052923897 | BR70: -0.08950473091 | BS70: -0.08789407269 | BT70: -0.08575963727 | BU70: -0.08315669495 | BV70: -0.08013489558 | BW70: -0.07673928229 | BX70: -0.07301100226 | BY70: -0.06898782019 | BZ70: -0.06470450222 | CA70: -0.06019311404 | CB70: -0.05548326076 | CC70: -0.05060228697 | CD70: -0.04581482162 | CE70: -0.0409106448 | CF70: -0.03591024714 | CG70: -0.03083251962 | CH70: -0.02569486106 | CI70: -0.0205132776 | CJ70: -0.01530247508 | CK70: -0.01007594527 | CL70: -0.004846046428 | CM70: 0.0003759212309 | CN70: 0.005579644846 | CO70: 0.0107557326 | CP70: 0.01565089345 | CQ70: 0.02050424349 | CR70: 0.02530912859 | CS70: 0.03005955592 | CT70: 0.03475014793 | CU70: 0.03937609936 | CV70: 0.04393313678 | CW70: 0.04841748073 | CX70: 0.05282581017 | CY70: 0.05715522919 | CZ70: 0.0614032358 | DA70: 0.06556769272 | DB70: 0.06945255676 | DC70: 0.07325471793 | DD70: 0.07697303275 | DE70: 0.0806066103 | DF70: 0.08415479223 | DG70: 0.08761713406 | DH70: 0.09099338764 | DI70: 0.09428348487 | DJ70: 0.09748752237 | DK70: 0.1006057473 | DL70: 0.1036385439 | DM70: 0.1065864214 | DN70: 0.1079500313 | DS70: 62 | DT70: 15779.13453 | DU70: 0.5931832088 | DV70: 31735.78473 | DW70: 1.23302158 | DY70: 2016.361733 | DZ70: 5254.862671 | EA70: tx B | EG70: 24400 | EH70: 0.9211 | EI70: 0.0789 | EJ70: -4166.367417 | EK70: -9861.04691 | EL70: 0.9211
H71: 4.01 | I71: 50 | J71: =MMULT(J70:M70,J$4:M$7) -> 0.0563568785 | K71: 0.01804922288 | L71: 0.7939042943 | M71: 0.1316896044 | N71: 0.8714422277 | O71: 3.021336157 | P71: 1.925676665 | Q71: 274.6588383 | R71: 0 | S71: 0.003351877876 | T71: 0.0008559118591 | U71: -0.007898526381 | V71: 0 | AA71: 4.01 | AB71: 50 | AC71: =MMULT(AC70:AF70,AC$4:AF$7) -> 0.0973959357 | AD71: 0.03295866607 | AE71: 0.745258125 | AF71: 0.1243872732 | AG71: 0.8714422277 | AH71: 78.63828745 | AI71: 28.36053033 | AJ71: 257.8292275 | AK71: 0 | AL71: 0.005792714053 | AM71: 0.001562932285 | AN71: -0.007414547325 | AO71: 0 | AP71: -0.1777289019 | AQ71: =$AP$71 -> -0.1777289019 | BA71: 63 | BB71: 16418.48067 | BC71: 0.02930072404 | BD71: 29052.24587 | BE71: 0.3121519805 | BF71: -0.01441666667 | BG71: -0.03586825195 | BH71: -0.05268864293 | BI71: -0.06650341196 | BJ71: -0.07827601898 | BK71: -0.08858136757 | BL71: -0.09776698575 | BM71: -0.1060476732 | BN71: -0.1135608696 | BO71: -0.1203989092 | BP71: -0.1266277247 | BQ71: -0.1322976398 | BR71: -0.1372042349 | BS71: -0.1416508733 | BT71: -0.145667246 | BU71: -0.149280458 | BV71: -0.1525156506 | BW71: -0.1553963624 | BX71: -0.1579447448 | BY71: -0.1601816992 | BZ71: -0.1621269704 | CA71: -0.1637992178 | CB71: -0.1652160744 | CC71: -0.1663941992 | CD71: -0.1673038428 | CE71: -0.1680152518 | CF71: -0.1685417753 | CG71: -0.1688960059 | CH71: -0.1690898185 | CI71: -0.1691344071 | CJ71: -0.1690403202 | CK71: -0.1688174948 | CL71: -0.1684752885 | CM71: -0.1680225103 | CN71: -0.1674674501 | CO71: -0.1668179062 | CP71: -0.1661162926 | CQ71: -0.1653382439 | CR71: -0.1644899293 | CS71: -0.1635771433 | CT71: -0.1626053262 | CU71: -0.1615795839 | CV71: -0.1605047056 | CW71: -0.1593851821 | CX71: -0.1582252216 | CY71: -0.1570287658 | CZ71: -0.155799505 | DA71: -0.1545408916 | DB71: -0.1533173318 | DC71: -0.1520717648 | DD71: -0.1508068737 | DE71: -0.1495251621 | DF71: -0.148228965 | DG71: -0.1469204579 | DH71: -0.1456016662 | DI71: -0.144274474 | DJ71: -0.1429406323 | DK71: -0.1416017666 | DL71: -0.1402593846 | DM71: -0.1389148829 | DN71: -0.1382742499 | DS71: 63 | DT71: 16418.48067 | DU71: 0.02930072404 | DV71: 29052.24587 | DW71: 0.3121519805 | DY71: -15539.45895 | DZ71: -19687.68645 | EA71: tx A | EG71: 24800 | EH71: 0.9142 | EI71: 0.0858 | EJ71: -3959.724633 | EK71: -9520.627547 | EL71: 0.9142
H72: 4.02 | I72: 51 | J72: =MMULT(J71:M71,J$4:M$7) -> 0.05380553118 | K72: 0.01723211168 | L72: 0.7943778433 | M72: 0.1345845138 | N72: 0.8714422277 | O72: 2.88455644 | P72: 1.838498842 | Q72: 274.8226672 | R72: 0 | S72: 0.003200134116 | T72: 0.0008171636443 | U72: -0.007903237704 | V72: 0 | AA72: 4.02 | AB72: 51 | AC72: =MMULT(AC71:AF71,AC$4:AF$7) -> 0.09380660054 | AD72: 0.0317440394 | AE72: 0.7472469479 | AF72: 0.1272024121 | AG72: 0.8714422277 | AH72: 75.74022843 | AI72: 27.31535889 | AJ72: 258.5172799 | AK72: 0 | AL72: 0.005579234999 | AM72: 0.001505333497 | AN72: -0.007434334055 | AO72: 0 | AP72: -0.1769269657 | AQ72: =$AP$72 -> -0.1769269657 | BA72: 64 | BB72: 16874.12019 | BC72: 0.1871520041 | BD72: 30800.78672 | BE72: 0.6709125524 | BF72: -0.01441666667 | BG72: -0.03504576405 | BH72: -0.05031046552 | BI72: -0.06195401895 | BJ72: -0.07105682877 | BK72: -0.07829769947 | BL72: -0.08411134968 | BM72: -0.08878349712 | BN72: -0.09250833675 | BO72: -0.09542334385 | BP72: -0.09763039194 | BQ72: -0.09920860269 | BR72: -0.1001739288 | BS72: -0.1006530824 | BT72: -0.1006908628 | BU72: -0.1003270881 | BV72: -0.09959772735 | BW72: -0.09853563533 | BX72: -0.0971710461 | BY72: -0.09553191532 | BZ72: -0.0936441693 | CA72: -0.09153189472 | CB72: -0.0892174901 | CC72: -0.08672179211 | CD72: -0.08419073716 | CE72: -0.08152265134 | CF72: -0.0787334949 | CG72: -0.0758380958 | CH72: -0.07285022041 | CI72: -0.06978263932 | CJ72: -0.06664718902 | CK72: -0.06345482975 | CL72: -0.06021569985 | CM72: -0.05693916693 | CN72: -0.05363387607 | CO72: -0.0503077952 | CP72: -0.04712728344 | CQ72: -0.0439403745 | CR72: -0.0407529572 | CS72: -0.03757042474 | CT72: -0.03439770679 | CU72: -0.03123929966 | CV72: -0.02809929476 | CW72: -0.02498140535 | CX72: -0.02188899178 | CY72: -0.01882508515 | CZ72: -0.01579240967 | DA72: -0.01279340357 | DB72: -0.009971341985 | DC72: -0.00718524784 | DD72: -0.0044367346 | DE72: -0.001727212054 | DF72: 0.0009420990398 | DG72: 0.003570153198 | DH72: 0.006156067301 | DI72: 0.008699108478 | DJ72: 0.01119868274 | DK72: 0.01365432433 | DL72: 0.01606568571 | DM72: 0.01843252824 | DN72: 0.01953833069 | DS72: 64 | DT72: 16874.12019 | DU72: 0.1871520041 | DV72: 30800.78672 | DW72: 0.6709125524 | DY72: -11259.56007 | DZ72: -10673.41015 | EA72: tx B | EG72: 25200 | EH72: 0.9073 | EI72: 0.0927 | EJ72: -3753.081849 | EK72: -9180.208185 | EL72: 0.9073
H73: 4.03 | I73: 52 | J73: =MMULT(J72:M72,J$4:M$7) -> 0.0513696866 | K73: 0.01645199214 | L73: 0.7947027194 | M73: 0.1374756018 | N73: 0.8714422277 | O73: 2.753968915 | P73: 1.755267669 | Q73: 274.9350612 | R73: 0 | S73: 0.003055259989 | T73: 0.0007801696103 | U73: -0.007906469885 | V73: 0 | AA73: 4.03 | AB73: 52 | AC73: =MMULT(AC72:AF72,AC$4:AF$7) -> 0.09034954325 | AD73: 0.03057417541 | AE73: 0.7490595632 | AF73: 0.1300167181 | AG73: 0.8714422277 | AH73: 72.94897166 | AI73: 26.30870519 | AJ73: 259.1443716 | AK73: 0 | AL73: 0.005373623294 | AM73: 0.001449857398 | AN73: -0.007452367701 | AO73: 0 | AP73: -0.1761167375 | AQ73: =$AP$73 -> -0.1761167375 | BA73: 65 | BB73: 16895.9681 | BC73: 0.05373178846 | BD73: 31673.53532 | BE73: 0.5159081867 | BF73: -0.01441666667 | BG73: -0.0348839315 | BH73: -0.04986355111 | BI73: -0.0611714735 | BJ73: -0.06995855486 | BK73: -0.07695895535 | BL73: -0.08264545318 | BM73: -0.08732659142 | BN73: -0.09120746753 | BO73: -0.09442779216 | BP73: -0.09708573294 | BQ73: -0.09925286627 | BR73: -0.1009011508 | BS73: -0.1021748064 | BT73: -0.1031076417 | BU73: -0.1037284961 | BV73: -0.1040626684 | BW73: -0.1041328335 | BX73: -0.1039596371 | BY73: -0.1035620883 | BZ73: -0.1029578236 | CA73: -0.1021632904 | CB73: -0.1011938783 | CC73: -0.1000640178 | CD73: -0.09884805542 | CE73: -0.09750431058 | CF73: -0.09604417555 | CG73: -0.09447835641 | CH73: -0.09281691258 | CI73: -0.0910692928 | CJ73: -0.08924436845 | CK73: -0.0873504646 | CL73: -0.08539538923 | CM73: -0.08338646074 | CN73: -0.08133053403 | CO73: -0.07923402514 | CP73: -0.07720441521 | CQ73: -0.07514721098 | CR73: -0.07306739859 | CS73: -0.07096962906 | CT73: -0.06885823636 | CU73: -0.06673725479 | CV73: -0.06461043533 | CW73: -0.06248126129 | CX73: -0.06035296311 | CY73: -0.05822853247 | CZ73: -0.05611073569 | DA73: -0.0540021264 | DB73: -0.05200491807 | DC73: -0.05002076164 | DD73: -0.04805154826 | DE73: -0.04609900917 | DF73: -0.04416472507 | DG73: -0.04225013495 | DH73: -0.04035654452 | DI73: -0.03848513419 | DJ73: -0.03663696662 | DK73: -0.03481299389 | DL73: -0.03301406433 | DM73: -0.03124092891 | DN73: -0.03040917582 | DS73: 65 | DT73: 16895.9681 | DU73: 0.05373178846 | DV73: 31673.53532 | DW73: 0.5159081867 | DY73: =lambda*DU73-DT73 -> -15284.01445 | DZ73: =lambda*DW73-DV73 -> -16196.28972 | EA73: =IF(DY73>DZ73, "tx A", IF(DZ73>DY73, "tx B", "either")) -> tx A | EG73: 25600 | EH73: 0.9004 | EI73: 0.0996 | EJ73: -3546.439065 | EK73: -8839.788822 | EL73: 0.9004
H74: 4.04 | I74: 53 | J74: =MMULT(J73:M73,J$4:M$7) -> 0.04904411578 | K74: 0.0157071896 | L74: 0.7948860978 | M74: 0.1403625969 | N74: 0.8714422277 | O74: 2.629293251 | P74: 1.675804477 | Q74: 274.9985027 | R74: 0 | S74: 0.002916944497 | T74: 0.0007448503432 | U74: -0.00790829431 | V74: 0 | AA74: 4.04 | AB74: 53 | AC74: =MMULT(AC73:AF73,AC$4:AF$7) -> 0.08701988899 | AD74: 0.02944742446 | AE74: 0.7507028242 | AF74: 0.1328298624 | AG74: 0.8714422277 | AH74: 70.26058115 | AI74: 25.33914973 | AJ74: 259.7128736 | AK74: 0 | AL74: 0.005175589004 | AM74: 0.001396425762 | AN74: -0.007468716448 | AO74: 0 | AP74: -0.1753005731 | AQ74: =$AP$74 -> -0.1753005731 | BA74: 66 | BB74: 16304.44748 | BC74: 0.4350830256 | BD74: 28821.2819 | BE74: 0.5284527109 | BF74: -0.01441666667 | BG74: -0.03724798165 | BH74: -0.0562348439 | BI74: -0.07269204998 | BJ74: -0.08742250786 | BK74: -0.1009184283 | BL74: -0.1134835578 | BM74: -0.1253073761 | BN74: -0.1365100936 | BO74: -0.1471699143 | BP74: -0.1573395371 | BQ74: -0.1670561332 | BR74: -0.1759049327 | BS74: -0.1843693984 | BT74: -0.1924668014 | BU74: -0.200212175 | BV74: -0.2076190734 | BW74: -0.214700029 | BX74: -0.2214668297 | BY74: -0.2279306873 | BZ74: -0.234102341 | CA74: -0.2399921225 | CB74: -0.245609997 | CC74: -0.2509655918 | CD74: -0.2558252333 | CE74: -0.2604525254 | CF74: -0.2648557657 | CG74: -0.2690429826 | CH74: -0.2730219445 | CI74: -0.2768001673 | CJ74: -0.2803849216 | CK74: -0.2837832403 | CL74: -0.2870019249 | CM74: -0.2900475526 | CN74: -0.2929264826 | CO74: -0.2956448627 | CP74: -0.2980865507 | CQ74: -0.3003864628 | CR74: -0.3025498845 | CS74: -0.3045819226 | CT74: -0.3064875109 | CU74: -0.3082714149 | CV74: -0.3099382377 | CW74: -0.3114924245 | CX74: -0.3129382676 | CY74: -0.3142799113 | CZ74: -0.3155213564 | DA74: -0.3166664649 | DB74: -0.3176688451 | DC74: -0.3185864518 | DD74: -0.3194225911 | DE74: -0.3201804524 | DF74: -0.3208631132 | DG74: -0.321473542 | DH74: -0.322014602 | DI74: -0.3224890547 | DJ74: -0.3228995635 | DK74: -0.3232486962 | DL74: -0.3235389288 | DM74: -0.3237726486 | DN74: -0.3238581285 | DS74: 66 | DT74: 16304.44748 | DU74: 0.4350830256 | DV74: 28821.2819 | DW74: 0.5284527109 | DY74: -3251.956715 | DZ74: -12967.70057 | EA74: tx A | EG74: 26000 | EH74: 0.8936 | EI74: 0.1064 | EJ74: -3339.796281 | EK74: -8499.36946 | EL74: =IF(EJ74>EK74,EH74,EI74) -> 0.8936
H75: 4.05 | I75: 54 | J75: =MMULT(J74:M74,J$4:M$7) -> 0.0468238265 | K75: 0.01499610522 | L75: 0.7949348271 | M75: 0.1432452412 | N75: 0.8714422277 | O75: 2.510261814 | P75: 1.599938684 | Q75: 275.0153611 | R75: 0 | S75: 0.002784890723 | T75: 0.0007111300241 | U75: -0.007908779116 | V75: 0 | AA75: 4.05 | AB75: 54 | AC75: =MMULT(AC74:AF74,AC$4:AF$7) -> 0.08381294256 | AD75: 0.02836219769 | AE75: 0.7521833304 | AF75: 0.1356415293 | AG75: 0.8714422277 | AH75: 67.67126597 | AI75: 24.40532533 | AJ75: 260.225069 | AK75: 0 | AL75: 0.004984852876 | AM75: 0.001344963244 | AN75: -0.007483445954 | AO75: 0 | AP75: -0.1744806479 | AQ75: =$AP$75 -> -0.1744806479 | BA75: =1+BA74 -> 67 | BB75: 17088.60491 | BC75: 1.049285275 | BD75: 31193.93468 | BE75: 1.243690256 | BF75: -0.01441666667 | BG75: -0.03802994337 | BH75: -0.05802264875 | BI75: -0.07543764988 | BJ75: -0.09095690115 | BK75: -0.1050289211 | BL75: -0.1179515052 | BM75: -0.1299252161 | BN75: -0.1410878785 | BO75: -0.1515367717 | BP75: -0.1613428801 | BQ75: -0.1705600311 | BR75: -0.1788178584 | BS75: -0.1865885809 | BT75: -0.1939006019 | BU75: -0.2007788915 | BV75: -0.2072459343 | BW75: -0.2133223444 | BX75: -0.2190272676 | BY75: -0.2243786491 | BZ75: -0.229393414 | CA75: -0.2340875932 | CB75: -0.2384764135 | CC75: -0.2425743655 | CD75: -0.2462133086 | CE75: -0.2496009216 | CF75: -0.2527491668 | CG75: -0.2556694599 | CH75: -0.2583726975 | CI75: -0.2608692815 | CJ75: -0.2631691418 | CK75: -0.2652817581 | CL75: -0.2672161798 | CM75: -0.2689810455 | CN75: -0.2705846008 | CO75: -0.2720347163 | CP75: -0.2732767993 | CQ75: -0.2743867304 | CR75: -0.2753710247 | CS75: -0.2762358993 | CT75: -0.2769872857 | CU75: -0.2776308433 | CV75: -0.2781719707 | CW75: -0.278615818 | CX75: -0.2789672971 | CY75: -0.2792310927 | CZ75: -0.2794116726 | DA75: -0.2795132968 | DB75: -0.2795387544 | DC75: -0.2794965728 | DD75: -0.2793902679 | DE75: -0.2792231909 | DF75: -0.278998536 | DG75: -0.278719347 | DH75: -0.2783885246 | DI75: -0.2780088324 | DJ75: -0.2775829033 | DK75: -0.2771132453 | DL75: -0.2766022472 | DM75: -0.2760521839 | DN75: -0.2757726782 | DS75: =1+DS74 -> 67 | DT75: 17088.60491 | DU75: 1.049285275 | DV75: 31193.93468 | DW75: 1.243690256 | DY75: 14389.95335 | DZ75: 6116.773003 | EA75: tx A | EG75: =EG74+400 -> 26400 | EH75: 0.8845 | EI75: 0.1155 | EJ75: -3133.153497 | EK75: -8158.950097 | EL75: 0.8845
H76: 4.06 | I76: 55 | J76: =MMULT(J75:M75,J$4:M$7) -> 0.04470405253 | K76: 0.01431721253 | L76: 0.7948554446 | M76: 0.1461232904 | N76: 0.8714422277 | O76: 2.39661908 | P76: 1.527507432 | Q76: 274.9878979 | R76: 0 | S76: 0.00265881519 | T76: 0.0006789362666 | U76: -0.007907989342 | V76: 0 | AA76: 4.06 | AB76: 55 | AC76: =MMULT(AC75:AF75,AC$4:AF$7) -> 0.08072418183 | AD76: 0.02731696482 | AE76: 0.7535074371 | AF76: 0.1384514163 | AG76: 0.8714422277 | AH76: 65.1773749 | AI76: 23.50591518 | AJ76: 260.6831564 | AK76: 0 | AL76: 0.004801145952 | AM76: 0.001295397276 | AN76: -0.007496619445 | AO76: 0 | AP76: -0.173658967 | AQ76: =$AP$76 -> -0.173658967 | BA76: 68 | BB76: 14427.09261 | BC76: 1.458337394 | BD76: 29152.63538 | BE76: 1.505727702 | BF76: -0.01441666667 | BG76: -0.03859036077 | BH76: -0.0597391623 | BI76: -0.07884034259 | BJ76: -0.09648178168 | BK76: -0.1130206075 | BL76: -0.128677074 | BM76: -0.1435901194 | BN76: -0.1578502506 | BO76: -0.1715190102 | BP76: -0.1846405069 | BQ76: -0.1972482471 | BR76: -0.2087920003 | BS76: -0.2198938642 | BT76: -0.2305729902 | BU76: -0.2408467686 | BV76: -0.2507313214 | BW76: -0.2602418019 | BX76: -0.2693925797 | BY76: -0.278197359 | BZ76: -0.2866692548 | CA76: -0.2948208464 | CB76: -0.3026642153 | CC76: -0.310210975 | CD76: -0.3171265171 | CE76: -0.3237804444 | CF76: -0.3301826034 | CG76: -0.3363424699 | CH76: -0.3422691632 | CI76: -0.34797146 | CJ76: -0.3534578074 | CK76: -0.3587363357 | CL76: -0.3638148699 | CM76: -0.3687009414 | CN76: -0.3734017988 | CO76: -0.377924419 | CP76: -0.3820683215 | CQ76: -0.3860550243 | CR76: -0.3898904511 | CS76: -0.3935803035 | CT76: -0.3971300688 | CU76: -0.4005450282 | CV76: -0.4038302646 | CW76: -0.4069906699 | CX76: -0.4100309522 | CY76: -0.4129556426 | CZ76: -0.4157691019 | DA76: -0.4184755272 | DB76: -0.4209549847 | DC76: -0.423340054 | DD76: -0.425634298 | DE76: -0.4278411458 | DF76: -0.4299638972 | DG76: -0.4320057283 | DH76: -0.4339696952 | DI76: -0.4358587394 | DJ76: -0.4376756916 | DK76: -0.4394232758 | DL76: -0.4411041137 | DM76: -0.4427207281 | DN76: -0.443461118 | DS76: 68 | DT76: 14427.09261 | DU76: 1.458337394 | DV76: 29152.63538 | DW76: 1.505727702 | DY76: 29323.02922 | DZ76: 16019.19568 | EA76: tx A | EG76: 26800 | EH76: 0.8752 | EI76: 0.1248 | EJ76: -2926.510713 | EK76: -7818.530735 | EL76: 0.8752
H77: 4.07 | I77: 56 | J77: =MMULT(J76:M76,J$4:M$7) -> 0.04268024341 | K77: 0.01366905417 | L77: 0.79465419 | M77: 0.1489965124 | N77: 0.8714422277 | O77: 2.288121097 | P77: 1.458355234 | Q77: 274.918272 | R77: 0 | S77: 0.002538447257 | T77: 0.0006481999613 | U77: -0.007905987067 | V77: 0 | AA77: 4.07 | AB77: 56 | AC77: =MMULT(AC76:AF76,AC$4:AF$7) -> 0.07774925128 | AD77: 0.02631025194 | AE77: 0.7546812637 | AF77: 0.1412592331 | AG77: 0.8714422277 | AH77: 62.77539126 | AI77: 22.63965102 | AJ77: 261.0892531 | AK77: 0 | AL77: 0.004624209185 | AM77: 0.001247657963 | AN77: -0.007508297805 | AO77: 0 | AP77: -0.172837376 | AQ77: =$AP$77 -> -0.172837376 | BA77: 69 | BB77: 16510.5927 | BC77: 1.701703768 | BD77: 30033.37969 | BE77: 1.818418644 | BF77: -0.01441666667 | BG77: -0.03901557057 | BH77: -0.06062772517 | BI77: -0.08004385205 | BJ77: -0.09777082473 | BK77: -0.1141389089 | BL77: -0.1293682106 | BM77: -0.1436098629 | BN77: -0.1569715663 | BO77: -0.1695334397 | BP77: -0.181357869 | BQ77: -0.192495637 | BR77: -0.2024900295 | BS77: -0.2119072504 | BT77: -0.22077945 | BU77: -0.2291360105 | BV77: -0.2370041372 | BW77: -0.244409246 | BX77: -0.2513752253 | BY77: -0.2579246175 | BZ77: -0.2640787515 | CA77: -0.2698578425 | CB77: -0.2752810712 | CC77: -0.2803666501 | CD77: -0.2849049636 | CE77: -0.2891538378 | CF77: -0.2931281507 | CG77: -0.2968420424 | CH77: -0.3003089519 | CI77: -0.3035416524 | CJ77: -0.3065522836 | CK77: -0.3093523828 | CL77: -0.3119529144 | CM77: -0.3143642976 | CN77: -0.3165964333 | CO77: -0.3186587288 | CP77: -0.3204695798 | CQ77: -0.3221352782 | CR77: -0.323663507 | CS77: -0.3250615642 | CT77: -0.3263363822 | CU77: -0.327494545 | CV77: -0.3285423056 | CW77: -0.3294856024 | CX77: -0.330330074 | CY77: -0.3310810743 | CZ77: -0.3317436864 | DA77: -0.3323227361 | DB77: -0.3327989913 | DC77: -0.3332041668 | DD77: -0.3335421926 | DE77: -0.3338167987 | DF77: -0.3340315242 | DG77: -0.3341897273 | DH77: -0.334294594 | DI77: -0.3343491468 | DJ77: -0.3343562527 | DK77: -0.3343186308 | DL77: -0.33423886 | DM77: -0.3341193854 | DN77: -0.3340446903 | DS77: 69 | DT77: 16510.5927 | DU77: 1.701703768 | DV77: 30033.37969 | DW77: 1.818418644 | DY77: 34540.52033 | DZ77: 24519.17962 | EA77: tx A | EG77: 27200 | EH77: 0.8658 | EI77: 0.1342 | EJ77: -2719.867929 | EK77: -7478.111372 | EL77: 0.8658
H78: 4.08 | I78: 57 | J78: =MMULT(J77:M77,J$4:M$7) -> 0.0407480547 | K78: 0.01305023877 | L78: 0.794337019 | M78: 0.1518646876 | N78: 0.8714422277 | O78: 2.184534955 | P78: 1.392333645 | Q78: 274.8085436 | R78: 0 | S78: 0.002423528532 | T78: 0.0006188551275 | U78: -0.007902831544 | V78: 0 | AA78: 4.08 | AB78: 57 | AC78: =MMULT(AC77:AF77,AC$4:AF$7) -> 0.07488395592 | AD78: 0.02534063948 | AE78: 0.7557107031 | AF78: 0.1440647015 | AG78: 0.8714422277 | AH78: 60.46192799 | AI78: 21.80531133 | AJ78: 261.4453976 | AK78: 0 | AL78: 0.004453793073 | AM78: 0.001201677989 | AN78: -0.007518539663 | AO78: 0 | AP78: -0.1720175709 | AQ78: =$AP$78 -> -0.1720175709 | BA78: 70 | BB78: 16341.19352 | BC78: 0.7816703362 | BD78: 30683.29589 | BE78: 1.023738707 | BF78: -0.01441666667 | BG78: -0.03707956364 | BH78: -0.05585504492 | BI78: -0.07205887544 | BJ78: -0.08645636125 | BK78: -0.09949947673 | BL78: -0.1114616654 | BM78: -0.1225144108 | BN78: -0.1327707 | BO78: -0.142309681 | BP78: -0.1511906482 | BQ78: -0.1594609795 | BR78: -0.1667939958 | BS78: -0.1736169883 | BT78: -0.1799602288 | BU78: -0.185851614 | BV78: -0.1913171522 | BW78: -0.1963812626 | BX78: -0.2010669675 | BY78: -0.2053960244 | BZ78: -0.209389023 | CA78: -0.2130654612 | CB78: -0.21644381 | CC78: -0.2195415688 | CD78: -0.2222403766 | CE78: -0.2247027037 | CF78: -0.2269427185 | CG78: -0.228973839 | CH78: -0.2308087705 | CI78: -0.232459541 | CJ78: -0.233937535 | CK78: -0.2352535256 | CL78: -0.2364177054 | CM78: -0.2374397151 | CN78: -0.2383286716 | CO78: -0.2390931944 | CP78: -0.2397105622 | CQ78: -0.2402245126 | CR78: -0.2406419722 | CS78: -0.2409694826 | CT78: -0.2412132201 | CU78: -0.2413790147 | CV78: -0.2414723672 | CW78: -0.241498467 | CX78: -0.2414622071 | CY78: -0.2413682006 | CZ78: -0.241220794 | DA78: -0.2410240821 | DB78: -0.2407934518 | DC78: -0.2405229923 | DD78: -0.2402159553 | DE78: -0.239875399 | DF78: -0.2395041982 | DG78: -0.239105054 | DH78: -0.238680503 | DI78: -0.238232926 | DJ78: -0.2377645568 | DK78: -0.2372774893 | DL78: -0.236773686 | DM78: -0.2362549844 | DN78: -0.2360017081 | DS78: 70 | DT78: 16341.19352 | DU78: 0.7816703362 | DV78: 30683.29589 | DW78: 1.023738707 | DY78: 7108.916567 | DZ78: 28.86532462 | EA78: tx A | EG78: 27600 | EH78: 0.857 | EI78: 0.143 | EJ78: -2513.225145 | EK78: -7137.692009 | EL78: 0.857
H79: 4.09 | I79: 58 | J79: =MMULT(J78:M78,J$4:M$7) -> 0.03890333862 | K79: 0.01245943792 | L79: 0.7939096161 | M79: 0.1547276074 | N79: 0.8714422277 | O79: 2.085638289 | P79: 1.329300936 | Q79: 274.6606795 | R79: 0 | S79: 0.002313812324 | T79: 0.0005908387716 | U79: -0.007898579327 | V79: 0 | AA79: 4.09 | AB79: 58 | AC79: =MMULT(AC78:AF78,AC$4:AF$7) -> 0.07212425538 | AD79: 0.02440676018 | AE79: 0.7566014299 | AF79: 0.1468675545 | AG79: 0.8714422277 | AH79: 58.23372286 | AI79: 21.00171957 | AJ79: 261.7535531 | AK79: 0 | AL79: 0.004289657312 | AM79: 0.001157392516 | AN79: -0.007527401473 | AO79: 0 | AP79: -0.1712011068 | AQ79: =$AP$79 -> -0.1712011068 | BA79: 71 | BB79: 16551.54347 | BC79: 1.010053891 | BD79: 31991.2722 | BE79: 1.247526232 | BF79: -0.01441666667 | BG79: -0.03776079998 | BH79: -0.05762726115 | BI79: -0.07516933577 | BJ79: -0.09105193253 | BK79: -0.1056630901 | BL79: -0.1192344528 | BM79: -0.1319095903 | BN79: -0.1437825469 | BO79: -0.1549194699 | BP79: -0.1653706682 | BQ79: -0.1751772883 | BR79: -0.1839369984 | BS79: -0.1921474126 | BT79: -0.1998368741 | BU79: -0.2070319996 | BV79: -0.2137579869 | BW79: -0.2200387896 | BX79: -0.2258972219 | BY79: -0.2313550289 | BZ79: -0.2364329397 | CA79: -0.2411507122 | CB79: -0.245527174 | CC79: -0.2495802607 | CD79: -0.2531486357 | CE79: -0.2564407932 | CF79: -0.2594714786 | CG79: -0.2622547259 | CH79: -0.2648038892 | CI79: -0.2671316736 | CJ79: -0.2692501643 | CK79: -0.2711708556 | CL79: -0.2729046777 | CM79: -0.2744620225 | CN79: -0.2758527692 | CO79: -0.2770863075 | CP79: -0.2781198818 | CQ79: -0.2790203068 | CR79: -0.2797952535 | CS79: -0.280452008 | CT79: -0.2809974896 | CU79: -0.2814382682 | CV79: -0.2817805805 | CW79: -0.282030346 | CX79: -0.2821931818 | CY79: -0.2822744172 | CZ79: -0.2822791071 | DA79: -0.2822120453 | DB79: -0.2820841703 | DC79: -0.2818963919 | DD79: -0.2816525982 | DE79: -0.281356473 | DF79: -0.2810115057 | DG79: -0.2806210002 | DH79: -0.2801880844 | DI79: -0.2797157185 | DJ79: -0.2792067032 | DK79: -0.2786636874 | DL79: -0.2780891759 | DM79: -0.277485536 | DN79: -0.277185283 | DS79: 71 | DT79: 16551.54347 | DU79: 1.010053891 | DV79: 31991.2722 | DW79: 1.247526232 | DY79: 13750.07326 | DZ79: 5434.514769 | EA79: tx A | EG79: 28000 | EH79: 0.8481 | EI79: 0.1519 | EJ79: -2306.582361 | EK79: -6797.272647 | EL79: 0.8481
H80: 4.10 | I80: 59 | J80: =MMULT(J79:M79,J$4:M$7) -> 0.03714213517 | K80: 0.01189538337 | L80: 0.793377407 | M80: 0.1575850744 | N80: 0.8714422277 | O80: 1.9912188 | P80: 1.269121798 | Q80: 274.4765566 | R80: 0 | S80: 0.002209063107 | T80: 0.0005640907515 | U80: -0.007893284398 | V80: 0 | AA80: 4.10 | AB80: 59 | AC80: =MMULT(AC79:AF79,AC$4:AF$7) -> 0.06946625816 | AD80: 0.02350729715 | AE80: 0.7573589081 | AF80: 0.1496675366 | AG80: 0.8714422277 | AH80: 56.08763382 | AI80: 20.22774261 | AJ80: 262.0156099 | AK80: 0 | AL80: 0.00413157045 | AM80: 0.001114739097 | AN80: -0.007534937597 | AO80: 0 | AP80: -0.1703894073 | AQ80: =$AP$80 -> -0.1703894073 | BA80: 72 | BB80: 16829.89006 | BC80: -0.7714070106 | BD80: 30811.20806 | BE80: -0.2699371538 | BF80: -0.01441666667 | BG80: -0.0364956401 | BH80: -0.05387964453 | BI80: -0.06787211213 | BJ80: -0.07930841723 | BK80: -0.08873440572 | BL80: -0.09651662508 | BM80: -0.1029101517 | BN80: -0.1081002225 | BO80: -0.1122277508 | BP80: -0.1154049624 | BQ80: -0.1177249932 | BR80: -0.1191943361 | BS80: -0.1199905705 | BT80: -0.1201739456 | BU80: -0.1197992657 | BV80: -0.1189168166 | BW80: -0.1175729967 | BX80: -0.1158107667 | BY80: -0.1136699865 | BZ80: -0.1111876797 | CA80: -0.1083982521 | CB80: -0.105333679 | CC80: -0.1020236694 | CD80: -0.09866380891 | CE80: -0.09512086996 | CF80: -0.09141747823 | CG80: -0.08757460472 | CH80: -0.08361167017 | CI80: -0.07954664299 | CJ80: -0.07539613117 | CK80: -0.07117546867 | CL80: -0.06689879664 | CM80: -0.06257913985 | CN80: -0.05822847858 | CO80: -0.05385781625 | CP80: -0.04968584179 | CQ80: -0.04551322537 | CR80: -0.04134800481 | CS80: -0.03719750918 | CT80: -0.03306840621 | CU80: -0.02896674682 | CV80: -0.02489800697 | CW80: -0.02086712703 | CX80: -0.01687854868 | CY80: -0.0129362496 | CZ80: -0.009043776099 | DA80: -0.005204273628 | DB80: -0.00160069446 | DC80: 0.001947482392 | DD80: 0.005438249216 | DE80: 0.008869880511 | DF80: 0.01224091186 | DG80: 0.01555012016 | DH80: 0.01879650502 | DI80: 0.0219792715 | DJ80: 0.02509781378 | DK80: 0.0281517 | DL80: 0.03114065803 | DM80: 0.03406456221 | DN80: 0.03542592348 | DS80: 72 | DT80: 16829.89006 | DU80: -0.7714070106 | DV80: 30811.20806 | DW80: -0.2699371538 | DY80: -39972.10038 | DZ80: -38909.32267 | EA80: tx B | EG80: 28400 | EH80: 0.8403 | EI80: 0.1597 | EJ80: -2099.939577 | EK80: -6456.853284 | EL80: 0.8403
H81: 4.11 | I81: 60 | J81: =MMULT(J80:M80,J$4:M$7) -> 0.03546066364 | K81: 0.01135686429 | L81: 0.7927455702 | M81: 0.1604369018 | N81: 0.8714422277 | O81: 1.901073801 | P81: 1.211667046 | Q81: 274.2579666 | R81: 0 | S81: 0.002109056021 | T81: 0.0005385536483 | U81: -0.007886998275 | V81: 0 | AA81: 4.11 | AB81: 60 | AC81: =MMULT(AC80:AF80,AC$4:AF$7) -> 0.06690621619 | AD81: 0.02264098207 | AE81: 0.7579883991 | AF81: 0.1524644026 | AG81: 0.8714422277 | AH81: 54.02063467 | AI81: 19.48228904 | AJ81: 262.2333884 | AK81: 0 | AL81: 0.003979309567 | AM81: 0.001073657586 | AN81: -0.007541200381 | AO81: 0 | AP81: -0.1695837721 | AQ81: =$AP$81 -> -0.1695837721 | BA81: 73 | BB81: 17614.62487 | BC81: 0.2176492257 | BD81: 30857.76012 | BE81: 0.5566149029 | BF81: -0.01441666667 | BG81: -0.03590117752 | BH81: -0.05271925844 | BI81: -0.06644104343 | BJ81: -0.07799641735 | BK81: -0.08794599594 | BL81: -0.09663675563 | BM81: -0.1042914651 | BN81: -0.1110601185 | BO81: -0.1170495528 | BP81: -0.1223405358 | BQ81: -0.1269976551 | BR81: -0.1308809071 | BS81: -0.1342569166 | BT81: -0.1371657222 | BU81: -0.139643693 | BV81: -0.1417242421 | BW81: -0.1434382862 | BX81: -0.1448145567 | BY81: -0.1458798219 | BZ81: -0.1466590574 | CA81: -0.147175582 | CB81: -0.1474511739 | CC81: -0.147506172 | CD81: -0.1473665482 | CE81: -0.1470518035 | CF81: -0.1465776892 | CG81: -0.1459588947 | CH81: -0.1452091118 | CI81: -0.1443410952 | CJ81: -0.1433667193 | CK81: -0.1422970321 | CL81: -0.1411423053 | CM81: -0.1399120818 | CN81: -0.1386152212 | CO81: -0.1372599411 | CP81: -0.1359208141 | CQ81: -0.1345400193 | CR81: -0.1331237692 | CS81: -0.1316778045 | CT81: -0.1302074239 | CU81: -0.1287175124 | CV81: -0.1272125674 | CW81: -0.125696724 | CX81: -0.1241737784 | CY81: -0.1226472102 | CZ81: -0.1211202027 | DA81: -0.1195956629 | DB81: -0.1181485932 | DC81: -0.1167086901 | DD81: -0.1152780333 | DE81: -0.1138585035 | DF81: -0.1124517956 | DG81: -0.1110594319 | DH81: -0.1096827744 | DI81: -0.1083230353 | DJ81: -0.1069812886 | DK81: -0.1056584795 | DL81: -0.1043554337 | DM81: -0.1030728668 | DN81: -0.1024721644 | DS81: 73 | DT81: 17614.62487 | DU81: 0.2176492257 | DV81: 30857.76012 | DW81: 0.5566149029 | DY81: -11085.1481 | DZ81: -14159.31303 | EA81: tx A | EG81: 28800 | EH81: 0.8305 | EI81: 0.1695 | EJ81: -1893.296793 | EK81: -6116.433922 | EL81: 0.8305
H82: 5.00 | I82: 61 | J82: =MMULT(J81:M81,J$4:M$7) -> 0.03385531446 | K82: 0.01084272465 | L82: 0.7920190483 | M82: 0.1632829126 | N82: 0.8419731669 | O82: 1.753632638 | P82: 1.117694051 | Q82: 264.740695 | R82: 0 | S82: 0.001945484427 | T82: 0.0004967851614 | U82: -0.007613304477 | V82: 0 | AA82: 5.00 | AB82: 61 | AC82: =MMULT(AC81:AF81,AC$4:AF$7) -> 0.06444051951 | AD82: 0.02180659332 | AE82: 0.7584949695 | AF82: 0.1552579177 | AG82: 0.8419731669 | AH82: 50.2703485 | AI82: 18.12976588 | AJ82: 253.5349191 | AK82: 0 | AL82: 0.003703053101 | AM82: 0.0009991208234 | AN82: -0.007291053364 | AO82: 0 | AP82: =(SUM(AL82:AO82)-SUM(S82:V82)-((SUM(AH82:AK82)-SUM(O82:R82))/lambda))*0.5+AP81 -> -0.1691980779 | AQ82: =$AP$82 -> -0.1691980779 | BA82: 74 | BB82: 18167.23746 | BC82: 1.096559479 | BD82: 31150.59438 | BE82: 1.329882639 | BF82: -0.01441666667 | BG82: -0.03750074676 | BH82: -0.05682724638 | BI82: -0.07357862015 | BJ82: -0.08846462791 | BK82: -0.1019183556 | BL82: -0.1142104905 | BM82: -0.1255160048 | BN82: -0.1359531103 | BO82: -0.1456060478 | BP82: -0.1545384423 | BQ82: -0.1628011492 | BR82: -0.1700732736 | BS82: -0.1767838093 | BT82: -0.1829647004 | BU82: -0.1886452447 | BV82: -0.1938526718 | BW82: -0.1986125067 | BX82: -0.2029488066 | BY82: -0.2068843226 | BZ82: -0.2104406147 | CA82: -0.2136381408 | CB82: -0.2164963267 | CC82: -0.2190336259 | CD82: -0.221161194 | CE82: -0.223015723 | CF82: -0.2246122913 | CG82: -0.2259652269 | CH82: -0.2270881429 | CI82: -0.2279939722 | CJ82: -0.2286950002 | CK82: -0.2292028954 | CL82: -0.2295287392 | CM82: -0.2296830536 | CN82: -0.2296758284 | CO82: -0.229516546 | CP82: -0.2292286037 | CQ82: -0.2288125503 | CR82: -0.2282761031 | CS82: -0.2276265829 | CT82: -0.2268709329 | CU82: -0.2260157374 | CV82: -0.225067239 | CW82: -0.2240313551 | CX82: -0.2229136936 | CY82: -0.2217195686 | CZ82: -0.2204540137 | DA82: -0.2191217969 | DB82: -0.217793831 | DC82: -0.2164107475 | DD82: -0.2149763989 | DE82: -0.2134944303 | DF82: -0.2119682902 | DG82: -0.2104012397 | DH82: -0.2087963619 | DI82: -0.2071565713 | DJ82: -0.2054846216 | DK82: -0.2037831139 | DL82: -0.2020545045 | DM82: -0.2003011124 | DN82: -0.1994554043 | DS82: 74 | DT82: 18167.23746 | DU82: 1.096559479 | DV82: 31150.59438 | DW82: 1.329882639 | DY82: 14729.54691 | DZ82: 8745.884783 | EA82: tx A | EG82: 29200 | EH82: 0.8217 | EI82: 0.1783 | EJ82: -1686.654009 | EK82: -5776.014559 | EL82: 0.8217
O83: SILENT | P83: ACTIVE | Q83: COMPL | R83: DEAD | S83: SILENT | T83: ACTIVE | U83: COMPL | V83: DEAD | AH83: SILENT | AI83: ACTIVE | AJ83: COMPL | AK83: DEAD | AL83: SILENT | AM83: ACTIVE | AN83: COMPL | AO83: DEAD | BA83: 75 | BB83: 14939.01241 | BC83: 1.508913331 | BD83: 30694.26897 | BE83: 1.648460702 | BF83: -0.01441666667 | BG83: -0.03976043472 | BH83: -0.06237107384 | BI83: -0.08282667861 | BJ83: -0.101557251 | BK83: -0.118877915 | BL83: -0.1350183139 | BM83: -0.1501462025 | BN83: -0.1643853499 | BO83: -0.1778286409 | BP83: -0.1905474282 | BQ83: -0.2025980858 | BR83: -0.2134823295 | BS83: -0.2238107475 | BT83: -0.2336151027 | BU83: -0.2429235334 | BV83: -0.2517614723 | BW83: -0.2601522682 | BX83: -0.2681176092 | BY83: -0.2756778127 | BZ83: -0.2828520277 | CA83: -0.2896583788 | CB83: -0.2961140714 | CC83: -0.3022354706 | CD83: -0.3077618448 | CE83: -0.3129988412 | CF83: -0.3179599594 | CG83: -0.3226580813 | CH83: -0.327105503 | CI83: -0.3313139626 | CJ83: -0.3352946668 | CK83: -0.3390583156 | CL83: -0.3426151248 | CM83: -0.3459748482 | CN83: -0.3491467982 | CO83: -0.3521398656 | CP83: -0.3548281251 | CQ83: -0.3573618207 | CR83: -0.3597483187 | CS83: -0.3619946507 | CT83: -0.3641075285 | CU83: -0.3660933577 | CV83: -0.3679582523 | CW83: -0.3697080466 | CX83: -0.3713483084 | CY83: -0.3728843506 | CZ83: -0.3743212426 | DA83: -0.3756638212 | DB83: -0.3768570398 | DC83: -0.3779690234 | DD83: -0.3790037713 | DE83: -0.3799650983 | DF83: -0.3808566429 | DG83: -0.3816818754 | DH83: -0.3824441052 | DI83: -0.383146488 | DJ83: -0.3837920331 | DK83: -0.3843836094 | DL83: -0.3849239522 | DM83: -0.3854156691 | DN83: -0.3856278484 | DS83: 75 | DT83: 14939.01241 | DU83: 1.508913331 | DV83: 30694.26897 | DW83: 1.648460702 | DY83: 30328.38753 | DZ83: 18759.55208 | EA83: tx A | EG83: 29600 | EH83: 0.8126 | EI83: 0.1874 | EJ83: -1480.011225 | EK83: -5435.595196 | EL83: 0.8126
F84: NO CORRECTION | H84: TOTALS | J84: =SUM(J22:J81) -> 9.944760952 | K84: =SUM(K22:K81) -> 5.67405376 | L84: 39.80295923 | M84: 4.578226062 | O84: =SUM(O22:O81) -> 588.5106046 | P84: 679.8078878 | Q84: 14613.00911 | R84: 0 | S84: 0.652895134 | T84: 0.3021564542 | U84: -0.4202349308 | V84: 0 | AA84: TOTALS | AC84: =SUM(AC22:AC81) -> 13.28713023 | AD84: =SUM(AD22:AD81) -> 7.111256912 | AE84: 35.29915253 | AF84: 4.30246033 | AH84: =SUM(AH22:AH81) -> 11778.96735 | AI84: 6829.797522 | AJ84: 12921.8036 | AK84: 0 | AL84: 0.8676713585 | AM84: 0.3763861579 | AN84: -0.3715999355 | AO84: 0 | BA84: 76 | BB84: 17128.77653 | BC84: 0.4217501342 | BD84: 31585.66317 | BE84: 0.8387964769 | BF84: -0.01441666667 | BG84: -0.03690617907 | BH84: -0.05503771612 | BI84: -0.07006704829 | BJ84: -0.08279674786 | BK84: -0.09374756123 | BL84: -0.1032645088 | BM84: -0.1115826003 | BN84: -0.1188675618 | BO84: -0.1252410993 | BP84: -0.1307965914 | BQ84: -0.1356088574 | BR84: -0.1395435231 | BS84: -0.1428809108 | BT84: -0.1456662662 | BU84: -0.1479403829 | BV84: -0.1497405537 | BW84: -0.151101199 | BX84: -0.1520542946 | BY84: -0.1526296712 | BZ84: -0.1528552349 | CA84: -0.1527571354 | CB84: -0.1523599013 | CC84: -0.1516865528 | CD84: -0.1508028823 | CE84: -0.1496961438 | CF84: -0.1483844686 | CG84: -0.1468848693 | CH84: -0.1452133039 | CI84: -0.1433847353 | CJ84: -0.1414131867 | CK84: -0.1393117952 | CL84: -0.1370928607 | CM84: -0.1347678937 | CN84: -0.132347659 | CO84: -0.1298422187 | CP84: -0.1273838878 | CQ84: -0.1248617149 | CR84: -0.1222834934 | CS84: -0.1196564872 | CT84: -0.1169874613 | CU84: -0.1142827103 | CV84: -0.1115480862 | CW84: -0.1087890239 | CX84: -0.1060105659 | CY84: -0.1032173851 | CZ84: -0.1004138073 | DA84: -0.09760383149 | DB84: -0.0949250867 | DC84: -0.0922470058 | DD84: -0.08957257186 | DE84: -0.08690452559 | DF84: -0.08424538022 | DG84: -0.08159743561 | DH84: -0.07896279155 | DI84: -0.07634336032 | DJ84: -0.07374087856 | DK84: -0.0711569185 | DL84: -0.06859289851 | DM84: -0.06605009312 | DN84: -0.06484987848 | DS84: 76 | DT84: 17128.77653 | DU84: 0.4217501342 | DV84: 31585.66317 | DW84: 0.8387964769 | DY84: -4476.272506 | DZ84: -6421.768861 | EA84: tx A | EG84: 30000 | EH84: 0.8019 | EI84: 0.1981 | EJ84: -1273.368441 | EK84: -5095.175834 | EL84: 0.8019
BA85: 77 | BB85: 16683.62028 | BC85: 0.9174008928 | BD85: 32870.87224 | BE85: 1.461801283 | BF85: -0.01441666667 | BG85: -0.03728754414 | BH85: -0.05604618624 | BI85: -0.07182310392 | BJ85: -0.0853202043 | BK85: -0.09698384131 | BL85: -0.1071075925 | BM85: -0.1158932477 | BN85: -0.1234869763 | BO85: -0.1300007683 | BP85: -0.1355251497 | BQ85: -0.1401367355 | BR85: -0.1437233971 | BS85: -0.1465623474 | BT85: -0.14870637 | BU85: -0.1502043827 | BV85: -0.1511020507 | BW85: -0.1514421932 | BX85: -0.1512650657 | BY85: -0.15060857 | BZ85: -0.1495084188 | CA85: -0.147998273 | CB85: -0.1461098607 | CC85: -0.1438730841 | CD85: -0.1414378784 | CE85: -0.1387230051 | CF85: -0.1357522625 | CG85: -0.1325480495 | CH85: -0.1291314389 | CI85: -0.1255222466 | CJ85: -0.1217390975 | CK85: -0.1177994879 | CL85: -0.1137198456 | CM85: -0.1095155855 | CN85: -0.1052011643 | CO85: -0.1007901307 | CP85: -0.09650921998 | CQ85: -0.09215969406 | CR85: -0.08775213148 | CS85: -0.08329641777 | CT85: -0.07880178311 | CU85: -0.07427683806 | CV85: -0.06972960748 | CW85: -0.06516756279 | CX85: -0.06059765254 | CY85: -0.05602633144 | CZ85: -0.05145958796 | DA85: -0.04690297048 | DB85: -0.04257786726 | DC85: -0.03827181215 | DD85: -0.03398896901 | DE85: -0.02973317009 | DF85: -0.02550793527 | DG85: -0.02131649011 | DH85: -0.01716178314 | DI85: -0.01304650218 | DJ85: -0.008973089766 | DK85: -0.004943757863 | DL85: -0.0009605017347 | DM85: 0.002974886886 | DN85: 0.004825325192 | DS85: 77 | DT85: 16683.62028 | DU85: 0.9174008928 | DV85: 32870.87224 | DW85: 1.461801283 | DY85: 10838.40651 | DZ85: 10983.16626 | EA85: tx B | EG85: 30400 | EH85: 0.7908 | EI85: 0.2092 | EJ85: -1066.725658 | EK85: -4754.756471 | EL85: 0.7908
Q86: TOTAL COST | R86: =O84+P84+Q84+R84 -> 15881.3276 | U86: TOTAL OUTCOME | V86: =S84+T84+U84+V84 -> 0.5348166573 | AJ86: TOTAL COST | AK86: =AH84+AI84+AJ84+AK84 -> 31530.56847 | AN86: TOTAL OUTCOME | AO86: =AL84+AM84+AN84+AO84 -> 0.8724575809 | BA86: 78 | BB86: 16872.66577 | BC86: -0.1089276206 | BD86: 31044.81225 | BE86: 0.3602272284 | BF86: -0.01441666667 | BG86: -0.03539691659 | BH86: -0.05140321585 | BI86: -0.06413177415 | BJ86: -0.07458980954 | BK86: -0.08338315884 | BL86: -0.09088362902 | BM86: -0.09732630247 | BN86: -0.1028660749 | BO86: -0.1076104873 | BP86: -0.111638785 | BQ86: -0.1150129853 | BR86: -0.1176523423 | BS86: -0.1197596058 | BT86: -0.1213722336 | BU86: -0.1225243075 | BV86: -0.1232472792 | BW86: -0.1235704321 | BX86: -0.1235211774 | BY86: -0.1231252557 | BZ86: -0.1224068812 | CA86: -0.1213888539 | CB86: -0.1200926512 | CC86: -0.1185385061 | CD86: -0.1168308605 | CE86: -0.1149128029 | CF86: -0.1128004293 | CG86: -0.1105088893 | CH86: -0.1080524369 | CI86: -0.1054444779 | CJ86: -0.1026976152 | CK86: -0.09982369176 | CL86: -0.09683383127 | CM86: -0.09373847676 | CN86: -0.09054742737 | CO86: -0.08726987323 | CP86: -0.0840742116 | CQ86: -0.08081205388 | CR86: -0.07749059529 | CS86: -0.07411656784 | CT86: -0.07069626589 | CU86: -0.06723557043 | CV86: -0.06373997211 | CW86: -0.0602145931 | CX86: -0.05666420775 | CY86: -0.05309326228 | CZ86: -0.0495058934 | DA86: -0.04590594594 | DB86: -0.0424688447 | DC86: -0.03902631641 | DD86: -0.03558128129 | DE86: -0.03213644051 | DF86: -0.02869428907 | DG86: -0.0252571279 | DH86: -0.02182707549 | DI86: -0.0184060787 | DJ86: -0.01499592312 | DK86: -0.01159824289 | DL86: -0.008214529883 | DM86: -0.004846142482 | DN86: -0.003250033618 | DS86: 78 | DT86: 16872.66577 | DU86: -0.1089276206 | DV86: 31044.81225 | DW86: 0.3602272284 | DY86: -20140.49439 | DZ86: -20237.9954 | EA86: tx A | EG86: 30800 | EH86: 0.7811 | EI86: 0.2189 | EJ86: -860.0828735 | EK86: -4414.337109 | EL86: 0.7811
BA87: 79 | BB87: 15598.56525 | BC87: 0.5998338465 | BD87: 30558.75343 | BE87: 0.7796132232 | BF87: -0.01441666667 | BG87: -0.03674746045 | BH87: -0.05527303647 | BI87: -0.07147429905 | BJ87: -0.08616099261 | BK87: -0.09977544066 | BL87: -0.1125606802 | BM87: -0.1246528302 | BN87: -0.1361313717 | BO87: -0.1470462084 | BP87: -0.1574320249 | BQ87: -0.1673157662 | BR87: -0.1762725989 | BS87: -0.1847931231 | BT87: -0.1928961523 | BU87: -0.200599732 | BV87: -0.2079212787 | BW87: -0.2148776202 | BX87: -0.2214849972 | BY87: -0.2277590559 | BZ87: -0.2337148416 | CA87: -0.2393667988 | CB87: -0.2447287767 | CC87: -0.2498140409 | CD87: -0.2544057043 | CE87: -0.2587574882 | CF87: -0.2628804513 | CG87: -0.2667851638 | CH87: -0.2704817262 | CI87: -0.2739797892 | CJ87: -0.2772885719 | CK87: -0.2804168804 | CL87: -0.2833731255 | CM87: -0.2861653396 | CN87: -0.2888011937 | CO87: -0.2912880128 | CP87: -0.2935211351 | CQ87: -0.2956253408 | CR87: -0.2976067026 | CS87: -0.2994710178 | CT87: -0.3012238211 | CU87: -0.3028703958 | CV87: -0.3044157854 | CW87: -0.3058648037 | CX87: -0.3072220453 | CY87: -0.3084918956 | CZ87: -0.3096785394 | DA87: -0.3107859705 | DB87: -0.3117688558 | DC87: -0.3126833933 | DD87: -0.3135328876 | DE87: -0.3143204914 | DF87: -0.3150492125 | DG87: -0.3157219202 | DH87: -0.3163413515 | DI87: -0.3169101173 | DJ87: -0.3174307076 | DK87: -0.3179054972 | DL87: -0.3183367511 | DM87: -0.3187266288 | DN87: -0.3188935626 | DS87: 79 | DT87: 15598.56525 | DU87: 0.5998338465 | DV87: 30558.75343 | DW87: 0.7796132232 | DY87: 2396.450146 | DZ87: -7170.356732 | EA87: tx A | EG87: 31200 | EH87: 0.7705 | EI87: 0.2295 | EJ87: -653.4400896 | EK87: -4073.917746 | EL87: 0.7705
BA88: 80 | BB88: 15803.12081 | BC88: 0.2927703386 | BD88: 30033.37574 | BE88: 0.5870706365 | BF88: -0.01441666667 | BG88: -0.03651000825 | BH88: -0.05421008947 | BI88: -0.06895160097 | BJ88: -0.08161834379 | BK88: -0.09276084745 | BL88: -0.1027275901 | BM88: -0.1117441823 | BN88: -0.1199611917 | BO88: -0.1274830584 | BP88: -0.1343856005 | BQ88: -0.1407266315 | BR88: -0.1462749978 | BS88: -0.1513694674 | BT88: -0.1560419082 | BU88: -0.1603206639 | BV88: -0.1642314434 | BW88: -0.1677978857 | BX88: -0.1710419267 | BY88: -0.1739840455 | BZ88: -0.1766434362 | CA88: -0.179038133 | CB88: -0.1811851058 | CC88: -0.1831003382 | CD88: -0.1847180083 | CE88: -0.1861428384 | CF88: -0.187387573 | CG88: -0.1884642252 | CH88: -0.1893841165 | CI88: -0.1901579151 | CJ88: -0.1907956711 | CK88: -0.1913068505 | CL88: -0.1917003661 | CM88: -0.1919846078 | CN88: -0.1921674711 | CO88: -0.1922563832 | CP88: -0.1922582367 | CQ88: -0.1921835193 | CR88: -0.1920381083 | CS88: -0.191827525 | CT88: -0.1915569541 | CU88: -0.1912312623 | CV88: -0.1908550159 | CW88: -0.1904324974 | CX88: -0.1899677215 | CY88: -0.1894644496 | CZ88: -0.1889262045 | DA88: -0.1883562833 | DB88: -0.1877862711 | DC88: -0.1871917753 | DD88: -0.1865753622 | DE88: -0.1859394281 | DF88: -0.1852862089 | DG88: -0.1846177897 | DH88: -0.1839361133 | DI88: -0.1832429884 | DJ88: -0.1825400976 | DK88: -0.1818290046 | DL88: -0.1811111614 | DM88: -0.1803879149 | DN88: -0.180041533 | DS88: 80 | DT88: 15803.12081 | DU88: 0.2927703386 | DV88: 30033.37574 | DW88: 0.5870706365 | DY88: -7020.010652 | DZ88: -12421.25664 | EA88: tx A | EG88: 31600 | EH88: 0.7615 | EI88: 0.2385 | EJ88: -446.7973056 | EK88: -3733.498384 | EL88: 0.7615
O89: SILENT | P89: ACTIVE | Q89: COMPL | R89: DEAD | S89: SILENT | T89: ACTIVE | U89: COMPL | V89: DEAD | AH89: SILENT | AI89: ACTIVE | AJ89: COMPL | AK89: DEAD | AL89: SILENT | AM89: ACTIVE | AN89: COMPL | AO89: DEAD | BA89: 81 | BB89: 17392.68756 | BC89: 0.3448855165 | BD89: 29235.67078 | BE89: 0.4313410321 | BF89: -0.01441666667 | BG89: -0.0371815979 | BH89: -0.05611687854 | BI89: -0.07255651907 | BJ89: -0.0872983962 | BK89: -0.1008225916 | BL89: -0.113420722 | BM89: -0.1252725477 | BN89: -0.1364913533 | BO89: -0.1471508322 | BP89: -0.1573010159 | BQ89: -0.1669777147 | BR89: -0.1757685722 | BS89: -0.1841552253 | BT89: -0.1921553445 | BU89: -0.1997845471 | BV89: -0.2070570652 | BW89: -0.2139861459 | BX89: -0.2205842943 | BY89: -0.2268634212 | BZ89: -0.2328349365 | CA89: -0.2385098087 | CB89: -0.2438986043 | CC89: -0.2490115166 | CD89: -0.2536275828 | CE89: -0.2579993265 | CF89: -0.2621354926 | CG89: -0.2660445305 | CH89: -0.2697346047 | CI89: -0.2732136045 | CJ89: -0.2764891533 | CK89: -0.2795686171 | CL89: -0.2824591133 | CM89: -0.2851675184 | CN89: -0.287700476 | CO89: -0.2900644044 | CP89: -0.2921606894 | CQ89: -0.2941076033 | CR89: -0.2959106557 | CS89: -0.2975751683 | CT89: -0.2991062811 | CU89: -0.3005089581 | CV89: -0.301787993 | CW89: -0.3029480152 | CX89: -0.3039934949 | CY89: -0.3049287484 | CZ89: -0.3057579432 | DA89: -0.306485103 | DB89: -0.3070841596 | DC89: -0.3075933112 | DD89: -0.3080160054 | DE89: -0.3083555704 | DF89: -0.3086152185 | DG89: -0.3087980503 | DH89: -0.3089070581 | DI89: -0.30894513 | DJ89: -0.308915053 | DK89: -0.3088195166 | DL89: -0.3086611161 | DM89: -0.3084423556 | DN89: -0.3083105915 | DS89: 81 | DT89: 17392.68756 | DU89: 0.3448855165 | DV89: 29235.67078 | DW89: 0.4313410321 | DY89: -7046.12207 | DZ89: -16295.43982 | EA89: tx A | EG89: 32000 | EH89: 0.7521 | EI89: 0.2479 | EJ89: -240.1545216 | EK89: -3393.079021 | EL89: 0.7521
F90: HALF CYCLE CORRECTION | H90: TOTALS | J90: =0.5*J22+SUM(J23:J81)+0.5*J82 -> 9.961688609 | K90: =0.5*K22+SUM(K23:K81)+0.5*K82 -> 5.179475123 | L90: 40.19896875 | M90: 4.659867518 | O90: 589.387421 | P90: 619.151959 | Q90: 14745.37945 | R90: 0 | S90: =0.5*S22+SUM(S23:S81)+0.5*S82 -> 0.6538678762 | T90: =0.5*T22+SUM(T23:T81)+0.5*T82 -> 0.2751965134 | U90: =0.5*U22+SUM(U23:U81)+0.5*U82 -> -0.4240415831 | V90: =0.5*V22+SUM(V23:V81)+0.5*V82 -> 0 | AA90: TOTALS | AC90: =0.5*AC22+SUM(AC23:AC81)+0.5*AC82 -> 13.31935049 | AD90: =0.5*AD22+SUM(AD23:AD81)+0.5*AD82 -> 6.622160208 | AE90: 35.67840001 | AF90: 4.380089289 | AH90: 11804.10253 | AI90: 6345.147629 | AJ90: 13048.57106 | AK90: 0 | AL90: =0.5*AL22+SUM(AL23:AL81)+0.5*AL82 -> 0.8695228851 | AM90: =0.5*AM22+SUM(AM23:AM81)+0.5*AM82 -> 0.349677385 | AN90: -0.3752454622 | AO90: 0 | BA90: 82 | BB90: 16441.67742 | BC90: 0.5624488835 | BD90: 29658.26333 | BE90: 0.9018327615 | BF90: -0.01441666667 | BG90: -0.03567107529 | BH90: -0.05209077423 | BI90: -0.06532190783 | BJ90: -0.07635926696 | BK90: -0.08581080307 | BL90: -0.09405430412 | BM90: -0.1013302334 | BN90: -0.1077967704 | BO90: -0.113562467 | BP90: -0.1187056426 | BQ90: -0.1232859214 | BR90: -0.1271575315 | BS90: -0.1305767809 | BT90: -0.1335768961 | BU90: -0.1361875626 | BV90: -0.1384358048 | BW90: -0.1403465377 | BX90: -0.1419429218 | BY90: -0.1432466001 | BZ90: -0.1442778637 | CA90: -0.145055774 | CB90: -0.1455982573 | CC90: -0.1459221828 | CD90: -0.1460376554 | CE90: -0.1459743348 | CF90: -0.1457456186 | CG90: -0.1453641139 | CH90: -0.1448416807 | CI90: -0.1441894725 | CJ90: -0.1434179746 | CK90: -0.1425370403 | CL90: -0.141555925 | CM90: -0.1404833185 | CN90: -0.1393273763 | CO90: -0.1380957479 | CP90: -0.1368575166 | CQ90: -0.1355604336 | CR90: -0.1342104922 | CS90: -0.1328133017 | CT90: -0.1313741088 | CU90: -0.1298978173 | CV90: -0.1283890077 | CW90: -0.1268519553 | CX90: -0.1252906471 | CY90: -0.1237087986 | CZ90: -0.1221098688 | DA90: -0.1204970752 | DB90: -0.1189507249 | DC90: -0.1173966612 | DD90: -0.1158373346 | DE90: -0.1142750142 | DF90: -0.1127117986 | DG90: -0.1111496258 | DH90: -0.1095902828 | DI90: -0.1080354146 | DJ90: -0.1064865329 | DK90: -0.1049450239 | DL90: -0.1034121561 | DM90: -0.1018890877 | DN90: -0.1011689855 | DS90: 82 | DT90: 16441.67742 | DU90: 0.5624488835 | DV90: 29658.26333 | DW90: 0.9018327615 | DY90: 431.7890837 | DZ90: -2603.280481 | EA90: tx A | EG90: 32400 | EH90: 0.7414 | EI90: 0.2586 | EJ90: -33.51173761 | EK90: -3052.659658 | EL90: 0.7414
BA91: 83 | BB91: 16410.126 | BC91: 0.5631812903 | BD91: 30355.63298 | BE91: 0.8842913387 | BF91: -0.01441666667 | BG91: -0.03752568124 | BH91: -0.05674414139 | BI91: -0.07320331208 | BJ91: -0.08760931219 | BK91: -0.1004105291 | BL91: -0.111898691 | BM91: -0.1222699048 | BN91: -0.1316615366 | BO91: -0.1401745139 | BP91: -0.1478868291 | BQ91: -0.1548617335 | BR91: -0.1608531544 | BS91: -0.1662377989 | BT91: -0.1710556458 | BU91: -0.1753432029 | BV91: -0.1791342162 | BW91: -0.1824601324 | BX91: -0.1853504089 | BY91: -0.1878327326 | BZ91: -0.1899331793 | CA91: -0.191676339 | CB91: -0.1930854165 | CC91: -0.1941823181 | CD91: -0.194949374 | CE91: -0.1954574159 | CF91: -0.1957240017 | CG91: -0.1957657049 | CH91: -0.1955981658 | CI91: -0.195236141 | CJ91: -0.1946935494 | CK91: -0.193983516 | CL91: -0.1931184134 | CM91: -0.192109901 | CN91: -0.190968963 | CO91: -0.189705943 | CP91: -0.188396072 | CQ91: -0.186987933 | CR91: -0.1854897347 | CS91: -0.1839091953 | CT91: -0.1822535688 | CU91: -0.1805296696 | CV91: -0.1787438962 | CW91: -0.1769022536 | CX91: -0.1750103745 | CY91: -0.1730735397 | CZ91: -0.1710966969 | DA91: -0.1690844792 | DB91: -0.1671385201 | DC91: -0.1651668614 | DD91: -0.1631731115 | DE91: -0.1611606403 | DF91: -0.1591325919 | DG91: -0.1570918979 | DH91: -0.1550412885 | DI91: -0.1529833048 | DJ91: -0.150920309 | DK91: -0.1488544946 | DL91: -0.1467878964 | DM91: -0.1447223995 | DN91: -0.1437401844 | DS91: 83 | DT91: 16410.126 | DU91: 0.5631812903 | DV91: 30355.63298 | DW91: 0.8842913387 | DY91: 485.3127141 | DZ91: -3826.892818 | EA91: tx A | EG91: 32800 | EH91: 0.7312 | EI91: 0.2688 | EJ91: 173.1310464 | EK91: -2712.240296 | EL91: 0.7312
Q92: TOTAL COST | R92: =O90+P90+Q90+R90 -> 15953.91883 | U92: TOTAL OUTCOME | V92: =S90+T90+U90+V90 -> 0.5050228065 | AJ92: TOTAL COST | AK92: =AH90+AI90+AJ90+AK90 -> 31197.82121 | AN92: TOTAL OUTCOME | AO92: =AL90+AM90+AN90+AO90 -> 0.8439548079 | BA92: 84 | BB92: 19715.56383 | BC92: 0.7121445181 | BD92: 29970.53438 | BE92: 0.975575252 | BF92: -0.01441666667 | BG92: -0.03642887114 | BH92: -0.05386109845 | BI92: -0.06811000203 | BJ92: -0.08005536094 | BK92: -0.0902597249 | BL92: -0.09909023388 | BM92: -0.1067930581 | BN92: -0.1135389612 | BO92: -0.1194512432 | BP92: -0.1246229199 | BQ92: -0.1291273184 | BR92: -0.1328390538 | BS92: -0.1360213521 | BT92: -0.1387167882 | BU92: -0.1409633384 | BV92: -0.1427953875 | BW92: -0.1442443953 | BX92: -0.1453393501 | BY92: -0.1461070894 | BZ92: -0.1465725357 | CA92: -0.1467588782 | CB92: -0.1466877188 | CC92: -0.1463791945 | CD92: -0.1458771828 | CE92: -0.1451836688 | CF92: -0.1443142027 | CG92: -0.1432832823 | CH92: -0.1421044198 | CI92: -0.1407902049 | CJ92: -0.1393523631 | CK92: -0.1378018108 | CL92: -0.1361487062 | CM92: -0.1344024972 | CN92: -0.1325719672 | CO92: -0.1306652767 | CP92: -0.1287840641 | CQ92: -0.1268442321 | CR92: -0.1248519921 | CS92: -0.1228131008 | CT92: -0.1207328898 | CU92: -0.118616293 | CV92: -0.116467873 | CW92: -0.114291845 | CX92: -0.1120921003 | CY92: -0.1098722271 | CZ92: -0.1076355315 | DA92: -0.1053850554 | DB92: -0.103231284 | DC92: -0.1010694964 | DD92: -0.09890193405 | DE92: -0.09673064886 | DF92: -0.09455751622 | DG92: -0.09238424733 | DH92: -0.09021240063 | DI92: -0.08804339257 | DJ92: -0.08587850762 | DK92: -0.08371890776 | DL92: -0.0815656412 | DM92: -0.0794196507 | DN92: -0.07840161764 | DS92: 84 | DT92: 19715.56383 | DU92: 0.7121445181 | DV92: 29970.53438 | DW92: 0.975575252 | DY92: 1648.771709 | DZ92: -703.2768199 | EA92: tx A | EG92: 33200 | EH92: 0.7209 | EI92: 0.2791 | EJ92: 379.7738304 | EK92: -2371.820933 | EL92: 0.7209
BA93: 85 | BB93: 15679.03213 | BC93: 0.302234432 | BD93: 29656.71546 | BE93: 0.4712360025 | BF93: -0.01441666667 | BG93: -0.03555699716 | BH93: -0.05200831972 | BI93: -0.06555576498 | BJ93: -0.07726148294 | BK93: -0.08775874296 | BL93: -0.09742636395 | BM93: -0.1064921712 | BN93: -0.1150943597 | BO93: -0.1233178915 | BP93: -0.1312160856 | BQ93: -0.1388234247 | BR93: -0.1458136419 | BS93: -0.1525647176 | BT93: -0.159088514 | BU93: -0.1653945414 | BV93: -0.1714908551 | BW93: -0.1773845892 | BX93: -0.1830822733 | BY93: -0.1885900213 | BZ93: -0.193913645 | CA93: -0.1990587211 | CB93: -0.204030633 | CC93: -0.2088345959 | CD93: -0.2132546687 | CE93: -0.2175242984 | CF93: -0.221648043 | CG93: -0.2256303372 | CH93: -0.2294754962 | CI93: -0.2331877186 | CJ93: -0.2367710894 | CK93: -0.2402295824 | CL93: -0.2435670629 | CM93: -0.24678729 | CN93: -0.2498939187 | CO93: -0.2528905024 | CP93: -0.2556428764 | CQ93: -0.2582969321 | CR93: -0.2608557759 | CS93: -0.2633224258 | CT93: -0.2656998136 | CU93: -0.2679907867 | CV93: -0.2701981102 | CW93: -0.2723244688 | CX93: -0.274372469 | CY93: -0.2763446407 | CZ93: -0.2782434395 | DA93: -0.2800712482 | DB93: -0.2817466107 | DC93: -0.2833587017 | DD93: -0.2849095936 | DE93: -0.2864012961 | DF93: -0.2878357586 | DG93: -0.2892148712 | DH93: -0.2905404665 | DI93: -0.2918143212 | DJ93: -0.2930381576 | DK93: -0.294213645 | DL93: -0.2953424011 | DM93: -0.2964259937 | DN93: -0.2969212071 | DS93: 85 | DT93: 15679.03213 | DU93: 0.302234432 | DV93: 29656.71546 | DW93: 0.4712360025 | DY93: -6611.999173 | DZ93: -15519.63539 | EA93: tx A | EG93: 33600 | EH93: 0.7102 | EI93: 0.2898 | EJ93: 586.4166143 | EK93: -2031.401571 | EL93: 0.7102
BA94: 86 | BB94: 16123.40764 | BC94: 0.3827861025 | BD94: 30031.73717 | BE94: 0.4736021239 | BF94: -0.01441666667 | BG94: -0.03808480299 | BH94: -0.05837784115 | BI94: -0.07638060419 | BJ94: -0.09275473284 | BK94: -0.1079077693 | BL94: -0.1220945102 | BM94: -0.1354777654 | BN94: -0.1481647892 | BO94: -0.1602291297 | BP94: -0.1717237402 | BQ94: -0.1826888525 | BR94: -0.1926582419 | BS94: -0.2021798756 | BT94: -0.2112763241 | BU94: -0.2199679069 | BV94: -0.2282733028 | BW94: -0.2362099285 | BX94: -0.2437941771 | BY94: -0.2510415721 | BZ94: -0.2579668715 | CA94: -0.2645841392 | CB94: -0.2709067995 | CC94: -0.2769476777 | CD94: -0.2824442084 | CE94: -0.28769522 | CF94: -0.2927113948 | CG94: -0.2975029528 | CH94: -0.3020796719 | CI94: -0.3064509081 | CJ94: -0.3106256136 | CK94: -0.3146123539 | CL94: -0.3184193255 | CM94: -0.3220543706 | CN94: -0.3255249932 | CO94: -0.3288383732 | CP94: -0.331850761 | CQ94: -0.3347261966 | CR94: -0.3374706694 | CS94: -0.34008991 | CT94: -0.342589401 | CU94: -0.3449743879 | CV94: -0.3472498891 | CW94: -0.3494207057 | CX94: -0.3514914311 | CY94: -0.3534664593 | CZ94: -0.3553499941 | DA94: -0.3571460571 | DB94: -0.3587769504 | DC94: -0.3603317059 | DD94: -0.3618136762 | DE94: -0.3632260683 | DF94: -0.3645719501 | DG94: -0.365854256 | DH94: -0.3670757929 | DI94: -0.3682392454 | DJ94: -0.3693471815 | DK94: -0.3704020573 | DL94: -0.371406222 | DM94: -0.3723619224 | DN94: -0.3727949628 | DS94: 86 | DT94: 16123.40764 | DU94: 0.3827861025 | DV94: 30031.73717 | DW94: 0.4736021239 | DY94: -4639.824567 | DZ94: -15823.67345 | EA94: tx A | EG94: 34000 | EH94: 0.7014 | EI94: 0.2986 | EJ94: 793.0593983 | EK94: -1690.982208 | EL94: 0.7014
BA95: 87 | BB95: 15509.42382 | BC95: 0.05415530064 | BD95: 29214.48566 | BE95: 0.2857136452 | BF95: -0.01441666667 | BG95: -0.03723099429 | BH95: -0.0560706221 | BI95: -0.07217846601 | BJ95: -0.08631784997 | BK95: -0.09896472312 | BL95: -0.1104224623 | BM95: -0.1208904376 | BN95: -0.1305049719 | BO95: -0.1393638194 | BP95: -0.1475408114 | BQ95: -0.155094633 | BR95: -0.1617417445 | BS95: -0.1678819794 | BT95: -0.1735509512 | BU95: -0.1787808991 | BV95: -0.1836014036 | BW95: -0.1880398487 | BX95: -0.1921217305 | BY95: -0.1958708727 | BZ95: -0.199309586 | CA95: -0.2024587913 | CB95: -0.2053381215 | CC95: -0.2079660067 | CD95: -0.210245763 | CE95: -0.2123180001 | CF95: -0.2141972428 | CG95: -0.2158971235 | CH95: -0.2174304342 | CI95: -0.2188091753 | CJ95: -0.2200446012 | CK95: -0.221147263 | CL95: -0.2221270499 | CM95: -0.222993227 | CN95: -0.2237544716 | CO95: -0.2244189077 | CP95: -0.2249667461 | CQ95: -0.2254364 | CR95: -0.225834203 | CS95: -0.2261660745 | CT95: -0.2264375449 | CU95: -0.2266537779 | CV95: -0.2268195927 | CW95: -0.2269394846 | CX95: -0.2270176445 | CY95: -0.227057977 | CZ95: -0.2270641176 | DA95: -0.2270394496 | DB95: -0.2269896109 | DC95: -0.2269162109 | DD95: -0.2268218348 | DE95: -0.2267088809 | DF95: -0.2265795726 | DG95: -0.2264359689 | DH95: -0.226279975 | DI95: -0.2261133519 | DJ95: -0.2259377254 | DK95: -0.225754595 | DL95: -0.2255653419 | DM95: -0.2253712363 | DN95: -0.22527705 | DS95: 87 | DT95: 15509.42382 | DU95: 0.05415530064 | DV95: 29214.48566 | DW95: 0.2857136452 | DY95: -13884.7648 | DZ95: -20643.0763 | EA95: tx A | EG95: 34400 | EH95: 0.6908 | EI95: 0.3092 | EJ95: 999.7021823 | EK95: -1350.562845 | EL95: 0.6908
BA96: 88 | BB96: 16913.44966 | BC96: 1.386357812 | BD96: 29568.52266 | BE96: 1.44024852 | BF96: -0.01441666667 | BG96: -0.0382888407 | BH96: -0.05890206194 | BI96: -0.07729010449 | BJ96: -0.09408453508 | BK96: -0.1096747711 | BL96: -0.1243043106 | BM96: -0.1381285906 | BN96: -0.1512497779 | BO96: -0.163737693 | BP96: -0.1756423983 | BQ96: -0.1870017759 | BR96: -0.1973296973 | BS96: -0.2071912826 | BT96: -0.2166076875 | BU96: -0.2255979894 | BV96: -0.2341797752 | BW96: -0.2423695044 | BX96: -0.2501827353 | BY96: -0.2576342699 | BZ96: -0.2647382484 | CA96: -0.2715082146 | CB96: -0.2779571617 | CC96: -0.2840975681 | CD96: -0.2896631461 | CE96: -0.2949572749 | CF96: -0.2999905115 | CG96: -0.3047730088 | CH96: -0.3093145321 | CI96: -0.3136244741 | CJ96: -0.3177118693 | CK96: -0.3215854081 | CL96: -0.3252534498 | CM96: -0.328724035 | CN96: -0.3320048979 | CO96: -0.3351034777 | CP96: -0.3378877183 | CQ96: -0.340511726 | CR96: -0.3429818056 | CS96: -0.3453040214 | CT96: -0.3474842061 | CU96: -0.3495279699 | CV96: -0.3514407082 | CW96: -0.3532276107 | CX96: -0.3548936685 | CY96: -0.3564436818 | CZ96: -0.3578822673 | DA96: -0.359213865 | DB96: -0.3603842269 | DC96: -0.3614606734 | DD96: -0.3624469657 | DE96: -0.3633467209 | DF96: -0.3641634176 | DG96: -0.3649004008 | DH96: -0.3655608872 | DI96: -0.3661479704 | DJ96: -0.3666646248 | DK96: -0.367113711 | DL96: -0.3674979794 | DM96: -0.367820075 | DN96: -0.3679450587 | DS96: 88 | DT96: 16913.44966 | DU96: 1.386357812 | DV96: 29568.52266 | DW96: 1.44024852 | DY96: 24677.28469 | DZ96: 13638.93293 | EA96: tx A | EG96: 34800 | EH96: 0.68 | EI96: 0.32 | EJ96: 1206.344966 | EK96: -1010.143483 | EL96: 0.68
BA97: 89 | BB97: 17486.50231 | BC97: -0.3417023133 | BD97: 30888.04865 | BE97: 0.1084112993 | BF97: -0.01441666667 | BG97: -0.03605044526 | BH97: -0.05284813042 | BI97: -0.06628880272 | BJ97: -0.07730638121 | BK97: -0.08649813202 | BL97: -0.09425291486 | BM97: -0.1008301214 | BN97: -0.1064083071 | BO97: -0.1111151853 | BP97: -0.1150461534 | BQ97: -0.1182757597 | BR97: -0.1207415297 | BS97: -0.1226463153 | BT97: -0.1240329667 | BU97: -0.1249397946 | BV97: -0.1254016392 | BW97: -0.125450565 | BX97: -0.1251163228 | BY97: -0.1244266667 | BZ97: -0.123407579 | CA97: -0.1220834378 | CB97: -0.120477147 | CC97: -0.1186102417 | CD97: -0.116603324 | CE97: -0.1143856409 | CF97: -0.1119742625 | CG97: -0.1093852419 | CH97: -0.1066336718 | CI97: -0.1037337366 | CJ97: -0.1006987615 | CK97: -0.09754125947 | CL97: -0.09427297421 | CM97: -0.09090492221 | CN97: -0.08744743182 | CO97: -0.08391018059 | CP97: -0.08047403771 | CQ97: -0.076978639 | CR97: -0.07343153694 | CS97: -0.06983978892 | CT97: -0.06620998458 | CU97: -0.06254827173 | CV97: -0.05886038093 | CW97: -0.05515164887 | CX97: -0.05142704049 | CY97: -0.04769117002 | CZ97: -0.04394832085 | DA97: -0.04020246447 | DB97: -0.03663562058 | DC97: -0.03307265363 | DD97: -0.02951655368 | DE97: -0.02597007686 | DF97: -0.0224357591 | DG97: -0.01891592921 | DH97: -0.01541272122 | DI97: -0.01192808606 | DJ97: -0.008463802695 | DK97: -0.005021488584 | DL97: -0.001602609612 | DM97: 0.001791510508 | DN97: 0.003395401381 | DS97: 89 | DT97: 17486.50231 | DU97: -0.3417023133 | DV97: 30888.04865 | DW97: 0.1084112993 | DY97: -27737.57171 | DZ97: -27635.70967 | EA97: tx B | EG97: 35200 | EH97: 0.67 | EI97: 0.33 | EJ97: 1412.98775 | EK97: -669.7241202 | EL97: 0.67
BA98: 90 | BB98: 16057.09288 | BC98: 0.7257659545 | BD98: 29682.77465 | BE98: 1.099878974 | BF98: -0.01441666667 | BG98: -0.03706618849 | BH98: -0.05542160474 | BI98: -0.07068406409 | BJ98: -0.08362671044 | BK98: -0.0947560282 | BL98: -0.1044117895 | BM98: -0.112829001 | BN98: -0.1201763293 | BO98: -0.1265799661 | BP98: -0.1321384774 | BQ98: -0.1369320701 | BR98: -0.1408333348 | BS98: -0.1441265023 | BT98: -0.1468612892 | BU98: -0.149082596 | BV98: -0.1508314478 | BW98: -0.1521456287 | BX98: -0.1530601233 | BY98: -0.1536074362 | BZ98: -0.1538178336 | CA98: -0.1537195338 | CB98: -0.1533388644 | CC98: -0.1527003962 | CD98: -0.1518686485 | CE98: -0.1508335974 | CF98: -0.1496142536 | CG98: -0.1482283439 | CH98: -0.1466923897 | CI98: -0.1450217803 | CJ98: -0.1432308423 | CK98: -0.1413329035 | CL98: -0.1393403544 | CM98: -0.1372647049 | CN98: -0.1351166386 | CO98: -0.1329060638 | CP98: -0.1307499655 | CQ98: -0.1285511716 | CR98: -0.1263171655 | CS98: -0.1240548596 | CT98: -0.1217706307 | CU98: -0.1194703541 | CV98: -0.1171594354 | CW98: -0.1148428409 | CX98: -0.1125251256 | CY98: -0.1102104596 | CZ98: -0.107902654 | DA98: -0.1056051836 | DB98: -0.1034299705 | DC98: -0.1012703433 | DD98: -0.09912877368 | DE98: -0.09700749114 | DF98: -0.09490849903 | DG98: -0.09283359037 | DH98: -0.09078436241 | DI98: -0.08876223035 | DJ98: -0.08676844026 | DK98: -0.08480408115 | DL98: -0.0828700964 | DM98: -0.08096729437 | DN98: -0.0800763725 | DS98: 90 | DT98: 16057.09288 | DU98: 0.7257659545 | DV98: 29682.77465 | DW98: 1.099878974 | DY98: 5715.885755 | DZ98: 3313.59458 | EA98: tx A | EG98: 35600 | EH98: 0.6584 | EI98: 0.3416 | EJ98: 1619.630534 | EK98: -329.3047576 | EL98: 0.6584
BA99: 91 | BB99: 17384.86759 | BC99: 1.27021863 | BD99: 31097.95203 | BE99: 1.50130837 | BF99: -0.01441666667 | BG99: -0.03722450772 | BH99: -0.05606028631 | BI99: -0.07218543798 | BJ99: -0.0863798758 | BK99: -0.09913069277 | BL99: -0.1107467893 | BM99: -0.1214284658 | BN99: -0.1313096529 | BO99: -0.1404835283 | BP99: -0.1490180523 | BQ99: -0.1569653919 | BR99: -0.1640151536 | BS99: -0.1705795918 | BT99: -0.1766882577 | BU99: -0.1823676828 | BV99: -0.1876421468 | BW99: -0.1925341594 | BX99: -0.1970647695 | BY99: -0.2012537695 | BZ99: -0.2051198361 | CA99: -0.2086806319 | CB99: -0.2119528831 | CC99: -0.2149524415 | CD99: -0.2175637709 | CE99: -0.2199432835 | CF99: -0.2221038557 | CG99: -0.2240577009 | CH99: -0.2258164031 | CI99: -0.2273909485 | CJ99: -0.228791755 | CK99: -0.230028701 | CL99: -0.2311111517 | CM99: -0.2320479848 | CN99: -0.2328476149 | CO99: -0.2335180158 | CP99: -0.2340406136 | CQ99: -0.2344541494 | CR99: -0.2347650809 | CS99: -0.2349795239 | CT99: -0.23510327 | CU99: -0.2351418021 | CV99: -0.2351003105 | CW99: -0.2349837075 | CX99: -0.2347966414 | CY99: -0.2345435096 | CZ99: -0.2342284718 | DA99: -0.2338554617 | DB99: -0.2334485445 | DC99: -0.2329933064 | DD99: -0.2324929119 | DE99: -0.2319503512 | DF99: -0.2313684488 | DG99: -0.2307498726 | DH99: -0.2300971412 | DI99: -0.2294126322 | DJ99: -0.2286985893 | DK99: -0.2279571292 | DL99: -0.2271902484 | DM99: -0.2263998291 | DN99: -0.2260130751 | DS99: 91 | DT99: 17384.86759 | DU99: 1.27021863 | DV99: 31097.95203 | DW99: 1.50130837 | DY99: 20721.69131 | DZ99: 13941.29906 | EA99: tx A | EG99: 36000 | EH99: 0.6505 | EI99: 0.3495 | EJ99: 1826.273318 | EK99: 11.11460496 | EL99: 0.6505
BA100: 92 | BB100: 18461.69902 | BC100: -0.2036974984 | BD100: 29248.64804 | BE100: 0.09204075274 | BF100: -0.01441666667 | BG100: -0.03443424382 | BH100: -0.04939707391 | BI100: -0.06133543519 | BJ100: -0.07134292683 | BK100: -0.08001015554 | BL100: -0.08766007143 | BM100: -0.09447466812 | BN100: -0.1005625376 | BO100: -0.1059944573 | BP100: -0.1108218526 | BQ100: -0.1150861892 | BR100: -0.1186456555 | BS100: -0.1217348284 | BT100: -0.1243832643 | BU100: -0.1266189789 | BV100: -0.1284686106 | BW100: -0.1299574801 | BX100: -0.1311096152 | BY100: -0.1319477706 | BZ100: -0.1324934547 | CA100: -0.1327669629 | CB100: -0.1327874203 | CC100: -0.1325728285 | CD100: -0.1321607214 | CE100: -0.1315560299 | CF100: -0.130772981 | CG100: -0.1298249271 | CH100: -0.1287243942 | CI100: -0.1274831276 | CJ100: -0.1261121357 | CK100: -0.124621732 | CL100: -0.1230215749 | CM100: -0.1213207058 | CN100: -0.1195275849 | CO100: -0.1176501248 | CP100: -0.11578879 | CQ100: -0.113860761 | CR100: -0.1118721871 | CS100: -0.1098288088 | CT100: -0.1077359821 | CU100: -0.1055987021 | CV100: -0.1034216241 | CW100: -0.1012090844 | CX100: -0.09896511931 | CY100: -0.09669348388 | CZ100: -0.09439766858 | DA100: -0.0920809158 | DB100: -0.0898574103 | DC100: -0.08761948865 | DD100: -0.08536961384 | DE100: -0.08311006591 | DF100: -0.08084295344 | DG100: -0.07857022437 | DH100: -0.07629367619 | DI100: -0.07401496553 | DJ100: -0.0717356172 | DK100: -0.0694570327 | DL100: -0.06718049822 | DM100: -0.06490719218 | DN100: -0.06382671605 | DS100: 92 | DT100: 18461.69902 | DU100: -0.2036974984 | DV100: 29248.64804 | DW100: 0.09204075274 | DY100: -24572.62397 | DZ100: -26487.42546 | EA100: tx A | EG100: 36400 | EH100: 0.6408 | EI100: 0.3592 | EJ100: 2032.916102 | EK100: 351.5339675 | EL100: 0.6408
BA101: 93 | BB101: 16240.71844 | BC101: 0.451452575 | BD101: 32649.13415 | BE101: 0.9607029222 | BF101: -0.01441666667 | BG101: -0.03666034123 | BH101: -0.05435753708 | BI101: -0.06882715034 | BJ101: -0.08092424833 | BK101: -0.09120797791 | BL101: -0.1000491487 | BM101: -0.1076988112 | BN101: -0.1143317846 | BO101: -0.1200741897 | BP101: -0.125020817 | BQ101: -0.1292460646 | BR101: -0.1326410702 | BS101: -0.1354562854 | BT101: -0.1377348267 | BU101: -0.1395153318 | BV101: -0.1408330188 | BW101: -0.1417203743 | BX101: -0.1422076093 | BY101: -0.1423229703 | BZ101: -0.1420929589 | CA101: -0.1415424943 | CB101: -0.1406950387 | CC101: -0.1395726986 | CD101: -0.1382618529 | CE101: -0.1367277631 | CF101: -0.1349880615 | CG101: -0.1330593643 | CH101: -0.1309573262 | CI101: -0.1286966907 | CJ101: -0.1262913379 | CK101: -0.1237543294 | CL101: -0.1210979509 | CM101: -0.1183337527 | CN101: -0.1154725878 | CO101: -0.1125246485 | CP101: -0.1096435558 | CQ101: -0.1066974775 | CR101: -0.1036944244 | CS101: -0.1006419008 | CT101: -0.09754693104 | CU101: -0.09441608537 | CV101: -0.09125550438 | CW101: -0.088070922 | CX101: -0.08486768763 | CY101: -0.08165078698 | CZ101: -0.07842486197 | DA101: -0.07519422964 | DB101: -0.07211677289 | DC101: -0.06904219508 | DD101: -0.06597377851 | DE101: -0.0629145594 | DF101: -0.05986734182 | DG101: -0.05683471087 | DH101: -0.05381904516 | DI101: -0.05082252878 | DJ101: -0.04784716249 | DK101: -0.04489477449 | DL101: -0.04196703051 | DM101: -0.03906544347 | DN101: -0.03769684305 | DS101: 93 | DT101: 16240.71844 | DU101: 0.451452575 | DV101: 32649.13415 | DW101: 0.9607029222 | DY101: -2697.141188 | DZ101: -3828.04648 | EA101: tx A | EG101: 36800 | EH101: 0.6302 | EI101: 0.3698 | EJ101: 2239.558886 | EK101: 691.9533301 | EL101: 0.6302
BA102: 94 | BB102: 16329.38275 | BC102: 1.531847462 | BD102: 30470.47956 | BE102: 1.711860817 | BF102: -0.01441666667 | BG102: -0.03766941551 | BH102: -0.05729665497 | BI102: -0.07446829943 | BJ102: -0.0898901276 | BK102: -0.1039932758 | BL102: -0.1170461045 | BM102: -0.1292202497 | BN102: -0.1406296359 | BO102: -0.1513535286 | BP102: -0.1614501677 | BQ102: -0.17096484 | BR102: -0.1795075339 | BS102: -0.1875616244 | BT102: -0.1951539719 | BU102: -0.2023089808 | BV102: -0.2090491983 | BW102: -0.2153956865 | BX102: -0.2213682599 | BY102: -0.2269856437 | BZ102: -0.2322655834 | CA102: -0.2372249252 | CB102: -0.2418796786 | CC102: -0.246245068 | CD102: -0.2501407907 | CE102: -0.2537878473 | CF102: -0.2571987278 | CG102: -0.260385319 | CH102: -0.2633589333 | CI102: -0.2661303363 | CJ102: -0.2687097735 | CK102: -0.2711069944 | CL102: -0.2733312762 | CM102: -0.2753914466 | CN102: -0.2772959045 | CO102: -0.2790526411 | CP102: -0.2805922766 | CQ102: -0.2820053529 | CR102: -0.2832984217 | CS102: -0.2844777148 | CT102: -0.2855491593 | CU102: -0.2865183924 | CV102: -0.2873907747 | CW102: -0.2881714038 | CX102: -0.2888651268 | CY102: -0.2894765521 | CZ102: -0.290010061 | DA102: -0.2904698187 | DB102: -0.2908412145 | DC102: -0.2911497256 | DD102: -0.2913987581 | DE102: -0.2915915491 | DF102: -0.2917311747 | DG102: -0.2918205577 | DH102: -0.2918624748 | DI102: -0.2918595642 | DJ102: -0.2918143318 | DK102: -0.2917291577 | DL102: -0.2916063026 | DM102: -0.2914479131 | DN102: -0.2913565392 | DS102: 94 | DT102: 16329.38275 | DU102: 1.531847462 | DV102: 30470.47956 | DW102: 1.711860817 | DY102: 29626.04111 | DZ102: 20885.34493 | EA102: tx A | EG102: 37200 | EH102: 0.6227 | EI102: 0.3773 | EJ102: 2446.20167 | EK102: 1032.372693 | EL102: 0.6227
BA103: 95 | BB103: 16024.29202 | BC103: 0.7207241651 | BD103: 32145.73305 | BE103: 1.246975371 | BF103: -0.01441666667 | BG103: -0.03741939978 | BH103: -0.05622331484 | BI103: -0.07189264604 | BJ103: -0.08513156246 | BK103: -0.09641515548 | BL103: -0.1060721776 | BM103: -0.1143373432 | BN103: -0.1213844232 | BO103: -0.1273472173 | BP103: -0.1323328728 | BQ103: -0.1364303694 | BR103: -0.1395594928 | BS103: -0.1419791728 | BT103: -0.143746585 | BU103: -0.1449136975 | BV103: -0.1455282269 | BW103: -0.1456342964 | BX103: -0.1452729014 | BY103: -0.1444822506 | BZ103: -0.1432980274 | CA103: -0.141753597 | CB103: -0.1398801779 | CC103: -0.1377069888 | CD103: -0.1353778346 | CE103: -0.1328136029 | CF103: -0.1300370953 | CG103: -0.1270696344 | CH103: -0.1239311503 | CI103: -0.1206402617 | CJ103: -0.117214351 | CK103: -0.1136696365 | CL103: -0.1100212389 | CM103: -0.1062832456 | CN103: -0.1024687703 | CO103: -0.0985900096 | CP103: -0.09484552152 | CQ103: -0.0910606231 | CR103: -0.08724460609 | CS103: -0.08340607718 | CT103: -0.07955299882 | CU103: -0.07569272775 | CV103: -0.07183205153 | CW103: -0.0679772229 | CX103: -0.06413399241 | CY103: -0.06030763912 | CZ103: -0.05650299968 | DA103: -0.0527244958 | DB103: -0.04915465228 | DC103: -0.04561703373 | DD103: -0.04211480833 | DE103: -0.03865083974 | DF103: -0.03522770679 | DG103: -0.0318477219 | DH103: -0.02851294855 | DI103: -0.02522521772 | DJ103: -0.02198614336 | DK103: -0.01879713707 | DL103: -0.01565942179 | DM103: -0.01257404487 | DN103: -0.0111301617 | DS103: 95 | DT103: 16024.29202 | DU103: 0.7207241651 | DV103: 32145.73305 | DW103: 1.246975371 | DY103: 5597.432927 | DZ103: 5263.528076 | EA103: tx A | EG103: 37600 | EH103: 0.6117 | EI103: 0.3883 | EJ103: 2652.844454 | EK103: 1372.792055 | EL103: 0.6117
BA104: 96 | BB104: 16596.75168 | BC104: 0.9425629026 | BD104: 31027.48886 | BE104: 1.191065408 | BF104: -0.01441666667 | BG104: -0.0376686043 | BH104: -0.05717504941 | BI104: -0.0740655488 | BJ104: -0.08904186668 | BK104: -0.1025463461 | BL104: -0.1148636727 | BM104: -0.1261823967 | BN104: -0.1366321425 | BO104: -0.1463061251 | BP104: -0.1552747922 | BQ104: -0.1635941016 | BR104: -0.1709431066 | BS104: -0.1777561805 | BT104: -0.1840672664 | BU104: -0.1899071532 | BV104: -0.1953041799 | BW104: -0.2002846878 | BX104: -0.2048733207 | BY104: -0.2090932303 | BZ104: -0.2129662243 | CA104: -0.2165128784 | CB104: -0.2197526254 | CC104: -0.2227038288 | CD104: -0.2252562279 | CE104: -0.2275659859 | CF104: -0.22964788 | CG104: -0.2315158801 | CH104: -0.2331831915 | CI104: -0.2346622955 | CJ104: -0.2359649866 | CK104: -0.2371024086 | CL104: -0.2380850887 | CM104: -0.2389229689 | CN104: -0.2396254372 | CO104: -0.2402013561 | CP104: -0.2406372934 | CQ104: -0.2409681909 | CR104: -0.2412011398 | CS104: -0.2413428278 | CT104: -0.2413995607 | CU104: -0.2413772823 | CV104: -0.2412815938 | CW104: -0.2411177716 | CX104: -0.240890785 | CY104: -0.2406053123 | CZ104: -0.2402657567 | DA104: -0.2398762608 | DB104: -0.2394614606 | DC104: -0.2390062971 | DD104: -0.2385140487 | DE104: -0.2379877951 | DF104: -0.2374304283 | DG104: -0.2368446624 | DH104: -0.2362330439 | DI104: -0.2355979607 | DJ104: -0.2349416507 | DK104: -0.2342662104 | DL104: -0.2335736024 | DM104: -0.2328656633 | DN104: -0.2325220667 | DS104: 96 | DT104: 16596.75168 | DU104: 0.9425629026 | DV104: 31027.48886 | DW104: 1.191065408 | DY104: 11680.13539 | DZ104: 4704.473391 | EA104: tx A | EG104: 38000 | EH104: 0.6022 | EI104: 0.3978 | EJ104: 2859.487238 | EK104: 1713.211418 | EL104: 0.6022
BA105: 97 | BB105: 16331.96471 | BC105: 0.7182100581 | BD105: 30476.25743 | BE105: 1.22026273 | BF105: -0.01441666667 | BG105: -0.03511634381 | BH105: -0.05063760306 | BI105: -0.06272517409 | BJ105: -0.07241846078 | BK105: -0.08034589745 | BL105: -0.08689625632 | BM105: -0.09231822485 | BN105: -0.09677822352 | BO105: -0.1003939455 | BP105: -0.103253803 | BQ105: -0.1054282043 | BR105: -0.1069023943 | BS105: -0.1078287915 | BT105: -0.1082511363 | BU105: -0.1082093054 | BV105: -0.1077400855 | BW105: -0.1068776598 | BX105: -0.1056539297 | BY105: -0.1040987384 | BZ105: -0.1022400404 | CA105: -0.1001040344 | CB105: -0.09771527729 | CC105: -0.09509678341 | CD105: -0.09240471762 | CE105: -0.08953362023 | CF105: -0.08650149105 | CG105: -0.08332516852 | CH105: -0.08002039496 | CI105: -0.07660187837 | CJ105: -0.07308335082 | CK105: -0.06947762374 | CL105: -0.06579664036 | CM105: -0.06205152526 | CN105: -0.05825263141 | CO105: -0.05440958467 | CP105: -0.05071600488 | CQ105: -0.04699679055 | CR105: -0.043259264 | CS105: -0.0395102032 | CT105: -0.03575587396 | CU105: -0.03200206042 | CV105: -0.02825409389 | CW105: -0.02451688012 | CX105: -0.0207949251 | CY105: -0.01709235941 | CZ105: -0.01341296137 | DA105: -0.00976017871 | DB105: -0.006309674486 | DC105: -0.002890218431 | DD105: 0.0004957368198 | DE105: 0.00384598123 | DF105: 0.007158531748 | DG105: 0.01043161757 | DH105: 0.01366366622 | DI105: 0.01685329045 | DJ105: 0.0199992758 | DK105: 0.023100569 | DL105: 0.02615626687 | DM105: 0.02916560601 | DN105: 0.03057624743 | DS105: 97 | DT105: 16331.96471 | DU105: 0.7182100581 | DV105: 30476.25743 | DW105: 1.22026273 | DY105: 5214.337034 | DZ105: 6131.624456 | EA105: tx B | EG105: 38400 | EH105: 0.5931 | EI105: 0.4069 | EJ105: 3066.130022 | EK105: 2053.63078 | EL105: 0.5931
BA106: 98 | BB106: 19101.48158 | BC106: 0.465680852 | BD106: 30500.07539 | BE106: 0.704495649 | BF106: -0.01441666667 | BG106: -0.03636839715 | BH106: -0.05368564404 | BI106: -0.06781315495 | BJ106: -0.07968407531 | BK106: -0.08990511332 | BL106: -0.0988744671 | BM106: -0.1068569415 | BN106: -0.1140318065 | BO106: -0.1205232998 | BP106: -0.1264200766 | BQ106: -0.1317876219 | BR106: -0.1364433918 | BS106: -0.1406811535 | BT106: -0.1445324947 | BU106: -0.148024417 | BV106: -0.1511806272 | BW106: -0.1540223795 | BX106: -0.1565690305 | BY106: -0.1588384101 | BZ106: -0.1608470749 | CA106: -0.1626104852 | CB106: -0.1641431331 | CC106: -0.1654586382 | CD106: -0.1665169088 | CE106: -0.1673920974 | CF106: -0.1680950591 | CG106: -0.1686360374 | CH106: -0.1690247007 | CI106: -0.169270176 | CJ106: -0.1693810799 | CK106: -0.169365547 | CL106: -0.1692312563 | CM106: -0.1689854565 | CN106: -0.1686349893 | CO106: -0.1681863113 | CP106: -0.1676712676 | CQ106: -0.1670739675 | CR106: -0.166399576 | CS106: -0.1656529648 | CT106: -0.1648387286 | CU106: -0.1639611997 | CV106: -0.1630244631 | CW106: -0.1620323691 | CX106: -0.1609885467 | CY106: -0.1598964159 | CZ106: -0.1587591984 | DA106: -0.1575799295 | DB106: -0.1564194895 | DC106: -0.1552242862 | DD106: -0.1539967329 | DE106: -0.1527391011 | DF106: -0.1514535283 | DG106: -0.1501420257 | DH106: -0.1488064849 | DI106: -0.147448685 | DJ106: -0.1460702983 | DK106: -0.144672897 | DL106: -0.1432579584 | DM106: -0.1418268703 | DN106: -0.1411383301 | DS106: 98 | DT106: 19101.48158 | DU106: 0.465680852 | DV106: 30500.07539 | DW106: 0.704495649 | DY106: -5131.05602 | DZ106: -9365.205924 | EA106: tx A | EG106: 38800 | EH106: 0.5837 | EI106: 0.4163 | EJ106: 3272.772806 | EK106: 2394.050143 | EL106: 0.5837
BA107: 99 | BB107: 17083.68189 | BC107: 0.4843926652 | BD107: 32210.97661 | BE107: 0.9245264158 | BF107: -0.01441666667 | BG107: -0.03427185447 | BH107: -0.04860685189 | BI107: -0.05946446551 | BJ107: -0.06805565183 | BK107: -0.07510266514 | BL107: -0.08104073389 | BM107: -0.08613647108 | BN107: -0.09055732385 | BO107: -0.09441226422 | BP107: -0.09777560649 | BQ107: -0.1007009372 | BR107: -0.1031088623 | BS107: -0.1051702837 | BT107: -0.1069120084 | BU107: -0.1083576122 | BV107: -0.1095283636 | BW107: -0.1104437792 | BX107: -0.1111219623 | BY107: -0.111579819 | BZ107: -0.1118331993 | CA107: -0.1118969977 | CB107: -0.1117852277 | CC107: -0.1115110811 | CD107: -0.1111071739 | CE107: -0.1105715886 | CF107: -0.1099148079 | CG107: -0.1091466954 | CH107: -0.1082765292 | CI107: -0.1073130322 | CJ107: -0.1062644019 | CK107: -0.1051383381 | CL107: -0.1039420694 | CM107: -0.1026823785 | CN107: -0.1013656256 | CO107: -0.09999777154 | CP107: -0.09865170261 | CQ107: -0.09726725934 | CR107: -0.09584909621 | CS107: -0.09440156332 | CT107: -0.09292872306 | CU107: -0.09143436605 | CV107: -0.08992202611 | CW107: -0.08839499461 | CX107: -0.08685633404 | CY107: -0.08530889087 | CZ107: -0.08375530776 | DA107: -0.08219803519 | DB107: -0.08071356589 | DC107: -0.07922974255 | DD107: -0.07774841051 | DE107: -0.07627127078 | DF107: -0.07479988854 | DG107: -0.07333570114 | DH107: -0.07188002575 | DI107: -0.07043406648 | DJ107: -0.06899892127 | DK107: -0.06757558833 | DL107: -0.06616497222 | DM107: -0.0647678897 | DN107: -0.0641094066 | DS107: 99 | DT107: 17083.68189 | DU107: 0.4843926652 | DV107: 32210.97661 | DW107: 0.9245264158 | DY107: -2551.901935 | DZ107: -4475.184133 | EA107: tx A | EG107: 39200 | EH107: 0.5758 | EI107: 0.4242 | EJ107: 3479.41559 | EK107: 2734.469506 | EL107: 0.5758
BA108: 100 | BB108: 17461.61771 | BC108: 0.8785569678 | BD108: 29590.02917 | BE108: 1.047252376 | BF108: -0.01441666667 | BG108: -0.03819100756 | BH108: -0.05843095334 | BI108: -0.07611411586 | BJ108: -0.09187303398 | BK108: -0.1061222589 | BL108: -0.119138357 | BM108: -0.1311102869 | BN108: -0.1421711344 | BO108: -0.1524181164 | BP108: -0.1619252015 | BQ108: -0.1707510846 | BR108: -0.1785540855 | BS108: -0.1857939618 | BT108: -0.1925054563 | BU108: -0.1987198286 | BV108: -0.2044656683 | BW108: -0.2097694298 | BX108: -0.2146557914 | BY108: -0.2191479024 | BZ108: -0.2232675592 | CA108: -0.2270353353 | CB108: -0.2304706813 | CC108: -0.2335920062 | CD108: -0.2362822328 | CE108: -0.2387057269 | CF108: -0.2408773964 | CG108: -0.2428113705 | CH108: -0.2445210411 | CI108: -0.2460191009 | CJ108: -0.247317579 | CK108: -0.2484278752 | CL108: -0.2493607918 | CM108: -0.2501265636 | CN108: -0.2507348867 | CO108: -0.2511949456 | CP108: -0.2515001777 | CQ108: -0.2516803364 | CR108: -0.2517428501 | CS108: -0.251694752 | CT108: -0.2515426993 | CU108: -0.2512929927 | CV108: -0.2509515945 | CW108: -0.2505241459 | CX108: -0.2500159832 | CY108: -0.2494321537 | CZ108: -0.2487774302 | DA108: -0.2480563254 | DB108: -0.2473104014 | DC108: -0.2465091595 | DD108: -0.2456562278 | DE108: -0.2447550343 | DF108: -0.2438088163 | DG108: -0.2428206314 | DH108: -0.241793366 | DI108: -0.2407297448 | DJ108: -0.2396323388 | DK108: -0.2385035737 | DL108: -0.2373457375 | DM108: -0.2361609876 | DN108: -0.2355849734 | DS108: 100 | DT108: 17461.61771 | DU108: 0.8785569678 | DV108: 29590.02917 | DW108: 1.047252376 | DY108: 8895.091321 | DZ108: 1827.542121 | EA108: tx A | EG108: 39600 | EH108: 0.5659 | EI108: 0.4341 | EJ108: 3686.058374 | EK108: 3074.888868 | EL108: 0.5659
BA109: 101 | BB109: 16565.03208 | BC109: 0.7676630381 | BD109: 30029.69234 | BE109: 1.065904435 | BF109: -0.01441666667 | BG109: -0.03514656157 | BH109: -0.05118861963 | BI109: -0.0643940974 | BJ109: -0.07576532092 | BK109: -0.08584738206 | BL109: -0.09494121564 | BM109: -0.1032186135 | BN109: -0.1107837239 | BO109: -0.117705556 | BP109: -0.1240349146 | BQ109: -0.1298130626 | BR109: -0.1348254332 | BS109: -0.1393785491 | BT109: -0.1435017553 | BU109: -0.1472227865 | BV109: -0.1505679453 | BW109: -0.1535621786 | BX109: -0.1562291185 | BY109: -0.1585911139 | BZ109: -0.160669266 | CA109: -0.1624834683 | CB109: -0.1640524535 | CC109: -0.1653938422 | CD109: -0.1664703691 | CE109: -0.1673607229 | CF109: -0.1680788068 | CG109: -0.1686376634 | CH109: -0.1690495212 | CI109: -0.1693258402 | CJ109: -0.1694773553 | CK109: -0.1695141175 | CL109: -0.1694455331 | CM109: -0.1692804013 | CN109: -0.169026949 | CO109: -0.1686928646 | CP109: -0.1683047357 | CQ109: -0.1678530386 | CR109: -0.1673437305 | CS109: -0.1667823667 | CT109: -0.166174124 | CU109: -0.1655238239 | CV109: -0.1648359538 | CW109: -0.1641146869 | CX109: -0.1633639018 | CY109: -0.1625871999 | CZ109: -0.1617879227 | DA109: -0.1609691678 | DB109: -0.160173583 | DC109: -0.1593647077 | DD109: -0.1585448778 | DE109: -0.1577162495 | DF109: -0.1568808109 | DG109: -0.1560403923 | DH109: -0.1551966767 | DI109: -0.1543512089 | DJ109: -0.1535054048 | DK109: -0.1526605593 | DL109: -0.1518178549 | DM109: -0.1509783684 | DN109: -0.1505806115 | DS109: 101 | DT109: 16565.03208 | DU109: 0.7676630381 | DV109: 30029.69234 | DW109: 1.065904435 | DY109: 6464.859064 | DZ109: 1947.44072 | EA109: tx A | EG109: 40000 | EH109: 0.5583 | EI109: 0.4417 | EJ109: 3892.701158 | EK109: 3415.308231 | EL109: 0.5583
BA110: 102 | BB110: 17356.12267 | BC110: 1.218246271 | BD110: 31546.84499 | BE110: 1.563682119 | BF110: -0.01441666667 | BG110: -0.0368277603 | BH110: -0.05477568215 | BI110: -0.06955694526 | BJ110: -0.08203232363 | BK110: -0.09277649501 | BL110: -0.1021764865 | BM110: -0.1104962777 | BN110: -0.1179191048 | BO110: -0.1245751117 | BP110: -0.1305594001 | BQ110: -0.1359437977 | BR110: -0.1405540181 | BS110: -0.1446899112 | BT110: -0.1483879375 | BU110: -0.1516796017 | BV110: -0.154592788 | BW110: -0.1571526433 | BX110: -0.1593821668 | BY110: -0.1613026089 | BZ110: -0.1629337465 | CA110: -0.1642940773 | CB110: -0.1654009618 | CC110: -0.16627073 | CD110: -0.166887907 | CE110: -0.1673077251 | CF110: -0.167543218 | CG110: -0.1676066856 | CH110: -0.1675097366 | CI110: -0.1672633273 | CJ110: -0.1668777967 | CK110: -0.1663628999 | CL110: -0.1657278391 | CM110: -0.164981292 | CN110: -0.1641314401 | CO110: -0.1631859944 | CP110: -0.1622014472 | CQ110: -0.1611392939 | CR110: -0.1600056698 | CS110: -0.158806349 | CT110: -0.1575467636 | CU110: -0.1562320215 | CV110: -0.1548669236 | CW110: -0.1534559807 | CX110: -0.1520034281 | CY110: -0.1505132412 | CZ110: -0.148989149 | DA110: -0.1474346474 | DB110: -0.1459283283 | DC110: -0.1443990889 | DD110: -0.142849663 | DE110: -0.1412826069 | DF110: -0.1397003096 | DG110: -0.1381050017 | DH110: -0.1364987643 | DI110: -0.1348835374 | DJ110: -0.133261128 | DK110: -0.1316332171 | DL110: -0.1300013675 | DM110: -0.1283670299 | DN110: -0.1275882298 | DS110: 102 | DT110: 17356.12267 | DU110: 1.218246271 | DV110: 31546.84499 | DW110: 1.563682119 | DY110: 19191.26547 | DZ110: 15363.61858 | EA110: tx A | EG110: 40400 | EH110: 0.5507 | EI110: 0.4493 | EJ110: 4099.343942 | EK110: 3755.727593 | EL110: 0.5507
BA111: 103 | BB111: 16611.89538 | BC111: 0.3015797853 | BD111: 32288.19995 | BE111: 0.6383105412 | BF111: -0.01441666667 | BG111: -0.03493179519 | BH111: -0.05059799458 | BI111: -0.06336900094 | BJ111: -0.07434087359 | BK111: -0.0841268907 | BL111: -0.09307026799 | BM111: -0.1013642445 | BN111: -0.109119467 | BO111: -0.1164015297 | BP111: -0.1232517054 | BQ111: -0.1296982718 | BR111: -0.1354738386 | BS111: -0.1409022749 | BT111: -0.1459985873 | BU111: -0.1507767039 | BV111: -0.1552498615 | BW111: -0.1594307831 | BX111: -0.1633317505 | BY111: -0.1669646313 | BZ111: -0.1703408857 | CA111: -0.1734715675 | CB111: -0.1763673261 | CC111: -0.179038409 | CD111: -0.1813777041 | CE111: -0.18352142 | CF111: -0.1854782121 | CG111: -0.1872563865 | CH111: -0.1888639121 | CI111: -0.1903084315 | CJ111: -0.1915972734 | CK111: -0.1927374637 | CL111: -0.1937357371 | CM111: -0.1945985485 | CN111: -0.1953320837 | CO111: -0.1959422702 | CP111: -0.1964113338 | CQ111: -0.1967735127 | CR111: -0.1970337705 | CS111: -0.1971968615 | CT111: -0.1972673391 | CU111: -0.197249564 | CV111: -0.1971477115 | CW111: -0.1969657794 | CX111: -0.1967075951 | CY111: -0.1963768222 | CZ111: -0.1959769676 | DA111: -0.1955113873 | DB111: -0.1950084403 | DC111: -0.1944488828 | DD111: -0.1938355147 | DE111: -0.1931710146 | DF111: -0.1924579444 | DG111: -0.1916987544 | DH111: -0.1908957877 | DI111: -0.1900512844 | DJ111: -0.1891673862 | DK111: -0.1882461405 | DL111: -0.1872895037 | DM111: -0.1862993455 | DN111: -0.1858127298 | DS111: 103 | DT111: 16611.89538 | DU111: 0.3015797853 | DV111: 32288.19995 | DW111: 0.6383105412 | DY111: -7564.501823 | DZ111: -13138.88372 | EA111: tx A | EG111: 40800 | EH111: 0.5425 | EI111: 0.4575 | EJ111: 4305.986726 | EK111: 4096.146956 | EL111: 0.5425
BA112: 104 | BB112: 16140.86655 | BC112: 0.5413293753 | BD112: 30271.33575 | BE112: 0.8988587598 | BF112: -0.01441666667 | BG112: -0.03749071159 | BH112: -0.05657320999 | BI112: -0.07276836593 | BJ112: -0.08677633765 | BK112: -0.09905056516 | BL112: -0.1098932136 | BM112: -0.1195131208 | BN112: -0.1280610179 | BO112: -0.1356509712 | BP112: -0.1423734652 | BQ112: -0.1483034136 | BR112: -0.1532573905 | BS112: -0.1575717655 | BT112: -0.1612951353 | BU112: -0.1644718673 | BV112: -0.1671428605 | BW112: -0.1693460568 | BX112: -0.1711168003 | BY112: -0.172488099 | BZ112: -0.1734908277 | CA112: -0.1741538902 | CB112: -0.174504357 | CC112: -0.174567584 | CD112: -0.1743768562 | CE112: -0.1739563629 | CF112: -0.1733259293 | CG112: -0.1725041061 | CH112: -0.1715082439 | CI112: -0.1703545626 | CJ112: -0.1690582174 | CK112: -0.16763336 | CL112: -0.1660931978 | CM112: -0.1644500483 | CN112: -0.1627153914 | CO112: -0.1608999191 | CP112: -0.1591034067 | CQ112: -0.1572482149 | CR112: -0.15534253 | CS112: -0.1533939508 | CT112: -0.1514095237 | CU112: -0.149395776 | CV112: -0.1473587473 | CW112: -0.1453040197 | CX112: -0.1432367453 | CY112: -0.1411616729 | CZ112: -0.1390831734 | DA112: -0.1370052628 | DB112: -0.1350303695 | DC112: -0.1330627573 | DD112: -0.1311053604 | DE112: -0.1291608531 | DF112: -0.127231667 | DG112: -0.1253200062 | DH112: -0.1234278626 | DI112: -0.1215570298 | DJ112: -0.1197091164 | DK112: -0.1178855584 | DL112: -0.1160876312 | DM112: -0.11431646 | DN112: -0.1134862558 | DS112: 104 | DT112: 16140.86655 | DU112: 0.5413293753 | DV112: 30271.33575 | DW112: 0.8988587598 | DY112: 99.01471335 | DZ112: -3305.57296 | EA112: tx A | EG112: 41200 | EH112: 0.5355 | EI112: 0.4645 | EJ112: 4512.62951 | EK112: 4436.566319 | EL112: 0.5355
BA113: 105 | BB113: 17093.29658 | BC113: -0.3293733631 | BD113: 30113.57163 | BE113: -0.2186684766 | BF113: -0.01441666667 | BG113: -0.03866459443 | BH113: -0.05967325269 | BI113: -0.07831556252 | BJ113: -0.09516250914 | BK113: -0.1105922236 | BL113: -0.1248594404 | BM113: -0.1381397221 | BN113: -0.1505576198 | BO113: -0.1622046105 | BP113: -0.1731505306 | BQ113: -0.1834508719 | BR113: -0.1926895134 | BS113: -0.2013942066 | BT113: -0.2095976735 | BU113: -0.2173292891 | BV113: -0.2246158594 | BW113: -0.2314821378 | BX113: -0.237951174 | BY113: -0.2440445563 | BZ113: -0.2497825838 | CA113: -0.2551843944 | CB113: -0.2602680637 | CC113: -0.2650506843 | CD113: -0.2693342528 | CE113: -0.2733610989 | CF113: -0.2771450369 | CG113: -0.2806991532 | CH113: -0.2840358456 | CI113: -0.2871668606 | CJ113: -0.2901033276 | CK113: -0.2928557912 | CL113: -0.2954342414 | CM113: -0.2978481429 | CN113: -0.3001064617 | CO113: -0.3022176916 | CP113: -0.3040959641 | CQ113: -0.3058490716 | CR113: -0.3074838876 | CS113: -0.3090069219 | CT113: -0.3104243391 | CU113: -0.3117419763 | CV113: -0.3129653606 | CW113: -0.314099725 | CX113: -0.3151500233 | CY113: -0.3161209451 | CZ113: -0.3170169295 | DA113: -0.3178421779 | DB113: -0.3185645479 | DC113: -0.3192269208 | DD113: -0.3198326877 | DE113: -0.3203850568 | DF113: -0.3208870638 | DG113: -0.3213415802 | DH113: -0.3217513223 | DI113: -0.322118859 | DJ113: -0.3224466202 | DK113: -0.3227369034 | DL113: -0.3229918811 | DM113: -0.3232136074 | DN113: -0.3233042819 | DS113: 105 | DT113: 17093.29658 | DU113: -0.3293733631 | DV113: 30113.57163 | DW113: -0.2186684766 | DY113: -26974.49747 | DZ113: -36673.62593 | EA113: tx A | EG113: 41600 | EH113: 0.5281 | EI113: 0.4719 | EJ113: 4719.272294 | EK113: 4776.985681 | EL113: 0.4719
BA114: 106 | BB114: 16836.29941 | BC114: 1.325201347 | BD114: 30823.83596 | BE114: 1.660095488 | BF114: -0.01441666667 | BG114: -0.03523595216 | BH114: -0.05097646276 | BI114: -0.06341939342 | BJ114: -0.07365106362 | BK114: -0.08233898608 | BL114: -0.08989790237 | BM114: -0.09658968735 | BN114: -0.1025834954 | BO114: -0.1079919957 | BP114: -0.1128932229 | BQ114: -0.1173437682 | BR114: -0.1211942354 | BS114: -0.1246894124 | BT114: -0.1278567437 | BU114: -0.1307199771 | BV114: -0.1333002211 | BW114: -0.1356166065 | BX114: -0.1376867051 | BY114: -0.1395268033 | BZ114: -0.1411520851 | CA114: -0.1425767609 | CB114: -0.1438141616 | CC114: -0.1448768112 | CD114: -0.1457336443 | CE114: -0.1464458135 | CF114: -0.1470232459 | CG114: -0.1474752819 | CH114: -0.1478107093 | CI114: -0.1480377947 | CJ114: -0.1481643127 | CK114: -0.1481975733 | CL114: -0.1481444476 | CM114: -0.1480113923 | CN114: -0.1478044726 | CO114: -0.147529384 | CP114: -0.1472075637 | CQ114: -0.1468306901 | CR114: -0.1464032445 | CS114: -0.1459294286 | CT114: -0.1454131797 | CU114: -0.1448581865 | CV114: -0.1442679022 | CW114: -0.1436455586 | CX114: -0.1429941785 | CY114: -0.1423165875 | CZ114: -0.1416154256 | DA114: -0.1408931577 | DB114: -0.1401873732 | DC114: -0.1394657209 | DD114: -0.1387301043 | DE114: -0.1379822958 | DF114: -0.1372239442 | DG114: -0.1364565824 | DH114: -0.1356816342 | DI114: -0.1349004206 | DJ114: -0.1341141663 | DK114: -0.1333240053 | DL114: -0.1325309864 | DM114: -0.1317360784 | DN114: -0.1313570769 | DS114: 106 | DT114: 16836.29941 | DU114: 1.325201347 | DV114: 30823.83596 | DW114: 1.660095488 | DY114: 22919.74098 | DZ114: 18979.02868 | EA114: tx A | EG114: 42000 | EH114: 0.5214 | EI114: 0.4786 | EJ114: 4925.915078 | EK114: 5117.405044 | EL114: =IF(EJ114>EK114,EH114,EI114) -> 0.4786
BA115: 107 | BB115: 17127.87778 | BC115: 0.06171591264 | BD115: 30095.32326 | BE115: 0.4606895151 | BF115: -0.01441666667 | BG115: -0.03620921113 | BH115: -0.05326766951 | BI115: -0.06702478852 | BJ115: -0.07838092645 | BK115: -0.0879112514 | BL115: -0.09599157695 | BM115: -0.102874881 | BN115: -0.1087379021 | BO115: -0.1137095646 | BP115: -0.1178883564 | BQ115: -0.1213529859 | BR115: -0.1240348524 | BS115: -0.1261525981 | BT115: -0.1277535906 | BU115: -0.1288804377 | BV115: -0.1295719762 | BW115: -0.1298639249 | BX115: -0.1297893305 | BY115: -0.129378884 | BZ115: -0.1286611568 | CA115: -0.1276627833 | CB115: -0.1264086111 | CC115: -0.1249218272 | CD115: -0.1233049148 | CE115: -0.1215063005 | CF115: -0.1195439152 | CG115: -0.117434474 | CH115: -0.1151935502 | CI115: -0.1128356442 | CJ115: -0.1103742487 | CK115: -0.1078219089 | CL115: -0.1051902803 | CM115: -0.1024901825 | CN115: -0.09973165018 | CO115: -0.09692398092 | CP115: -0.09421140934 | CQ115: -0.09146781496 | CR115: -0.08870019617 | CS115: -0.08591500773 | CT115: -0.08311819496 | CU115: -0.08031522587 | CV115: -0.07751112144 | CW115: -0.07471048422 | CX115: -0.07191752522 | CY115: -0.06913608925 | CZ115: -0.06636967884 | DA115: -0.06362147672 | DB115: -0.06102422934 | DC115: -0.05844955126 | DD115: -0.05589967622 | DE115: -0.05337660723 | DF115: -0.05088213235 | DG115: -0.04841783956 | DH115: -0.04598513071 | DI115: -0.04358523474 | DJ115: -0.04121921992 | DK115: -0.03888800552 | DL115: -0.03659237265 | DM115: -0.03433297453 | DN115: -0.03327458001 | DS115: 107 | DT115: 17127.87778 | DU115: 0.06171591264 | DV115: 30095.32326 | DW115: 0.4606895151 | DY115: -15276.4004 | DZ115: -16274.6378 | EA115: tx A | EG115: 42400 | EH115: 0.5142 | EI115: 0.4858 | EJ115: 5132.557862 | EK115: 5457.824406 | EL115: 0.4858
BA116: 108 | BB116: 16664.98541 | BC116: 0.09224662782 | BD116: 30207.44677 | BE116: 0.4676739083 | BF116: -0.01441666667 | BG116: -0.03565564464 | BH116: -0.05216396926 | BI116: -0.0655802781 | BJ116: -0.07685087086 | BK116: -0.08653137412 | BL116: -0.09495711872 | BM116: -0.1023390948 | BN116: -0.1088178299 | BO116: -0.1144935469 | BP116: -0.1194429967 | BQ116: -0.1237288303 | BR116: -0.1272297673 | BS116: -0.1301954102 | BT116: -0.1326671406 | BU116: -0.1346830995 | BV116: -0.1362787163 | BW116: -0.1374870405 | BX116: -0.1383389661 | BY116: -0.1388633975 | BZ116: -0.1390873833 | CA116: -0.1390362306 | CB116: -0.1387336087 | CC116: -0.1382016442 | CD116: -0.1374962784 | CE116: -0.1366105644 | CF116: -0.1355616591 | CG116: -0.1343655631 | CH116: -0.1330371894 | CI116: -0.1315904274 | CJ116: -0.1300382043 | CK116: -0.1283925426 | CL116: -0.1266646147 | CM116: -0.1248647945 | CN116: -0.1230027059 | CO116: -0.1210872688 | CP116: -0.1192201007 | CQ116: -0.1173172662 | CR116: -0.1153854871 | CS116: -0.1134309665 | CT116: -0.1114594213 | CU116: -0.1094761126 | CV116: -0.1074858752 | CW116: -0.1054931445 | CX116: -0.1035019825 | CY116: -0.1015161021 | CZ116: -0.0995388894 | DA116: -0.09757342605 | DB116: -0.0957154096 | DC116: -0.09387365713 | DD116: -0.09205034333 | DE116: -0.09024742296 | DF116: -0.08846664598 | DG116: -0.08670957174 | DH116: -0.08497758229 | DI116: -0.0832718949 | DJ116: -0.08159357387 | DK116: -0.07994354152 | DL116: -0.07832258861 | DM116: -0.07673138402 | DN116: -0.07598809827 | DS116: 108 | DT116: 16664.98541 | DU116: 0.09224662782 | DV116: 30207.44677 | DW116: 0.4676739083 | DY116: -13897.58657 | DZ116: -16177.22952 | EA116: tx A | EG116: 42800 | EH116: 0.5058 | EI116: 0.4942 | EJ116: 5339.200646 | EK116: 5798.243769 | EL116: 0.4942
BA117: 109 | BB117: 16671.92191 | BC117: 0.7991679134 | BD117: 28083.27625 | BE117: 0.9325919222 | BF117: -0.01441666667 | BG117: -0.03792244323 | BH117: -0.05783063711 | BI117: -0.07520915092 | BJ117: -0.09072378096 | BK117: -0.1047957143 | BL117: -0.1176969825 | BM117: -0.1296083416 | BN117: -0.1406543899 | BO117: -0.1509248954 | BP117: -0.1604877646 | BQ117: -0.1693969439 | BR117: -0.177301994 | BS117: -0.1846639638 | BT117: -0.1915155212 | BU117: -0.1978862852 | BV117: -0.2038035139 | BW117: -0.2092925469 | BX117: -0.2143770997 | BY117: -0.2190794659 | BZ117: -0.2234206625 | CA117: -0.227420539 | CB117: -0.2310978646 | CC117: -0.2344703999 | CD117: -0.2374080748 | CE117: -0.2400866497 | CF117: -0.242520486 | CG117: -0.2447231865 | CH117: -0.2467076357 | CI117: -0.2484860382 | CJ117: -0.2500699537 | CK117: -0.2514703313 | CL117: -0.252697541 | CM117: -0.2537614041 | CN117: -0.2546712213 | CO117: -0.2554358003 | CP117: -0.2560335914 | CQ117: -0.2565085239 | CR117: -0.2568677182 | CS117: -0.2571179154 | CT117: -0.2572654972 | CU117: -0.2573165043 | CV117: -0.2572766544 | CW117: -0.257151359 | CX117: -0.2569457397 | CY117: -0.2566646427 | CZ117: -0.2563126538 | DA117: -0.2558941121 | DB117: -0.2554360266 | DC117: -0.254922165 | DD117: -0.2543560256 | DE117: -0.2537409169 | DF117: -0.253079968 | DG117: -0.2523761377 | DH117: -0.2516322239 | DI117: -0.2508508716 | DJ117: -0.2500345812 | DK117: -0.2491857162 | DL117: -0.2483065104 | DM117: -0.2473990746 | DN117: -0.2469544692 | DS117: 109 | DT117: 16671.92191 | DU117: 0.7991679134 | DV117: 28083.27625 | DW117: 0.9325919222 | DY117: 7303.115487 | DZ117: -105.5185884 | EA117: tx A | EG117: 43200 | EH117: 0.4993 | EI117: 0.5007 | EJ117: 5545.84343 | EK117: 6138.663132 | EL117: 0.5007
BA118: 110 | BB118: 17743.61391 | BC118: 0.4885659827 | BD118: 29713.96594 | BE118: 0.7109561281 | BF118: -0.01441666667 | BG118: -0.03731993451 | BH118: -0.05619064899 | BI118: -0.07223126288 | BJ118: -0.08620929849 | BK118: -0.09861985102 | BL118: -0.1097871096 | BM118: -0.1199277888 | BN118: -0.1291907718 | BO118: -0.1376818963 | BP118: -0.145479463 | BQ118: -0.1526439498 | BR118: -0.1589107657 | BS118: -0.1646599882 | BT118: -0.1699253184 | BU118: -0.1747367132 | BV118: -0.1791213249 | BW118: -0.1831041116 | BX118: -0.1867082406 | BY118: -0.1899553617 | BZ118: -0.1928657978 | CA118: -0.1954586839 | CB118: -0.1977520717 | CC118: -0.1997630126 | CD118: -0.2014245493 | CE118: -0.2028469612 | CF118: -0.2040439862 | CG118: -0.2050286234 | CH118: -0.2058131743 | CI118: -0.2064092799 | CJ118: -0.206827956 | CK118: -0.207079626 | CL118: -0.2071741519 | CM118: -0.2071208637 | CN118: -0.2069285871 | CO118: -0.20660567 | CP118: -0.2061812292 | CQ118: -0.2056469975 | CR118: -0.2050096974 | CS118: -0.2042756839 | CT118: -0.203450964 | CU118: -0.2025412148 | CV118: -0.2015518012 | CW118: -0.2004877917 | CX118: -0.1993539745 | CY118: -0.1981548723 | CZ118: -0.1968947559 | DA118: -0.195577658 | DB118: -0.1942726367 | DC118: -0.1929203952 | DD118: -0.1915241629 | DE118: -0.1900869872 | DF118: -0.1886117424 | DG118: -0.1871011396 | DH118: -0.1855577352 | DI118: -0.1839839393 | DJ118: -0.1823820234 | DK118: -0.1807541281 | DL118: -0.1791022701 | DM118: -0.1774283489 | DN118: -0.1766215889 | DS118: 110 | DT118: 17743.61391 | DU118: 0.4885659827 | DV118: 29713.96594 | DW118: 0.7109561281 | DY118: -3086.634431 | DZ118: -8385.282098 | EA118: tx A | EG118: 43600 | EH118: 0.4923 | EI118: 0.5077 | EJ118: 5752.486214 | EK118: 6479.082494 | EL118: 0.5077
BA119: 111 | BB119: 16718.09695 | BC119: 0.05432954072 | BD119: 30455.37093 | BE119: 0.3877379131 | BF119: -0.01441666667 | BG119: -0.03533366076 | BH119: -0.05137849511 | BI119: -0.06431818507 | BJ119: -0.0751853195 | BK119: -0.08458973124 | BL119: -0.09289752213 | BM119: -0.1003339303 | BN119: -0.107042465 | BO119: -0.1131189224 | BP119: -0.1186309716 | BQ119: -0.1236294481 | BR119: -0.127939383 | BS119: -0.1318311843 | BT119: -0.1353331264 | BU119: -0.1384706085 | BV119: -0.1412668913 | BW119: -0.1437435451 | BX119: -0.1459207305 | BY119: -0.147817382 | BZ119: -0.1494513343 | CA119: -0.1508394145 | CB119: -0.1519975142 | CC119: -0.1529406484 | CD119: -0.1536476561 | CE119: -0.1541762196 | CF119: -0.1545384061 | CG119: -0.1547456166 | CH119: -0.1548086192 | CI119: -0.1547375823 | CJ119: -0.1545421044 | CK119: -0.154231244 | CL119: -0.1538135463 | CM119: -0.1532970702 | CN119: -0.1526894126 | CO119: -0.1519977324 | CP119: -0.1512653904 | CQ119: -0.1504654964 | CR119: -0.1496037417 | CS119: -0.1486854805 | CT119: -0.1477157468 | CU119: -0.1466992722 | CV119: -0.1456405009 | CW119: -0.1445436052 | CX119: -0.1434124999 | CY119: -0.1422508562 | CZ119: -0.1410621142 | DA119: -0.1398494956 | DB119: -0.1386747526 | DC119: -0.1374828269 | DD119: -0.1362762275 | DE119: -0.1350572972 | DF119: -0.1338282212 | DG119: -0.1325910363 | DH119: -0.1313476386 | DI119: -0.1300997915 | DJ119: -0.1288491335 | DK119: -0.1275971845 | DL119: -0.1263453533 | DM119: -0.1250949433 | DN119: -0.1245007602 | DS119: 111 | DT119: 16718.09695 | DU119: 0.05432954072 | DV119: 30455.37093 | DW119: 0.3877379131 | DY119: -15088.21073 | DZ119: -18823.23354 | EA119: tx A | EG119: 44000 | EH119: 0.4852 | EI119: 0.5148 | EJ119: 5959.128998 | EK119: 6819.501857 | EL119: 0.5148
BA120: 112 | BB120: 17414.85578 | BC120: -0.09424855336 | BD120: 29400.23832 | BE120: 0.1783968492 | BF120: -0.01441666667 | BG120: -0.03549329798 | BH120: -0.05160853075 | BI120: -0.06448288059 | BJ120: -0.07517834166 | BK120: -0.08435342772 | BL120: -0.09241938509 | BM120: -0.09963584535 | BN120: -0.1061693798 | BO120: -0.112129336 | BP120: -0.1175897671 | BQ120: -0.1226028511 | BR120: -0.1269878534 | BS120: -0.1310119519 | BT120: -0.1346983203 | BU120: -0.1380666505 | BV120: -0.141134263 | BW120: -0.1439167959 | BX120: -0.1464286343 | BY120: -0.1486831823 | BZ120: -0.1506930379 | CA120: -0.1524701093 | CB120: -0.1540256932 | CC120: -0.1553705322 | CD120: -0.1564603656 | CE120: -0.1573685212 | CF120: -0.1581038585 | CG120: -0.1586748305 | CH120: -0.1590895046 | CI120: -0.1593555812 | CJ120: -0.1594804107 | CK120: -0.1594710096 | CL120: -0.1593340757 | CM120: -0.1590760026 | CN120: -0.1587028934 | CO120: -0.1582205735 | CP120: -0.1576625065 | CQ120: -0.1570107794 | CR120: -0.156270216 | CS120: -0.1554454204 | CT120: -0.1545407862 | CU120: -0.1535605063 | CV120: -0.1525085818 | CW120: -0.1513888304 | CX120: -0.1502048949 | CY120: -0.148960251 | CZ120: -0.1476582145 | DA120: -0.1463019488 | DB120: -0.1449614945 | DC120: -0.1435750088 | DD120: -0.1421451068 | DE120: -0.1406742826 | DF120: -0.1391649147 | DG120: -0.1376192717 | DH120: -0.1360395165 | DI120: -0.1344277119 | DJ120: -0.1327858245 | DK120: -0.131115729 | DL120: -0.1294192129 | DM120: -0.1276979799 | DN120: -0.1268673485 | DS120: 112 | DT120: 17414.85578 | DU120: -0.09424855336 | DV120: 29400.23832 | DW120: 0.1783968492 | DY120: -20242.31238 | DZ120: -24048.33284 | EA120: tx A | EG120: 44400 | EH120: 0.4772 | EI120: 0.5228 | EJ120: 6165.771782 | EK120: 7159.921219 | EL120: 0.5228
BA121: 113 | BB121: 15644.26565 | BC121: 0.7957241361 | BD121: 29035.80828 | BE121: 0.9639112818 | BF121: -0.01441666667 | BG121: -0.03768362018 | BH121: -0.0571793019 | BI121: -0.07404541236 | BJ121: -0.08901218616 | BK121: -0.1025505594 | BL121: -0.1149678808 | BM121: -0.1264681189 | BN121: -0.1371897439 | BO121: -0.1472295681 | BP121: -0.1566577582 | BQ121: -0.1655272943 | BR121: -0.1734821918 | BS121: -0.1809774872 | BT121: -0.1880410387 | BU121: -0.1946973314 | BV121: -0.2009684032 | BW121: -0.206874441 | BX121: -0.2124341702 | BY121: -0.2176651135 | BZ121: -0.2225837663 | CA121: -0.2272057198 | CB121: -0.2315457501 | CC121: -0.2356178856 | CD121: -0.2392536712 | CE121: -0.2426590979 | CF121: -0.2458456615 | CG121: -0.2488243059 | CH121: -0.2516054506 | CI121: -0.2541990176 | CJ121: -0.2566144549 | CK121: -0.2588607597 | CL121: -0.2609464995 | CM121: -0.2628798324 | CN121: -0.2646685263 | CO121: -0.2663199775 | CP121: -0.2677687869 | CQ121: -0.2690999797 | CR121: -0.2703196336 | CS121: -0.271433534 | CT121: -0.2724471875 | CU121: -0.2733658352 | CV121: -0.2741944647 | CW121: -0.2749378224 | CX121: -0.2756004249 | CY121: -0.2761865694 | CZ121: -0.2767003441 | DA121: -0.2771456384 | DB121: -0.2775080321 | DC121: -0.277812081 | DD121: -0.2780609725 | DE121: -0.2782577375 | DF121: -0.2784052583 | DG121: -0.2785062752 | DH121: -0.2785633935 | DI121: -0.2785790897 | DJ121: -0.2785557179 | DK121: -0.2784955154 | DL121: -0.2784006082 | DM121: -0.2782730166 | DN121: -0.2781976087 | DS121: 113 | DT121: 15644.26565 | DU121: 0.7957241361 | DV121: 29035.80828 | DW121: 0.9639112818 | DY121: 8227.458436 | DZ121: -118.4698257 | EA121: tx A | EG121: 44800 | EH121: 0.4708 | EI121: 0.5292 | EJ121: 6372.414566 | EK121: 7500.340582 | EL121: 0.5292
BA122: 114 | BB122: 14961.83774 | BC122: 0.1028698481 | BD122: 31148.64933 | BE122: 0.5520493837 | BF122: -0.01441666667 | BG122: -0.0364210889 | BH122: -0.05387047843 | BI122: -0.06818105029 | BJ122: -0.08024179317 | BK122: -0.09061723207 | BL122: -0.09967186445 | BM122: -0.1076465433 | BN122: -0.1147053795 | BO122: -0.1209645568 | BP122: -0.1265100491 | BQ122: -0.1314085282 | BR122: -0.1355090655 | BS122: -0.1390884335 | BT122: -0.1421845981 | BU122: -0.144831522 | BV122: -0.1470601402 | BW122: -0.1488989863 | BX122: -0.150374604 | BY122: -0.1515118241 | BZ122: -0.1523339595 | CA122: -0.1528629476 | CB122: -0.1531194596 | CC122: -0.1531229888 | CD122: -0.1529029278 | CE122: -0.1524759688 | CF122: -0.1518577011 | CG122: -0.1510628298 | CH122: -0.1501052219 | CI122: -0.1489979504 | CJ122: -0.1477533346 | CK122: -0.1463829795 | CL122: -0.1448978122 | CM122: -0.1433081164 | CN122: -0.1416235662 | CO122: -0.139853257 | CP122: -0.138093713 | CQ122: -0.1362682783 | CR122: -0.1343841279 | CS122: -0.132447992 | CT122: -0.1304661792 | CU122: -0.1284445987 | CV122: -0.1263887817 | CW122: -0.1243039009 | CX122: -0.1221947906 | CY122: -0.120065964 | CZ122: -0.1179216312 | DA122: -0.1157657149 | DB122: -0.1137049074 | DC122: -0.1116397795 | DD122: -0.109573334 | DE122: -0.1075083557 | DF122: -0.1054474237 | DG122: -0.1033929227 | DH122: -0.1013470541 | DI122: -0.09931184668 | DJ122: -0.09728916588 | DK122: -0.09528072375 | DL122: -0.0932880876 | DM122: -0.09131268854 | DN122: -0.09038085087 | DS122: 114 | DT122: 14961.83774 | DU122: 0.1028698481 | DV122: 31148.64933 | DW122: 0.5520493837 | DY122: -11875.7423 | DZ122: -14587.16782 | EA122: tx A | EG122: 45200 | EH122: 0.4634 | EI122: 0.5366 | EJ122: 6579.05735 | EK122: 7840.759944 | EL122: 0.5366
BA123: 115 | BB123: 17824.35826 | BC123: 0.4194285715 | BD123: 31634.49906 | BE123: 0.9486016577 | BF123: -0.01441666667 | BG123: -0.03574199388 | BH123: -0.0521220459 | BI123: -0.06510227373 | BJ123: -0.07562595766 | BK123: -0.08427924005 | BL123: -0.09143581731 | BM123: -0.09734242385 | BN123: -0.102169373 | BO123: -0.1060404711 | BP123: -0.1090507519 | BQ123: -0.1112770182 | BR123: -0.1127123643 | BS123: -0.1135168008 | BT123: -0.1137387305 | BU123: -0.1134223018 | BV123: -0.1126082509 | BW123: -0.1113344463 | BX123: -0.1096362561 | BY123: -0.1075468068 | BZ123: -0.1050971774 | CA123: -0.1023165524 | CB123: -0.09923234825 | CC123: -0.09587032301 | CD123: -0.09242684781 | CE123: -0.08876346944 | CF123: -0.0849005075 | CG123: -0.08085703088 | CH123: -0.07665092637 | CI123: -0.07229896317 | CJ123: -0.067816854 | CK123: -0.06321931288 | CL123: -0.05852010988 | CM123: -0.05373212304 | CN123: -0.04886738753 | CO123: -0.04393714238 | CP123: -0.03918926839 | CQ123: -0.03439830357 | CR123: -0.02957292128 | CS123: -0.02472119259 | CT123: -0.01985062037 | CU123: -0.01496817159 | CV123: -0.01008030794 | CW123: -0.005193014881 | CX123: -0.0003118291081 | CY123: 0.004558135354 | CZ123: 0.009412162468 | DA123: 0.0142459108 | DB123: 0.01882636847 | DC123: 0.02338023062 | DD123: 0.02790431067 | DE123: 0.0323957009 | DF123: 0.0368517555 | DG123: 0.04127007455 | DH123: 0.04564848882 | DI123: 0.04998504543 | DJ123: 0.05427799429 | DK123: 0.05852577523 | DL123: 0.06272700588 | DM123: 0.06688047022 | DN123: 0.06883505949 | DS123: 115 | DT123: 17824.35826 | DU123: 0.4194285715 | DV123: 31634.49906 | DW123: 0.9486016577 | DY123: -5241.501117 | DZ123: -3176.449333 | EA123: tx B | EG123: 45600 | EH123: 0.4576 | EI123: 0.5424 | EJ123: 6785.700134 | EK123: 8181.179307 | EL123: 0.5424
BA124: 116 | BB124: 18059.38262 | BC124: 0.399723993 | BD124: 29797.78724 | BE124: 0.83832103 | BF124: -0.01441666667 | BG124: -0.03415505136 | BH124: -0.04846568749 | BI124: -0.05937925163 | BJ124: -0.06802723752 | BK124: -0.07504872107 | BL124: -0.08081392042 | BM124: -0.08554653839 | BN124: -0.08939038524 | BO124: -0.09244545799 | BP124: -0.09478735966 | BQ124: -0.09647768523 | BR124: -0.09751755034 | BS124: -0.0980327304 | BT124: -0.09806469163 | BU124: -0.09765187887 | BV124: -0.09683016046 | BW124: -0.09563309536 | BX124: -0.09409211185 | BY124: -0.09223664288 | BZ124: -0.09009424033 | CA124: -0.08769067834 | CB124: -0.08505005051 | CC124: -0.08219486272 | CD124: -0.07929130029 | CE124: -0.07622206285 | CF124: -0.07300454317 | CG124: -0.06965494017 | CH124: -0.06618832948 | CI124: -0.0626187305 | CJ124: -0.05895916998 | CK124: -0.05522174209 | CL124: -0.05141766536 | CM124: -0.04755733629 | CN124: -0.04365038012 | CO124: -0.03970569865 | CP124: -0.0359207622 | CQ124: -0.03211495521 | CR124: -0.02829493682 | CS124: -0.02446683488 | CT124: -0.02063627992 | CU124: -0.01680843705 | CV124: -0.0129880361 | CW124: -0.009179399913 | CX124: -0.005386471077 | CY124: -0.00161283699 | CZ124: 0.0021382465 | DA124: 0.005863832865 | DB124: 0.009385195853 | DC124: 0.01287746877 | DD124: 0.01633861443 | DE124: 0.01976681747 | DF124: 0.02316046879 | DG124: 0.02651815101 | DH124: 0.02983862474 | DI124: 0.03312081568 | DJ124: 0.03636380258 | DK124: 0.03956680592 | DL124: 0.04272917723 | DM124: 0.0458503892 | DN124: 0.04731688304 | DS124: 116 | DT124: 18059.38262 | DU124: 0.399723993 | DV124: 29797.78724 | DW124: 0.83832103 | DY124: -6067.662835 | DZ124: -4648.156344 | EA124: tx B | EG124: 46000 | EH124: 0.4504 | EI124: 0.5496 | EJ124: 6992.342918 | EK124: 8521.59867 | EL124: 0.5496
BA125: 117 | BB125: 17856.76185 | BC125: 0.7882309849 | BD125: 32026.27996 | BE125: 1.133007574 | BF125: -0.01441666667 | BG125: -0.03790478242 | BH125: -0.05751166822 | BI125: -0.07422025389 | BJ125: -0.08869594089 | BK125: -0.1013945504 | BL125: -0.1126334488 | BM125: -0.1226383385 | BN125: -0.131574004 | BO125: -0.1395644993 | BP125: -0.1467063985 | BQ125: -0.1530774975 | BR125: -0.1584727719 | BS125: -0.1632484205 | BT125: -0.167450791 | BU125: -0.1711213495 | BV125: -0.1742977451 | BW125: -0.1770145362 | BX125: -0.1793036937 | BY125: -0.1811949588 | BZ125: -0.1827161037 | CA125: -0.1838931293 | CB125: -0.1847504194 | CC125: -0.1853108659 | CD125: -0.1855823974 | CE125: -0.1856109486 | CF125: -0.1854146086 | CG125: -0.185010378 | CH125: -0.1844142321 | CI125: -0.183641179 | CJ125: -0.1827053151 | CK125: -0.181619875 | CL125: -0.1803972805 | CM125: -0.1790491855 | CN125: -0.1775865187 | CO125: -0.176019524 | CP125: -0.1744369288 | CQ125: -0.1727726737 | CR125: -0.1710347694 | CS125: -0.1692307089 | CT125: -0.1673674969 | CU125: -0.1654516773 | CV125: -0.1634893594 | CW125: -0.161486243 | CX125: -0.1594476415 | CY125: -0.1573785045 | CZ125: -0.1552834388 | DA125: -0.1531667282 | DB125: -0.1511339893 | DC125: -0.1490879442 | DD125: -0.1470318538 | DE125: -0.1449687381 | DF125: -0.1429013901 | DG125: -0.1408323893 | DH125: -0.138764115 | DI125: -0.1366987582 | DJ125: -0.1346383329 | DK125: -0.1325846875 | DL125: -0.1305395143 | DM125: -0.1285043601 | DN125: -0.1275406812 | DS125: 117 | DT125: 17856.76185 | DU125: 0.7882309849 | DV125: 32026.27996 | DW125: 1.133007574 | DY125: 5790.167692 | DZ125: 1963.947257 | EA125: tx A | EG125: 46400 | EH125: 0.4437 | EI125: 0.5563 | EJ125: 7198.985702 | EK125: 8862.018032 | EL125: 0.5563
BA126: 118 | BB126: 15042.00172 | BC126: 1.356860392 | BD126: 29008.23088 | BE126: 1.534340892 | BF126: -0.01441666667 | BG126: -0.03790193282 | BH126: -0.05780228023 | BI126: -0.07520746426 | BJ126: -0.09079659148 | BK126: -0.1049980875 | BL126: -0.1180870944 | BM126: -0.1302447795 | BN126: -0.1415944587 | BO126: -0.1522236084 | BP126: -0.1621972885 | BQ126: -0.1715663382 | BR126: -0.1799530527 | BS126: -0.1878373867 | BT126: -0.1952491161 | BU126: -0.2022151057 | BV126: -0.2087600129 | BW126: -0.2149067377 | BX126: -0.2206767158 | BY126: -0.2260901164 | BZ126: -0.2311659804 | CA126: -0.235922322 | CB126: -0.2403762075 | CC126: -0.2445438181 | CD126: -0.2482549475 | CE126: -0.2517219253 | CF126: -0.2549579172 | CG126: -0.2579754185 | CH126: -0.260786289 | CI126: -0.2634017845 | CJ126: -0.2658325871 | CK126: -0.2680888339 | CL126: -0.2701801436 | CM126: -0.2721156424 | CN126: -0.2739039881 | CO126: -0.2755533938 | CP126: -0.2769993514 | CQ126: -0.27832744 | CR126: -0.2795443316 | CS126: -0.2806563522 | CT126: -0.2816694994 | CU126: -0.2825894581 | CV126: -0.2834216167 | CW126: -0.2841710816 | CX126: -0.2848426911 | CY126: -0.2854410293 | CZ126: -0.2859704385 | DA126: -0.2864350313 | DB126: -0.2868194802 | DC126: -0.2871494204 | DD126: -0.287428177 | DE126: -0.2876588968 | DF126: -0.2878445582 | DG126: -0.2879879791 | DH126: -0.2880918255 | DI126: -0.288158619 | DJ126: -0.2881907441 | DK126: -0.2881904556 | DL126: -0.2881598845 | DM126: -0.2881010453 | DN126: -0.2880604719 | DS126: 118 | DT126: 15042.00172 | DU126: 1.356860392 | DV126: 29008.23088 | DW126: 1.534340892 | DY126: 25663.81004 | DZ126: 17021.99588 | EA126: tx A | EG126: 46800 | EH126: 0.4387 | EI126: 0.5613 | EJ126: 7405.628486 | EK126: 9202.437395 | EL126: 0.5613
BA127: 119 | BB127: 15994.37314 | BC127: 1.275794422 | BD127: 29771.82196 | BE127: 1.498094652 | BF127: -0.01441666667 | BG127: -0.03717024806 | BH127: -0.05606399404 | BI127: -0.0723876517 | BJ127: -0.08689797937 | BK127: -0.1000459659 | BL127: -0.1121068297 | BM127: -0.1232544084 | BN127: -0.1336037416 | BO127: -0.1432354613 | BP127: -0.1522097763 | BQ127: -0.1605745046 | BR127: -0.1679985008 | BS127: -0.1749133896 | BT127: -0.1813491209 | BU127: -0.1873331698 | BV127: -0.1928910668 | BW127: -0.1980467268 | BX127: -0.202822662 | BY127: -0.2072401272 | BZ127: -0.2113192256 | CA127: -0.2150789898 | CB127: -0.21853745 | CC127: -0.2217116908 | CD127: -0.2244795122 | CE127: -0.227006682 | CF127: -0.2293070491 | CG127: -0.2313937364 | CH127: -0.2332791773 | CI127: -0.2349751509 | CJ127: -0.2364928145 | CK127: -0.2378427351 | CL127: -0.2390349188 | CM127: -0.2400788395 | CN127: -0.2409834652 | CO127: -0.2417572838 | CP127: -0.2423773253 | CQ127: -0.2428876758 | CR127: -0.2432951814 | CS127: -0.2436063171 | CT127: -0.2438272055 | CU127: -0.2439636345 | CV127: -0.2440210749 | CW127: -0.2440046965 | CX127: -0.2439193833 | CY127: -0.2437697487 | CZ127: -0.2435601488 | DA127: -0.2432946965 | DB127: -0.2429923887 | DC127: -0.2426440732 | DD127: -0.2422530406 | DE127: -0.241822394 | DF127: -0.2413550591 | DG127: -0.2408537932 | DH127: -0.2403211942 | DI127: -0.2397597091 | DJ127: -0.2391716417 | DK127: -0.2385591606 | DL127: -0.237924306 | DM127: -0.2372689968 | DN127: -0.2369480636 | DS127: 119 | DT127: 15994.37314 | DU127: 1.275794422 | DV127: 29771.82196 | DW127: 1.498094652 | DY127: 22279.45952 | DZ127: 15171.01761 | EA127: tx A | EG127: 47200 | EH127: 0.4315 | EI127: 0.5685 | EJ127: 7612.27127 | EK127: 9542.856757 | EL127: 0.5685
BA128: 120 | BB128: 17706.83078 | BC128: 0.453142834 | BD128: 29863.34817 | BE128: 0.7510759416 | BF128: -0.01441666667 | BG128: -0.03545338134 | BH128: -0.05172101483 | BI128: -0.06494264519 | BJ128: -0.07610730405 | BK128: -0.08579077142 | BL128: -0.09433587853 | BM128: -0.1019537918 | BN128: -0.1087808847 | BO128: -0.1149106669 | BP128: -0.120411715 | BQ128: -0.1253377538 | BR128: -0.1295240249 | BS128: -0.1332418676 | BT128: -0.1365241326 | BU128: -0.1394007712 | BV128: -0.1418994406 | BW128: -0.144045876 | BX128: -0.1458641334 | BY128: -0.1473767575 | BZ128: -0.1486049065 | CA128: -0.1495684519 | CB128: -0.150286062 | CC128: -0.1507752758 | CD128: -0.1510393651 | CE128: -0.1511163639 | CF128: -0.1510201109 | CG128: -0.1507635967 | CH128: -0.1503590115 | CI128: -0.1498177909 | CJ128: -0.1491506584 | CK128: -0.1483676658 | CL128: -0.1474782319 | CM128: -0.1464911781 | CN128: -0.1454147631 | CO128: -0.1442567152 | CP128: -0.143082951 | CQ128: -0.1418447609 | CR128: -0.1405481582 | CS128: -0.1391987584 | CT128: -0.1378018024 | CU128: -0.1363621787 | CV128: -0.1348844441 | CW128: -0.1333728435 | CX128: -0.1318313282 | CY128: -0.1302635735 | CZ128: -0.1286729956 | DA128: -0.1270627669 | DB128: -0.125513304 | DC128: -0.1239505278 | DD128: -0.1223768448 | DE128: -0.1207944807 | DF128: -0.1192054923 | DG128: -0.1176117777 | DH128: -0.116015086 | DI128: -0.1144170271 | DJ128: -0.1128190803 | DK128: -0.1112226026 | DL128: -0.1096288365 | DM128: -0.1080389178 | DN128: -0.1072841388 | DS128: 120 | DT128: 17706.83078 | DU128: 0.453142834 | DV128: 29863.34817 | DW128: 0.7510759416 | DY128: -4112.545756 | DZ128: -7331.069919 | EA128: tx A | EG128: 47600 | EH128: 0.4246 | EI128: 0.5754 | EJ128: 7818.914054 | EK128: 9883.27612 | EL128: 0.5754
BA129: 121 | BB129: 17798.36711 | BC129: 0.2918433167 | BD129: 30282.53393 | BE129: 0.6014027413 | BF129: -0.01441666667 | BG129: -0.03723474833 | BH129: -0.05584464757 | BI129: -0.07141176887 | BJ129: -0.0846964167 | BK129: -0.09620235944 | BL129: -0.1062702729 | BM129: -0.1151366097 | BN129: -0.1229707521 | BO129: -0.1298985082 | BP129: -0.1360170062 | BQ129: -0.1414041668 | BR129: -0.1458999609 | BS129: -0.1498137612 | BT129: -0.1531919656 | BU129: -0.1560760917 | BV129: -0.1585038141 | BW129: -0.1605096636 | BX129: -0.1621255127 | BY129: -0.1633809214 | BZ129: -0.1643033929 | CA129: -0.1649185702 | CB129: -0.1652503934 | CC129: -0.1653212295 | CD129: -0.1651600433 | CE129: -0.1647888196 | CF129: -0.1642249547 | CG129: -0.1634847063 | CH129: -0.1625832635 | CI129: -0.1615348116 | CJ129: -0.160352593 | CK129: -0.1590489641 | CL129: -0.1576354485 | CM129: -0.1561227872 | CN129: -0.154520986 | CO129: -0.1528393598 | CP129: -0.1511700405 | CQ129: -0.1494406237 | CR129: -0.1476582374 | CS129: -0.1458294982 | CT129: -0.1439605428 | CU129: -0.1420570575 | CV129: -0.1401243065 | CW129: -0.1381671585 | CX129: -0.1361901107 | CY129: -0.1341973133 | CZ129: -0.1321925908 | DA129: -0.1301794632 | DB129: -0.1282572747 | DC129: -0.1263329891 | DD129: -0.1244091958 | DE129: -0.1224882627 | DF129: -0.1205723501 | DG129: -0.118663425 | DH129: -0.1167632739 | DI129: -0.114873515 | DJ129: -0.1129956096 | DK129: -0.1111308727 | DL129: -0.1092804836 | DM129: -0.1074454947 | DN129: -0.1065794691 | DS129: 121 | DT129: 17798.36711 | DU129: 0.2918433167 | DV129: 30282.53393 | DW129: 0.6014027413 | DY129: -9043.067612 | DZ129: -12240.45169 | EA129: tx A | EG129: 48000 | EH129: 0.4184 | EI129: 0.5816 | EJ129: 8025.556838 | EK129: 10223.69548 | EL129: 0.5816
BA130: 122 | BB130: 16764.65006 | BC130: 0.9728774434 | BD130: 30711.39761 | BE130: 1.242016533 | BF130: -0.01441666667 | BG130: -0.03744651528 | BH130: -0.05660665118 | BI130: -0.0730853751 | BJ130: -0.08761898311 | BK130: -0.1006694019 | BL130: -0.1125317305 | BM130: -0.1233993625 | BN130: -0.1334034357 | BO130: -0.1426367418 | BP130: -0.1511682294 | BQ130: -0.1590518124 | BR130: -0.1659850659 | BS130: -0.1723794297 | BT130: -0.178266744 | BU130: -0.1836758361 | BV130: -0.1886332558 | BW130: -0.1931637408 | BX130: -0.1972905179 | BY130: -0.2010355044 | BZ130: -0.2044194482 | CA130: -0.2074620289 | CB130: -0.2101819362 | CC130: -0.2125969324 | CD130: -0.2146226213 | CE130: -0.2163892982 | CF130: -0.2179115098 | CG130: -0.2192030908 | CH130: -0.2202771972 | CI130: -0.2211463391 | CJ130: -0.2218224102 | CK130: -0.2223167167 | CL130: -0.2226400045 | CM130: -0.2228024853 | CN130: -0.2228138614 | CO130: -0.222683349 | CP130: -0.2224322558 | CQ130: -0.2220622827 | CR130: -0.221580944 | CS130: -0.2209953722 | CT130: -0.2203123351 | CU130: -0.2195382532 | CV130: -0.2186792163 | CW130: -0.2177409987 | CX130: -0.2167290741 | CY130: -0.2156486303 | CZ130: -0.2145045824 | DA130: -0.2133015856 | DB130: -0.212103931 | DC130: -0.2108583069 | DD130: -0.2095684739 | DE130: -0.2082379895 | DF130: -0.2068702176 | DG130: -0.2054683382 | DH130: -0.2040353563 | DI130: -0.2025741101 | DJ130: -0.2010872796 | DK130: -0.1995773938 | DL130: -0.1980468388 | DM130: -0.1964978642 | DN130: -0.1957524957 | DS130: 122 | DT130: 16764.65006 | DU130: 0.9728774434 | DV130: 30711.39761 | DW130: 1.242016533 | DY130: 12421.67324 | DZ130: 6549.098373 | EA130: tx A | EG130: 48400 | EH130: 0.4123 | EI130: 0.5877 | EJ130: 8232.199622 | EK130: 10564.11485 | EL130: 0.5877
BA131: 123 | BB131: 17687.14618 | BC131: 0.4925597756 | BD131: 30571.1426 | BE131: 0.7912567665 | BF131: -0.01441666667 | BG131: -0.03712847811 | BH131: -0.05574732436 | BI131: -0.07151610416 | BJ131: -0.08520369704 | BK131: -0.09729279524 | BL131: -0.1080930503 | BM131: -0.1178091965 | BN131: -0.1265820511 | BO131: -0.134513186 | BP131: -0.1416797785 | BQ131: -0.1481435558 | BR131: -0.1536794022 | BS131: -0.1586378739 | BT131: -0.1630571668 | BU131: -0.1669720825 | BV131: -0.1704147578 | BW131: -0.1734151302 | BX131: -0.1760012464 | BY131: -0.1781994735 | BZ131: -0.1800346531 | CA131: -0.1815302191 | CB131: -0.1827082924 | CC131: -0.1835897619 | CD131: -0.1841655648 | CE131: -0.1844954185 | CF131: -0.1845960765 | CG131: -0.1844833547 | CH131: -0.1841721809 | CI131: -0.1836766406 | CJ131: -0.1830100207 | CK131: -0.1821848511 | CL131: -0.1812129436 | CM131: -0.1801054296 | CN131: -0.1788727954 | CO131: -0.1775249158 | CP131: -0.1761403165 | CQ131: -0.1746631427 | CR131: -0.1731012296 | CS131: -0.1714619431 | CT131: -0.169752205 | CU131: -0.1679785166 | CV131: -0.1661469815 | CW131: -0.1642633262 | CX131: -0.1623329212 | CY131: -0.1603607995 | CZ131: -0.1583516755 | DA131: -0.1563099621 | DB131: -0.1543383669 | DC131: -0.1523433402 | DD131: -0.1503283143 | DE131: -0.1482964928 | DF131: -0.1462508627 | DG131: -0.1441942073 | DH131: -0.1421291169 | DI131: -0.1400580003 | DJ131: -0.1379830946 | DK131: -0.1359064753 | DL131: -0.1338300658 | DM131: -0.1317556454 | DN131: -0.1307695565 | DS131: 123 | DT131: 17687.14618 | DU131: 0.4925597756 | DV131: 30571.1426 | DW131: 0.7912567665 | DY131: -2910.352911 | DZ131: -6833.439605 | EA131: tx A | EG131: 48800 | EH131: 0.4054 | EI131: 0.5946 | EJ131: 8438.842406 | EK131: 10904.53421 | EL131: 0.5946
BA132: 124 | BB132: 17338.57063 | BC132: 1.10822771 | BD132: 32559.35377 | BE132: 1.449165234 | BF132: -0.01441666667 | BG132: -0.03756385367 | BH132: -0.05690952348 | BI132: -0.0735942611 | BJ132: -0.08831660408 | BK132: -0.1015119198 | BL132: -0.1134584291 | BM132: -0.1243400995 | BN132: -0.1342839926 | BO132: -0.1433824711 | BP132: -0.1517064282 | BQ132: -0.1593131882 | BR132: -0.1659208589 | BS132: -0.171932155 | BT132: -0.1773835217 | BU132: -0.1823083761 | BV132: -0.1867377423 | BW132: -0.1907006575 | BX132: -0.1942244418 | BY132: -0.1973348841 | BZ132: -0.2000563776 | CA132: -0.2024120235 | CB132: -0.2044237149 | CC132: -0.2061122077 | CD132: -0.2074312315 | CE132: -0.208478964 | CF132: -0.209272257 | CG132: -0.2098270865 | CH132: -0.210158596 | CI132: -0.2102811365 | CJ132: -0.2102083052 | CK132: -0.2099529818 | CL132: -0.2095273635 | CM132: -0.2089429981 | CN132: -0.2082108151 | CO132: -0.2073411561 | CP132: -0.2063912964 | CQ132: -0.2053286335 | CR132: -0.2041614952 | CS132: -0.2028977512 | CT132: -0.2015448357 | CU132: -0.2001097684 | CV132: -0.1985991756 | CW132: -0.1970193094 | CX132: -0.1953760666 | CY132: -0.193675006 | CZ132: -0.191921366 | DA132: -0.19012008 | DB132: -0.1883636156 | DC132: -0.186570359 | DD132: -0.1847442236 | DE132: -0.1828888871 | DF132: -0.181007804 | DG132: -0.1791042166 | DH132: -0.1771811661 | DI132: -0.1752415034 | DJ132: -0.1732878982 | DK132: -0.1713228494 | DL132: -0.1693486933 | DM132: -0.1673676127 | DN132: -0.1664219136 | DS132: 124 | DT132: 17338.57063 | DU132: 1.10822771 | DV132: 32559.35377 | DW132: 1.449165234 | DY132: 15908.26067 | DZ132: 10915.60326 | EA132: tx A | EG132: 49200 | EH132: 0.3985 | EI132: 0.6015 | EJ132: 8645.48519 | EK132: 11244.95357 | EL132: 0.6015
BA133: 125 | BB133: 16063.97877 | BC133: 1.267922886 | BD133: 30540.35831 | BE133: 1.318557381 | BF133: -0.01441666667 | BG133: -0.03862307653 | BH133: -0.05972416788 | BI133: -0.07867440992 | BJ133: -0.09607536579 | BK133: -0.1123088116 | BL133: -0.127619495 | BM133: -0.1421666119 | BN133: -0.1560558421 | BO133: -0.1693592992 | BP133: -0.1821279615 | BQ133: -0.1943994237 | BR133: -0.2056406734 | BS133: -0.216458475 | BT133: -0.2268717824 | BU133: -0.2368972253 | BV133: -0.2465498208 | BW133: -0.2558434229 | BX133: -0.2647910092 | BY133: -0.2734048643 | BZ133: -0.2816966997 | CA133: -0.2896777333 | CB133: -0.2973587434 | CC133: -0.3047501071 | CD133: -0.3115231749 | CE133: -0.318039109 | CF133: -0.3243067836 | CG133: -0.3303347683 | CH133: -0.3361313407 | CI133: -0.341704497 | CJ133: -0.3470619621 | CK133: -0.3522111996 | CL133: -0.35715942 | CM133: -0.3619135898 | CN133: -0.3664804395 | CO133: -0.3708664716 | CP133: -0.3748774204 | CQ133: -0.3787279244 | CR133: -0.3824235672 | CS133: -0.3859697425 | CT133: -0.3893716606 | CU133: -0.3926343547 | CV133: -0.3957626864 | CW133: -0.3987613516 | CX133: -0.4016348862 | CY133: -0.4043876711 | CZ133: -0.4070239376 | DA133: -0.4095477726 | DB133: -0.4118481062 | DC133: -0.4140487513 | DD133: -0.4161532139 | DE133: -0.4181648799 | DF133: -0.4200870187 | DG133: -0.4219227879 | DH133: -0.4236752363 | DI133: -0.4253473082 | DJ133: -0.4269418464 | DK133: -0.428461596 | DL133: -0.4299092074 | DM133: -0.43128724 | DN133: -0.4319114897 | DS133: 125 | DT133: 16063.97877 | DU133: 1.267922886 | DV133: 30540.35831 | DW133: 1.318557381 | DY133: 21973.70781 | DZ133: 9016.363117 | EA133: tx A | EG133: 49600 | EH133: 0.3924 | EI133: 0.6076 | EJ133: 8852.127974 | EK133: 11585.37293 | EL133: 0.6076
BA134: 126 | BB134: 17727.39066 | BC134: 0.1374630017 | BD134: 30940.66965 | BE134: 0.504910505 | BF134: -0.01441666667 | BG134: -0.03498852176 | BH134: -0.05041962858 | BI134: -0.06255375159 | BJ134: -0.07248653691 | BK134: -0.08087494054 | BL134: -0.0881183217 | BM134: -0.09446446226 | BN134: -0.1000716608 | BO134: -0.1050451209 | BP134: -0.1094582926 | BQ134: -0.1133654041 | BR134: -0.1166448604 | BS134: -0.1195159294 | BT134: -0.1220071347 | BU134: -0.1241437712 | BV134: -0.1259487866 | BW134: -0.1274433214 | BX134: -0.1286470461 | BY134: -0.12957838 | BZ134: -0.1302546392 | CA134: -0.130692141 | CB134: -0.1309062838 | CC134: -0.1309116098 | CD134: -0.130730894 | CE134: -0.1303767545 | CF134: -0.1298608741 | CG134: -0.1291942911 | CH134: -0.1283874325 | CI134: -0.1274501456 | CJ134: -0.1263917279 | CK134: -0.1252209554 | CL134: -0.1239461092 | CM134: -0.122575001 | CN134: -0.1211149971 | CO134: -0.1195730415 | CP134: -0.1180326947 | CQ134: -0.1164264004 | CR134: -0.1147596856 | CS134: -0.1130377521 | CT134: -0.1112654938 | CU134: -0.1094475124 | CV134: -0.1075881333 | CW134: -0.1056914195 | CX134: -0.1037611861 | CY134: -0.1018010134 | CZ134: -0.099814259 | DA134: -0.09780407023 | DB134: -0.09587009403 | DC134: -0.09391923544 | DD134: -0.09195395313 | DE134: -0.08997654528 | DF134: -0.08798915844 | DG134: -0.08599379584 | DH134: -0.08399232532 | DI134: -0.08198648682 | DJ134: -0.07997789954 | DK134: -0.07796806871 | DL134: -0.075958392 | DM134: -0.07395016565 | DN134: -0.07299512972 | DS134: 126 | DT134: 17727.39066 | DU134: 0.1374630017 | DV134: 30940.66965 | DW134: 0.504910505 | DY134: -13603.50061 | DZ134: -15793.3545 | EA134: tx A | EG134: 50000 | EH134: 0.3876 | EI134: 0.6124 | EJ134: 9058.770758 | EK134: 11925.7923 | EL134: 0.6124
BA135: 127 | BB135: 16509.19051 | BC135: 0.266812329 | BD135: 29854.68445 | BE135: 0.7020755744 | BF135: -0.01441666667 | BG135: -0.03448665327 | BH135: -0.04919829653 | BI135: -0.06051489079 | BJ135: -0.06957084567 | BK135: -0.07702616355 | BL135: -0.08327060591 | BM135: -0.08854070352 | BN135: -0.09298642968 | BO135: -0.09670893584 | BP135: -0.09978174222 | BQ135: -0.1022625302 | BR135: -0.1041073943 | BS135: -0.1054749738 | BT135: -0.1064020613 | BU135: -0.1069227049 | BV135: -0.107068728 | BW135: -0.1068700128 | BX135: -0.1063546662 | BY135: -0.1055491279 | BZ135: -0.1044782535 | CA135: -0.1031653862 | CB135: -0.1016324252 | CC135: -0.09989989298 | CD135: -0.09807809166 | CE135: -0.09610163203 | CF135: -0.09398650324 | CG135: -0.09174763164 | CH135: -0.08939893917 | CI135: -0.08695339964 | CJ135: -0.08442309267 | CK135: -0.08181925523 | CL135: -0.07915233069 | CM135: -0.07643201547 | CN135: -0.07366730329 | CO135: -0.07086652712 | CP135: -0.06817211928 | CQ135: -0.06545749846 | CR135: -0.06272893179 | CS135: -0.05999219653 | CT135: -0.05725261028 | CU135: -0.0545150595 | CV135: -0.05178402646 | CW135: -0.04906361469 | CX135: -0.04635757296 | CY135: -0.04366931795 | CZ135: -0.04100195559 | DA135: -0.0383583012 | DB135: -0.03586553674 | DC135: -0.03339995487 | DD135: -0.03096351102 | DE135: -0.0285579502 | DF135: -0.02618482126 | DG135: -0.02384549032 | DH135: -0.02154115341 | DI135: -0.01927284838 | DJ135: -0.01704146607 | DK135: -0.01484776083 | DL135: -0.01269236048 | DM135: -0.01057577552 | DN135: -0.009586552867 | DS135: 127 | DT135: 16509.19051 | DU135: 0.266812329 | DV135: 29854.68445 | DW135: 0.7020755744 | DY135: -8504.820637 | DZ135: -8792.417223 | EA135: tx A | EG135: 50400 | EH135: 0.3814 | EI135: 0.6186 | EJ135: 9265.413542 | EK135: 12266.21166 | EL135: 0.6186
BA136: 128 | BB136: 17808.90283 | BC136: 0.4746620747 | BD136: 32070.40021 | BE136: 1.061291733 | BF136: -0.01441666667 | BG136: -0.03583740522 | BH136: -0.05230214475 | BI136: -0.0652910914 | BJ136: -0.07571050715 | BK136: -0.08412848447 | BL136: -0.09091307995 | BM136: -0.09631326174 | BN136: -0.1005063732 | BO136: -0.1036259951 | BP136: -0.1057783357 | BQ136: -0.1070519057 | BR136: -0.1075008182 | BS136: -0.1072505297 | BT136: -0.1063597423 | BU136: -0.1048822918 | BV136: -0.1028679438 | BW136: -0.100362928 | BX136: -0.09741031467 | BY136: -0.09405029691 | BZ136: -0.09032041356 | CA136: -0.08625573519 | CB136: -0.08188902529 | CC136: -0.07725088416 | CD136: -0.07260230891 | CE136: -0.06774782389 | CF136: -0.06271110516 | CG136: -0.0575142175 | CH136: -0.05217770923 | CI136: -0.04672070156 | CJ136: -0.0411609729 | CK136: -0.0355150384 | CL136: -0.02979822515 | CM136: -0.02402474312 | CN136: -0.01820775222 | CO136: -0.01235942567 | CP136: -0.006770458127 | CQ136: -0.001172239657 | CR136: 0.004426126096 | CS136: 0.01001626567 | CT136: 0.01559049052 | CU136: 0.02114175425 | CV136: 0.0266636123 | CW136: 0.03215018388 | CX136: 0.03759611608 | CY136: 0.04299654999 | CZ136: 0.04834708881 | DA136: 0.05364376767 | DB136: 0.05863353687 | DC136: 0.06356558646 | DD136: 0.0684372186 | DE136: 0.07324604774 | DF136: 0.07798997937 | DG136: 0.08266718994 | DH136: 0.087276108 | DI136: 0.09181539646 | DJ136: 0.0962839359 | DK136: 0.1006808088 | DL136: 0.1050052849 | DM136: 0.109256807 | DN136: 0.1112464125 | DS136: 128 | DT136: 17808.90283 | DU136: 0.4746620747 | DV136: 32070.40021 | DW136: 1.061291733 | DY136: -3569.040589 | DZ136: -231.6482146 | EA136: tx B | EG136: 50800 | EH136: 0.3768 | EI136: 0.6232 | EJ136: 9472.056326 | EK136: 12606.63102 | EL136: 0.6232
BA137: 129 | BB137: 17131.56974 | BC137: 0.6385048333 | BD137: 30848.72194 | BE137: 0.9975879219 | BF137: -0.01441666667 | BG137: -0.03637581266 | BH137: -0.05398293372 | BI137: -0.06867975956 | BJ137: -0.08130116638 | BK137: -0.09234109468 | BL137: -0.1021016658 | BM137: -0.1107766854 | BN137: -0.1184983426 | BO137: -0.1253632965 | BP137: -0.1314472407 | BQ137: -0.1368130395 | BR137: -0.1412913694 | BS137: -0.1451843085 | BT137: -0.1485343911 | BU137: -0.1513809405 | BV137: -0.1537605688 | BW137: -0.1557074976 | BX137: -0.1572537817 | BY137: -0.158429476 | BZ137: -0.1592627715 | CA137: -0.1597801113 | CB137: -0.1600062944 | CC137: -0.159964571 | CD137: -0.1596904378 | CE137: -0.1592013488 | CF137: -0.1585155085 | CG137: -0.1576499551 | CH137: -0.1566206277 | CI137: -0.1554424293 | CJ137: -0.1541292868 | CK137: -0.1526942072 | CL137: -0.1511493318 | CM137: -0.1495059861 | CN137: -0.147774728 | CO137: -0.1459653931 | CP137: -0.144176578 | CQ137: -0.142330235 | CR137: -0.1404339026 | CS137: -0.1384945813 | CT137: -0.1365187659 | CU137: -0.134512476 | CV137: -0.1324812851 | CW137: -0.1304303479 | CX137: -0.1283644259 | CY137: -0.1262879118 | CZ137: -0.1242048527 | DA137: -0.1221189711 | DB137: -0.1201329852 | DC137: -0.1181505526 | DD137: -0.1161744047 | DE137: -0.1142070355 | DF137: -0.1122507169 | DG137: -0.1103075135 | DH137: -0.1083792958 | DI137: -0.106467753 | DJ137: -0.1045744057 | DK137: -0.1027006167 | DL137: -0.1008476018 | DM137: -0.0990164402 | DN137: -0.09815531802 | DS137: 129 | DT137: 17131.56974 | DU137: 0.6385048333 | DV137: 30848.72194 | DW137: 0.9975879219 | DY137: =lambda*DU137-DT137 -> 2023.575255 | DZ137: =lambda*DW137-DV137 -> -921.0842853 | EA137: =IF(DY137>DZ137, "tx A", IF(DZ137>DY137, "tx B", "either")) -> tx A | EG137: 51200 | EH137: 0.3697 | EI137: 0.6303 | EJ137: 9678.69911 | EK137: 12947.05038 | EL137: 0.6303
BA138: 130 | BB138: 16806.20586 | BC138: 0.2756588207 | BD138: 32625.50244 | BE138: 0.8912081678 | BF138: -0.01441666667 | BG138: -0.03476343279 | BH138: -0.04974442602 | BI138: -0.06117891664 | BJ138: -0.0701400967 | BK138: -0.0772725853 | BL138: -0.08297402987 | BM138: -0.08749905507 | BN138: -0.09101882418 | BO138: -0.09365521599 | BP138: -0.0955004763 | BQ138: -0.09662855257 | BR138: -0.09707913314 | BS138: -0.09695767057 | BT138: -0.0963105349 | BU138: -0.09518002565 | BV138: -0.0936051687 | BW138: -0.09162222472 | BX138: -0.08926502928 | BY138: -0.08656523364 | BZ138: -0.08355248607 | CA138: -0.08025457672 | CB138: -0.07669755935 | CC138: -0.0729058578 | CD138: -0.06909300448 | CE138: -0.0650988645 | CF138: -0.0609425605 | CG138: -0.05664198814 | CH138: -0.05221388455 | CI138: -0.04767389293 | CJ138: -0.04303662358 | CK138: -0.03831571175 | CL138: -0.03352387233 | CM138: -0.02867295176 | CN138: -0.02377397715 | CO138: -0.01883720285 | CP138: -0.01410858548 | CQ138: -0.009361458606 | CR138: -0.004603623921 | CS138: 0.0001576974694 | CT138: 0.004915831201 | CU138: 0.009664617568 | CV138: 0.01439838115 | CW138: 0.01911190207 | CX138: 0.02380038874 | CY138: 0.02845945211 | CZ138: 0.0330850813 | DA138: 0.03767362046 | DB138: 0.04200516959 | DC138: 0.0462953639 | DD138: 0.05054161588 | DE138: 0.05474159955 | DF138: 0.05889323384 | DG138: 0.06299466694 | DH138: 0.06704426137 | DI138: 0.07104058005 | DJ138: 0.074982373 | DK138: 0.07886856487 | DL138: 0.08269824317 | DM138: 0.08647064705 | DN138: 0.08823946126 | DS138: 130 | DT138: 16806.20586 | DU138: 0.2756588207 | DV138: 32625.50244 | DW138: 0.8912081678 | DY138: -8536.441241 | DZ138: -5889.257403 | EA138: tx B | EG138: 51600 | EH138: 0.3643 | EI138: 0.6357 | EJ138: 9885.341894 | EK138: 13287.46975 | EL138: =IF(EJ138>EK138,EH138,EI138) -> 0.6357
BA139: =1+BA138 -> 131 | BB139: 16283.31376 | BC139: 0.3206433792 | BD139: 28626.15965 | BE139: 0.7229384421 | BF139: -0.01441666667 | BG139: -0.03248608767 | BH139: -0.04428856352 | BI139: -0.0523661255 | BJ139: -0.05815743403 | BK139: -0.06247993296 | BL139: -0.06580214856 | BM139: -0.06839703651 | BN139: -0.07042806958 | BO139: -0.07199740054 | BP139: -0.07317270773 | BQ139: -0.07400210084 | BR139: -0.07449759159 | BS139: -0.07472725543 | BT139: -0.07471560337 | BU139: -0.07448439274 | BV139: -0.07405336015 | BW139: -0.07344063852 | BX139: -0.07266300432 | BY139: -0.0717360339 | BZ139: -0.07067421141 | CA139: -0.06949101073 | CB139: -0.0681989632 | CC139: -0.06680971705 | CD139: -0.06540435961 | CE139: -0.06392629937 | CF139: -0.06238440366 | CG139: -0.0607868869 | CH139: -0.05914135119 | CI139: -0.05745482475 | CJ139: -0.05573379812 | CK139: -0.05398425851 | CL139: -0.05221172206 | CM139: -0.05042126435 | CN139: -0.04861754905 | CO139: -0.04680485498 | CP139: -0.04507366119 | CQ139: -0.04334106206 | CR139: -0.0416101726 | CS139: -0.03988382974 | CT139: -0.03816461131 | CU139: -0.03645485371 | CV139: -0.03475666867 | CW139: -0.03307195882 | CX139: -0.03140243245 | CY139: -0.02974961725 | CZ139: -0.02811487323 | DA139: -0.02649940488 | DB139: -0.02498023119 | DC139: -0.02348130775 | DD139: -0.02200339953 | DE139: -0.02054716271 | DF139: -0.01911315306 | DG139: -0.01770183366 | DH139: -0.01631358224 | DI139: -0.014948698 | DJ139: -0.01360740793 | DK139: -0.01228987282 | DL139: -0.01099619279 | DM139: -0.009726412485 | DN139: -0.009133133165 | DS139: =1+DS138 -> 131 | DT139: 16283.31376 | DU139: 0.3206433792 | DV139: 28626.15965 | DW139: 0.7229384421 | DY139: -6664.012387 | DZ139: -6938.006382 | EA139: tx A | EG139: =EG138+400 -> 52000 | EH139: 0.3572 | EI139: 0.6428 | EJ139: 10091.98468 | EK139: 13627.88911 | EL139: 0.6428
BA140: 132 | BB140: 16686.40676 | BC140: -0.06627859357 | BD140: 29176.66261 | BE140: 0.3655909197 | BF140: -0.01441666667 | BG140: -0.03570457255 | BH140: -0.05202422603 | BI140: -0.06494421195 | BJ140: -0.07542980049 | BK140: -0.0840847133 | BL140: -0.09129538975 | BM140: -0.09731711069 | BN140: -0.1023254464 | BO140: -0.1064470218 | BP140: -0.1097779435 | BQ140: -0.1123948637 | BR140: -0.1142679936 | BS140: -0.1155744501 | BT140: -0.1163607685 | BU140: -0.1166689798 | BV140: -0.1165375371 | BW140: -0.1160019187 | BX140: -0.1150950362 | BY140: -0.1138475223 | BZ140: -0.1122879464 | CA140: -0.1104429836 | CB140: -0.108337553 | CC140: -0.1059949375 | CD140: -0.103558701 | CE140: -0.1009366392 | CF140: -0.09814681664 | CG140: -0.09520609128 | CH140: -0.09213018618 | CI140: -0.08893375729 | CJ140: -0.08563045702 | CK140: -0.08223299406 | CL140: -0.07875318986 | CM140: -0.07520203187 | CN140: -0.07158972376 | CO140: -0.06792573285 | CP140: -0.06439535383 | CQ140: -0.06083185033 | CR140: -0.05724238124 | CS140: -0.05363356078 | CT140: -0.05001149227 | CU140: -0.04638180001 | CV140: -0.04274965935 | CW140: -0.03911982501 | CX140: -0.0354966578 | CY140: -0.03188414985 | CZ140: -0.02828594829 | DA140: -0.02470537766 | DB140: -0.02131498083 | DC140: -0.01794686519 | DD140: -0.01460339107 | DE140: -0.01128668506 | DF140: -0.007998655771 | DG140: -0.004741008737 | DH140: -0.001515260312 | DI140: 0.001677249173 | DJ140: 0.004835343081 | DK140: 0.007957996861 | DL140: 0.01104432715 | DM140: 0.01409358155 | DN140: 0.01552765175 | DS140: 132 | DT140: 16686.40676 | DU140: -0.06627859357 | DV140: 29176.66261 | DW140: 0.3655909197 | DY140: -18674.76457 | DZ140: -18208.93501 | EA140: tx B | EG140: 52400 | EH140: 0.3528 | EI140: 0.6472 | EJ140: 10298.62746 | EK140: 13968.30847 | EL140: 0.6472
BA141: 133 | BB141: 17566.55503 | BC141: 0.1762450092 | BD141: 32204.85434 | BE141: 0.6076115361 | BF141: -0.01441666667 | BG141: -0.03688677812 | BH141: -0.05492595292 | BI141: -0.06979252812 | BJ141: -0.08231192344 | BK141: -0.09303117911 | BL141: -0.1023180408 | BM141: -0.1104244968 | BN141: -0.1175275303 | BO141: -0.1237552678 | BP141: -0.1292037689 | BQ141: -0.1339478181 | BR141: -0.1378526321 | BS141: -0.1411923219 | BT141: -0.1440084831 | BU141: -0.1463379041 | BV141: -0.1482137482 | BW141: -0.1496663375 | BX141: -0.1507236812 | BY141: -0.1514118383 | BZ141: -0.1517551738 | CA141: -0.1517765449 | CB141: -0.1514974419 | CC141: -0.150938099 | CD141: -0.1501566564 | CE141: -0.1491436009 | CF141: -0.14791508 | CG141: -0.1464863232 | CH141: -0.1448716932 | CI141: -0.1430847329 | CJ141: -0.14113821 | CK141: -0.1390441578 | CL141: -0.1368139139 | CM141: -0.1344581573 | CN141: -0.1319869426 | CO141: -0.1294097332 | CP141: -0.12686278 | CQ141: -0.1242313325 | CR141: -0.121522886 | CS141: -0.1187444829 | CT141: -0.115902736 | CU141: -0.1130038526 | CV141: -0.1100536552 | CW141: -0.1070576028 | CX141: -0.1040208105 | CY141: -0.100948068 | CZ141: -0.09784385708 | DA141: -0.09471236901 | DB141: -0.09170775094 | DC141: -0.08868436682 | DD141: -0.08564546544 | DE141: -0.08259407494 | DF141: -0.07953301514 | DG141: -0.07646490927 | DH141: -0.07339219506 | DI141: -0.07031713525 | DJ141: -0.06724182763 | DK141: -0.06416821448 | DL141: -0.06109809153 | DM141: -0.05803311653 | DN141: -0.05657678353 | DS141: 133 | DT141: 17566.55503 | DU141: 0.1762450092 | DV141: 32204.85434 | DW141: 0.6076115361 | DY141: -12279.20475 | DZ141: -13976.50826 | EA141: tx A | EG141: 52800 | EH141: 0.3479 | EI141: 0.6521 | EJ141: 10505.27025 | EK141: 14308.72783 | EL141: 0.6521
BA142: 134 | BB142: 16163.13277 | BC142: -0.2010045297 | BD142: 30404.55888 | BE142: 0.3577267685 | BF142: -0.01441666667 | BG142: -0.03466405141 | BH142: -0.04929824523 | BI142: -0.06014985676 | BJ142: -0.06835557367 | BK142: -0.07462983756 | BL142: -0.07942957574 | BM142: -0.08305413841 | BN142: -0.08570596812 | BO142: -0.08752746463 | BP142: -0.08862341465 | BQ142: -0.08907466482 | BR142: -0.08895258415 | BS142: -0.08833086502 | BT142: -0.08725477769 | BU142: -0.08576454083 | BV142: -0.08389651144 | BW142: -0.08168395185 | BX142: -0.07915753751 | BY142: -0.07634570519 | BZ142: -0.07327490201 | CA142: -0.06996977233 | CB142: -0.06645330497 | CC142: -0.06274695444 | CD142: -0.05905532627 | CE142: -0.0552197231 | CF142: -0.05125674422 | CG142: -0.04718186485 | CH142: -0.04300950308 | CI142: -0.03875308236 | CJ142: -0.03442509009 | CK142: -0.03003713273 | CL142: -0.02559998782 | CM142: -0.02112365297 | CN142: -0.01661739223 | CO142: -0.01208977981 | CP142: -0.00776498138 | CQ142: -0.003434364341 | CR142: 0.0008956485014 | CS142: 0.005219146271 | CT142: 0.009530698602 | CU142: 0.01382532597 | CV142: 0.01809847165 | CW142: 0.02234597523 | CX142: 0.02656404764 | CY142: 0.03074924753 | CZ142: 0.03489845897 | DA142: 0.03900887047 | DB142: 0.04288418919 | DC142: 0.04671799563 | DD142: 0.05050837283 | DE142: 0.05425362441 | DF142: 0.05795225962 | DG142: 0.06160297927 | DH142: 0.06520466251 | DI142: 0.0687563543 | DJ142: 0.0722572537 | DK142: 0.07570670276 | DL142: 0.07910417619 | DM142: 0.0824492715 | DN142: 0.08401709451 | DS142: 134 | DT142: 16163.13277 | DU142: -0.2010045297 | DV142: 30404.55888 | DW142: 0.3577267685 | DY142: -22193.26866 | DZ142: -19672.75582 | EA142: tx B | EG142: 53200 | EH142: 0.343 | EI142: 0.657 | EJ142: 10711.91303 | EK142: 14649.1472 | EL142: 0.657
BA143: 135 | BB143: 15541.26187 | BC143: 0.4677281127 | BD143: 29530.70187 | BE143: 0.7229307199 | BF143: -0.01441666667 | BG143: -0.03680094143 | BH143: -0.05492842408 | BI143: -0.07015360792 | BJ143: -0.08331997962 | BK143: -0.09495894714 | BL143: -0.1054109634 | BM143: -0.1148992962 | BN143: -0.1235749762 | BO143: -0.1315442013 | BP143: -0.1388850628 | BQ143: -0.1456577682 | BR143: -0.1516131377 | BS143: -0.1571125597 | BT143: -0.1621897857 | BU143: -0.1668748556 | BV143: -0.171194992 | BW143: -0.1751751747 | BX143: -0.1788385203 | BY143: -0.1822065403 | BZ143: -0.1852993246 | CA143: -0.188135678 | CB143: -0.1907332267 | CC143: -0.1931085053 | CD143: -0.1951737677 | CE143: -0.1970559931 | CF143: -0.1987682008 | CG143: -0.2003226087 | CH143: -0.201730681 | CI143: -0.2030031716 | CJ143: -0.2041501651 | CK143: -0.2051811154 | CL143: -0.206104882 | CM143: -0.2069297642 | CN143: -0.2076635333 | CO143: -0.2083134632 | CP143: -0.2088590787 | CQ143: -0.2093373899 | CR143: -0.2097540619 | CS143: -0.2101143876 | CT143: -0.2104233087 | CU143: -0.2106854373 | CV143: -0.2109050745 | CW143: -0.2110862297 | CX143: -0.2112326375 | CY143: -0.2113477742 | CZ143: -0.2114348737 | DA143: -0.2114969416 | DB143: -0.211534873 | DC143: -0.2115540906 | DD143: -0.2115568817 | DE143: -0.2115453649 | DF143: -0.2115215008 | DG143: -0.2114871012 | DH143: -0.2114438391 | DI143: -0.211393257 | DJ143: -0.2113367753 | DK143: -0.2112757002 | DL143: -0.2112112308 | DM143: -0.2111444663 | DN143: -0.2111120595 | DS143: 135 | DT143: 15541.26187 | DU143: 0.4677281127 | DV143: 29530.70187 | DW143: 0.7229307199 | DY143: -1509.418491 | DZ143: -7842.780278 | EA143: tx A | EG143: 53600 | EH143: 0.3397 | EI143: 0.6603 | EJ143: 10918.55581 | EK143: 14989.56656 | EL143: 0.6603
BA144: 136 | BB144: 15909.50076 | BC144: 1.138172993 | BD144: 29048.82786 | BE144: 0.9646912887 | BF144: -0.01441666667 | BG144: -0.04007473595 | BH144: -0.06340757882 | BI144: -0.08504875018 | BJ144: -0.1054441668 | BK144: -0.124896406 | BL144: -0.14360576 | BM144: -0.1617026058 | BN144: -0.1792709453 | BO144: -0.1963647112 | BP144: -0.2130186968 | BQ144: -0.229255712 | BR144: -0.2443371123 | BS144: -0.2590465222 | BT144: -0.2733918508 | BU144: -0.287379555 | BV144: -0.3010152919 | BW144: -0.3143043116 | BX144: -0.3272516882 | BY144: -0.3398624522 | BZ144: -0.3521416626 | CA144: -0.3640944433 | CB144: -0.3757259982 | CC144: -0.3870416129 | CD144: -0.397522601 | CE144: -0.4077129745 | CF144: -0.4176179619 | CG144: -0.4272428366 | CH144: -0.4365929059 | CI144: -0.445673501 | CJ144: -0.4544899666 | CK144: -0.4630476518 | CL144: -0.4713519011 | CM144: -0.4794080467 | CN144: -0.4872214005 | CO144: -0.4947972477 | CP144: -0.5017911453 | CQ144: -0.5085688126 | CR144: -0.515135172 | CS144: -0.5214950994 | CT144: -0.5276534197 | CU144: -0.5336149034 | CV144: -0.539384263 | CW144: -0.5449661504 | CX144: -0.5503651537 | CY144: -0.5555857954 | CZ144: -0.5606325301 | DA144: -0.5655097428 | DB144: -0.569997366 | DC144: -0.5743316872 | DD144: -0.5785166759 | DE144: -0.5825562304 | DF144: -0.5864541776 | DG144: -0.5902142726 | DH144: -0.5938401978 | DI144: -0.5973355634 | DJ144: -0.6007039068 | DK144: -0.6039486931 | DL144: -0.6070733148 | DM144: -0.6100810924 | DN144: -0.6114592746 | DS144: 136 | DT144: 15909.50076 | DU144: 1.138172993 | DV144: 29048.82786 | DW144: 0.9646912887 | DY144: 18235.68904 | DZ144: -108.0891995 | EA144: tx A | EG144: 54000 | EH144: 0.3355 | EI144: 0.6645 | EJ144: 11125.1986 | EK144: 15329.98592 | EL144: 0.6645
BA145: 137 | BB145: 16381.5432 | BC145: 0.9692839838 | BD145: 31630.49252 | BE145: 1.335590484 | BF145: -0.01441666667 | BG145: -0.03691825743 | BH145: -0.05512857298 | BI145: -0.07034619278 | BJ145: -0.08340259028 | BK145: -0.09483495666 | BL145: -0.1049948817 | BM145: -0.1141166919 | BN145: -0.1223604221 | BO145: -0.129838839 | BP145: -0.1366344431 | BQ145: -0.1428101706 | BR145: -0.1481491876 | BS145: -0.1529851534 | BT145: -0.1573520591 | BU145: -0.1612799427 | BV145: -0.1647959334 | BW145: -0.167924927 | BX145: -0.1706900275 | BY145: -0.1731128431 | BZ145: -0.1752136879 | CA145: -0.1770117256 | CB145: -0.1785250752 | CC145: -0.1797708916 | CD145: -0.1807180729 | CE145: -0.1814406229 | CF145: -0.1819524627 | CG145: -0.1822667952 | CH145: -0.1823961421 | CI145: -0.1823523776 | CJ145: -0.18214676 | CK145: -0.1817899619 | CL145: -0.1812920978 | CM145: -0.1806627511 | CN145: -0.179911 | CO145: -0.1790454408 | CP145: -0.1781204609 | CQ145: -0.1771021783 | CR145: -0.1759975328 | CS145: -0.1748130876 | CT145: -0.1735550477 | CU145: -0.1722292775 | CV145: -0.170841317 | CW145: -0.1693963976 | CX145: -0.1678994578 | CY145: -0.1663551568 | CZ145: -0.164767889 | DA145: -0.1631417964 | DB145: -0.1615598777 | DC145: -0.1599482 | DD145: -0.1583100573 | DE145: -0.1566485482 | DF145: -0.1549665856 | DG145: -0.1532669057 | DH145: -0.1515520778 | DI145: -0.149824512 | DJ145: -0.1480864678 | DK145: -0.1463400618 | DL145: -0.1445872749 | DM145: -0.1428299597 | DN145: -0.1419918107 | DS145: 137 | DT145: 16381.5432 | DU145: 0.9692839838 | DV145: 31630.49252 | DW145: 1.335590484 | DY145: 12696.97632 | DZ145: 8437.221996 | EA145: tx A | EG145: 54400 | EH145: 0.3314 | EI145: 0.6686 | EJ145: 11331.84138 | EK145: 15670.40528 | EL145: 0.6686
BA146: 138 | BB146: 18146.38455 | BC146: 0.9559666318 | BD146: 30669.19527 | BE146: 1.266690852 | BF146: -0.01441666667 | BG146: -0.03638269648 | BH146: -0.05388141899 | BI146: -0.0683377313 | BJ146: -0.08060944352 | BK146: -0.09122377588 | BL146: -0.1005144857 | BM146: -0.1087014215 | BN146: -0.1159367177 | BO146: -0.1223316604 | BP146: -0.1279723484 | BQ146: -0.1329288594 | BR146: -0.1370543723 | BS146: -0.1406344752 | BT146: -0.143713518 | BU146: -0.1463317761 | BV146: -0.1485261772 | BW146: -0.150330784 | BX146: -0.1517771327 | BY146: -0.1528944839 | BZ146: -0.1537100192 | CA146: -0.1542490046 | CB146: -0.1545349297 | CC146: -0.1545896315 | CD146: -0.1544408455 | CE146: -0.1541091367 | CF146: -0.1536111856 | CG146: -0.152962477 | CH146: -0.1521773784 | CI146: -0.1512692128 | CJ146: -0.1502503276 | CK146: -0.1491321584 | CL146: -0.1479252895 | CM146: -0.1466395098 | CN146: -0.145283866 | CO146: -0.1438667119 | CP146: -0.1424658004 | CQ146: -0.1410204142 | CR146: -0.1395367839 | CS146: -0.1380206414 | CT146: -0.1364772535 | CU146: -0.1349114537 | CV146: -0.1333276728 | CW146: -0.1317299661 | CX146: -0.13012204 | CY146: -0.1285072763 | CZ146: -0.1268887555 | DA146: -0.1252692779 | DB146: -0.1237284262 | DC146: -0.122191272 | DD146: -0.1206597917 | DE146: -0.1191357644 | DF146: -0.117620786 | DG146: -0.1161162837 | DH146: -0.1146235276 | DI146: -0.1131436436 | DJ146: -0.1116776238 | DK146: -0.1102263373 | DL146: -0.1087905395 | DM146: -0.1073708812 | DN146: -0.1067028032 | DS146: 138 | DT146: 18146.38455 | DU146: 0.9559666318 | DV146: 30669.19527 | DW146: 1.266690852 | DY146: 10532.6144 | DZ146: 7331.530308 | EA146: tx A | EG146: 54800 | EH146: 0.3256 | EI146: 0.6744 | EJ146: 11538.48417 | EK146: 16010.82465 | EL146: 0.6744
BA147: 139 | BB147: 15403.91047 | BC147: 1.007483369 | BD147: 30386.2251 | BE147: 1.429175758 | BF147: -0.01441666667 | BG147: -0.03665268783 | BH147: -0.0544181277 | BI147: -0.06904125747 | BJ147: -0.08136138681 | BK147: -0.09191755081 | BL147: -0.1010637006 | BM147: -0.1090391258 | BN147: -0.1160115763 | BO147: -0.1221037145 | BP147: -0.1274093799 | BQ147: -0.1320036201 | BR147: -0.1357610307 | BS147: -0.1389515797 | BT147: -0.1416204781 | BU147: -0.1438084248 | BV147: -0.1455525563 | BW147: -0.1468870755 | BX147: -0.1478436799 | BY147: -0.1484518647 | BZ147: -0.1487391461 | CA147: -0.1487312349 | CB147: -0.1484521761 | CC147: -0.1479244667 | CD147: -0.1472051255 | CE147: -0.1462877826 | CF147: -0.1451899866 | CG147: -0.1439281479 | CH147: -0.1425176062 | CI147: -0.1409726937 | CJ147: -0.1393067943 | CK147: -0.1375323992 | CL147: -0.135661159 | CM147: -0.1337039337 | CN147: -0.1316708388 | CO147: -0.1295712899 | CP147: -0.1275167696 | CQ147: -0.1254150494 | CR147: -0.1232733248 | CS147: -0.1210982697 | CT147: -0.1188960688 | CU147: -0.1166724465 | CV147: -0.1144326953 | CW147: -0.1121817025 | CX147: -0.1099239747 | CY147: -0.1076636618 | CZ147: -0.1054045792 | DA147: -0.1031502286 | DB147: -0.10101079 | DC147: -0.09888170653 | DD147: -0.09676552629 | DE147: -0.09466456787 | DF147: -0.09258093535 | DG147: -0.09051653236 | DH147: -0.08847307525 | DI147: -0.08645210558 | DJ147: -0.08445500184 | DK147: -0.08248299049 | DL147: -0.08053715634 | DM147: -0.07861845237 | DN147: -0.07771809832 | DS147: 139 | DT147: 15403.91047 | DU147: 1.007483369 | DV147: 30386.2251 | DW147: 1.429175758 | DY147: 14820.5906 | DZ147: 12489.04765 | EA147: tx A | EG147: 55200 | EH147: 0.32 | EI147: 0.68 | EJ147: 11745.12695 | EK147: 16351.24401 | EL147: 0.68
BA148: 140 | BB148: 16717.45185 | BC148: -0.01924546547 | BD148: 30958.39704 | BE148: 0.4434155556 | BF148: -0.01441666667 | BG148: -0.03586473402 | BH148: -0.05234900951 | BI148: -0.06538912853 | BJ148: -0.07594784287 | BK148: -0.08464336528 | BL148: -0.09188016538 | BM148: -0.09792959509 | BN148: -0.1029796337 | BO148: -0.107165617 | BP148: -0.1105892497 | BQ148: -0.1133303949 | BR148: -0.1153532649 | BS148: -0.1168411817 | BT148: -0.1178402302 | BU148: -0.1183915319 | BV148: -0.1185323678 | BW148: -0.1182969142 | BX148: -0.117716739 | BY148: -0.1168211457 | BZ148: -0.1156374231 | CA148: -0.1141910338 | CB148: -0.112505763 | CC148: -0.1106038414 | CD148: -0.1086059457 | CE148: -0.1064400078 | CF148: -0.1041233151 | CG148: -0.1016720145 | CH148: -0.09910118024 | CI148: -0.09642487616 | CJ148: -0.09365621464 | CK148: -0.09080741173 | CL148: -0.08788983923 | CM148: -0.08491407379 | CN148: -0.08188994337 | CO148: -0.07882657104 | CP148: -0.07587975722 | CQ148: -0.07291108946 | CR148: -0.06992747109 | CS148: -0.06693527973 | CT148: -0.06394039885 | CU148: -0.06094824771 | CV148: -0.05796380949 | CW148: -0.05499165805 | CX148: -0.05203598312 | CY148: -0.04910061412 | CZ148: -0.04618904267 | DA148: -0.04330444388 | DB148: -0.04058563675 | DC148: -0.03789773669 | DD148: -0.03524297377 | DE148: -0.03262334684 | DF148: -0.03004063881 | DG148: -0.0274964309 | DH148: -0.02499211616 | DI148: -0.02252891221 | DJ148: -0.02010787319 | DK148: -0.01772990114 | DL148: -0.01539575658 | DM148: -0.01310606858 | DN148: -0.0120371522 | DS148: 140 | DT148: 16717.45185 | DU148: -0.01924546547 | DV148: 30958.39704 | DW148: 0.4434155556 | DY148: -17294.81581 | DZ148: -17655.93038 | EA148: tx A | EG148: 55600 | EH148: 0.3141 | EI148: 0.6859 | EJ148: 11951.76973 | EK148: 16691.66337 | EL148: 0.6859
BA149: 141 | BB149: 15996.94217 | BC149: 0.8659673892 | BD149: 29723.385 | BE149: 1.036241864 | BF149: -0.01441666667 | BG149: -0.03828809432 | BH149: -0.05874658732 | BI149: -0.07677673189 | BJ149: -0.0930086197 | BK149: -0.1078495078 | BL149: -0.1215664094 | BM149: -0.134337908 | BN149: -0.1462866691 | BO149: -0.1574998458 | BP149: -0.1680418921 | BQ149: -0.1779626144 | BR149: -0.1868574931 | BS149: -0.1952311664 | BT149: -0.2031116924 | BU149: -0.2105241828 | BV149: -0.2174915809 | BW149: -0.2240351624 | BX149: -0.2301748626 | BY149: -0.2359294928 | BZ149: -0.2413168888 | CA149: -0.2463540146 | CB149: -0.2510570385 | CC149: -0.2554413911 | CD149: -0.2593275061 | CE149: -0.262937578 | CF149: -0.2662844329 | CG149: -0.2693803356 | CH149: -0.2722370151 | CI149: -0.2748656887 | CJ149: -0.2772770842 | CK149: -0.2794814614 | CL149: -0.2814886316 | CM149: -0.2833079771 | CN149: -0.2849484693 | CO149: -0.2864186859 | CP149: -0.2876645354 | CQ149: -0.2887634949 | CR149: -0.289722702 | CS149: -0.2905489791 | CT149: -0.2912488468 | CU149: -0.2918285368 | CV149: -0.2922940039 | CW149: -0.2926509382 | CX149: -0.2929047758 | CY149: -0.2930607104 | CZ149: -0.2931237029 | DA149: -0.2930984919 | DB149: -0.2929947882 | DC149: -0.2928155069 | DD149: -0.2925645783 | DE149: -0.2922457546 | DF149: -0.2918626177 | DG149: -0.291418587 | DH149: -0.2909169257 | DI149: -0.2903607482 | DJ149: -0.2897530262 | DK149: -0.2890965948 | DL149: -0.2883941588 | DM149: -0.287648298 | DN149: -0.2872736193 | DS149: 141 | DT149: 15996.94217 | DU149: 0.8659673892 | DV149: 29723.385 | DW149: 1.036241864 | DY149: 9982.079502 | DZ149: 1363.870922 | EA149: tx A | EG149: 56000 | EH149: 0.3105 | EI149: 0.6895 | EJ149: 12158.41252 | EK149: 17032.08273 | EL149: 0.6895
BA150: 142 | BB150: 18350.24627 | BC150: -0.7419648081 | BD150: 31417.43935 | BE150: -0.144329012 | BF150: -0.01441666667 | BG150: -0.03521520789 | BH150: -0.05064300888 | BI150: -0.06231506307 | BJ150: -0.07122772761 | BK150: -0.07801093638 | BL150: -0.08307626064 | BM150: -0.08670401463 | BN150: -0.08909463419 | BO150: -0.090399082 | BP150: -0.09073691886 | BQ150: -0.09020710772 | BR150: -0.08895703031 | BS150: -0.08703266204 | BT150: -0.08449792159 | BU150: -0.08141093031 | BV150: -0.07782498677 | BW150: -0.07378923066 | BX150: -0.06934911699 | BY150: -0.06454677276 | BZ150: -0.0594212791 | CA150: -0.05400890499 | CB150: -0.04834330811 | CC150: -0.04245571262 | CD150: -0.03666462407 | CE150: -0.03071522855 | CF150: -0.02463117868 | CG150: -0.01843435248 | CH150: -0.01214496615 | CI150: -0.005781679684 | CJ150: 0.0006383039451 | CK150: 0.007099145607 | CL150: 0.01358628239 | CM150: 0.02008634522 | CN150: 0.02658708131 | CO150: 0.03307728129 | CP150: 0.03923864255 | CQ150: 0.045371342 | CR150: 0.05146730863 | CS150: 0.05751922631 | CT150: 0.06352048276 | CU150: 0.06946512155 | CV150: 0.07534779702 | CW150: 0.08116373191 | CX150: 0.08690867761 | CY150: 0.09257887681 | CZ150: 0.09817102838 | DA150: 0.1036822545 | DB150: 0.1088516026 | DC150: 0.113939491 | DD150: 0.1189442193 | DE150: 0.1238643833 | DF150: 0.1286988518 | DG150: 0.1334467462 | DH150: 0.1381074198 | DI150: 0.1426804395 | DJ150: 0.1471655686 | DK150: 0.1515627499 | DL150: 0.155872091 | DM150: 0.1600938498 | DN150: 0.1620626933 | DS150: 142 | DT150: 18350.24627 | DU150: -0.7419648081 | DV150: 31417.43935 | DW150: -0.144329012 | DY150: -40609.19051 | DZ150: -35747.30971 | EA150: tx B | EG150: 56400 | EH150: 0.3067 | EI150: 0.6933 | EJ150: 12365.0553 | EK150: 17372.5021 | EL150: 0.6933
BA151: 143 | BB151: 17336.46561 | BC151: 0.7327412209 | BD151: 30599.98901 | BE151: 1.155624607 | BF151: -0.01441666667 | BG151: -0.03625177649 | BH151: -0.05351236179 | BI151: -0.06762495525 | BJ151: -0.07944081786 | BK151: -0.08947948871 | BL151: -0.09806905557 | BM151: -0.1054267441 | BN151: -0.1117051021 | BO151: -0.1170184047 | BP151: -0.1214577221 | BQ151: -0.1250995128 | BR151: -0.1278719129 | BS151: -0.1300053641 | BT151: -0.131551901 | BU151: -0.1325595049 | BV151: -0.1330726868 | BW151: -0.1331328729 | BX151: -0.1327786797 | BY151: -0.1320461273 | BZ151: -0.1309688155 | CA151: -0.1295780778 | CB151: -0.1279031221 | CC151: -0.1259711587 | CD151: -0.1239105527 | CE151: -0.1216517558 | CF151: -0.1192156425 | CG151: -0.1166216077 | CH151: -0.1138876587 | CI151: -0.1110305011 | CJ151: -0.1080656201 | CK151: -0.1050073571 | CL151: -0.1018689819 | CM151: -0.09866276086 | CN151: -0.09540002095 | CO151: -0.09209120992 | CP151: -0.08890525105 | CQ151: -0.08569301649 | CR151: -0.08246225621 | CS151: -0.07922008049 | CT151: -0.07597300217 | CU151: -0.07272697641 | CV151: -0.06948743795 | CW151: -0.06625933619 | CX151: -0.06304716809 | CY151: -0.05985500909 | CZ151: -0.05668654218 | DA151: -0.05354508505 | DB151: -0.05058178093 | DC151: -0.04764957216 | DD151: -0.04475071503 | DE151: -0.04188720664 | DF151: -0.03906080375 | DG151: -0.03627304041 | DH151: -0.0335252445 | DI151: -0.03081855321 | DJ151: -0.02815392751 | DK151: -0.02553216573 | DL151: -0.02295391627 | DM151: -0.02041968941 | DN151: -0.01923406041 | DS151: 143 | DT151: 17336.46561 | DU151: 0.7327412209 | DV151: 30599.98901 | DW151: 1.155624607 | DY151: 4645.771016 | DZ151: 4068.749204 | EA151: tx A | EG151: 56800 | EH151: 0.3029 | EI151: 0.6971 | EJ151: 12571.69809 | EK151: 17712.92146 | EL151: 0.6971
BA152: 144 | BB152: 17645.39628 | BC152: 0.3208189657 | BD152: 29988.9966 | BE152: 0.6800936671 | BF152: -0.01441666667 | BG152: -0.03606465573 | BH152: -0.0529197694 | BI152: -0.06647219501 | BJ152: -0.07765864496 | BK152: -0.08707571352 | BL152: -0.09511045046 | BM152: -0.1020203226 | BN152: -0.107982221 | BO152: -0.1131225295 | BP152: -0.1175356012 | BQ152: -0.1212951364 | BR152: -0.1243104459 | BS152: -0.1268089491 | BT152: -0.1288328143 | BU152: -0.1304196217 | BV152: -0.1316034114 | BW152: -0.1324153685 | BX152: -0.1328842812 | BY152: -0.1330368602 | BZ152: -0.1328979687 | CA152: -0.1324907974 | CB152: -0.1318370021 | CC152: -0.1309568188 | CD152: -0.1299209546 | CE152: -0.1287043325 | CF152: -0.1273226865 | CG152: -0.1257907161 | CH152: -0.1241221493 | CI152: -0.1223298005 | CJ152: -0.120425626 | CK152: -0.1184207749 | CL152: -0.1163256377 | CM152: -0.1141498915 | CN152: -0.1119025432 | CO152: -0.1095919699 | CP152: -0.1073386242 | CQ152: -0.1050393641 | CR152: -0.102700578 | CS152: -0.1003281877 | CT152: -0.09792767748 | CU152: -0.09550412091 | CV152: -0.09306220654 | CW152: -0.09060626199 | CX152: -0.08814027667 | CY152: -0.08566792319 | CZ152: -0.08319257753 | DA152: -0.08071733805 | DB152: -0.07836277172 | DC152: -0.07601348218 | DD152: -0.07367172545 | DE152: -0.07133955559 | DF152: -0.06901883816 | DG152: -0.06671126274 | DH152: -0.06441835486 | DI152: -0.06214148709 | DJ152: -0.05988188959 | DK152: -0.05764065991 | DL152: -0.05541877227 | DM152: -0.05321708626 | DN152: -0.05217864283 | DS152: 144 | DT152: 17645.39628 | DU152: 0.3208189657 | DV152: 29988.9966 | DW152: 0.6800936671 | DY152: -8020.827305 | DZ152: -9586.18659 | EA152: tx A | EG152: 57200 | EH152: 0.2974 | EI152: 0.7026 | EJ152: 12778.34087 | EK152: 18053.34082 | EL152: 0.7026
BA153: 145 | BB153: 17204.68018 | BC153: 0.5950920635 | BD153: 30820.92555 | BE153: 0.7501153149 | BF153: -0.01441666667 | BG153: -0.03734597333 | BH153: -0.05637146128 | BI153: -0.07275059812 | BJ153: -0.08727685184 | BK153: -0.1004536764 | BL153: -0.1126031277 | BM153: -0.1239336829 | BN153: -0.1345825952 | BO153: -0.1446423529 | BP153: -0.1541772141 | BQ153: -0.1632335447 | BR153: -0.1714361553 | BS153: -0.1792425534 | BT153: -0.1866743886 | BU153: -0.1937502259 | BV153: -0.2004865043 | BW153: -0.2068981432 | BX153: -0.2129989294 | BY153: -0.218801766 | BZ153: -0.2243188349 | CA153: -0.2295617052 | CB153: -0.2345414075 | CC153: -0.239268486 | CD153: -0.2435394874 | CE153: -0.247588729 | CF153: -0.2514250539 | CG153: -0.2550569502 | CH153: -0.258492567 | CI153: -0.2617397298 | CJ153: -0.2648059545 | CK153: -0.2676984601 | CL153: -0.2704241809 | CM153: -0.2729897778 | CN153: -0.2754016496 | CO153: -0.2776659428 | CP153: -0.2796874852 | CQ153: -0.2815795025 | CR153: -0.2833471842 | CS153: -0.2849955157 | CT153: -0.2865292863 | CU153: -0.2879530966 | CV153: -0.2892713663 | CW153: -0.2904883411 | CX153: -0.2916080996 | CY153: -0.2926345598 | CZ153: -0.2935714856 | DA153: -0.2944224927 | DB153: -0.2951544563 | DC153: -0.2958110782 | DD153: -0.2963954111 | DE153: -0.2969103873 | DF153: -0.297358824 | DG153: -0.2977434271 | DH153: -0.2980667962 | DI153: -0.2983314283 | DJ153: -0.2985397224 | DK153: -0.2986939825 | DL153: -0.2987964224 | DM153: -0.2988491683 | DN153: -0.2988515943 | DS153: 145 | DT153: 17204.68018 | DU153: 0.5950920635 | DV153: 30820.92555 | DW153: 0.7501153149 | DY153: 648.0817276 | DZ153: -8317.4661 | EA153: tx A | EG153: 57600 | EH153: 0.2923 | EI153: 0.7077 | EJ153: 12984.98365 | EK153: 18393.76018 | EL153: 0.7077
